Workbook

Sheet Search MDC List
A1: MDC # | B1: IMO | C1: Name | D1: SL | E1: Alpha | F1: Delta | G1: vgeo | H1: dAlpha | I1: dDelta | J1: Alpha@SL | K1: Delta@SL | L1: dSL | M1: dPos | N1: dVgeo | O1: MATCH | S1: Input | T1: SL | U1: Rank
A2: 6 | B2: LYR | C2: April Lyrids | D2: 32.4 | E2: 272 | F2: 33.3 | G2: 46.6 | H2: 1 | I2: 0 | J2: =IF(E2-L2*H2<0,360+E2-L2*H2,IF(E2-L2*H2>=360,E2-L2*H2-360,E2-L2*H2)) -> 270.6 | K2: =F2-L2*I2 -> 33.3 | L2: =IF(D2-T$14>180,360-(D2-T$14),IF(D2-T$14<-180,360+(D2-T$14),D2-T$14)) -> 1.4 | M2: =DEGREES(ACOS((2-ABS((COS(RADIANS(K2))*COS(RADIANS(J2))-COS(RADIANS(V$14))*COS(RADIANS(U$14)))^2+(COS(RADIANS(K2))*SIN(RADIANS(J2))-COS(RADIANS(V$14))*SIN(RADIANS(U$14)))^2+(SIN(RADIANS(K2))-SIN(RADIANS(V$14)))^2))/2)) -> 0.8584660521 | N2: =SQRT(G2*G2+125)-W$14 -> 3.301814299 | O2: =ABS(L2)*$T$9+ABS(M2)*$U$9+ABS(N2)*$V$9 -> 4.860280351 | P2: 6_1 | Q2: LYR_1 | S2: IMO Network | T2: 31 | U2: 1
A3: 6 | B3: LYR | C3: April Lyrids | D3: 32.4 | E3: 271.9 | F3: 33.3 | G3: 47.07 | H3: 1.23 | I3: 0.17 | J3: =IF(E3-L3*H3<0,360+E3-L3*H3,IF(E3-L3*H3>=360,E3-L3*H3-360,E3-L3*H3)) -> 270.178 | K3: =F3-L3*I3 -> 33.062 | L3: =IF(D3-T$14>180,360-(D3-T$14),IF(D3-T$14<-180,360+(D3-T$14),D3-T$14)) -> 1.4 | M3: =DEGREES(ACOS((2-ABS((COS(RADIANS(K3))*COS(RADIANS(J3))-COS(RADIANS(V$14))*COS(RADIANS(U$14)))^2+(COS(RADIANS(K3))*SIN(RADIANS(J3))-COS(RADIANS(V$14))*SIN(RADIANS(U$14)))^2+(SIN(RADIANS(K3))-SIN(RADIANS(V$14)))^2))/2)) -> 1.266884717 | N3: =SQRT(G3*G3+125)-W$14 -> 3.758968737 | O3: =ABS(L3)*$T$9+ABS(M3)*$U$9+ABS(N3)*$V$9 -> 5.725853454 | P3: 6_2 | Q3: LYR_2 | S3: or | T3: CMOR #
A4: 6 | B4: LYR | C4: April Lyrids | D4: 32.4 | E4: 271.9 | F4: 33.6 | G4: 47.6 | H4: 1.1 | I4: 0 | J4: =IF(E4-L4*H4<0,360+E4-L4*H4,IF(E4-L4*H4>=360,E4-L4*H4-360,E4-L4*H4)) -> 270.36 | K4: =F4-L4*I4 -> 33.6 | L4: =IF(D4-T$14>180,360-(D4-T$14),IF(D4-T$14<-180,360+(D4-T$14),D4-T$14)) -> 1.4 | M4: =DEGREES(ACOS((2-ABS((COS(RADIANS(K4))*COS(RADIANS(J4))-COS(RADIANS(V$14))*COS(RADIANS(U$14)))^2+(COS(RADIANS(K4))*SIN(RADIANS(J4))-COS(RADIANS(V$14))*SIN(RADIANS(U$14)))^2+(SIN(RADIANS(K4))-SIN(RADIANS(V$14)))^2))/2)) -> 1.038241365 | N4: =SQRT(G4*G4+125)-W$14 -> 4.274775522 | O4: =ABS(L4)*$T$9+ABS(M4)*$U$9+ABS(N4)*$V$9 -> 6.013016887 | P4: 6_3 | Q4: LYR_3 | S4: CMOR List | T4: 21
A5: 145 | B5: ELY | C5: eta Lyrids | D5: 49.1 | E5: 292.5 | F5: 39.7 | G5: 45.3 | H5: 1 | I5: 0 | J5: =IF(E5-L5*H5<0,360+E5-L5*H5,IF(E5-L5*H5>=360,E5-L5*H5-360,E5-L5*H5)) -> 274.4 | K5: =F5-L5*I5 -> 39.7 | L5: =IF(D5-T$14>180,360-(D5-T$14),IF(D5-T$14<-180,360+(D5-T$14),D5-T$14)) -> 18.1 | M5: =DEGREES(ACOS((2-ABS((COS(RADIANS(K5))*COS(RADIANS(J5))-COS(RADIANS(V$14))*COS(RADIANS(U$14)))^2+(COS(RADIANS(K5))*SIN(RADIANS(J5))-COS(RADIANS(V$14))*SIN(RADIANS(U$14)))^2+(SIN(RADIANS(K5))-SIN(RADIANS(V$14)))^2))/2)) -> 6.593902386 | N5: =SQRT(G5*G5+125)-W$14 -> 2.038674002 | O5: =ABS(L5)*$T$9+ABS(M5)*$U$9+ABS(N5)*$V$9 -> 17.68257639 | P5: 145_1 | Q5: ELY_1 | S5: or | T5: SL | U5: Alpha | V5: Delta | W5: Vgeo
A6: 349 | B6: LLY | C6: lambda Lyrids | D6: 41 | E6: 283.7 | F6: 28.5 | G6: 33.4 | H6: 0.72 | I6: -0.15 | J6: =IF(E6-L6*H6<0,360+E6-L6*H6,IF(E6-L6*H6>=360,E6-L6*H6-360,E6-L6*H6)) -> 276.5 | K6: =F6-L6*I6 -> 30 | L6: =IF(D6-T$14>180,360-(D6-T$14),IF(D6-T$14<-180,360+(D6-T$14),D6-T$14)) -> 10 | M6: =DEGREES(ACOS((2-ABS((COS(RADIANS(K6))*COS(RADIANS(J6))-COS(RADIANS(V$14))*COS(RADIANS(U$14)))^2+(COS(RADIANS(K6))*SIN(RADIANS(J6))-COS(RADIANS(V$14))*SIN(RADIANS(U$14)))^2+(SIN(RADIANS(K6))-SIN(RADIANS(V$14)))^2))/2)) -> 5.440318809 | N6: =SQRT(G6*G6+125)-W$14 -> -9.399038743 | O6: =ABS(L6)*$T$9+ABS(M6)*$U$9+ABS(N6)*$V$9 -> 19.83935755 | P6: 349_1 | Q6: LLY_1 | S6: Radiant Pos | T6: 45 | U6: 251 | V6: 46 | W6: 35
A7: 518 | B7: AHE | C7: April 102 Herculids | D7: 34 | E7: 273 | F7: 19 | G7: 53.6 | H7: 0.27 | I7: 0.16 | J7: =IF(E7-L7*H7<0,360+E7-L7*H7,IF(E7-L7*H7>=360,E7-L7*H7-360,E7-L7*H7)) -> 272.19 | K7: =F7-L7*I7 -> 18.52 | L7: =IF(D7-T$14>180,360-(D7-T$14),IF(D7-T$14<-180,360+(D7-T$14),D7-T$14)) -> 3 | M7: =DEGREES(ACOS((2-ABS((COS(RADIANS(K7))*COS(RADIANS(J7))-COS(RADIANS(V$14))*COS(RADIANS(U$14)))^2+(COS(RADIANS(K7))*SIN(RADIANS(J7))-COS(RADIANS(V$14))*SIN(RADIANS(U$14)))^2+(SIN(RADIANS(K7))-SIN(RADIANS(V$14)))^2))/2)) -> 14.98928963 | N7: =SQRT(G7*G7+125)-W$14 -> 10.13300698 | O7: =ABS(L7)*$T$9+ABS(M7)*$U$9+ABS(N7)*$V$9 -> 26.62229661 | P7: 518_1 | Q7: AHE_1
A8: 409 | B8: NCY | C8: nu Cygnids | D8: 30 | E8: 305.2 | F8: 39.4 | G8: 42 | H8: 1.8 | I8: 0.7 | J8: =IF(E8-L8*H8<0,360+E8-L8*H8,IF(E8-L8*H8>=360,E8-L8*H8-360,E8-L8*H8)) -> 307 | K8: =F8-L8*I8 -> 40.1 | L8: =IF(D8-T$14>180,360-(D8-T$14),IF(D8-T$14<-180,360+(D8-T$14),D8-T$14)) -> -1 | M8: =DEGREES(ACOS((2-ABS((COS(RADIANS(K8))*COS(RADIANS(J8))-COS(RADIANS(V$14))*COS(RADIANS(U$14)))^2+(COS(RADIANS(K8))*SIN(RADIANS(J8))-COS(RADIANS(V$14))*SIN(RADIANS(U$14)))^2+(SIN(RADIANS(K8))-SIN(RADIANS(V$14)))^2))/2)) -> 28.90163739 | N8: =SQRT(G8*G8+125)-W$14 -> -1.15799541 | O8: =ABS(L8)*$T$9+ABS(M8)*$U$9+ABS(N8)*$V$9 -> 30.5596328 | P8: 409_1 | Q8: NCY_1 | T8: dSL | U8: dPos | V8: dVgeo
A9: 356 | B9: MVL | C9: May Vulpeculids | D9: 54 | E9: 287.2 | F9: 22.5 | G9: 32.5 | H9: 0.66 | I9: -0.09 | J9: =IF(E9-L9*H9<0,360+E9-L9*H9,IF(E9-L9*H9>=360,E9-L9*H9-360,E9-L9*H9)) -> 272.02 | K9: =F9-L9*I9 -> 24.57 | L9: =IF(D9-T$14>180,360-(D9-T$14),IF(D9-T$14<-180,360+(D9-T$14),D9-T$14)) -> 23 | M9: =DEGREES(ACOS((2-ABS((COS(RADIANS(K9))*COS(RADIANS(J9))-COS(RADIANS(V$14))*COS(RADIANS(U$14)))^2+(COS(RADIANS(K9))*SIN(RADIANS(J9))-COS(RADIANS(V$14))*SIN(RADIANS(U$14)))^2+(SIN(RADIANS(K9))-SIN(RADIANS(V$14)))^2))/2)) -> 8.93751763 | N9: =SQRT(G9*G9+125)-W$14 -> -10.25130532 | O9: =ABS(L9)*$T$9+ABS(M9)*$U$9+ABS(N9)*$V$9 -> 30.68882295 | P9: 356_1 | Q9: MVL_1 | S9: Weights | T9: 0.5 | U9: 1 | V9: 1
A10: 27 | B10: KSE | C10: kappa Serpentids | D10: 15.7 | E10: 230.6 | F10: 17.8 | G10: 45 | H10: 1 | I10: 0 | J10: =IF(E10-L10*H10<0,360+E10-L10*H10,IF(E10-L10*H10>=360,E10-L10*H10-360,E10-L10*H10)) -> 245.9 | K10: =F10-L10*I10 -> 17.8 | L10: =IF(D10-T$14>180,360-(D10-T$14),IF(D10-T$14<-180,360+(D10-T$14),D10-T$14)) -> -15.3 | M10: =DEGREES(ACOS((2-ABS((COS(RADIANS(K10))*COS(RADIANS(J10))-COS(RADIANS(V$14))*COS(RADIANS(U$14)))^2+(COS(RADIANS(K10))*SIN(RADIANS(J10))-COS(RADIANS(V$14))*SIN(RADIANS(U$14)))^2+(SIN(RADIANS(K10))-SIN(RADIANS(V$14)))^2))/2)) -> 27.85288127 | N10: =SQRT(G10*G10+125)-W$14 -> 1.747469443 | O10: =ABS(L10)*$T$9+ABS(M10)*$U$9+ABS(N10)*$V$9 -> 37.25035071 | P10: 27_1 | Q10: KSE_1
A11: 27 | B11: KSE | C11: kappa Serpentids | D11: 15.7 | E11: 232.6 | F11: 15.4 | G11: 45.01 | H11: 1 | I11: 0 | J11: =IF(E11-L11*H11<0,360+E11-L11*H11,IF(E11-L11*H11>=360,E11-L11*H11-360,E11-L11*H11)) -> 247.9 | K11: =F11-L11*I11 -> 15.4 | L11: =IF(D11-T$14>180,360-(D11-T$14),IF(D11-T$14<-180,360+(D11-T$14),D11-T$14)) -> -15.3 | M11: =DEGREES(ACOS((2-ABS((COS(RADIANS(K11))*COS(RADIANS(J11))-COS(RADIANS(V$14))*COS(RADIANS(U$14)))^2+(COS(RADIANS(K11))*SIN(RADIANS(J11))-COS(RADIANS(V$14))*SIN(RADIANS(U$14)))^2+(SIN(RADIANS(K11))-SIN(RADIANS(V$14)))^2))/2)) -> 28.02861042 | N11: =SQRT(G11*G11+125)-W$14 -> 1.757174455 | O11: =ABS(L11)*$T$9+ABS(M11)*$U$9+ABS(N11)*$V$9 -> 37.43578488 | P11: 27_2 | Q11: KSE_2 | S11: Color MATCH | T11: 0 | U11: 30 | V11: 100
A12: 142 | B12: MDR | C12: mu Draconids | D12: 29.2 | E12: 281 | F12: 57.9 | G12: 28.2 | H12: 1 | I12: 0 | J12: =IF(E12-L12*H12<0,360+E12-L12*H12,IF(E12-L12*H12>=360,E12-L12*H12-360,E12-L12*H12)) -> 282.8 | K12: =F12-L12*I12 -> 57.9 | L12: =IF(D12-T$14>180,360-(D12-T$14),IF(D12-T$14<-180,360+(D12-T$14),D12-T$14)) -> -1.8 | M12: =DEGREES(ACOS((2-ABS((COS(RADIANS(K12))*COS(RADIANS(J12))-COS(RADIANS(V$14))*COS(RADIANS(U$14)))^2+(COS(RADIANS(K12))*SIN(RADIANS(J12))-COS(RADIANS(V$14))*SIN(RADIANS(U$14)))^2+(SIN(RADIANS(K12))-SIN(RADIANS(V$14)))^2))/2)) -> 25.54532998 | N12: =SQRT(G12*G12+125)-W$14 -> -14.28516523 | O12: =ABS(L12)*$T$9+ABS(M12)*$U$9+ABS(N12)*$V$9 -> 40.73049521 | P12: 142_1 | Q12: MDR_1
A13: 348 | B13: ARC | C13: April rho Cygnids | D13: 37 | E13: 324.5 | F13: 45.9 | G13: 41.8 | H13: 0.61 | I13: 0.36 | J13: =IF(E13-L13*H13<0,360+E13-L13*H13,IF(E13-L13*H13>=360,E13-L13*H13-360,E13-L13*H13)) -> 320.84 | K13: =F13-L13*I13 -> 43.74 | L13: =IF(D13-T$14>180,360-(D13-T$14),IF(D13-T$14<-180,360+(D13-T$14),D13-T$14)) -> 6 | M13: =DEGREES(ACOS((2-ABS((COS(RADIANS(K13))*COS(RADIANS(J13))-COS(RADIANS(V$14))*COS(RADIANS(U$14)))^2+(COS(RADIANS(K13))*SIN(RADIANS(J13))-COS(RADIANS(V$14))*SIN(RADIANS(U$14)))^2+(SIN(RADIANS(K13))-SIN(RADIANS(V$14)))^2))/2)) -> 39.19953081 | N13: =SQRT(G13*G13+125)-W$14 -> -1.351234317 | O13: =ABS(L13)*$T$9+ABS(M13)*$U$9+ABS(N13)*$V$9 -> 43.55076512 | P13: 348_1 | Q13: ARC_1 | T13: SL | U13: Alpha | V13: Delta | W13: Vgeo | X13: CMOR #
A14: 40 | B14: ZCY | C14: zeta Cygnids | D14: 20 | E14: 303.8 | F14: 44.8 | G14: 39 | H14: 1 | I14: 0 | J14: =IF(E14-L14*H14<0,360+E14-L14*H14,IF(E14-L14*H14>=360,E14-L14*H14-360,E14-L14*H14)) -> 314.8 | K14: =F14-L14*I14 -> 44.8 | L14: =IF(D14-T$14>180,360-(D14-T$14),IF(D14-T$14<-180,360+(D14-T$14),D14-T$14)) -> -11 | M14: =DEGREES(ACOS((2-ABS((COS(RADIANS(K14))*COS(RADIANS(J14))-COS(RADIANS(V$14))*COS(RADIANS(U$14)))^2+(COS(RADIANS(K14))*SIN(RADIANS(J14))-COS(RADIANS(V$14))*SIN(RADIANS(U$14)))^2+(SIN(RADIANS(K14))-SIN(RADIANS(V$14)))^2))/2)) -> 34.8906602 | N14: =SQRT(G14*G14+125)-W$14 -> -4.049697484 | O14: =ABS(L14)*$T$9+ABS(M14)*$U$9+ABS(N14)*$V$9 -> 44.44035769 | P14: 40_1 | Q14: ZCY_1 | S14: Search Params | T14: =IF(OR(ISBLANK(T2),ISBLANK(U2)),IF(ISBLANK(T4),T6,INDIRECT(CONCATENATE("'Search CMOR List'!",ADDRESS(MATCH(T4,'Search CMOR List'!A:A,0),2)))),INDIRECT(CONCATENATE("'Search IMO Network'!",ADDRESS(MATCH(CONCATENATE(T2,"_",U2),'Search IMO Network'!J:J,0),1)))) -> 31 | U14: =IF(OR(ISBLANK(T2),ISBLANK(U2)),IF(ISBLANK(T4),U6,INDIRECT(CONCATENATE("'Search CMOR List'!",ADDRESS(MATCH(T4,'Search CMOR List'!A:A,0),3)))),INDIRECT(CONCATENATE("'Search IMO Network'!",ADDRESS(MATCH(CONCATENATE(T2,"_",U2),'Search IMO Network'!J:J,0),2)))) -> 271.6 | V14: =IF(OR(ISBLANK(T2),ISBLANK(U2)),IF(ISBLANK(T4),V6,INDIRECT(CONCATENATE("'Search CMOR List'!",ADDRESS(MATCH(T4,'Search CMOR List'!A:A,0),4)))),INDIRECT(CONCATENATE("'Search IMO Network'!",ADDRESS(MATCH(CONCATENATE(T2,"_",U2),'Search IMO Network'!J:J,0),3)))) -> 33.5 | W14: =IF(OR(ISBLANK(T2),ISBLANK(U2)),IF(ISBLANK(T4),W6,INDIRECT(CONCATENATE("'Search CMOR List'!",ADDRESS(MATCH(T4,'Search CMOR List'!A:A,0),5)))),SQRT(INDIRECT(CONCATENATE("'Search IMO Network'!",ADDRESS(MATCH(CONCATENATE(T2,"_",U2),'Search IMO Network'!J:J,0),4)))^2-125)) -> 44.62062303 | X14: =IF(OR(ISBLANK(T2),ISBLANK(U2)),IF(ISBLANK(T4),"???",T4),"???") -> ???
A15: 358 | B15: TOP | C15: tau Ophiuchids | D15: 55 | E15: 269.3 | F15: -6.4 | G15: 37 | H15: 0.03 | I15: -0.55 | J15: =IF(E15-L15*H15<0,360+E15-L15*H15,IF(E15-L15*H15>=360,E15-L15*H15-360,E15-L15*H15)) -> 268.58 | K15: =F15-L15*I15 -> 6.8 | L15: =IF(D15-T$14>180,360-(D15-T$14),IF(D15-T$14<-180,360+(D15-T$14),D15-T$14)) -> 24 | M15: =DEGREES(ACOS((2-ABS((COS(RADIANS(K15))*COS(RADIANS(J15))-COS(RADIANS(V$14))*COS(RADIANS(U$14)))^2+(COS(RADIANS(K15))*SIN(RADIANS(J15))-COS(RADIANS(V$14))*SIN(RADIANS(U$14)))^2+(SIN(RADIANS(K15))-SIN(RADIANS(V$14)))^2))/2)) -> 26.846267 | N15: =SQRT(G15*G15+125)-W$14 -> -5.968326854 | O15: =ABS(L15)*$T$9+ABS(M15)*$U$9+ABS(N15)*$V$9 -> 44.81459386 | P15: 358_1 | Q15: TOP_1
A16: 361 | B16: TSR | C16: theta Serpentids | D16: 65 | E16: 284 | F16: 6 | G16: 32 | H16: 0.77 | I16: -0.35 | J16: =IF(E16-L16*H16<0,360+E16-L16*H16,IF(E16-L16*H16>=360,E16-L16*H16-360,E16-L16*H16)) -> 257.82 | K16: =F16-L16*I16 -> 17.9 | L16: =IF(D16-T$14>180,360-(D16-T$14),IF(D16-T$14<-180,360+(D16-T$14),D16-T$14)) -> 34 | M16: =DEGREES(ACOS((2-ABS((COS(RADIANS(K16))*COS(RADIANS(J16))-COS(RADIANS(V$14))*COS(RADIANS(U$14)))^2+(COS(RADIANS(K16))*SIN(RADIANS(J16))-COS(RADIANS(V$14))*SIN(RADIANS(U$14)))^2+(SIN(RADIANS(K16))-SIN(RADIANS(V$14)))^2))/2)) -> 19.89412329 | N16: =SQRT(G16*G16+125)-W$14 -> -10.72372052 | O16: =ABS(L16)*$T$9+ABS(M16)*$U$9+ABS(N16)*$V$9 -> 47.61784382 | P16: 361_1 | Q16: TSR_1 | T16: Enter IMONET SL AND Rank OR CMOR List # OR SL/Alpha/Delta/Vgeo Sort = Ctrl-s
A17: 151 | B17: EAU | C17: epsilon Aquilids | D17: 59 | E17: 284.9 | F17: 15.6 | G17: 30.8 | H17: 1 | I17: 0 | J17: =IF(E17-L17*H17<0,360+E17-L17*H17,IF(E17-L17*H17>=360,E17-L17*H17-360,E17-L17*H17)) -> 256.9 | K17: =F17-L17*I17 -> 15.6 | L17: =IF(D17-T$14>180,360-(D17-T$14),IF(D17-T$14<-180,360+(D17-T$14),D17-T$14)) -> 28 | M17: =DEGREES(ACOS((2-ABS((COS(RADIANS(K17))*COS(RADIANS(J17))-COS(RADIANS(V$14))*COS(RADIANS(U$14)))^2+(COS(RADIANS(K17))*SIN(RADIANS(J17))-COS(RADIANS(V$14))*SIN(RADIANS(U$14)))^2+(SIN(RADIANS(K17))-SIN(RADIANS(V$14)))^2))/2)) -> 22.28562021 | N17: =SQRT(G17*G17+125)-W$14 -> -11.85417678 | O17: =ABS(L17)*$T$9+ABS(M17)*$U$9+ABS(N17)*$V$9 -> 48.13979699 | P17: 151_1 | Q17: EAU_1
A18: 350 | B18: MAL | C18: May Lacertids | D18: 42 | E18: 335.6 | F18: 45.3 | G18: 43 | H18: 0.61 | I18: 0.5 | J18: =IF(E18-L18*H18<0,360+E18-L18*H18,IF(E18-L18*H18>=360,E18-L18*H18-360,E18-L18*H18)) -> 328.89 | K18: =F18-L18*I18 -> 39.8 | L18: =IF(D18-T$14>180,360-(D18-T$14),IF(D18-T$14<-180,360+(D18-T$14),D18-T$14)) -> 11 | M18: =DEGREES(ACOS((2-ABS((COS(RADIANS(K18))*COS(RADIANS(J18))-COS(RADIANS(V$14))*COS(RADIANS(U$14)))^2+(COS(RADIANS(K18))*SIN(RADIANS(J18))-COS(RADIANS(V$14))*SIN(RADIANS(U$14)))^2+(SIN(RADIANS(K18))-SIN(RADIANS(V$14)))^2))/2)) -> 45.61269087 | N18: =SQRT(G18*G18+125)-W$14 -> -0.1909032516 | O18: =ABS(L18)*$T$9+ABS(M18)*$U$9+ABS(N18)*$V$9 -> 51.30359412 | P18: 350_1 | Q18: MAL_1
A19: 431 | B19: JIP | C19: June iota Pegasids | D19: 94.456 | E19: 332.626 | F19: 29.197 | G19: 59 | H19: 1 | I19: 0 | J19: =IF(E19-L19*H19<0,360+E19-L19*H19,IF(E19-L19*H19>=360,E19-L19*H19-360,E19-L19*H19)) -> 269.17 | K19: =F19-L19*I19 -> 29.197 | L19: =IF(D19-T$14>180,360-(D19-T$14),IF(D19-T$14<-180,360+(D19-T$14),D19-T$14)) -> 63.456 | M19: =DEGREES(ACOS((2-ABS((COS(RADIANS(K19))*COS(RADIANS(J19))-COS(RADIANS(V$14))*COS(RADIANS(U$14)))^2+(COS(RADIANS(K19))*SIN(RADIANS(J19))-COS(RADIANS(V$14))*SIN(RADIANS(U$14)))^2+(SIN(RADIANS(K19))-SIN(RADIANS(V$14)))^2))/2)) -> 4.776827647 | N19: =SQRT(G19*G19+125)-W$14 -> 15.42935615 | O19: =ABS(L19)*$T$9+ABS(M19)*$U$9+ABS(N19)*$V$9 -> 51.9341838 | P19: 431_1 | Q19: JIP_1
A20: 327 | B20: BEQ | C20: beta Equuleids | D20: 106.5 | E20: 321.5 | F20: 8.7 | G20: 31.6 | H20: 0.69 | I20: -0.28 | J20: =IF(E20-L20*H20<0,360+E20-L20*H20,IF(E20-L20*H20>=360,E20-L20*H20-360,E20-L20*H20)) -> 269.405 | K20: =F20-L20*I20 -> 29.84 | L20: =IF(D20-T$14>180,360-(D20-T$14),IF(D20-T$14<-180,360+(D20-T$14),D20-T$14)) -> 75.5 | M20: =DEGREES(ACOS((2-ABS((COS(RADIANS(K20))*COS(RADIANS(J20))-COS(RADIANS(V$14))*COS(RADIANS(U$14)))^2+(COS(RADIANS(K20))*SIN(RADIANS(J20))-COS(RADIANS(V$14))*SIN(RADIANS(U$14)))^2+(SIN(RADIANS(K20))-SIN(RADIANS(V$14)))^2))/2)) -> 4.108876368 | N20: =SQRT(G20*G20+125)-W$14 -> -11.1010765 | O20: =ABS(L20)*$T$9+ABS(M20)*$U$9+ABS(N20)*$V$9 -> 52.95995287 | P20: 327_1 | Q20: BEQ_1
A21: 517 | B21: ALO | C21: April lambda Ophiuchids | D21: 16 | E21: 245 | F21: 1 | G21: 55.7 | H21: 0.83 | I21: -0.09 | J21: =IF(E21-L21*H21<0,360+E21-L21*H21,IF(E21-L21*H21>=360,E21-L21*H21-360,E21-L21*H21)) -> 257.45 | K21: =F21-L21*I21 -> -0.35 | L21: =IF(D21-T$14>180,360-(D21-T$14),IF(D21-T$14<-180,360+(D21-T$14),D21-T$14)) -> -15 | M21: =DEGREES(ACOS((2-ABS((COS(RADIANS(K21))*COS(RADIANS(J21))-COS(RADIANS(V$14))*COS(RADIANS(U$14)))^2+(COS(RADIANS(K21))*SIN(RADIANS(J21))-COS(RADIANS(V$14))*SIN(RADIANS(U$14)))^2+(SIN(RADIANS(K21))-SIN(RADIANS(V$14)))^2))/2)) -> 36.37059146 | N21: =SQRT(G21*G21+125)-W$14 -> 12.19037942 | O21: =ABS(L21)*$T$9+ABS(M21)*$U$9+ABS(N21)*$V$9 -> 56.06097088 | P21: 517_1 | Q21: ALO_1
A22: 531 | B22: GAQ | C22: gamma Aquilids | D22: 45 | E22: 301.8 | F22: 13.8 | G22: 62.7 | H22: 0.66 | I22: 0.25 | J22: =IF(E22-L22*H22<0,360+E22-L22*H22,IF(E22-L22*H22>=360,E22-L22*H22-360,E22-L22*H22)) -> 292.56 | K22: =F22-L22*I22 -> 10.3 | L22: =IF(D22-T$14>180,360-(D22-T$14),IF(D22-T$14<-180,360+(D22-T$14),D22-T$14)) -> 14 | M22: =DEGREES(ACOS((2-ABS((COS(RADIANS(K22))*COS(RADIANS(J22))-COS(RADIANS(V$14))*COS(RADIANS(U$14)))^2+(COS(RADIANS(K22))*SIN(RADIANS(J22))-COS(RADIANS(V$14))*SIN(RADIANS(U$14)))^2+(SIN(RADIANS(K22))-SIN(RADIANS(V$14)))^2))/2)) -> 30.13480333 | N22: =SQRT(G22*G22+125)-W$14 -> 19.06838701 | O22: =ABS(L22)*$T$9+ABS(M22)*$U$9+ABS(N22)*$V$9 -> 56.20319034 | P22: 531_1 | Q22: GAQ_1
A23: 365 | B23: BCM | C23: beta Camelopardalids | D23: 100 | E23: 59.7 | F23: 59.7 | G23: 42.7 | H23: 2.1 | I23: 0.03 | J23: =IF(E23-L23*H23<0,360+E23-L23*H23,IF(E23-L23*H23>=360,E23-L23*H23-360,E23-L23*H23)) -> 274.8 | K23: =F23-L23*I23 -> 57.63 | L23: =IF(D23-T$14>180,360-(D23-T$14),IF(D23-T$14<-180,360+(D23-T$14),D23-T$14)) -> 69 | M23: =DEGREES(ACOS((2-ABS((COS(RADIANS(K23))*COS(RADIANS(J23))-COS(RADIANS(V$14))*COS(RADIANS(U$14)))^2+(COS(RADIANS(K23))*SIN(RADIANS(J23))-COS(RADIANS(V$14))*SIN(RADIANS(U$14)))^2+(SIN(RADIANS(K23))-SIN(RADIANS(V$14)))^2))/2)) -> 24.22737876 | N23: =SQRT(G23*G23+125)-W$14 -> -0.4811848869 | O23: =ABS(L23)*$T$9+ABS(M23)*$U$9+ABS(N23)*$V$9 -> 59.20856365 | P23: 365_1 | Q23: BCM_1
A24: 328 | B24: ALA | C24: alpha Lacertids | D24: 105.5 | E24: 343 | F24: 49.6 | G24: 38.9 | H24: 0.7 | I24: 0.37 | J24: =IF(E24-L24*H24<0,360+E24-L24*H24,IF(E24-L24*H24>=360,E24-L24*H24-360,E24-L24*H24)) -> 290.85 | K24: =F24-L24*I24 -> 22.035 | L24: =IF(D24-T$14>180,360-(D24-T$14),IF(D24-T$14<-180,360+(D24-T$14),D24-T$14)) -> 74.5 | M24: =DEGREES(ACOS((2-ABS((COS(RADIANS(K24))*COS(RADIANS(J24))-COS(RADIANS(V$14))*COS(RADIANS(U$14)))^2+(COS(RADIANS(K24))*SIN(RADIANS(J24))-COS(RADIANS(V$14))*SIN(RADIANS(U$14)))^2+(SIN(RADIANS(K24))-SIN(RADIANS(V$14)))^2))/2)) -> 20.47440376 | N24: =SQRT(G24*G24+125)-W$14 -> -4.145816055 | O24: =ABS(L24)*$T$9+ABS(M24)*$U$9+ABS(N24)*$V$9 -> 61.87021982 | P24: 328_1 | Q24: ALA_1
A25: 345 | B25: FHE | C25: f Herculids | D25: 346 | E25: 268 | F25: 41 | G25: 44 | H25: 1 | I25: 0 | J25: =IF(E25-L25*H25<0,360+E25-L25*H25,IF(E25-L25*H25>=360,E25-L25*H25-360,E25-L25*H25)) -> 223 | K25: =F25-L25*I25 -> 41 | L25: =IF(D25-T$14>180,360-(D25-T$14),IF(D25-T$14<-180,360+(D25-T$14),D25-T$14)) -> 45 | M25: =DEGREES(ACOS((2-ABS((COS(RADIANS(K25))*COS(RADIANS(J25))-COS(RADIANS(V$14))*COS(RADIANS(U$14)))^2+(COS(RADIANS(K25))*SIN(RADIANS(J25))-COS(RADIANS(V$14))*SIN(RADIANS(U$14)))^2+(SIN(RADIANS(K25))-SIN(RADIANS(V$14)))^2))/2)) -> 38.89533062 | N25: =SQRT(G25*G25+125)-W$14 -> 0.7776148166 | O25: =ABS(L25)*$T$9+ABS(M25)*$U$9+ABS(N25)*$V$9 -> 62.17294544 | P25: 345_1 | Q25: FHE_1
A26: 65 | B26: GDE | C26: gamma Delphinids | D26: 80.4 | E26: 342.3 | F26: 12.2 | G26: 55.7 | H26: 1 | I26: 0 | J26: =IF(E26-L26*H26<0,360+E26-L26*H26,IF(E26-L26*H26>=360,E26-L26*H26-360,E26-L26*H26)) -> 292.9 | K26: =F26-L26*I26 -> 12.2 | L26: =IF(D26-T$14>180,360-(D26-T$14),IF(D26-T$14<-180,360+(D26-T$14),D26-T$14)) -> 49.4 | M26: =DEGREES(ACOS((2-ABS((COS(RADIANS(K26))*COS(RADIANS(J26))-COS(RADIANS(V$14))*COS(RADIANS(U$14)))^2+(COS(RADIANS(K26))*SIN(RADIANS(J26))-COS(RADIANS(V$14))*SIN(RADIANS(U$14)))^2+(SIN(RADIANS(K26))-SIN(RADIANS(V$14)))^2))/2)) -> 28.83455923 | N26: =SQRT(G26*G26+125)-W$14 -> 12.19037942 | O26: =ABS(L26)*$T$9+ABS(M26)*$U$9+ABS(N26)*$V$9 -> 65.72493865 | P26: 65_1 | Q26: GDE_1
A27: 359 | B27: MZC | C27: May zeta Cygnids | D27: 60 | E27: 318.2 | F27: 29.8 | G27: 29.2 | H27: 0 | I27: 0 | J27: =IF(E27-L27*H27<0,360+E27-L27*H27,IF(E27-L27*H27>=360,E27-L27*H27-360,E27-L27*H27)) -> 318.2 | K27: =F27-L27*I27 -> 29.8 | L27: =IF(D27-T$14>180,360-(D27-T$14),IF(D27-T$14<-180,360+(D27-T$14),D27-T$14)) -> 29 | M27: =DEGREES(ACOS((2-ABS((COS(RADIANS(K27))*COS(RADIANS(J27))-COS(RADIANS(V$14))*COS(RADIANS(U$14)))^2+(COS(RADIANS(K27))*SIN(RADIANS(J27))-COS(RADIANS(V$14))*SIN(RADIANS(U$14)))^2+(SIN(RADIANS(K27))-SIN(RADIANS(V$14)))^2))/2)) -> 39.51241618 | N27: =SQRT(G27*G27+125)-W$14 -> -13.35338779 | O27: =ABS(L27)*$T$9+ABS(M27)*$U$9+ABS(N27)*$V$9 -> 67.36580397 | P27: 359_1 | Q27: MZC_1
A28: 45 | B28: PDF | C28: phi Draconids | D28: 8 | E28: 267.1 | F28: 69.4 | G28: 22.9 | H28: 1 | I28: 0 | J28: =IF(E28-L28*H28<0,360+E28-L28*H28,IF(E28-L28*H28>=360,E28-L28*H28-360,E28-L28*H28)) -> 290.1 | K28: =F28-L28*I28 -> 69.4 | L28: =IF(D28-T$14>180,360-(D28-T$14),IF(D28-T$14<-180,360+(D28-T$14),D28-T$14)) -> -23 | M28: =DEGREES(ACOS((2-ABS((COS(RADIANS(K28))*COS(RADIANS(J28))-COS(RADIANS(V$14))*COS(RADIANS(U$14)))^2+(COS(RADIANS(K28))*SIN(RADIANS(J28))-COS(RADIANS(V$14))*SIN(RADIANS(U$14)))^2+(SIN(RADIANS(K28))-SIN(RADIANS(V$14)))^2))/2)) -> 37.35607531 | N28: =SQRT(G28*G28+125)-W$14 -> -19.13709895 | O28: =ABS(L28)*$T$9+ABS(M28)*$U$9+ABS(N28)*$V$9 -> 67.99317425 | P28: 45_1 | Q28: PDF_1
A29: 347 | B29: BPG | C29: beta Pegasids | D29: 36 | E29: 350.5 | F29: 27.8 | G29: 41 | H29: 0.63 | I29: 0.34 | J29: =IF(E29-L29*H29<0,360+E29-L29*H29,IF(E29-L29*H29>=360,E29-L29*H29-360,E29-L29*H29)) -> 347.35 | K29: =F29-L29*I29 -> 26.1 | L29: =IF(D29-T$14>180,360-(D29-T$14),IF(D29-T$14<-180,360+(D29-T$14),D29-T$14)) -> 5 | M29: =DEGREES(ACOS((2-ABS((COS(RADIANS(K29))*COS(RADIANS(J29))-COS(RADIANS(V$14))*COS(RADIANS(U$14)))^2+(COS(RADIANS(K29))*SIN(RADIANS(J29))-COS(RADIANS(V$14))*SIN(RADIANS(U$14)))^2+(SIN(RADIANS(K29))-SIN(RADIANS(V$14)))^2))/2)) -> 64.71309655 | N29: =SQRT(G29*G29+125)-W$14 -> -2.123564313 | O29: =ABS(L29)*$T$9+ABS(M29)*$U$9+ABS(N29)*$V$9 -> 69.33666086 | P29: 347_1 | Q29: BPG_1
A30: 352 | B30: ZOP | C30: zeta Ophiuchids | D30: 47 | E30: 254.8 | F30: -4.4 | G30: 22.8 | H30: 0.74 | I30: -0.29 | J30: =IF(E30-L30*H30<0,360+E30-L30*H30,IF(E30-L30*H30>=360,E30-L30*H30-360,E30-L30*H30)) -> 242.96 | K30: =F30-L30*I30 -> 0.24 | L30: =IF(D30-T$14>180,360-(D30-T$14),IF(D30-T$14<-180,360+(D30-T$14),D30-T$14)) -> 16 | M30: =DEGREES(ACOS((2-ABS((COS(RADIANS(K30))*COS(RADIANS(J30))-COS(RADIANS(V$14))*COS(RADIANS(U$14)))^2+(COS(RADIANS(K30))*SIN(RADIANS(J30))-COS(RADIANS(V$14))*SIN(RADIANS(U$14)))^2+(SIN(RADIANS(K30))-SIN(RADIANS(V$14)))^2))/2)) -> 42.76335899 | N30: =SQRT(G30*G30+125)-W$14 -> -19.22692303 | O30: =ABS(L30)*$T$9+ABS(M30)*$U$9+ABS(N30)*$V$9 -> 69.99028201 | P30: 352_1 | Q30: ZOP_1
A31: 510 | B31: JRC | C31: June rho Cygnids | D31: 84 | E31: 322 | F31: 44 | G31: 50.2 | H31: 0.35 | I31: 0.62 | J31: =IF(E31-L31*H31<0,360+E31-L31*H31,IF(E31-L31*H31>=360,E31-L31*H31-360,E31-L31*H31)) -> 303.45 | K31: =F31-L31*I31 -> 11.14 | L31: =IF(D31-T$14>180,360-(D31-T$14),IF(D31-T$14<-180,360+(D31-T$14),D31-T$14)) -> 53 | M31: =DEGREES(ACOS((2-ABS((COS(RADIANS(K31))*COS(RADIANS(J31))-COS(RADIANS(V$14))*COS(RADIANS(U$14)))^2+(COS(RADIANS(K31))*SIN(RADIANS(J31))-COS(RADIANS(V$14))*SIN(RADIANS(U$14)))^2+(SIN(RADIANS(K31))-SIN(RADIANS(V$14)))^2))/2)) -> 36.71477764 | N31: =SQRT(G31*G31+125)-W$14 -> 6.809329328 | O31: =ABS(L31)*$T$9+ABS(M31)*$U$9+ABS(N31)*$V$9 -> 70.02410697 | P31: 510_1 | Q31: JRC_1
A32: 177 | B32: BCA | C32: beta Cassiopeiids | D32: 126.6 | E32: 352.9 | F32: 58.8 | G32: 50.4 | H32: 1.04 | I32: 0.2 | J32: =IF(E32-L32*H32<0,360+E32-L32*H32,IF(E32-L32*H32>=360,E32-L32*H32-360,E32-L32*H32)) -> 253.476 | K32: =F32-L32*I32 -> 39.68 | L32: =IF(D32-T$14>180,360-(D32-T$14),IF(D32-T$14<-180,360+(D32-T$14),D32-T$14)) -> 95.6 | M32: =DEGREES(ACOS((2-ABS((COS(RADIANS(K32))*COS(RADIANS(J32))-COS(RADIANS(V$14))*COS(RADIANS(U$14)))^2+(COS(RADIANS(K32))*SIN(RADIANS(J32))-COS(RADIANS(V$14))*SIN(RADIANS(U$14)))^2+(SIN(RADIANS(K32))-SIN(RADIANS(V$14)))^2))/2)) -> 15.77279851 | N32: =SQRT(G32*G32+125)-W$14 -> 7.004564616 | O32: =ABS(L32)*$T$9+ABS(M32)*$U$9+ABS(N32)*$V$9 -> 70.57736312 | P32: 177_1 | Q32: BCA_1
A33: 346 | B33: XHE | C33: x Herculids | D33: 352 | E33: 254 | F33: 48 | G33: 36 | H33: 1 | I33: 0 | J33: =IF(E33-L33*H33<0,360+E33-L33*H33,IF(E33-L33*H33>=360,E33-L33*H33-360,E33-L33*H33)) -> 215 | K33: =F33-L33*I33 -> 48 | L33: =IF(D33-T$14>180,360-(D33-T$14),IF(D33-T$14<-180,360+(D33-T$14),D33-T$14)) -> 39 | M33: =DEGREES(ACOS((2-ABS((COS(RADIANS(K33))*COS(RADIANS(J33))-COS(RADIANS(V$14))*COS(RADIANS(U$14)))^2+(COS(RADIANS(K33))*SIN(RADIANS(J33))-COS(RADIANS(V$14))*SIN(RADIANS(U$14)))^2+(SIN(RADIANS(K33))-SIN(RADIANS(V$14)))^2))/2)) -> 44.16588825 | N33: =SQRT(G33*G33+125)-W$14 -> -6.924469385 | O33: =ABS(L33)*$T$9+ABS(M33)*$U$9+ABS(N33)*$V$9 -> 70.59035763 | P33: 346_1 | Q33: XHE_1
A34: 143 | B34: LPE | C34: Dayt, lambda Pegasids | D34: 29.7 | E34: 343.5 | F34: 19.9 | G34: 38.4 | H34: 1 | I34: 0 | J34: =IF(E34-L34*H34<0,360+E34-L34*H34,IF(E34-L34*H34>=360,E34-L34*H34-360,E34-L34*H34)) -> 344.8 | K34: =F34-L34*I34 -> 19.9 | L34: =IF(D34-T$14>180,360-(D34-T$14),IF(D34-T$14<-180,360+(D34-T$14),D34-T$14)) -> -1.3 | M34: =DEGREES(ACOS((2-ABS((COS(RADIANS(K34))*COS(RADIANS(J34))-COS(RADIANS(V$14))*COS(RADIANS(U$14)))^2+(COS(RADIANS(K34))*SIN(RADIANS(J34))-COS(RADIANS(V$14))*SIN(RADIANS(U$14)))^2+(SIN(RADIANS(K34))-SIN(RADIANS(V$14)))^2))/2)) -> 65.512428 | N34: =SQRT(G34*G34+125)-W$14 -> -4.626123413 | O34: =ABS(L34)*$T$9+ABS(M34)*$U$9+ABS(N34)*$V$9 -> 70.78855142 | P34: 143_1 | Q34: LPE_1
A35: 362 | B35: JMC | C35: June mu Cassiopeiids | D35: 74 | E35: 17.5 | F35: 53.9 | G35: 43.6 | H35: 0.91 | I35: 0.28 | J35: =IF(E35-L35*H35<0,360+E35-L35*H35,IF(E35-L35*H35>=360,E35-L35*H35-360,E35-L35*H35)) -> 338.37 | K35: =F35-L35*I35 -> 41.86 | L35: =IF(D35-T$14>180,360-(D35-T$14),IF(D35-T$14<-180,360+(D35-T$14),D35-T$14)) -> 43 | M35: =DEGREES(ACOS((2-ABS((COS(RADIANS(K35))*COS(RADIANS(J35))-COS(RADIANS(V$14))*COS(RADIANS(U$14)))^2+(COS(RADIANS(K35))*SIN(RADIANS(J35))-COS(RADIANS(V$14))*SIN(RADIANS(U$14)))^2+(SIN(RADIANS(K35))-SIN(RADIANS(V$14)))^2))/2)) -> 52.17332839 | N35: =SQRT(G35*G35+125)-W$14 -> 0.3900423681 | O35: =ABS(L35)*$T$9+ABS(M35)*$U$9+ABS(N35)*$V$9 -> 74.06337076 | P35: 362_1 | Q35: JMC_1
A36: 444 | B36: ZCS | C36: zeta Cassiopeiids | D36: 113.1 | E36: 5.9 | F36: 50.5 | G36: 57.4 | H36: 1 | I36: 0 | J36: =IF(E36-L36*H36<0,360+E36-L36*H36,IF(E36-L36*H36>=360,E36-L36*H36-360,E36-L36*H36)) -> 283.8 | K36: =F36-L36*I36 -> 50.5 | L36: =IF(D36-T$14>180,360-(D36-T$14),IF(D36-T$14<-180,360+(D36-T$14),D36-T$14)) -> 82.1 | M36: =DEGREES(ACOS((2-ABS((COS(RADIANS(K36))*COS(RADIANS(J36))-COS(RADIANS(V$14))*COS(RADIANS(U$14)))^2+(COS(RADIANS(K36))*SIN(RADIANS(J36))-COS(RADIANS(V$14))*SIN(RADIANS(U$14)))^2+(SIN(RADIANS(K36))-SIN(RADIANS(V$14)))^2))/2)) -> 19.20881352 | N36: =SQRT(G36*G36+125)-W$14 -> 13.85809104 | O36: =ABS(L36)*$T$9+ABS(M36)*$U$9+ABS(N36)*$V$9 -> 74.11690456 | P36: 444_1 | Q36: ZSC_1
A37: 166 | B37: JLY | C37: June Lyrids | D37: 85.2 | E37: 280.3 | F37: 55 | G37: 33.4 | H37: 1 | I37: 0 | J37: =IF(E37-L37*H37<0,360+E37-L37*H37,IF(E37-L37*H37>=360,E37-L37*H37-360,E37-L37*H37)) -> 226.1 | K37: =F37-L37*I37 -> 55 | L37: =IF(D37-T$14>180,360-(D37-T$14),IF(D37-T$14<-180,360+(D37-T$14),D37-T$14)) -> 54.2 | M37: =DEGREES(ACOS((2-ABS((COS(RADIANS(K37))*COS(RADIANS(J37))-COS(RADIANS(V$14))*COS(RADIANS(U$14)))^2+(COS(RADIANS(K37))*SIN(RADIANS(J37))-COS(RADIANS(V$14))*SIN(RADIANS(U$14)))^2+(SIN(RADIANS(K37))-SIN(RADIANS(V$14)))^2))/2)) -> 38.060215 | N37: =SQRT(G37*G37+125)-W$14 -> -9.399038743 | O37: =ABS(L37)*$T$9+ABS(M37)*$U$9+ABS(N37)*$V$9 -> 74.55925374 | P37: 166_1 | Q37: JLY_1
A38: 521 | B38: JRP | C38: June rho Cygnids | D38: 84 | E38: 322 | F38: 44 | G38: 50.3 | H38: 0.21 | I38: 0.59 | J38: =IF(E38-L38*H38<0,360+E38-L38*H38,IF(E38-L38*H38>=360,E38-L38*H38-360,E38-L38*H38)) -> 310.87 | K38: =F38-L38*I38 -> 12.73 | L38: =IF(D38-T$14>180,360-(D38-T$14),IF(D38-T$14<-180,360+(D38-T$14),D38-T$14)) -> 53 | M38: =DEGREES(ACOS((2-ABS((COS(RADIANS(K38))*COS(RADIANS(J38))-COS(RADIANS(V$14))*COS(RADIANS(U$14)))^2+(COS(RADIANS(K38))*SIN(RADIANS(J38))-COS(RADIANS(V$14))*SIN(RADIANS(U$14)))^2+(SIN(RADIANS(K38))-SIN(RADIANS(V$14)))^2))/2)) -> 41.29467997 | N38: =SQRT(G38*G38+125)-W$14 -> 6.906942404 | O38: =ABS(L38)*$T$9+ABS(M38)*$U$9+ABS(N38)*$V$9 -> 74.70162237 | P38: 521_1 | Q38: JRP_1
A39: 138 | B39: ABO | C39: alpha Bootids | D39: 36.7 | E39: 218.6 | F39: 18.8 | G39: 20 | H39: 0.7 | I39: 0.2 | J39: =IF(E39-L39*H39<0,360+E39-L39*H39,IF(E39-L39*H39>=360,E39-L39*H39-360,E39-L39*H39)) -> 214.61 | K39: =F39-L39*I39 -> 17.66 | L39: =IF(D39-T$14>180,360-(D39-T$14),IF(D39-T$14<-180,360+(D39-T$14),D39-T$14)) -> 5.7 | M39: =DEGREES(ACOS((2-ABS((COS(RADIANS(K39))*COS(RADIANS(J39))-COS(RADIANS(V$14))*COS(RADIANS(U$14)))^2+(COS(RADIANS(K39))*SIN(RADIANS(J39))-COS(RADIANS(V$14))*SIN(RADIANS(U$14)))^2+(SIN(RADIANS(K39))-SIN(RADIANS(V$14)))^2))/2)) -> 53.10719859 | N39: =SQRT(G39*G39+125)-W$14 -> -21.70774456 | O39: =ABS(L39)*$T$9+ABS(M39)*$U$9+ABS(N39)*$V$9 -> 77.66494315 | P39: 138_2 | Q39: ABO_2
A40: 128 | B40: MKA | C40: Dayt, kappa Aquariids | D40: 354 | E40: 338.7 | F40: -7.7 | G40: 33.2 | H40: 1 | I40: 0 | J40: =IF(E40-L40*H40<0,360+E40-L40*H40,IF(E40-L40*H40>=360,E40-L40*H40-360,E40-L40*H40)) -> 301.7 | K40: =F40-L40*I40 -> -7.7 | L40: =IF(D40-T$14>180,360-(D40-T$14),IF(D40-T$14<-180,360+(D40-T$14),D40-T$14)) -> 37 | M40: =DEGREES(ACOS((2-ABS((COS(RADIANS(K40))*COS(RADIANS(J40))-COS(RADIANS(V$14))*COS(RADIANS(U$14)))^2+(COS(RADIANS(K40))*SIN(RADIANS(J40))-COS(RADIANS(V$14))*SIN(RADIANS(U$14)))^2+(SIN(RADIANS(K40))-SIN(RADIANS(V$14)))^2))/2)) -> 50.1350271 | N40: =SQRT(G40*G40+125)-W$14 -> -9.58863765 | O40: =ABS(L40)*$T$9+ABS(M40)*$U$9+ABS(N40)*$V$9 -> 78.22366475 | P40: 128_1 | Q40: MKA_1
A41: 185 | B41: DBA | C41: Dayt, beta Andromedids | D41: 100.5 | E41: 15 | F41: 37.5 | G41: 26 | H41: 1 | I41: 0 | J41: =IF(E41-L41*H41<0,360+E41-L41*H41,IF(E41-L41*H41>=360,E41-L41*H41-360,E41-L41*H41)) -> 305.5 | K41: =F41-L41*I41 -> 37.5 | L41: =IF(D41-T$14>180,360-(D41-T$14),IF(D41-T$14<-180,360+(D41-T$14),D41-T$14)) -> 69.5 | M41: =DEGREES(ACOS((2-ABS((COS(RADIANS(K41))*COS(RADIANS(J41))-COS(RADIANS(V$14))*COS(RADIANS(U$14)))^2+(COS(RADIANS(K41))*SIN(RADIANS(J41))-COS(RADIANS(V$14))*SIN(RADIANS(U$14)))^2+(SIN(RADIANS(K41))-SIN(RADIANS(V$14)))^2))/2)) -> 27.73543884 | N41: =SQRT(G41*G41+125)-W$14 -> -16.31867964 | O41: =ABS(L41)*$T$9+ABS(M41)*$U$9+ABS(N41)*$V$9 -> 78.80411848 | P41: 185_1 | Q41: DBA_1
A42: 507 | B42: UAN | C42: upsilon Andromedids | D42: 96.2 | E42: 19.83 | F42: 42.46 | G42: 58.8 | H42: 1.18 | I42: 0.35 | J42: =IF(E42-L42*H42<0,360+E42-L42*H42,IF(E42-L42*H42>=360,E42-L42*H42-360,E42-L42*H42)) -> 302.894 | K42: =F42-L42*I42 -> 19.64 | L42: =IF(D42-T$14>180,360-(D42-T$14),IF(D42-T$14<-180,360+(D42-T$14),D42-T$14)) -> 65.2 | M42: =DEGREES(ACOS((2-ABS((COS(RADIANS(K42))*COS(RADIANS(J42))-COS(RADIANS(V$14))*COS(RADIANS(U$14)))^2+(COS(RADIANS(K42))*SIN(RADIANS(J42))-COS(RADIANS(V$14))*SIN(RADIANS(U$14)))^2+(SIN(RADIANS(K42))-SIN(RADIANS(V$14)))^2))/2)) -> 31.06054323 | N42: =SQRT(G42*G42+125)-W$14 -> 15.23286475 | O42: =ABS(L42)*$T$9+ABS(M42)*$U$9+ABS(N42)*$V$9 -> 78.89340798 | P42: 507_1 | Q42: UAN_1
A43: 127 | B43: MCA | C43: March Cassiopeiids | D43: 350 | E43: 352.8 | F43: 52.3 | G43: 14.5 | H43: 1.16 | I43: -0.1 | J43: =IF(E43-L43*H43<0,360+E43-L43*H43,IF(E43-L43*H43>=360,E43-L43*H43-360,E43-L43*H43)) -> 305.24 | K43: =F43-L43*I43 -> 56.4 | L43: =IF(D43-T$14>180,360-(D43-T$14),IF(D43-T$14<-180,360+(D43-T$14),D43-T$14)) -> 41 | M43: =DEGREES(ACOS((2-ABS((COS(RADIANS(K43))*COS(RADIANS(J43))-COS(RADIANS(V$14))*COS(RADIANS(U$14)))^2+(COS(RADIANS(K43))*SIN(RADIANS(J43))-COS(RADIANS(V$14))*SIN(RADIANS(U$14)))^2+(SIN(RADIANS(K43))-SIN(RADIANS(V$14)))^2))/2)) -> 32.44509178 | N43: =SQRT(G43*G43+125)-W$14 -> -26.31078961 | O43: =ABS(L43)*$T$9+ABS(M43)*$U$9+ABS(N43)*$V$9 -> 79.2558814 | P43: 127_1 | Q43: MCA_1
A44: 140 | B44: XLI | C44: April chi Librids | D44: 39 | E44: 236.3 | F44: -18.9 | G44: 34.2 | H44: 1 | I44: 0 | J44: =IF(E44-L44*H44<0,360+E44-L44*H44,IF(E44-L44*H44>=360,E44-L44*H44-360,E44-L44*H44)) -> 228.3 | K44: =F44-L44*I44 -> -18.9 | L44: =IF(D44-T$14>180,360-(D44-T$14),IF(D44-T$14<-180,360+(D44-T$14),D44-T$14)) -> 8 | M44: =DEGREES(ACOS((2-ABS((COS(RADIANS(K44))*COS(RADIANS(J44))-COS(RADIANS(V$14))*COS(RADIANS(U$14)))^2+(COS(RADIANS(K44))*SIN(RADIANS(J44))-COS(RADIANS(V$14))*SIN(RADIANS(U$14)))^2+(SIN(RADIANS(K44))-SIN(RADIANS(V$14)))^2))/2)) -> 66.71046788 | N44: =SQRT(G44*G44+125)-W$14 -> -8.639516882 | O44: =ABS(L44)*$T$9+ABS(M44)*$U$9+ABS(N44)*$V$9 -> 79.34998476 | P44: 140_1 | Q44: XLI_1
A45: 138 | B45: ABO | C45: alpha Bootids | D45: 36.7 | E45: 218.8 | F45: 14.5 | G45: 20.9 | H45: 1 | I45: 0 | J45: =IF(E45-L45*H45<0,360+E45-L45*H45,IF(E45-L45*H45>=360,E45-L45*H45-360,E45-L45*H45)) -> 213.1 | K45: =F45-L45*I45 -> 14.5 | L45: =IF(D45-T$14>180,360-(D45-T$14),IF(D45-T$14<-180,360+(D45-T$14),D45-T$14)) -> 5.7 | M45: =DEGREES(ACOS((2-ABS((COS(RADIANS(K45))*COS(RADIANS(J45))-COS(RADIANS(V$14))*COS(RADIANS(U$14)))^2+(COS(RADIANS(K45))*SIN(RADIANS(J45))-COS(RADIANS(V$14))*SIN(RADIANS(U$14)))^2+(SIN(RADIANS(K45))-SIN(RADIANS(V$14)))^2))/2)) -> 55.94282432 | N45: =SQRT(G45*G45+125)-W$14 -> -20.91809152 | O45: =ABS(L45)*$T$9+ABS(M45)*$U$9+ABS(N45)*$V$9 -> 79.71091585 | P45: 138_1 | Q45: ABO_1
A46: 273 | B46: PBO | C46: phi Bootids | D46: 42.1 | E46: 217.5 | F46: 53.7 | G46: 15.1 | H46: 1 | I46: 0 | J46: =IF(E46-L46*H46<0,360+E46-L46*H46,IF(E46-L46*H46>=360,E46-L46*H46-360,E46-L46*H46)) -> 206.4 | K46: =F46-L46*I46 -> 53.7 | L46: =IF(D46-T$14>180,360-(D46-T$14),IF(D46-T$14<-180,360+(D46-T$14),D46-T$14)) -> 11.1 | M46: =DEGREES(ACOS((2-ABS((COS(RADIANS(K46))*COS(RADIANS(J46))-COS(RADIANS(V$14))*COS(RADIANS(U$14)))^2+(COS(RADIANS(K46))*SIN(RADIANS(J46))-COS(RADIANS(V$14))*SIN(RADIANS(U$14)))^2+(SIN(RADIANS(K46))-SIN(RADIANS(V$14)))^2))/2)) -> 49.31551233 | N46: =SQRT(G46*G46+125)-W$14 -> -25.83206269 | O46: =ABS(L46)*$T$9+ABS(M46)*$U$9+ABS(N46)*$V$9 -> 80.69757502 | P46: 273_1 | Q46: PBO_1
A47: 43 | B47: ZSE | C47: zeta Serpentids | D47: 5 | E47: 266.3 | F47: -6.3 | G47: 67.4 | H47: 1 | I47: 0 | J47: =IF(E47-L47*H47<0,360+E47-L47*H47,IF(E47-L47*H47>=360,E47-L47*H47-360,E47-L47*H47)) -> 292.3 | K47: =F47-L47*I47 -> -6.3 | L47: =IF(D47-T$14>180,360-(D47-T$14),IF(D47-T$14<-180,360+(D47-T$14),D47-T$14)) -> -26 | M47: =DEGREES(ACOS((2-ABS((COS(RADIANS(K47))*COS(RADIANS(J47))-COS(RADIANS(V$14))*COS(RADIANS(U$14)))^2+(COS(RADIANS(K47))*SIN(RADIANS(J47))-COS(RADIANS(V$14))*SIN(RADIANS(U$14)))^2+(SIN(RADIANS(K47))-SIN(RADIANS(V$14)))^2))/2)) -> 44.37512989 | N47: =SQRT(G47*G47+125)-W$14 -> 23.70038398 | O47: =ABS(L47)*$T$9+ABS(M47)*$U$9+ABS(N47)*$V$9 -> 81.07551388 | P47: 43_1 | Q47: ZSE_1
A48: 509 | B48: KVI | C48: kappa Virginids | D48: 6 | E48: 208 | F48: -8 | G48: 37.4 | H48: 0.92 | I48: -0.35 | J48: =IF(E48-L48*H48<0,360+E48-L48*H48,IF(E48-L48*H48>=360,E48-L48*H48-360,E48-L48*H48)) -> 231 | K48: =F48-L48*I48 -> -16.75 | L48: =IF(D48-T$14>180,360-(D48-T$14),IF(D48-T$14<-180,360+(D48-T$14),D48-T$14)) -> -25 | M48: =DEGREES(ACOS((2-ABS((COS(RADIANS(K48))*COS(RADIANS(J48))-COS(RADIANS(V$14))*COS(RADIANS(U$14)))^2+(COS(RADIANS(K48))*SIN(RADIANS(J48))-COS(RADIANS(V$14))*SIN(RADIANS(U$14)))^2+(SIN(RADIANS(K48))-SIN(RADIANS(V$14)))^2))/2)) -> 63.43480161 | N48: =SQRT(G48*G48+125)-W$14 -> -5.585254457 | O48: =ABS(L48)*$T$9+ABS(M48)*$U$9+ABS(N48)*$V$9 -> 81.52005607 | P48: 509_1 | Q48: KVI_1
A49: 128 | B49: MKA | C49: Dayt, kappa Aquariids | D49: 354 | E49: 340.2 | F49: -7.3 | G49: 29.8 | H49: 1 | I49: 0 | J49: =IF(E49-L49*H49<0,360+E49-L49*H49,IF(E49-L49*H49>=360,E49-L49*H49-360,E49-L49*H49)) -> 303.2 | K49: =F49-L49*I49 -> -7.3 | L49: =IF(D49-T$14>180,360-(D49-T$14),IF(D49-T$14<-180,360+(D49-T$14),D49-T$14)) -> 37 | M49: =DEGREES(ACOS((2-ABS((COS(RADIANS(K49))*COS(RADIANS(J49))-COS(RADIANS(V$14))*COS(RADIANS(U$14)))^2+(COS(RADIANS(K49))*SIN(RADIANS(J49))-COS(RADIANS(V$14))*SIN(RADIANS(U$14)))^2+(SIN(RADIANS(K49))-SIN(RADIANS(V$14)))^2))/2)) -> 50.62787893 | N49: =SQRT(G49*G49+125)-W$14 -> -12.79233373 | O49: =ABS(L49)*$T$9+ABS(M49)*$U$9+ABS(N49)*$V$9 -> 81.92021266 | P49: 128_2 | Q49: MKA_2
A50: 164 | B50: NZC | C50: Northern June Aquilids | D50: 86 | E50: 298.3 | F50: -7.1 | G50: 36.3 | H50: 1 | I50: 0 | J50: =IF(E50-L50*H50<0,360+E50-L50*H50,IF(E50-L50*H50>=360,E50-L50*H50-360,E50-L50*H50)) -> 243.3 | K50: =F50-L50*I50 -> -7.1 | L50: =IF(D50-T$14>180,360-(D50-T$14),IF(D50-T$14<-180,360+(D50-T$14),D50-T$14)) -> 55 | M50: =DEGREES(ACOS((2-ABS((COS(RADIANS(K50))*COS(RADIANS(J50))-COS(RADIANS(V$14))*COS(RADIANS(U$14)))^2+(COS(RADIANS(K50))*SIN(RADIANS(J50))-COS(RADIANS(V$14))*SIN(RADIANS(U$14)))^2+(SIN(RADIANS(K50))-SIN(RADIANS(V$14)))^2))/2)) -> 48.67210657 | N50: =SQRT(G50*G50+125)-W$14 -> -6.637863788 | O50: =ABS(L50)*$T$9+ABS(M50)*$U$9+ABS(N50)*$V$9 -> 82.80997036 | P50: 164_1 | Q50: NZC_1
A51: 192 | B51: TRI | C51: August Triangulids | D51: 139.8 | E51: 37.5 | F51: 30.7 | G51: 57.3 | H51: 1 | I51: 0 | J51: =IF(E51-L51*H51<0,360+E51-L51*H51,IF(E51-L51*H51>=360,E51-L51*H51-360,E51-L51*H51)) -> 288.7 | K51: =F51-L51*I51 -> 30.7 | L51: =IF(D51-T$14>180,360-(D51-T$14),IF(D51-T$14<-180,360+(D51-T$14),D51-T$14)) -> 108.8 | M51: =DEGREES(ACOS((2-ABS((COS(RADIANS(K51))*COS(RADIANS(J51))-COS(RADIANS(V$14))*COS(RADIANS(U$14)))^2+(COS(RADIANS(K51))*SIN(RADIANS(J51))-COS(RADIANS(V$14))*SIN(RADIANS(U$14)))^2+(SIN(RADIANS(K51))-SIN(RADIANS(V$14)))^2))/2)) -> 14.73582321 | N51: =SQRT(G51*G51+125)-W$14 -> 13.7599388 | O51: =ABS(L51)*$T$9+ABS(M51)*$U$9+ABS(N51)*$V$9 -> 82.89576201 | P51: 192_1 | Q51: TRI_1
A52: 149 | B52: NOP | C52: North, May Ophiuchids | D52: 49.7 | E52: 249 | F52: -14 | G52: 27.8 | H52: 0.9 | I52: -0.1 | J52: =IF(E52-L52*H52<0,360+E52-L52*H52,IF(E52-L52*H52>=360,E52-L52*H52-360,E52-L52*H52)) -> 232.17 | K52: =F52-L52*I52 -> -12.13 | L52: =IF(D52-T$14>180,360-(D52-T$14),IF(D52-T$14<-180,360+(D52-T$14),D52-T$14)) -> 18.7 | M52: =DEGREES(ACOS((2-ABS((COS(RADIANS(K52))*COS(RADIANS(J52))-COS(RADIANS(V$14))*COS(RADIANS(U$14)))^2+(COS(RADIANS(K52))*SIN(RADIANS(J52))-COS(RADIANS(V$14))*SIN(RADIANS(U$14)))^2+(SIN(RADIANS(K52))-SIN(RADIANS(V$14)))^2))/2)) -> 59.08705662 | N52: =SQRT(G52*G52+125)-W$14 -> -14.65664466 | O52: =ABS(L52)*$T$9+ABS(M52)*$U$9+ABS(N52)*$V$9 -> 83.09370128 | P52: 149_1 | Q52: NOP_1
A53: 129 | B53: QPE | C53: Dayt, q Pegasids | D53: 354 | E53: 352.3 | F53: 12.9 | G53: 21.7 | H53: 1 | I53: 0 | J53: =IF(E53-L53*H53<0,360+E53-L53*H53,IF(E53-L53*H53>=360,E53-L53*H53-360,E53-L53*H53)) -> 315.3 | K53: =F53-L53*I53 -> 12.9 | L53: =IF(D53-T$14>180,360-(D53-T$14),IF(D53-T$14<-180,360+(D53-T$14),D53-T$14)) -> 37 | M53: =DEGREES(ACOS((2-ABS((COS(RADIANS(K53))*COS(RADIANS(J53))-COS(RADIANS(V$14))*COS(RADIANS(U$14)))^2+(COS(RADIANS(K53))*SIN(RADIANS(J53))-COS(RADIANS(V$14))*SIN(RADIANS(U$14)))^2+(SIN(RADIANS(K53))-SIN(RADIANS(V$14)))^2))/2)) -> 44.69374348 | N53: =SQRT(G53*G53+125)-W$14 -> -20.20976479 | O53: =ABS(L53)*$T$9+ABS(M53)*$U$9+ABS(N53)*$V$9 -> 83.40350828 | P53: 129_1 | Q53: QPE_1
A54: 47 | B54: DLI | C54: mu Virginids | D54: 39 | E54: 226.8 | F54: -8.7 | G54: 28.3 | H54: 1 | I54: 0 | J54: =IF(E54-L54*H54<0,360+E54-L54*H54,IF(E54-L54*H54>=360,E54-L54*H54-360,E54-L54*H54)) -> 218.8 | K54: =F54-L54*I54 -> -8.7 | L54: =IF(D54-T$14>180,360-(D54-T$14),IF(D54-T$14<-180,360+(D54-T$14),D54-T$14)) -> 8 | M54: =DEGREES(ACOS((2-ABS((COS(RADIANS(K54))*COS(RADIANS(J54))-COS(RADIANS(V$14))*COS(RADIANS(U$14)))^2+(COS(RADIANS(K54))*SIN(RADIANS(J54))-COS(RADIANS(V$14))*SIN(RADIANS(U$14)))^2+(SIN(RADIANS(K54))-SIN(RADIANS(V$14)))^2))/2)) -> 65.48829124 | N54: =SQRT(G54*G54+125)-W$14 -> -14.19218239 | O54: =ABS(L54)*$T$9+ABS(M54)*$U$9+ABS(N54)*$V$9 -> 83.68047363 | P54: 47_1 | Q54: DLI_1
A55: 7 | B55: PER | C55: Perseids | D55: 140.19 | E55: 46.8 | F55: 57.7 | G55: 59.49 | H55: 1.38 | I55: 0.18 | J55: =IF(E55-L55*H55<0,360+E55-L55*H55,IF(E55-L55*H55>=360,E55-L55*H55-360,E55-L55*H55)) -> 256.1178 | K55: =F55-L55*I55 -> 38.0458 | L55: =IF(D55-T$14>180,360-(D55-T$14),IF(D55-T$14<-180,360+(D55-T$14),D55-T$14)) -> 109.19 | M55: =DEGREES(ACOS((2-ABS((COS(RADIANS(K55))*COS(RADIANS(J55))-COS(RADIANS(V$14))*COS(RADIANS(U$14)))^2+(COS(RADIANS(K55))*SIN(RADIANS(J55))-COS(RADIANS(V$14))*SIN(RADIANS(U$14)))^2+(SIN(RADIANS(K55))-SIN(RADIANS(V$14)))^2))/2)) -> 13.33829589 | N55: =SQRT(G55*G55+125)-W$14 -> 15.9108572 | O55: =ABS(L55)*$T$9+ABS(M55)*$U$9+ABS(N55)*$V$9 -> 83.8441531 | P55: 7_2 | Q55: PER_2
A56: 444 | B56: ZCS | C56: zeta Cassiopeiids | D56: 113.2 | E56: 6.9 | F56: 50.7 | G56: 57.3 | H56: 1.4 | I56: 0.5 | J56: =IF(E56-L56*H56<0,360+E56-L56*H56,IF(E56-L56*H56>=360,E56-L56*H56-360,E56-L56*H56)) -> 251.82 | K56: =F56-L56*I56 -> 9.6 | L56: =IF(D56-T$14>180,360-(D56-T$14),IF(D56-T$14<-180,360+(D56-T$14),D56-T$14)) -> 82.2 | M56: =DEGREES(ACOS((2-ABS((COS(RADIANS(K56))*COS(RADIANS(J56))-COS(RADIANS(V$14))*COS(RADIANS(U$14)))^2+(COS(RADIANS(K56))*SIN(RADIANS(J56))-COS(RADIANS(V$14))*SIN(RADIANS(U$14)))^2+(SIN(RADIANS(K56))-SIN(RADIANS(V$14)))^2))/2)) -> 30.03236635 | N56: =SQRT(G56*G56+125)-W$14 -> 13.7599388 | O56: =ABS(L56)*$T$9+ABS(M56)*$U$9+ABS(N56)*$V$9 -> 84.89230515 | P56: 444_1 | Q56: ZCS_1
A57: 55 | B57: ASC | C57: alpha Scorpiids | D57: 55.2 | E57: 240.7 | F57: -22.1 | G57: 35 | H57: 0.5 | I57: -0.19 | J57: =IF(E57-L57*H57<0,360+E57-L57*H57,IF(E57-L57*H57>=360,E57-L57*H57-360,E57-L57*H57)) -> 228.6 | K57: =F57-L57*I57 -> -17.502 | L57: =IF(D57-T$14>180,360-(D57-T$14),IF(D57-T$14<-180,360+(D57-T$14),D57-T$14)) -> 24.2 | M57: =DEGREES(ACOS((2-ABS((COS(RADIANS(K57))*COS(RADIANS(J57))-COS(RADIANS(V$14))*COS(RADIANS(U$14)))^2+(COS(RADIANS(K57))*SIN(RADIANS(J57))-COS(RADIANS(V$14))*SIN(RADIANS(U$14)))^2+(SIN(RADIANS(K57))-SIN(RADIANS(V$14)))^2))/2)) -> 65.44014518 | N57: =SQRT(G57*G57+125)-W$14 -> -7.878276893 | O57: =ABS(L57)*$T$9+ABS(M57)*$U$9+ABS(N57)*$V$9 -> 85.41842207 | P57: 55_2 | Q57: ASC_2
A58: 360 | B58: PSP | C58: psi Pegasids | D58: 63 | E58: 1.8 | F58: 28.1 | G58: 30.8 | H58: 1.11 | I58: 0.7 | J58: =IF(E58-L58*H58<0,360+E58-L58*H58,IF(E58-L58*H58>=360,E58-L58*H58-360,E58-L58*H58)) -> 326.28 | K58: =F58-L58*I58 -> 5.7 | L58: =IF(D58-T$14>180,360-(D58-T$14),IF(D58-T$14<-180,360+(D58-T$14),D58-T$14)) -> 32 | M58: =DEGREES(ACOS((2-ABS((COS(RADIANS(K58))*COS(RADIANS(J58))-COS(RADIANS(V$14))*COS(RADIANS(U$14)))^2+(COS(RADIANS(K58))*SIN(RADIANS(J58))-COS(RADIANS(V$14))*SIN(RADIANS(U$14)))^2+(SIN(RADIANS(K58))-SIN(RADIANS(V$14)))^2))/2)) -> 57.68732519 | N58: =SQRT(G58*G58+125)-W$14 -> -11.85417678 | O58: =ABS(L58)*$T$9+ABS(M58)*$U$9+ABS(N58)*$V$9 -> 85.54150197 | P58: 360_1 | Q58: PSP_1
A59: 49 | B59: LVI | C59: lambda Virginids | D59: 20 | E59: 210.7 | F59: -10.2 | G59: 26.8 | H59: 1 | I59: 0 | J59: =IF(E59-L59*H59<0,360+E59-L59*H59,IF(E59-L59*H59>=360,E59-L59*H59-360,E59-L59*H59)) -> 221.7 | K59: =F59-L59*I59 -> -10.2 | L59: =IF(D59-T$14>180,360-(D59-T$14),IF(D59-T$14<-180,360+(D59-T$14),D59-T$14)) -> -11 | M59: =DEGREES(ACOS((2-ABS((COS(RADIANS(K59))*COS(RADIANS(J59))-COS(RADIANS(V$14))*COS(RADIANS(U$14)))^2+(COS(RADIANS(K59))*SIN(RADIANS(J59))-COS(RADIANS(V$14))*SIN(RADIANS(U$14)))^2+(SIN(RADIANS(K59))-SIN(RADIANS(V$14)))^2))/2)) -> 64.47550039 | N59: =SQRT(G59*G59+125)-W$14 -> -15.58202803 | O59: =ABS(L59)*$T$9+ABS(M59)*$U$9+ABS(N59)*$V$9 -> 85.55752842 | P59: 49_1 | Q59: LVI_1
A60: 152 | B60: NOC | C60: North, Dayt, omega Cetids | D60: 46.7 | E60: 2.3 | F60: 17.8 | G60: 33 | H60: 1 | I60: 0 | J60: =IF(E60-L60*H60<0,360+E60-L60*H60,IF(E60-L60*H60>=360,E60-L60*H60-360,E60-L60*H60)) -> 346.6 | K60: =F60-L60*I60 -> 17.8 | L60: =IF(D60-T$14>180,360-(D60-T$14),IF(D60-T$14<-180,360+(D60-T$14),D60-T$14)) -> 15.7 | M60: =DEGREES(ACOS((2-ABS((COS(RADIANS(K60))*COS(RADIANS(J60))-COS(RADIANS(V$14))*COS(RADIANS(U$14)))^2+(COS(RADIANS(K60))*SIN(RADIANS(J60))-COS(RADIANS(V$14))*SIN(RADIANS(U$14)))^2+(SIN(RADIANS(K60))-SIN(RADIANS(V$14)))^2))/2)) -> 68.02398794 | N60: =SQRT(G60*G60+125)-W$14 -> -9.778120254 | O60: =ABS(L60)*$T$9+ABS(M60)*$U$9+ABS(N60)*$V$9 -> 85.65210819 | P60: 152_1 | Q60: NOC_1
A61: 519 | B61: BAQ | C61: beta Aquariids | D61: 46 | E61: 323 | F61: 0 | G61: 68.4 | H61: 0.71 | I61: 0.25 | J61: =IF(E61-L61*H61<0,360+E61-L61*H61,IF(E61-L61*H61>=360,E61-L61*H61-360,E61-L61*H61)) -> 312.35 | K61: =F61-L61*I61 -> -3.75 | L61: =IF(D61-T$14>180,360-(D61-T$14),IF(D61-T$14<-180,360+(D61-T$14),D61-T$14)) -> 15 | M61: =DEGREES(ACOS((2-ABS((COS(RADIANS(K61))*COS(RADIANS(J61))-COS(RADIANS(V$14))*COS(RADIANS(U$14)))^2+(COS(RADIANS(K61))*SIN(RADIANS(J61))-COS(RADIANS(V$14))*SIN(RADIANS(U$14)))^2+(SIN(RADIANS(K61))-SIN(RADIANS(V$14)))^2))/2)) -> 53.53926743 | N61: =SQRT(G61*G61+125)-W$14 -> 24.68709659 | O61: =ABS(L61)*$T$9+ABS(M61)*$U$9+ABS(N61)*$V$9 -> 85.72636403 | P61: 519_1 | Q61: BAQ_1
A62: 131 | B62: DAL | C62: delta Aquilids | D62: 23 | E62: 310.6 | F62: -0.2 | G62: 66.2 | H62: 1.5 | I62: -0.2 | J62: =IF(E62-L62*H62<0,360+E62-L62*H62,IF(E62-L62*H62>=360,E62-L62*H62-360,E62-L62*H62)) -> 322.6 | K62: =F62-L62*I62 -> -1.8 | L62: =IF(D62-T$14>180,360-(D62-T$14),IF(D62-T$14<-180,360+(D62-T$14),D62-T$14)) -> -8 | M62: =DEGREES(ACOS((2-ABS((COS(RADIANS(K62))*COS(RADIANS(J62))-COS(RADIANS(V$14))*COS(RADIANS(U$14)))^2+(COS(RADIANS(K62))*SIN(RADIANS(J62))-COS(RADIANS(V$14))*SIN(RADIANS(U$14)))^2+(SIN(RADIANS(K62))-SIN(RADIANS(V$14)))^2))/2)) -> 59.52345193 | N62: =SQRT(G62*G62+125)-W$14 -> 22.51684787 | O62: =ABS(L62)*$T$9+ABS(M62)*$U$9+ABS(N62)*$V$9 -> 86.04029981 | P62: 131_1 | Q62: DAL_1
A63: 127 | B63: MCA | C63: March Cassiopeiids | D63: 350 | E63: 360.2 | F63: 50.9 | G63: 13.4 | H63: 1 | I63: 0 | J63: =IF(E63-L63*H63<0,360+E63-L63*H63,IF(E63-L63*H63>=360,E63-L63*H63-360,E63-L63*H63)) -> 319.2 | K63: =F63-L63*I63 -> 50.9 | L63: =IF(D63-T$14>180,360-(D63-T$14),IF(D63-T$14<-180,360+(D63-T$14),D63-T$14)) -> 41 | M63: =DEGREES(ACOS((2-ABS((COS(RADIANS(K63))*COS(RADIANS(J63))-COS(RADIANS(V$14))*COS(RADIANS(U$14)))^2+(COS(RADIANS(K63))*SIN(RADIANS(J63))-COS(RADIANS(V$14))*SIN(RADIANS(U$14)))^2+(SIN(RADIANS(K63))-SIN(RADIANS(V$14)))^2))/2)) -> 38.46832615 | N63: =SQRT(G63*G63+125)-W$14 -> -27.16897555 | O63: =ABS(L63)*$T$9+ABS(M63)*$U$9+ABS(N63)*$V$9 -> 86.13730169 | P63: 127_2 | Q63: MCA_2
A64: 357 | B64: PHP | C64: phi Pegasids | D64: 54 | E64: 358.3 | F64: 20.7 | G64: 30.4 | H64: 0.72 | I64: -0.01 | J64: =IF(E64-L64*H64<0,360+E64-L64*H64,IF(E64-L64*H64>=360,E64-L64*H64-360,E64-L64*H64)) -> 341.74 | K64: =F64-L64*I64 -> 20.93 | L64: =IF(D64-T$14>180,360-(D64-T$14),IF(D64-T$14<-180,360+(D64-T$14),D64-T$14)) -> 23 | M64: =DEGREES(ACOS((2-ABS((COS(RADIANS(K64))*COS(RADIANS(J64))-COS(RADIANS(V$14))*COS(RADIANS(U$14)))^2+(COS(RADIANS(K64))*SIN(RADIANS(J64))-COS(RADIANS(V$14))*SIN(RADIANS(U$14)))^2+(SIN(RADIANS(K64))-SIN(RADIANS(V$14)))^2))/2)) -> 62.49894926 | N64: =SQRT(G64*G64+125)-W$14 -> -12.22988362 | O64: =ABS(L64)*$T$9+ABS(M64)*$U$9+ABS(N64)*$V$9 -> 86.22883288 | P64: 357_1 | Q64: PHP_1
A65: 26 | B65: NDA | C65: North, delta Aquariids | D65: 123.4 | E65: 344.7 | F65: 0.4 | G65: 40.5 | H65: 1 | I65: 0 | J65: =IF(E65-L65*H65<0,360+E65-L65*H65,IF(E65-L65*H65>=360,E65-L65*H65-360,E65-L65*H65)) -> 252.3 | K65: =F65-L65*I65 -> 0.4 | L65: =IF(D65-T$14>180,360-(D65-T$14),IF(D65-T$14<-180,360+(D65-T$14),D65-T$14)) -> 92.4 | M65: =DEGREES(ACOS((2-ABS((COS(RADIANS(K65))*COS(RADIANS(J65))-COS(RADIANS(V$14))*COS(RADIANS(U$14)))^2+(COS(RADIANS(K65))*SIN(RADIANS(J65))-COS(RADIANS(V$14))*SIN(RADIANS(U$14)))^2+(SIN(RADIANS(K65))-SIN(RADIANS(V$14)))^2))/2)) -> 37.7343967 | N65: =SQRT(G65*G65+125)-W$14 -> -2.605744718 | O65: =ABS(L65)*$T$9+ABS(M65)*$U$9+ABS(N65)*$V$9 -> 86.54014141 | P65: 26_1 | Q65: NDA_1
A66: 187 | B66: PCA | C66: psi Cassiopeiids | D66: 114.4 | E66: 29.4 | F66: 71.5 | G66: 40.3 | H66: 1 | I66: 0 | J66: =IF(E66-L66*H66<0,360+E66-L66*H66,IF(E66-L66*H66>=360,E66-L66*H66-360,E66-L66*H66)) -> 306 | K66: =F66-L66*I66 -> 71.5 | L66: =IF(D66-T$14>180,360-(D66-T$14),IF(D66-T$14<-180,360+(D66-T$14),D66-T$14)) -> 83.4 | M66: =DEGREES(ACOS((2-ABS((COS(RADIANS(K66))*COS(RADIANS(J66))-COS(RADIANS(V$14))*COS(RADIANS(U$14)))^2+(COS(RADIANS(K66))*SIN(RADIANS(J66))-COS(RADIANS(V$14))*SIN(RADIANS(U$14)))^2+(SIN(RADIANS(K66))-SIN(RADIANS(V$14)))^2))/2)) -> 42.12044956 | N66: =SQRT(G66*G66+125)-W$14 -> -2.798499703 | O66: =ABS(L66)*$T$9+ABS(M66)*$U$9+ABS(N66)*$V$9 -> 86.61894926 | P66: 187_1 | Q66: PCA_1
A67: 133 | B67: PUM | C67: April psi Ursae Majorids | D67: 23 | E67: 188.6 | F67: 58.7 | G67: 10 | H67: 1 | I67: 0 | J67: =IF(E67-L67*H67<0,360+E67-L67*H67,IF(E67-L67*H67>=360,E67-L67*H67-360,E67-L67*H67)) -> 196.6 | K67: =F67-L67*I67 -> 58.7 | L67: =IF(D67-T$14>180,360-(D67-T$14),IF(D67-T$14<-180,360+(D67-T$14),D67-T$14)) -> -8 | M67: =DEGREES(ACOS((2-ABS((COS(RADIANS(K67))*COS(RADIANS(J67))-COS(RADIANS(V$14))*COS(RADIANS(U$14)))^2+(COS(RADIANS(K67))*SIN(RADIANS(J67))-COS(RADIANS(V$14))*SIN(RADIANS(U$14)))^2+(SIN(RADIANS(K67))-SIN(RADIANS(V$14)))^2))/2)) -> 54.28647306 | N67: =SQRT(G67*G67+125)-W$14 -> -29.62062303 | O67: =ABS(L67)*$T$9+ABS(M67)*$U$9+ABS(N67)*$V$9 -> 87.9070961 | P67: 133_1 | Q67: PUM_1
A68: 127 | B68: MCA | C68: March Cassiopeiids | D68: 350 | E68: 4.7 | F68: 48.3 | G68: 13.6 | H68: 1 | I68: 0 | J68: =IF(E68-L68*H68<0,360+E68-L68*H68,IF(E68-L68*H68>=360,E68-L68*H68-360,E68-L68*H68)) -> 323.7 | K68: =F68-L68*I68 -> 48.3 | L68: =IF(D68-T$14>180,360-(D68-T$14),IF(D68-T$14<-180,360+(D68-T$14),D68-T$14)) -> 41 | M68: =DEGREES(ACOS((2-ABS((COS(RADIANS(K68))*COS(RADIANS(J68))-COS(RADIANS(V$14))*COS(RADIANS(U$14)))^2+(COS(RADIANS(K68))*SIN(RADIANS(J68))-COS(RADIANS(V$14))*SIN(RADIANS(U$14)))^2+(SIN(RADIANS(K68))-SIN(RADIANS(V$14)))^2))/2)) -> 41.16150419 | N68: =SQRT(G68*G68+125)-W$14 -> -27.01494213 | O68: =ABS(L68)*$T$9+ABS(M68)*$U$9+ABS(N68)*$V$9 -> 88.67644633 | P68: 127_3 | Q68: MCA_3
A69: 272 | B69: ACO | C69: April alpha Comae Berenicids | D69: 17.8 | E69: 193.1 | F69: 22.9 | G69: 16.7 | H69: 1 | I69: 0 | J69: =IF(E69-L69*H69<0,360+E69-L69*H69,IF(E69-L69*H69>=360,E69-L69*H69-360,E69-L69*H69)) -> 206.3 | K69: =F69-L69*I69 -> 22.9 | L69: =IF(D69-T$14>180,360-(D69-T$14),IF(D69-T$14<-180,360+(D69-T$14),D69-T$14)) -> -13.2 | M69: =DEGREES(ACOS((2-ABS((COS(RADIANS(K69))*COS(RADIANS(J69))-COS(RADIANS(V$14))*COS(RADIANS(U$14)))^2+(COS(RADIANS(K69))*SIN(RADIANS(J69))-COS(RADIANS(V$14))*SIN(RADIANS(U$14)))^2+(SIN(RADIANS(K69))-SIN(RADIANS(V$14)))^2))/2)) -> 57.60438921 | N69: =SQRT(G69*G69+125)-W$14 -> -24.52360833 | O69: =ABS(L69)*$T$9+ABS(M69)*$U$9+ABS(N69)*$V$9 -> 88.72799754 | P69: 272_1 | Q69: ACO_1
A70: 182 | B70: OCY | C70: omicron Cygnids | D70: 117.2 | E70: 304.5 | F70: 49.7 | G70: 39.4 | H70: 1 | I70: 0 | J70: =IF(E70-L70*H70<0,360+E70-L70*H70,IF(E70-L70*H70>=360,E70-L70*H70-360,E70-L70*H70)) -> 218.3 | K70: =F70-L70*I70 -> 49.7 | L70: =IF(D70-T$14>180,360-(D70-T$14),IF(D70-T$14<-180,360+(D70-T$14),D70-T$14)) -> 86.2 | M70: =DEGREES(ACOS((2-ABS((COS(RADIANS(K70))*COS(RADIANS(J70))-COS(RADIANS(V$14))*COS(RADIANS(U$14)))^2+(COS(RADIANS(K70))*SIN(RADIANS(J70))-COS(RADIANS(V$14))*SIN(RADIANS(U$14)))^2+(SIN(RADIANS(K70))-SIN(RADIANS(V$14)))^2))/2)) -> 41.98899957 | N70: =SQRT(G70*G70+125)-W$14 -> -3.665037335 | O70: =ABS(L70)*$T$9+ABS(M70)*$U$9+ABS(N70)*$V$9 -> 88.7540369 | P70: 182_1 | Q70: OCY_1
A71: 520 | B71: MBC | C71: May beta Capricornids | D71: 57 | E71: 303 | F71: -16 | G71: 65.7 | H71: 0.74 | I71: 0.17 | J71: =IF(E71-L71*H71<0,360+E71-L71*H71,IF(E71-L71*H71>=360,E71-L71*H71-360,E71-L71*H71)) -> 283.76 | K71: =F71-L71*I71 -> -20.42 | L71: =IF(D71-T$14>180,360-(D71-T$14),IF(D71-T$14<-180,360+(D71-T$14),D71-T$14)) -> 26 | M71: =DEGREES(ACOS((2-ABS((COS(RADIANS(K71))*COS(RADIANS(J71))-COS(RADIANS(V$14))*COS(RADIANS(U$14)))^2+(COS(RADIANS(K71))*SIN(RADIANS(J71))-COS(RADIANS(V$14))*SIN(RADIANS(U$14)))^2+(SIN(RADIANS(K71))-SIN(RADIANS(V$14)))^2))/2)) -> 55.15346861 | N71: =SQRT(G71*G71+125)-W$14 -> 22.02388162 | O71: =ABS(L71)*$T$9+ABS(M71)*$U$9+ABS(N71)*$V$9 -> 90.17735022 | P71: 520_1 | Q71: MBC_1
A72: 434 | B72: BAR | C72: beta Arietids | D72: 135.28 | E72: 28.8 | F72: 21.9 | G72: 65.5 | H72: 1 | I72: 0 | J72: =IF(E72-L72*H72<0,360+E72-L72*H72,IF(E72-L72*H72>=360,E72-L72*H72-360,E72-L72*H72)) -> 284.52 | K72: =F72-L72*I72 -> 21.9 | L72: =IF(D72-T$14>180,360-(D72-T$14),IF(D72-T$14<-180,360+(D72-T$14),D72-T$14)) -> 104.28 | M72: =DEGREES(ACOS((2-ABS((COS(RADIANS(K72))*COS(RADIANS(J72))-COS(RADIANS(V$14))*COS(RADIANS(U$14)))^2+(COS(RADIANS(K72))*SIN(RADIANS(J72))-COS(RADIANS(V$14))*SIN(RADIANS(U$14)))^2+(SIN(RADIANS(K72))-SIN(RADIANS(V$14)))^2))/2)) -> 16.26278169 | N72: =SQRT(G72*G72+125)-W$14 -> 21.82672454 | O72: =ABS(L72)*$T$9+ABS(M72)*$U$9+ABS(N72)*$V$9 -> 90.22950624 | P72: 434_1 | Q72: BAR_1
A73: 263 | B73: NAN | C73: nu Andromedids | D73: 286.3 | E73: 20 | F73: 40 | G73: 7.7 | H73: 1 | I73: 0 | J73: =IF(E73-L73*H73<0,360+E73-L73*H73,IF(E73-L73*H73>=360,E73-L73*H73-360,E73-L73*H73)) -> 275.3 | K73: =F73-L73*I73 -> 40 | L73: =IF(D73-T$14>180,360-(D73-T$14),IF(D73-T$14<-180,360+(D73-T$14),D73-T$14)) -> 104.7 | M73: =DEGREES(ACOS((2-ABS((COS(RADIANS(K73))*COS(RADIANS(J73))-COS(RADIANS(V$14))*COS(RADIANS(U$14)))^2+(COS(RADIANS(K73))*SIN(RADIANS(J73))-COS(RADIANS(V$14))*SIN(RADIANS(U$14)))^2+(SIN(RADIANS(K73))-SIN(RADIANS(V$14)))^2))/2)) -> 7.142322903 | N73: =SQRT(G73*G73+125)-W$14 -> -31.04527774 | O73: =ABS(L73)*$T$9+ABS(M73)*$U$9+ABS(N73)*$V$9 -> 90.53760064 | P73: 263_1 | Q73: NAN_1
A74: 139 | B74: GLI | C74: gamma Librids | D74: 39 | E74: 223.9 | F74: -12.8 | G74: 26 | H74: 1 | I74: 0 | J74: =IF(E74-L74*H74<0,360+E74-L74*H74,IF(E74-L74*H74>=360,E74-L74*H74-360,E74-L74*H74)) -> 215.9 | K74: =F74-L74*I74 -> -12.8 | L74: =IF(D74-T$14>180,360-(D74-T$14),IF(D74-T$14<-180,360+(D74-T$14),D74-T$14)) -> 8 | M74: =DEGREES(ACOS((2-ABS((COS(RADIANS(K74))*COS(RADIANS(J74))-COS(RADIANS(V$14))*COS(RADIANS(U$14)))^2+(COS(RADIANS(K74))*SIN(RADIANS(J74))-COS(RADIANS(V$14))*SIN(RADIANS(U$14)))^2+(SIN(RADIANS(K74))-SIN(RADIANS(V$14)))^2))/2)) -> 70.36920534 | N74: =SQRT(G74*G74+125)-W$14 -> -16.31867964 | O74: =ABS(L74)*$T$9+ABS(M74)*$U$9+ABS(N74)*$V$9 -> 90.68788498 | P74: 139_1 | Q74: GLI_1
A75: 534 | B75: FOA | C75: 51 Andromedids | D75: 136 | E75: 23.3 | F75: 47.3 | G75: 60.8 | H75: 0.9 | I75: 0.27 | J75: =IF(E75-L75*H75<0,360+E75-L75*H75,IF(E75-L75*H75>=360,E75-L75*H75-360,E75-L75*H75)) -> 288.8 | K75: =F75-L75*I75 -> 18.95 | L75: =IF(D75-T$14>180,360-(D75-T$14),IF(D75-T$14<-180,360+(D75-T$14),D75-T$14)) -> 105 | M75: =DEGREES(ACOS((2-ABS((COS(RADIANS(K75))*COS(RADIANS(J75))-COS(RADIANS(V$14))*COS(RADIANS(U$14)))^2+(COS(RADIANS(K75))*SIN(RADIANS(J75))-COS(RADIANS(V$14))*SIN(RADIANS(U$14)))^2+(SIN(RADIANS(K75))-SIN(RADIANS(V$14)))^2))/2)) -> 21.14711116 | N75: =SQRT(G75*G75+125)-W$14 -> 17.19879139 | O75: =ABS(L75)*$T$9+ABS(M75)*$U$9+ABS(N75)*$V$9 -> 90.84590256 | P75: 534_1 | Q75: FOA_1
A76: 532 | B76: MLD | C76: May lambda Draconids | D76: 52 | E76: 155 | F76: 73.1 | G76: 14.4 | H76: -1.87 | I76: -0.08 | J76: =IF(E76-L76*H76<0,360+E76-L76*H76,IF(E76-L76*H76>=360,E76-L76*H76-360,E76-L76*H76)) -> 194.27 | K76: =F76-L76*I76 -> 74.78 | L76: =IF(D76-T$14>180,360-(D76-T$14),IF(D76-T$14<-180,360+(D76-T$14),D76-T$14)) -> 21 | M76: =DEGREES(ACOS((2-ABS((COS(RADIANS(K76))*COS(RADIANS(J76))-COS(RADIANS(V$14))*COS(RADIANS(U$14)))^2+(COS(RADIANS(K76))*SIN(RADIANS(J76))-COS(RADIANS(V$14))*SIN(RADIANS(U$14)))^2+(SIN(RADIANS(K76))-SIN(RADIANS(V$14)))^2))/2)) -> 54.50767248 | N76: =SQRT(G76*G76+125)-W$14 -> -26.38987977 | O76: =ABS(L76)*$T$9+ABS(M76)*$U$9+ABS(N76)*$V$9 -> 91.39755225 | P76: 532_1 | Q76: MLD_1
A77: 322 | B77: LBO | C77: lambda Bootids | D77: 295.5 | E77: 219.6 | F77: 43.2 | G77: 41.75 | H77: 0.88 | I77: -0.69 | J77: =IF(E77-L77*H77<0,360+E77-L77*H77,IF(E77-L77*H77>=360,E77-L77*H77-360,E77-L77*H77)) -> 135.56 | K77: =F77-L77*I77 -> 109.095 | L77: =IF(D77-T$14>180,360-(D77-T$14),IF(D77-T$14<-180,360+(D77-T$14),D77-T$14)) -> 95.5 | M77: =DEGREES(ACOS((2-ABS((COS(RADIANS(K77))*COS(RADIANS(J77))-COS(RADIANS(V$14))*COS(RADIANS(U$14)))^2+(COS(RADIANS(K77))*SIN(RADIANS(J77))-COS(RADIANS(V$14))*SIN(RADIANS(U$14)))^2+(SIN(RADIANS(K77))-SIN(RADIANS(V$14)))^2))/2)) -> 44.11603127 | N77: =SQRT(G77*G77+125)-W$14 -> -1.399534432 | O77: =ABS(L77)*$T$9+ABS(M77)*$U$9+ABS(N77)*$V$9 -> 93.26556571 | P77: 322_1 | Q77: LBO_1
A78: 248 | B78: IAR | C78: November iota Aurigids | D78: 233.6 | E78: 76.3 | F78: 33.3 | G78: 34 | H78: 1 | I78: 0 | J78: =IF(E78-L78*H78<0,360+E78-L78*H78,IF(E78-L78*H78>=360,E78-L78*H78-360,E78-L78*H78)) -> 278.9 | K78: =F78-L78*I78 -> 33.3 | L78: =IF(D78-T$14>180,360-(D78-T$14),IF(D78-T$14<-180,360+(D78-T$14),D78-T$14)) -> 157.4 | M78: =DEGREES(ACOS((2-ABS((COS(RADIANS(K78))*COS(RADIANS(J78))-COS(RADIANS(V$14))*COS(RADIANS(U$14)))^2+(COS(RADIANS(K78))*SIN(RADIANS(J78))-COS(RADIANS(V$14))*SIN(RADIANS(U$14)))^2+(SIN(RADIANS(K78))-SIN(RADIANS(V$14)))^2))/2)) -> 6.096413313 | N78: =SQRT(G78*G78+125)-W$14 -> -8.829562698 | O78: =ABS(L78)*$T$9+ABS(M78)*$U$9+ABS(N78)*$V$9 -> 93.62597601 | P78: 248_1 | Q78: IAR_1
A79: 12 | B79: KCG | C79: kappa Cygnids | D79: 145 | E79: 286 | F79: 59 | G79: 24.8 | H79: 0.3 | I79: 0.3 | J79: =IF(E79-L79*H79<0,360+E79-L79*H79,IF(E79-L79*H79>=360,E79-L79*H79-360,E79-L79*H79)) -> 251.8 | K79: =F79-L79*I79 -> 24.8 | L79: =IF(D79-T$14>180,360-(D79-T$14),IF(D79-T$14<-180,360+(D79-T$14),D79-T$14)) -> 114 | M79: =DEGREES(ACOS((2-ABS((COS(RADIANS(K79))*COS(RADIANS(J79))-COS(RADIANS(V$14))*COS(RADIANS(U$14)))^2+(COS(RADIANS(K79))*SIN(RADIANS(J79))-COS(RADIANS(V$14))*SIN(RADIANS(U$14)))^2+(SIN(RADIANS(K79))-SIN(RADIANS(V$14)))^2))/2)) -> 19.31027791 | N79: =SQRT(G79*G79+125)-W$14 -> -17.41694681 | O79: =ABS(L79)*$T$9+ABS(M79)*$U$9+ABS(N79)*$V$9 -> 93.72722473 | P79: 12_3 | Q79: KCG_3
A80: 420 | B80: CCA | C80: chi Capricornids | D80: 58.1 | E80: 314.3 | F80: -23.2 | G80: 65.4 | H80: 1 | I80: 0 | J80: =IF(E80-L80*H80<0,360+E80-L80*H80,IF(E80-L80*H80>=360,E80-L80*H80-360,E80-L80*H80)) -> 287.2 | K80: =F80-L80*I80 -> -23.2 | L80: =IF(D80-T$14>180,360-(D80-T$14),IF(D80-T$14<-180,360+(D80-T$14),D80-T$14)) -> 27.1 | M80: =DEGREES(ACOS((2-ABS((COS(RADIANS(K80))*COS(RADIANS(J80))-COS(RADIANS(V$14))*COS(RADIANS(U$14)))^2+(COS(RADIANS(K80))*SIN(RADIANS(J80))-COS(RADIANS(V$14))*SIN(RADIANS(U$14)))^2+(SIN(RADIANS(K80))-SIN(RADIANS(V$14)))^2))/2)) -> 58.61483438 | N80: =SQRT(G80*G80+125)-W$14 -> 21.72815239 | O80: =ABS(L80)*$T$9+ABS(M80)*$U$9+ABS(N80)*$V$9 -> 93.89298677 | P80: 420_1 | Q80: CCA_1
A81: 61 | B81: TAH | C81: tau Herculids | D81: 72 | E81: 228.5 | F81: 39.8 | G81: 15 | H81: -0.1 | I81: 0.9 | J81: =IF(E81-L81*H81<0,360+E81-L81*H81,IF(E81-L81*H81>=360,E81-L81*H81-360,E81-L81*H81)) -> 232.6 | K81: =F81-L81*I81 -> 2.9 | L81: =IF(D81-T$14>180,360-(D81-T$14),IF(D81-T$14<-180,360+(D81-T$14),D81-T$14)) -> 41 | M81: =DEGREES(ACOS((2-ABS((COS(RADIANS(K81))*COS(RADIANS(J81))-COS(RADIANS(V$14))*COS(RADIANS(U$14)))^2+(COS(RADIANS(K81))*SIN(RADIANS(J81))-COS(RADIANS(V$14))*SIN(RADIANS(U$14)))^2+(SIN(RADIANS(K81))-SIN(RADIANS(V$14)))^2))/2)) -> 47.5345738 | N81: =SQRT(G81*G81+125)-W$14 -> -25.9123361 | O81: =ABS(L81)*$T$9+ABS(M81)*$U$9+ABS(N81)*$V$9 -> 93.9469099 | P81: 61_1 | Q81: TAH_1
A82: 372 | B82: PPS | C82: phi Piscids | D82: 106 | E82: 20.1 | F82: 24.1 | G82: 62.9 | H82: 1.56 | I82: 0.36 | J82: =IF(E82-L82*H82<0,360+E82-L82*H82,IF(E82-L82*H82>=360,E82-L82*H82-360,E82-L82*H82)) -> 263.1 | K82: =F82-L82*I82 -> -2.9 | L82: =IF(D82-T$14>180,360-(D82-T$14),IF(D82-T$14<-180,360+(D82-T$14),D82-T$14)) -> 75 | M82: =DEGREES(ACOS((2-ABS((COS(RADIANS(K82))*COS(RADIANS(J82))-COS(RADIANS(V$14))*COS(RADIANS(U$14)))^2+(COS(RADIANS(K82))*SIN(RADIANS(J82))-COS(RADIANS(V$14))*SIN(RADIANS(U$14)))^2+(SIN(RADIANS(K82))-SIN(RADIANS(V$14)))^2))/2)) -> 37.2742248 | N82: =SQRT(G82*G82+125)-W$14 -> 19.26529091 | O82: =ABS(L82)*$T$9+ABS(M82)*$U$9+ABS(N82)*$V$9 -> 94.0395157 | P82: 372_1 | Q82: PPS_1
A83: 380 | B83: KDR | C83: kappa Draconids | D83: 158 | E83: 189.4 | F83: 73.1 | G83: 38 | H83: 0.95 | I83: -0.7 | J83: =IF(E83-L83*H83<0,360+E83-L83*H83,IF(E83-L83*H83>=360,E83-L83*H83-360,E83-L83*H83)) -> 68.75 | K83: =F83-L83*I83 -> 162 | L83: =IF(D83-T$14>180,360-(D83-T$14),IF(D83-T$14<-180,360+(D83-T$14),D83-T$14)) -> 127 | M83: =DEGREES(ACOS((2-ABS((COS(RADIANS(K83))*COS(RADIANS(J83))-COS(RADIANS(V$14))*COS(RADIANS(U$14)))^2+(COS(RADIANS(K83))*SIN(RADIANS(J83))-COS(RADIANS(V$14))*SIN(RADIANS(U$14)))^2+(SIN(RADIANS(K83))-SIN(RADIANS(V$14)))^2))/2)) -> 25.65811598 | N83: =SQRT(G83*G83+125)-W$14 -> -5.010018394 | O83: =ABS(L83)*$T$9+ABS(M83)*$U$9+ABS(N83)*$V$9 -> 94.16813438 | P83: 380_1 | Q83: KDR_1
A84: 156 | B84: SMA | C84: South, Dayt, May Arietids | D84: 55 | E84: 48.5 | F84: 8.3 | G84: 31.8 | H84: 1.9 | I84: -1.2 | J84: =IF(E84-L84*H84<0,360+E84-L84*H84,IF(E84-L84*H84>=360,E84-L84*H84-360,E84-L84*H84)) -> 2.9 | K84: =F84-L84*I84 -> 37.1 | L84: =IF(D84-T$14>180,360-(D84-T$14),IF(D84-T$14<-180,360+(D84-T$14),D84-T$14)) -> 24 | M84: =DEGREES(ACOS((2-ABS((COS(RADIANS(K84))*COS(RADIANS(J84))-COS(RADIANS(V$14))*COS(RADIANS(U$14)))^2+(COS(RADIANS(K84))*SIN(RADIANS(J84))-COS(RADIANS(V$14))*SIN(RADIANS(U$14)))^2+(SIN(RADIANS(K84))-SIN(RADIANS(V$14)))^2))/2)) -> 71.46743561 | N84: =SQRT(G84*G84+125)-W$14 -> -10.91246378 | O84: =ABS(L84)*$T$9+ABS(M84)*$U$9+ABS(N84)*$V$9 -> 94.37989939 | P84: 156_2 | Q84: SMA_2
A85: 147 | B85: PAQ | C85: phi Aquariids | D85: 60 | E85: 350.9 | F85: -3.5 | G85: 64 | H85: 1 | I85: 0 | J85: =IF(E85-L85*H85<0,360+E85-L85*H85,IF(E85-L85*H85>=360,E85-L85*H85-360,E85-L85*H85)) -> 321.9 | K85: =F85-L85*I85 -> -3.5 | L85: =IF(D85-T$14>180,360-(D85-T$14),IF(D85-T$14<-180,360+(D85-T$14),D85-T$14)) -> 29 | M85: =DEGREES(ACOS((2-ABS((COS(RADIANS(K85))*COS(RADIANS(J85))-COS(RADIANS(V$14))*COS(RADIANS(U$14)))^2+(COS(RADIANS(K85))*SIN(RADIANS(J85))-COS(RADIANS(V$14))*SIN(RADIANS(U$14)))^2+(SIN(RADIANS(K85))-SIN(RADIANS(V$14)))^2))/2)) -> 60.13414949 | N85: =SQRT(G85*G85+125)-W$14 -> 20.34860045 | O85: =ABS(L85)*$T$9+ABS(M85)*$U$9+ABS(N85)*$V$9 -> 94.98274994 | P85: 147_1 | Q85: PAQ_1
A86: 433 | B86: ETP | C86: eta Pegasids | D86: 135.4 | E86: 334.6 | F86: 32.7 | G86: 34.5 | H86: 1 | I86: 0 | J86: =IF(E86-L86*H86<0,360+E86-L86*H86,IF(E86-L86*H86>=360,E86-L86*H86-360,E86-L86*H86)) -> 230.2 | K86: =F86-L86*I86 -> 32.7 | L86: =IF(D86-T$14>180,360-(D86-T$14),IF(D86-T$14<-180,360+(D86-T$14),D86-T$14)) -> 104.4 | M86: =DEGREES(ACOS((2-ABS((COS(RADIANS(K86))*COS(RADIANS(J86))-COS(RADIANS(V$14))*COS(RADIANS(U$14)))^2+(COS(RADIANS(K86))*SIN(RADIANS(J86))-COS(RADIANS(V$14))*SIN(RADIANS(U$14)))^2+(SIN(RADIANS(K86))-SIN(RADIANS(V$14)))^2))/2)) -> 34.45715726 | N86: =SQRT(G86*G86+125)-W$14 -> -8.354247423 | O86: =ABS(L86)*$T$9+ABS(M86)*$U$9+ABS(N86)*$V$9 -> 95.01140468 | P86: 433_1 | Q86: ETP_1
A87: 31 | B87: ETA | C87: eta Aquariids | D87: 46.9 | E87: 339 | F87: -1.4 | G87: 65 | H87: 0.73 | I87: 0.31 | J87: =IF(E87-L87*H87<0,360+E87-L87*H87,IF(E87-L87*H87>=360,E87-L87*H87-360,E87-L87*H87)) -> 327.393 | K87: =F87-L87*I87 -> -6.329 | L87: =IF(D87-T$14>180,360-(D87-T$14),IF(D87-T$14<-180,360+(D87-T$14),D87-T$14)) -> 15.9 | M87: =DEGREES(ACOS((2-ABS((COS(RADIANS(K87))*COS(RADIANS(J87))-COS(RADIANS(V$14))*COS(RADIANS(U$14)))^2+(COS(RADIANS(K87))*SIN(RADIANS(J87))-COS(RADIANS(V$14))*SIN(RADIANS(U$14)))^2+(SIN(RADIANS(K87))-SIN(RADIANS(V$14)))^2))/2)) -> 66.10283555 | N87: =SQRT(G87*G87+125)-W$14 -> 21.33390676 | O87: =ABS(L87)*$T$9+ABS(M87)*$U$9+ABS(N87)*$V$9 -> 95.3867423 | P87: 31_2 | Q87: ETA_2
A88: 31 | B88: ETA | C88: eta Aquariids | D88: 46.9 | E88: 336.9 | F88: -1.5 | G88: 65.9 | H88: 0.76 | I88: 0.422 | J88: =IF(E88-L88*H88<0,360+E88-L88*H88,IF(E88-L88*H88>=360,E88-L88*H88-360,E88-L88*H88)) -> 324.816 | K88: =F88-L88*I88 -> -8.2098 | L88: =IF(D88-T$14>180,360-(D88-T$14),IF(D88-T$14<-180,360+(D88-T$14),D88-T$14)) -> 15.9 | M88: =DEGREES(ACOS((2-ABS((COS(RADIANS(K88))*COS(RADIANS(J88))-COS(RADIANS(V$14))*COS(RADIANS(U$14)))^2+(COS(RADIANS(K88))*SIN(RADIANS(J88))-COS(RADIANS(V$14))*SIN(RADIANS(U$14)))^2+(SIN(RADIANS(K88))-SIN(RADIANS(V$14)))^2))/2)) -> 65.45562016 | N88: =SQRT(G88*G88+125)-W$14 -> 22.22105558 | O88: =ABS(L88)*$T$9+ABS(M88)*$U$9+ABS(N88)*$V$9 -> 95.62667574 | P88: 31_1 | Q88: ETA_1
A89: 175 | B89: JPE | C89: July Pegasids | D89: 107.5 | E89: 340 | F89: 15 | G89: 61.3 | H89: 0.6 | I89: 0.2 | J89: =IF(E89-L89*H89<0,360+E89-L89*H89,IF(E89-L89*H89>=360,E89-L89*H89-360,E89-L89*H89)) -> 294.1 | K89: =F89-L89*I89 -> -0.3 | L89: =IF(D89-T$14>180,360-(D89-T$14),IF(D89-T$14<-180,360+(D89-T$14),D89-T$14)) -> 76.5 | M89: =DEGREES(ACOS((2-ABS((COS(RADIANS(K89))*COS(RADIANS(J89))-COS(RADIANS(V$14))*COS(RADIANS(U$14)))^2+(COS(RADIANS(K89))*SIN(RADIANS(J89))-COS(RADIANS(V$14))*SIN(RADIANS(U$14)))^2+(SIN(RADIANS(K89))-SIN(RADIANS(V$14)))^2))/2)) -> 39.8692267 | N89: =SQRT(G89*G89+125)-W$14 -> 17.69061191 | O89: =ABS(L89)*$T$9+ABS(M89)*$U$9+ABS(N89)*$V$9 -> 95.80983861 | P89: 175_1 | Q89: JPE_1
A90: 373 | B90: TPR | C90: theta Perseids | D90: 106 | E90: 41.1 | F90: 47.6 | G90: 53 | H90: 0.87 | I90: -0.07 | J90: =IF(E90-L90*H90<0,360+E90-L90*H90,IF(E90-L90*H90>=360,E90-L90*H90-360,E90-L90*H90)) -> 335.85 | K90: =F90-L90*I90 -> 52.85 | L90: =IF(D90-T$14>180,360-(D90-T$14),IF(D90-T$14<-180,360+(D90-T$14),D90-T$14)) -> 75 | M90: =DEGREES(ACOS((2-ABS((COS(RADIANS(K90))*COS(RADIANS(J90))-COS(RADIANS(V$14))*COS(RADIANS(U$14)))^2+(COS(RADIANS(K90))*SIN(RADIANS(J90))-COS(RADIANS(V$14))*SIN(RADIANS(U$14)))^2+(SIN(RADIANS(K90))-SIN(RADIANS(V$14)))^2))/2)) -> 48.79872066 | N90: =SQRT(G90*G90+125)-W$14 -> 9.545787221 | O90: =ABS(L90)*$T$9+ABS(M90)*$U$9+ABS(N90)*$V$9 -> 95.84450788 | P90: 373_1 | Q90: TPR_1
A91: 411 | B91: CAN | C91: c Andromedids | D91: 110 | E91: 32.4 | F91: 48.4 | G91: 59 | H91: 1 | I91: 0.4 | J91: =IF(E91-L91*H91<0,360+E91-L91*H91,IF(E91-L91*H91>=360,E91-L91*H91-360,E91-L91*H91)) -> 313.4 | K91: =F91-L91*I91 -> 16.8 | L91: =IF(D91-T$14>180,360-(D91-T$14),IF(D91-T$14<-180,360+(D91-T$14),D91-T$14)) -> 79 | M91: =DEGREES(ACOS((2-ABS((COS(RADIANS(K91))*COS(RADIANS(J91))-COS(RADIANS(V$14))*COS(RADIANS(U$14)))^2+(COS(RADIANS(K91))*SIN(RADIANS(J91))-COS(RADIANS(V$14))*SIN(RADIANS(U$14)))^2+(SIN(RADIANS(K91))-SIN(RADIANS(V$14)))^2))/2)) -> 41.00631921 | N91: =SQRT(G91*G91+125)-W$14 -> 15.42935615 | O91: =ABS(L91)*$T$9+ABS(M91)*$U$9+ABS(N91)*$V$9 -> 95.93567536 | P91: 411_1 | Q91: CAN_1
A92: 150 | B92: SOP | C92: South, May Ophiuchids | D92: 56.7 | E92: 258 | F92: -24 | G92: 27.8 | H92: 1 | I92: 0 | J92: =IF(E92-L92*H92<0,360+E92-L92*H92,IF(E92-L92*H92>=360,E92-L92*H92-360,E92-L92*H92)) -> 232.3 | K92: =F92-L92*I92 -> -24 | L92: =IF(D92-T$14>180,360-(D92-T$14),IF(D92-T$14<-180,360+(D92-T$14),D92-T$14)) -> 25.7 | M92: =DEGREES(ACOS((2-ABS((COS(RADIANS(K92))*COS(RADIANS(J92))-COS(RADIANS(V$14))*COS(RADIANS(U$14)))^2+(COS(RADIANS(K92))*SIN(RADIANS(J92))-COS(RADIANS(V$14))*SIN(RADIANS(U$14)))^2+(SIN(RADIANS(K92))-SIN(RADIANS(V$14)))^2))/2)) -> 68.59163248 | N92: =SQRT(G92*G92+125)-W$14 -> -14.65664466 | O92: =ABS(L92)*$T$9+ABS(M92)*$U$9+ABS(N92)*$V$9 -> 96.09827714 | P92: 150_1 | Q92: SOP_1
A93: 208 | B93: SPE | C93: September epsilon Perseids | D93: 170 | E93: 50.2 | F93: 39.4 | G93: 64.5 | H93: 1 | I93: 0 | J93: =IF(E93-L93*H93<0,360+E93-L93*H93,IF(E93-L93*H93>=360,E93-L93*H93-360,E93-L93*H93)) -> 271.2 | K93: =F93-L93*I93 -> 39.4 | L93: =IF(D93-T$14>180,360-(D93-T$14),IF(D93-T$14<-180,360+(D93-T$14),D93-T$14)) -> 139 | M93: =DEGREES(ACOS((2-ABS((COS(RADIANS(K93))*COS(RADIANS(J93))-COS(RADIANS(V$14))*COS(RADIANS(U$14)))^2+(COS(RADIANS(K93))*SIN(RADIANS(J93))-COS(RADIANS(V$14))*SIN(RADIANS(U$14)))^2+(SIN(RADIANS(K93))-SIN(RADIANS(V$14)))^2))/2)) -> 5.908746207 | N93: =SQRT(G93*G93+125)-W$14 -> 20.8411979 | O93: =ABS(L93)*$T$9+ABS(M93)*$U$9+ABS(N93)*$V$9 -> 96.24994411 | P93: 208_1 | Q93: SPE_1
A94: 55 | B94: ASC | C94: alpha Scorpiids | D94: 55.2 | E94: 247 | F94: -28.8 | G94: 31 | H94: 0.73 | I94: -0.07 | J94: =IF(E94-L94*H94<0,360+E94-L94*H94,IF(E94-L94*H94>=360,E94-L94*H94-360,E94-L94*H94)) -> 229.334 | K94: =F94-L94*I94 -> -27.106 | L94: =IF(D94-T$14>180,360-(D94-T$14),IF(D94-T$14<-180,360+(D94-T$14),D94-T$14)) -> 24.2 | M94: =DEGREES(ACOS((2-ABS((COS(RADIANS(K94))*COS(RADIANS(J94))-COS(RADIANS(V$14))*COS(RADIANS(U$14)))^2+(COS(RADIANS(K94))*SIN(RADIANS(J94))-COS(RADIANS(V$14))*SIN(RADIANS(U$14)))^2+(SIN(RADIANS(K94))-SIN(RADIANS(V$14)))^2))/2)) -> 72.67220158 | N94: =SQRT(G94*G94+125)-W$14 -> -11.66610893 | O94: =ABS(L94)*$T$9+ABS(M94)*$U$9+ABS(N94)*$V$9 -> 96.43831051 | P94: 55_1 | Q94: ASC_1
A95: 136 | B95: SLE | C95: sigma Leonids | D95: 27.7 | E95: 192.6 | F95: 3.1 | G95: 23 | H95: 1 | I95: 0 | J95: =IF(E95-L95*H95<0,360+E95-L95*H95,IF(E95-L95*H95>=360,E95-L95*H95-360,E95-L95*H95)) -> 195.9 | K95: =F95-L95*I95 -> 3.1 | L95: =IF(D95-T$14>180,360-(D95-T$14),IF(D95-T$14<-180,360+(D95-T$14),D95-T$14)) -> -3.3 | M95: =DEGREES(ACOS((2-ABS((COS(RADIANS(K95))*COS(RADIANS(J95))-COS(RADIANS(V$14))*COS(RADIANS(U$14)))^2+(COS(RADIANS(K95))*SIN(RADIANS(J95))-COS(RADIANS(V$14))*SIN(RADIANS(U$14)))^2+(SIN(RADIANS(K95))-SIN(RADIANS(V$14)))^2))/2)) -> 76.37797823 | N95: =SQRT(G95*G95+125)-W$14 -> -19.04719933 | O95: =ABS(L95)*$T$9+ABS(M95)*$U$9+ABS(N95)*$V$9 -> 97.07517756 | P95: 136_1 | Q95: SLE_1
A96: 382 | B96: BUM | C96: beta Ursae Majorids | D96: 184 | E96: 161.2 | F96: 56.5 | G96: 50.3 | H96: 1.53 | I96: 0.1 | J96: =IF(E96-L96*H96<0,360+E96-L96*H96,IF(E96-L96*H96>=360,E96-L96*H96-360,E96-L96*H96)) -> 287.11 | K96: =F96-L96*I96 -> 41.2 | L96: =IF(D96-T$14>180,360-(D96-T$14),IF(D96-T$14<-180,360+(D96-T$14),D96-T$14)) -> 153 | M96: =DEGREES(ACOS((2-ABS((COS(RADIANS(K96))*COS(RADIANS(J96))-COS(RADIANS(V$14))*COS(RADIANS(U$14)))^2+(COS(RADIANS(K96))*SIN(RADIANS(J96))-COS(RADIANS(V$14))*SIN(RADIANS(U$14)))^2+(SIN(RADIANS(K96))-SIN(RADIANS(V$14)))^2))/2)) -> 14.50297247 | N96: =SQRT(G96*G96+125)-W$14 -> 6.906942404 | O96: =ABS(L96)*$T$9+ABS(M96)*$U$9+ABS(N96)*$V$9 -> 97.90991487 | P96: 382_1 | Q96: BUM_1
A97: 415 | B97: AUP | C97: August Piscids | D97: 132 | E97: 7.5 | F97: 18.3 | G97: 66 | H97: 0.9 | I97: 0.1 | J97: =IF(E97-L97*H97<0,360+E97-L97*H97,IF(E97-L97*H97>=360,E97-L97*H97-360,E97-L97*H97)) -> 276.6 | K97: =F97-L97*I97 -> 8.2 | L97: =IF(D97-T$14>180,360-(D97-T$14),IF(D97-T$14<-180,360+(D97-T$14),D97-T$14)) -> 101 | M97: =DEGREES(ACOS((2-ABS((COS(RADIANS(K97))*COS(RADIANS(J97))-COS(RADIANS(V$14))*COS(RADIANS(U$14)))^2+(COS(RADIANS(K97))*SIN(RADIANS(J97))-COS(RADIANS(V$14))*SIN(RADIANS(U$14)))^2+(SIN(RADIANS(K97))-SIN(RADIANS(V$14)))^2))/2)) -> 25.71785932 | N97: =SQRT(G97*G97+125)-W$14 -> 22.31964885 | O97: =ABS(L97)*$T$9+ABS(M97)*$U$9+ABS(N97)*$V$9 -> 98.53750817 | P97: 415_1 | Q97: AUP_1
A98: 159 | B98: TAQ | C98: tau Aquariids | D98: 97.3 | E98: 340.3 | F98: -11.5 | G98: 64.3 | H98: 1 | I98: 0 | J98: =IF(E98-L98*H98<0,360+E98-L98*H98,IF(E98-L98*H98>=360,E98-L98*H98-360,E98-L98*H98)) -> 274 | K98: =F98-L98*I98 -> -11.5 | L98: =IF(D98-T$14>180,360-(D98-T$14),IF(D98-T$14<-180,360+(D98-T$14),D98-T$14)) -> 66.3 | M98: =DEGREES(ACOS((2-ABS((COS(RADIANS(K98))*COS(RADIANS(J98))-COS(RADIANS(V$14))*COS(RADIANS(U$14)))^2+(COS(RADIANS(K98))*SIN(RADIANS(J98))-COS(RADIANS(V$14))*SIN(RADIANS(U$14)))^2+(SIN(RADIANS(K98))-SIN(RADIANS(V$14)))^2))/2)) -> 45.05804981 | N98: =SQRT(G98*G98+125)-W$14 -> 20.64414541 | O98: =ABS(L98)*$T$9+ABS(M98)*$U$9+ABS(N98)*$V$9 -> 98.85219522 | P98: 159_1 | Q98: TAQ_1
A99: 146 | B99: CAU | C99: beta Coronae Australids | D99: 54.7 | E99: 285.1 | F99: -39.9 | G99: 56.4 | H99: 1.1 | I99: 0 | J99: =IF(E99-L99*H99<0,360+E99-L99*H99,IF(E99-L99*H99>=360,E99-L99*H99-360,E99-L99*H99)) -> 259.03 | K99: =F99-L99*I99 -> -39.9 | L99: =IF(D99-T$14>180,360-(D99-T$14),IF(D99-T$14<-180,360+(D99-T$14),D99-T$14)) -> 23.7 | M99: =DEGREES(ACOS((2-ABS((COS(RADIANS(K99))*COS(RADIANS(J99))-COS(RADIANS(V$14))*COS(RADIANS(U$14)))^2+(COS(RADIANS(K99))*SIN(RADIANS(J99))-COS(RADIANS(V$14))*SIN(RADIANS(U$14)))^2+(SIN(RADIANS(K99))-SIN(RADIANS(V$14)))^2))/2)) -> 74.31462975 | N99: =SQRT(G99*G99+125)-W$14 -> 12.87685517 | O99: =ABS(L99)*$T$9+ABS(M99)*$U$9+ABS(N99)*$V$9 -> 99.04148492 | P99: 146_1 | Q99: CAU_1
A100: 354 | B100: DDT | C100: Dayt, delta Triangulids | D100: 53 | E100: 35.3 | F100: 33.7 | G100: 28.4 | H100: 1.95 | I100: 0.91 | J100: =IF(E100-L100*H100<0,360+E100-L100*H100,IF(E100-L100*H100>=360,E100-L100*H100-360,E100-L100*H100)) -> 352.4 | K100: =F100-L100*I100 -> 13.68 | L100: =IF(D100-T$14>180,360-(D100-T$14),IF(D100-T$14<-180,360+(D100-T$14),D100-T$14)) -> 22 | M100: =DEGREES(ACOS((2-ABS((COS(RADIANS(K100))*COS(RADIANS(J100))-COS(RADIANS(V$14))*COS(RADIANS(U$14)))^2+(COS(RADIANS(K100))*SIN(RADIANS(J100))-COS(RADIANS(V$14))*SIN(RADIANS(U$14)))^2+(SIN(RADIANS(K100))-SIN(RADIANS(V$14)))^2))/2)) -> 74.92560231 | N100: =SQRT(G100*G100+125)-W$14 -> -14.09915518 | O100: =ABS(L100)*$T$9+ABS(M100)*$U$9+ABS(N100)*$V$9 -> 100.0247575 | P100: 354_1 | Q100: DDT_1
A101: 157 | B101: ICA | C101: iota Cassiopeiids | D101: 62 | E101: 43.1 | F101: 69.2 | G101: 19.1 | H101: 1 | I101: 0 | J101: =IF(E101-L101*H101<0,360+E101-L101*H101,IF(E101-L101*H101>=360,E101-L101*H101-360,E101-L101*H101)) -> 12.1 | K101: =F101-L101*I101 -> 69.2 | L101: =IF(D101-T$14>180,360-(D101-T$14),IF(D101-T$14<-180,360+(D101-T$14),D101-T$14)) -> 31 | M101: =DEGREES(ACOS((2-ABS((COS(RADIANS(K101))*COS(RADIANS(J101))-COS(RADIANS(V$14))*COS(RADIANS(U$14)))^2+(COS(RADIANS(K101))*SIN(RADIANS(J101))-COS(RADIANS(V$14))*SIN(RADIANS(U$14)))^2+(SIN(RADIANS(K101))-SIN(RADIANS(V$14)))^2))/2)) -> 62.4836621 | N101: =SQRT(G101*G101+125)-W$14 -> -22.48897149 | O101: =ABS(L101)*$T$9+ABS(M101)*$U$9+ABS(N101)*$V$9 -> 100.4726336 | P101: 157_1 | Q101: ICA_1
A102: 289 | B102: DNA | C102: North, December delta Arietids | D102: 256.5 | E102: 53 | F102: 29 | G102: 14.6 | H102: 1 | I102: 0 | J102: =IF(E102-L102*H102<0,360+E102-L102*H102,IF(E102-L102*H102>=360,E102-L102*H102-360,E102-L102*H102)) -> 278.5 | K102: =F102-L102*I102 -> 29 | L102: =IF(D102-T$14>180,360-(D102-T$14),IF(D102-T$14<-180,360+(D102-T$14),D102-T$14)) -> 134.5 | M102: =DEGREES(ACOS((2-ABS((COS(RADIANS(K102))*COS(RADIANS(J102))-COS(RADIANS(V$14))*COS(RADIANS(U$14)))^2+(COS(RADIANS(K102))*SIN(RADIANS(J102))-COS(RADIANS(V$14))*SIN(RADIANS(U$14)))^2+(SIN(RADIANS(K102))-SIN(RADIANS(V$14)))^2))/2)) -> 7.416058957 | N102: =SQRT(G102*G102+125)-W$14 -> -26.23149581 | O102: =ABS(L102)*$T$9+ABS(M102)*$U$9+ABS(N102)*$V$9 -> 100.8975548 | P102: 289_1 | Q102: DNA_1
A103: 7 | B103: PER | C103: Perseids | D103: 140.19 | E103: 48.33 | F103: 57.96 | G103: 59.38 | H103: 1 | I103: 0 | J103: =IF(E103-L103*H103<0,360+E103-L103*H103,IF(E103-L103*H103>=360,E103-L103*H103-360,E103-L103*H103)) -> 299.14 | K103: =F103-L103*I103 -> 57.96 | L103: =IF(D103-T$14>180,360-(D103-T$14),IF(D103-T$14<-180,360+(D103-T$14),D103-T$14)) -> 109.19 | M103: =DEGREES(ACOS((2-ABS((COS(RADIANS(K103))*COS(RADIANS(J103))-COS(RADIANS(V$14))*COS(RADIANS(U$14)))^2+(COS(RADIANS(K103))*SIN(RADIANS(J103))-COS(RADIANS(V$14))*SIN(RADIANS(U$14)))^2+(SIN(RADIANS(K103))-SIN(RADIANS(V$14)))^2))/2)) -> 30.66959735 | N103: =SQRT(G103*G103+125)-W$14 -> 15.80275324 | O103: =ABS(L103)*$T$9+ABS(M103)*$U$9+ABS(N103)*$V$9 -> 101.0673506 | P103: 7_1 | Q103: PER_1
A104: 260 | B104: GTI | C104: gamma Triangulids | D104: 272 | E104: 43.3 | F104: 41.6 | G104: 11.3 | H104: 1 | I104: 0 | J104: =IF(E104-L104*H104<0,360+E104-L104*H104,IF(E104-L104*H104>=360,E104-L104*H104-360,E104-L104*H104)) -> 284.3 | K104: =F104-L104*I104 -> 41.6 | L104: =IF(D104-T$14>180,360-(D104-T$14),IF(D104-T$14<-180,360+(D104-T$14),D104-T$14)) -> 119 | M104: =DEGREES(ACOS((2-ABS((COS(RADIANS(K104))*COS(RADIANS(J104))-COS(RADIANS(V$14))*COS(RADIANS(U$14)))^2+(COS(RADIANS(K104))*SIN(RADIANS(J104))-COS(RADIANS(V$14))*SIN(RADIANS(U$14)))^2+(SIN(RADIANS(K104))-SIN(RADIANS(V$14)))^2))/2)) -> 12.89837333 | N104: =SQRT(G104*G104+125)-W$14 -> -28.72439707 | O104: =ABS(L104)*$T$9+ABS(M104)*$U$9+ABS(N104)*$V$9 -> 101.1227704 | P104: 260_1 | Q104: GTI_1
A105: 171 | B105: ARI | C105: Dayt, Arietids | D105: 76.7 | E105: 40.2 | F105: 23.8 | G105: 35.7 | H105: 1 | I105: 0 | J105: =IF(E105-L105*H105<0,360+E105-L105*H105,IF(E105-L105*H105>=360,E105-L105*H105-360,E105-L105*H105)) -> 354.5 | K105: =F105-L105*I105 -> 23.8 | L105: =IF(D105-T$14>180,360-(D105-T$14),IF(D105-T$14<-180,360+(D105-T$14),D105-T$14)) -> 45.7 | M105: =DEGREES(ACOS((2-ABS((COS(RADIANS(K105))*COS(RADIANS(J105))-COS(RADIANS(V$14))*COS(RADIANS(U$14)))^2+(COS(RADIANS(K105))*SIN(RADIANS(J105))-COS(RADIANS(V$14))*SIN(RADIANS(U$14)))^2+(SIN(RADIANS(K105))-SIN(RADIANS(V$14)))^2))/2)) -> 71.51622926 | N105: =SQRT(G105*G105+125)-W$14 -> -7.210864949 | O105: =ABS(L105)*$T$9+ABS(M105)*$U$9+ABS(N105)*$V$9 -> 101.5770942 | P105: 171_1 | Q105: ARI_1
A106: 12 | B106: KCG | C106: kappa Cygnids | D106: 145.2 | E106: 286.2 | F106: 59.1 | G106: 24.8 | H106: 0 | I106: 0 | J106: =IF(E106-L106*H106<0,360+E106-L106*H106,IF(E106-L106*H106>=360,E106-L106*H106-360,E106-L106*H106)) -> 286.2 | K106: =F106-L106*I106 -> 59.1 | L106: =IF(D106-T$14>180,360-(D106-T$14),IF(D106-T$14<-180,360+(D106-T$14),D106-T$14)) -> 114.2 | M106: =DEGREES(ACOS((2-ABS((COS(RADIANS(K106))*COS(RADIANS(J106))-COS(RADIANS(V$14))*COS(RADIANS(U$14)))^2+(COS(RADIANS(K106))*SIN(RADIANS(J106))-COS(RADIANS(V$14))*SIN(RADIANS(U$14)))^2+(SIN(RADIANS(K106))-SIN(RADIANS(V$14)))^2))/2)) -> 27.37644916 | N106: =SQRT(G106*G106+125)-W$14 -> -17.41694681 | O106: =ABS(L106)*$T$9+ABS(M106)*$U$9+ABS(N106)*$V$9 -> 101.893396 | P106: 12_2 | Q106: KCG_2
A107: 114 | B107: DXC | C107: Dayt, chi Capricornids | D107: 311.3 | E107: 321.4 | F107: 6 | G107: 18.5 | H107: 1 | I107: 0 | J107: =IF(E107-L107*H107<0,360+E107-L107*H107,IF(E107-L107*H107>=360,E107-L107*H107-360,E107-L107*H107)) -> 241.7 | K107: =F107-L107*I107 -> 6 | L107: =IF(D107-T$14>180,360-(D107-T$14),IF(D107-T$14<-180,360+(D107-T$14),D107-T$14)) -> 79.7 | M107: =DEGREES(ACOS((2-ABS((COS(RADIANS(K107))*COS(RADIANS(J107))-COS(RADIANS(V$14))*COS(RADIANS(U$14)))^2+(COS(RADIANS(K107))*SIN(RADIANS(J107))-COS(RADIANS(V$14))*SIN(RADIANS(U$14)))^2+(SIN(RADIANS(K107))-SIN(RADIANS(V$14)))^2))/2)) -> 39.04731974 | N107: =SQRT(G107*G107+125)-W$14 -> -23.00465671 | O107: =ABS(L107)*$T$9+ABS(M107)*$U$9+ABS(N107)*$V$9 -> 101.9019765 | P107: 114_1 | Q107: DXC_1
A108: 26 | B108: NDA | C108: North, delta Aquariids | D108: 123.4 | E108: 345.3 | F108: 0.5 | G108: 39.78 | H108: 0.75 | I108: 0.21 | J108: =IF(E108-L108*H108<0,360+E108-L108*H108,IF(E108-L108*H108>=360,E108-L108*H108-360,E108-L108*H108)) -> 276 | K108: =F108-L108*I108 -> -18.904 | L108: =IF(D108-T$14>180,360-(D108-T$14),IF(D108-T$14<-180,360+(D108-T$14),D108-T$14)) -> 92.4 | M108: =DEGREES(ACOS((2-ABS((COS(RADIANS(K108))*COS(RADIANS(J108))-COS(RADIANS(V$14))*COS(RADIANS(U$14)))^2+(COS(RADIANS(K108))*SIN(RADIANS(J108))-COS(RADIANS(V$14))*SIN(RADIANS(U$14)))^2+(SIN(RADIANS(K108))-SIN(RADIANS(V$14)))^2))/2)) -> 52.57194585 | N108: =SQRT(G108*G108+125)-W$14 -> -3.299340383 | O108: =ABS(L108)*$T$9+ABS(M108)*$U$9+ABS(N108)*$V$9 -> 102.0712862 | P108: 26_2 | Q108: NDA_2
A109: 269 | B109: OCS | C109: omega Cassiopeiids | D109: 317.5 | E109: 7.4 | F109: 66.4 | G109: 9.4 | H109: 1 | I109: 0 | J109: =IF(E109-L109*H109<0,360+E109-L109*H109,IF(E109-L109*H109>=360,E109-L109*H109-360,E109-L109*H109)) -> 293.9 | K109: =F109-L109*I109 -> 66.4 | L109: =IF(D109-T$14>180,360-(D109-T$14),IF(D109-T$14<-180,360+(D109-T$14),D109-T$14)) -> 73.5 | M109: =DEGREES(ACOS((2-ABS((COS(RADIANS(K109))*COS(RADIANS(J109))-COS(RADIANS(V$14))*COS(RADIANS(U$14)))^2+(COS(RADIANS(K109))*SIN(RADIANS(J109))-COS(RADIANS(V$14))*SIN(RADIANS(U$14)))^2+(SIN(RADIANS(K109))-SIN(RADIANS(V$14)))^2))/2)) -> 35.44708497 | N109: =SQRT(G109*G109+125)-W$14 -> -30.01377533 | O109: =ABS(L109)*$T$9+ABS(M109)*$U$9+ABS(N109)*$V$9 -> 102.2108603 | P109: 269_1 | Q109: OCS_1
A110: 367 | B110: OPG | C110: omicron Pegasids | D110: 100 | E110: 336.9 | F110: 31.2 | G110: 28.5 | H110: 0 | I110: 0 | J110: =IF(E110-L110*H110<0,360+E110-L110*H110,IF(E110-L110*H110>=360,E110-L110*H110-360,E110-L110*H110)) -> 336.9 | K110: =F110-L110*I110 -> 31.2 | L110: =IF(D110-T$14>180,360-(D110-T$14),IF(D110-T$14<-180,360+(D110-T$14),D110-T$14)) -> 69 | M110: =DEGREES(ACOS((2-ABS((COS(RADIANS(K110))*COS(RADIANS(J110))-COS(RADIANS(V$14))*COS(RADIANS(U$14)))^2+(COS(RADIANS(K110))*SIN(RADIANS(J110))-COS(RADIANS(V$14))*SIN(RADIANS(U$14)))^2+(SIN(RADIANS(K110))-SIN(RADIANS(V$14)))^2))/2)) -> 54.26953858 | N110: =SQRT(G110*G110+125)-W$14 -> -14.006084 | O110: =ABS(L110)*$T$9+ABS(M110)*$U$9+ABS(N110)*$V$9 -> 102.7756226 | P110: 367_1 | Q110: OPG_1
A111: 418 | B111: BHE | C111: beta Herculids | D111: 324 | E111: 246 | F111: 23.8 | G111: 56.6 | H111: 0.9 | I111: -0.9 | J111: =IF(E111-L111*H111<0,360+E111-L111*H111,IF(E111-L111*H111>=360,E111-L111*H111-360,E111-L111*H111)) -> 185.7 | K111: =F111-L111*I111 -> 84.1 | L111: =IF(D111-T$14>180,360-(D111-T$14),IF(D111-T$14<-180,360+(D111-T$14),D111-T$14)) -> 67 | M111: =DEGREES(ACOS((2-ABS((COS(RADIANS(K111))*COS(RADIANS(J111))-COS(RADIANS(V$14))*COS(RADIANS(U$14)))^2+(COS(RADIANS(K111))*SIN(RADIANS(J111))-COS(RADIANS(V$14))*SIN(RADIANS(U$14)))^2+(SIN(RADIANS(K111))-SIN(RADIANS(V$14)))^2))/2)) -> 56.27951524 | N111: =SQRT(G111*G111+125)-W$14 -> 13.0730508 | O111: =ABS(L111)*$T$9+ABS(M111)*$U$9+ABS(N111)*$V$9 -> 102.852566 | P111: 418_1 | Q111: BHE_1
A112: 52 | B112: OUM | C112: omega Ursae Majorids | D112: 62 | E112: 174.7 | F112: 66.7 | G112: 27.1 | H112: 1 | I112: 0 | J112: =IF(E112-L112*H112<0,360+E112-L112*H112,IF(E112-L112*H112>=360,E112-L112*H112-360,E112-L112*H112)) -> 143.7 | K112: =F112-L112*I112 -> 66.7 | L112: =IF(D112-T$14>180,360-(D112-T$14),IF(D112-T$14<-180,360+(D112-T$14),D112-T$14)) -> 31 | M112: =DEGREES(ACOS((2-ABS((COS(RADIANS(K112))*COS(RADIANS(J112))-COS(RADIANS(V$14))*COS(RADIANS(U$14)))^2+(COS(RADIANS(K112))*SIN(RADIANS(J112))-COS(RADIANS(V$14))*SIN(RADIANS(U$14)))^2+(SIN(RADIANS(K112))-SIN(RADIANS(V$14)))^2))/2)) -> 72.28341384 | N112: =SQRT(G112*G112+125)-W$14 -> -15.30492758 | O112: =ABS(L112)*$T$9+ABS(M112)*$U$9+ABS(N112)*$V$9 -> 103.0883414 | P112: 52_1 | Q112: OUM_1
A113: 376 | B113: ALN | C113: August Lyncids | D113: 135 | E113: 119.8 | F113: 55.1 | G113: 41.7 | H113: 1.52 | I113: -0.23 | J113: =IF(E113-L113*H113<0,360+E113-L113*H113,IF(E113-L113*H113>=360,E113-L113*H113-360,E113-L113*H113)) -> 321.72 | K113: =F113-L113*I113 -> 79.02 | L113: =IF(D113-T$14>180,360-(D113-T$14),IF(D113-T$14<-180,360+(D113-T$14),D113-T$14)) -> 104 | M113: =DEGREES(ACOS((2-ABS((COS(RADIANS(K113))*COS(RADIANS(J113))-COS(RADIANS(V$14))*COS(RADIANS(U$14)))^2+(COS(RADIANS(K113))*SIN(RADIANS(J113))-COS(RADIANS(V$14))*SIN(RADIANS(U$14)))^2+(SIN(RADIANS(K113))-SIN(RADIANS(V$14)))^2))/2)) -> 49.93395754 | N113: =SQRT(G113*G113+125)-W$14 -> -1.447830676 | O113: =ABS(L113)*$T$9+ABS(M113)*$U$9+ABS(N113)*$V$9 -> 103.3817882 | P113: 376_1 | Q113: ALN_1
A114: 522 | B114: SAP | C114: South alpha Pegasids | D114: 112 | E114: 351 | F114: 12 | G114: 63.9 | H114: 0.81 | I114: 0.24 | J114: =IF(E114-L114*H114<0,360+E114-L114*H114,IF(E114-L114*H114>=360,E114-L114*H114-360,E114-L114*H114)) -> 285.39 | K114: =F114-L114*I114 -> -7.44 | L114: =IF(D114-T$14>180,360-(D114-T$14),IF(D114-T$14<-180,360+(D114-T$14),D114-T$14)) -> 81 | M114: =DEGREES(ACOS((2-ABS((COS(RADIANS(K114))*COS(RADIANS(J114))-COS(RADIANS(V$14))*COS(RADIANS(U$14)))^2+(COS(RADIANS(K114))*SIN(RADIANS(J114))-COS(RADIANS(V$14))*SIN(RADIANS(U$14)))^2+(SIN(RADIANS(K114))-SIN(RADIANS(V$14)))^2))/2)) -> 42.98245244 | N114: =SQRT(G114*G114+125)-W$14 -> 20.25009455 | O114: =ABS(L114)*$T$9+ABS(M114)*$U$9+ABS(N114)*$V$9 -> 103.732547 | P114: 522_1 | Q114: SAP_1
A115: 229 | B115: NAU | C115: nu Aurigids | D115: 207.3 | E115: 87.9 | F115: 39.6 | G115: 53.1 | H115: 1 | I115: 0 | J115: =IF(E115-L115*H115<0,360+E115-L115*H115,IF(E115-L115*H115>=360,E115-L115*H115-360,E115-L115*H115)) -> 271.6 | K115: =F115-L115*I115 -> 39.6 | L115: =IF(D115-T$14>180,360-(D115-T$14),IF(D115-T$14<-180,360+(D115-T$14),D115-T$14)) -> 176.3 | M115: =DEGREES(ACOS((2-ABS((COS(RADIANS(K115))*COS(RADIANS(J115))-COS(RADIANS(V$14))*COS(RADIANS(U$14)))^2+(COS(RADIANS(K115))*SIN(RADIANS(J115))-COS(RADIANS(V$14))*SIN(RADIANS(U$14)))^2+(SIN(RADIANS(K115))-SIN(RADIANS(V$14)))^2))/2)) -> 6.1 | N115: =SQRT(G115*G115+125)-W$14 -> 9.643637764 | O115: =ABS(L115)*$T$9+ABS(M115)*$U$9+ABS(N115)*$V$9 -> 103.8936378 | P115: 229_1 | Q115: NAU_1
A116: 5 | B116: SDA | C116: South, delta Aquariids | D116: 125.6 | E116: 342.1 | F116: -15.4 | G116: 40.5 | H116: 1 | I116: 0 | J116: =IF(E116-L116*H116<0,360+E116-L116*H116,IF(E116-L116*H116>=360,E116-L116*H116-360,E116-L116*H116)) -> 247.5 | K116: =F116-L116*I116 -> -15.4 | L116: =IF(D116-T$14>180,360-(D116-T$14),IF(D116-T$14<-180,360+(D116-T$14),D116-T$14)) -> 94.6 | M116: =DEGREES(ACOS((2-ABS((COS(RADIANS(K116))*COS(RADIANS(J116))-COS(RADIANS(V$14))*COS(RADIANS(U$14)))^2+(COS(RADIANS(K116))*SIN(RADIANS(J116))-COS(RADIANS(V$14))*SIN(RADIANS(U$14)))^2+(SIN(RADIANS(K116))-SIN(RADIANS(V$14)))^2))/2)) -> 54.03445254 | N116: =SQRT(G116*G116+125)-W$14 -> -2.605744718 | O116: =ABS(L116)*$T$9+ABS(M116)*$U$9+ABS(N116)*$V$9 -> 103.9401973 | P116: 5_1 | Q116: SDA_1
A117: 133 | B117: PUM | C117: April psi Ursae Majorids | D117: 23 | E117: 157.8 | F117: 55.7 | G117: 10.6 | H117: 1 | I117: 0 | J117: =IF(E117-L117*H117<0,360+E117-L117*H117,IF(E117-L117*H117>=360,E117-L117*H117-360,E117-L117*H117)) -> 165.8 | K117: =F117-L117*I117 -> 55.7 | L117: =IF(D117-T$14>180,360-(D117-T$14),IF(D117-T$14<-180,360+(D117-T$14),D117-T$14)) -> -8 | M117: =DEGREES(ACOS((2-ABS((COS(RADIANS(K117))*COS(RADIANS(J117))-COS(RADIANS(V$14))*COS(RADIANS(U$14)))^2+(COS(RADIANS(K117))*SIN(RADIANS(J117))-COS(RADIANS(V$14))*SIN(RADIANS(U$14)))^2+(SIN(RADIANS(K117))-SIN(RADIANS(V$14)))^2))/2)) -> 70.85225286 | N117: =SQRT(G117*G117+125)-W$14 -> -29.2141309 | O117: =ABS(L117)*$T$9+ABS(M117)*$U$9+ABS(N117)*$V$9 -> 104.0663838 | P117: 133_4 | Q117: PUM_4
A118: 343 | B118: HVI | C118: h Virginids | D118: 39 | E118: 204.2 | F118: -11.6 | G118: 18.7 | H118: 0.11 | I118: -0.27 | J118: =IF(E118-L118*H118<0,360+E118-L118*H118,IF(E118-L118*H118>=360,E118-L118*H118-360,E118-L118*H118)) -> 203.32 | K118: =F118-L118*I118 -> -9.44 | L118: =IF(D118-T$14>180,360-(D118-T$14),IF(D118-T$14<-180,360+(D118-T$14),D118-T$14)) -> 8 | M118: =DEGREES(ACOS((2-ABS((COS(RADIANS(K118))*COS(RADIANS(J118))-COS(RADIANS(V$14))*COS(RADIANS(U$14)))^2+(COS(RADIANS(K118))*SIN(RADIANS(J118))-COS(RADIANS(V$14))*SIN(RADIANS(U$14)))^2+(SIN(RADIANS(K118))-SIN(RADIANS(V$14)))^2))/2)) -> 77.64945719 | N118: =SQRT(G118*G118+125)-W$14 -> -22.83324137 | O118: =ABS(L118)*$T$9+ABS(M118)*$U$9+ABS(N118)*$V$9 -> 104.4826986 | P118: 343_1 | Q118: HVI_1
A119: 190 | B119: BPE | C119: beta Perseids | D119: 135.4 | E119: 52.8 | F119: 40.2 | G119: 66.2 | H119: 1 | I119: 0 | J119: =IF(E119-L119*H119<0,360+E119-L119*H119,IF(E119-L119*H119>=360,E119-L119*H119-360,E119-L119*H119)) -> 308.4 | K119: =F119-L119*I119 -> 40.2 | L119: =IF(D119-T$14>180,360-(D119-T$14),IF(D119-T$14<-180,360+(D119-T$14),D119-T$14)) -> 104.4 | M119: =DEGREES(ACOS((2-ABS((COS(RADIANS(K119))*COS(RADIANS(J119))-COS(RADIANS(V$14))*COS(RADIANS(U$14)))^2+(COS(RADIANS(K119))*SIN(RADIANS(J119))-COS(RADIANS(V$14))*SIN(RADIANS(U$14)))^2+(SIN(RADIANS(K119))-SIN(RADIANS(V$14)))^2))/2)) -> 29.97393921 | N119: =SQRT(G119*G119+125)-W$14 -> 22.51684787 | O119: =ABS(L119)*$T$9+ABS(M119)*$U$9+ABS(N119)*$V$9 -> 104.6907871 | P119: 190_1 | Q119: BPE_1
A120: 224 | B120: DAU | C120: October delta Aurigids | D120: 191 | E120: 83.5 | F120: 50.4 | G120: 64.9 | H120: 1.1 | I120: 0.1 | J120: =IF(E120-L120*H120<0,360+E120-L120*H120,IF(E120-L120*H120>=360,E120-L120*H120-360,E120-L120*H120)) -> 267.5 | K120: =F120-L120*I120 -> 34.4 | L120: =IF(D120-T$14>180,360-(D120-T$14),IF(D120-T$14<-180,360+(D120-T$14),D120-T$14)) -> 160 | M120: =DEGREES(ACOS((2-ABS((COS(RADIANS(K120))*COS(RADIANS(J120))-COS(RADIANS(V$14))*COS(RADIANS(U$14)))^2+(COS(RADIANS(K120))*SIN(RADIANS(J120))-COS(RADIANS(V$14))*SIN(RADIANS(U$14)))^2+(SIN(RADIANS(K120))-SIN(RADIANS(V$14)))^2))/2)) -> 3.517820878 | N120: =SQRT(G120*G120+125)-W$14 -> 21.23535619 | O120: =ABS(L120)*$T$9+ABS(M120)*$U$9+ABS(N120)*$V$9 -> 104.7531771 | P120: 224_1 | Q120: DAU_1
A121: 165 | B121: SZC | C121: Southhern June Aquilids | D121: 80 | E121: 297.8 | F121: -33.9 | G121: 33.2 | H121: 1 | I121: 0 | J121: =IF(E121-L121*H121<0,360+E121-L121*H121,IF(E121-L121*H121>=360,E121-L121*H121-360,E121-L121*H121)) -> 248.8 | K121: =F121-L121*I121 -> -33.9 | L121: =IF(D121-T$14>180,360-(D121-T$14),IF(D121-T$14<-180,360+(D121-T$14),D121-T$14)) -> 49 | M121: =DEGREES(ACOS((2-ABS((COS(RADIANS(K121))*COS(RADIANS(J121))-COS(RADIANS(V$14))*COS(RADIANS(U$14)))^2+(COS(RADIANS(K121))*SIN(RADIANS(J121))-COS(RADIANS(V$14))*SIN(RADIANS(U$14)))^2+(SIN(RADIANS(K121))-SIN(RADIANS(V$14)))^2))/2)) -> 70.71823277 | N121: =SQRT(G121*G121+125)-W$14 -> -9.58863765 | O121: =ABS(L121)*$T$9+ABS(M121)*$U$9+ABS(N121)*$V$9 -> 104.8068704 | P121: 165_1 | Q121: SZC_1
A122: 21 | B122: AVB | C122: alpha Virginids | D122: 28 | E122: 185.4 | F122: 9.6 | G122: 16.8 | H122: 1 | I122: 0 | J122: =IF(E122-L122*H122<0,360+E122-L122*H122,IF(E122-L122*H122>=360,E122-L122*H122-360,E122-L122*H122)) -> 188.4 | K122: =F122-L122*I122 -> 9.6 | L122: =IF(D122-T$14>180,360-(D122-T$14),IF(D122-T$14<-180,360+(D122-T$14),D122-T$14)) -> -3 | M122: =DEGREES(ACOS((2-ABS((COS(RADIANS(K122))*COS(RADIANS(J122))-COS(RADIANS(V$14))*COS(RADIANS(U$14)))^2+(COS(RADIANS(K122))*SIN(RADIANS(J122))-COS(RADIANS(V$14))*SIN(RADIANS(U$14)))^2+(SIN(RADIANS(K122))-SIN(RADIANS(V$14)))^2))/2)) -> 79.08231405 | N122: =SQRT(G122*G122+125)-W$14 -> -24.44043473 | O122: =ABS(L122)*$T$9+ABS(M122)*$U$9+ABS(N122)*$V$9 -> 105.0227488 | P122: 21_2 | Q122: AVB_2
A123: 435 | B123: MPR | C123: mu Perseids | D123: 139.64 | E123: 70.4 | F123: 50 | G123: 54.2 | H123: 1 | I123: 0 | J123: =IF(E123-L123*H123<0,360+E123-L123*H123,IF(E123-L123*H123>=360,E123-L123*H123-360,E123-L123*H123)) -> 321.76 | K123: =F123-L123*I123 -> 50 | L123: =IF(D123-T$14>180,360-(D123-T$14),IF(D123-T$14<-180,360+(D123-T$14),D123-T$14)) -> 108.64 | M123: =DEGREES(ACOS((2-ABS((COS(RADIANS(K123))*COS(RADIANS(J123))-COS(RADIANS(V$14))*COS(RADIANS(U$14)))^2+(COS(RADIANS(K123))*SIN(RADIANS(J123))-COS(RADIANS(V$14))*SIN(RADIANS(U$14)))^2+(SIN(RADIANS(K123))-SIN(RADIANS(V$14)))^2))/2)) -> 39.98597017 | N123: =SQRT(G123*G123+125)-W$14 -> 10.72050091 | O123: =ABS(L123)*$T$9+ABS(M123)*$U$9+ABS(N123)*$V$9 -> 105.0264711 | P123: 435_1 | Q123: MPR_1
A124: 21 | B124: AVB | C124: alpha Virginids | D124: 28 | E124: 195.6 | F124: -5.3 | G124: 16.6 | H124: 1 | I124: 0 | J124: =IF(E124-L124*H124<0,360+E124-L124*H124,IF(E124-L124*H124>=360,E124-L124*H124-360,E124-L124*H124)) -> 198.6 | K124: =F124-L124*I124 -> -5.3 | L124: =IF(D124-T$14>180,360-(D124-T$14),IF(D124-T$14<-180,360+(D124-T$14),D124-T$14)) -> -3 | M124: =DEGREES(ACOS((2-ABS((COS(RADIANS(K124))*COS(RADIANS(J124))-COS(RADIANS(V$14))*COS(RADIANS(U$14)))^2+(COS(RADIANS(K124))*SIN(RADIANS(J124))-COS(RADIANS(V$14))*SIN(RADIANS(U$14)))^2+(SIN(RADIANS(K124))-SIN(RADIANS(V$14)))^2))/2)) -> 78.94334578 | N124: =SQRT(G124*G124+125)-W$14 -> -24.60662793 | O124: =ABS(L124)*$T$9+ABS(M124)*$U$9+ABS(N124)*$V$9 -> 105.0499737 | P124: 21_3 | Q124: AVB_3
A125: 67 | B125: NSA | C125: North, mu Sagittariids | D125: 78 | E125: 271.9 | F125: -17.3 | G125: 22.9 | H125: 0.73 | I125: 0.07 | J125: =IF(E125-L125*H125<0,360+E125-L125*H125,IF(E125-L125*H125>=360,E125-L125*H125-360,E125-L125*H125)) -> 237.59 | K125: =F125-L125*I125 -> -20.59 | L125: =IF(D125-T$14>180,360-(D125-T$14),IF(D125-T$14<-180,360+(D125-T$14),D125-T$14)) -> 47 | M125: =DEGREES(ACOS((2-ABS((COS(RADIANS(K125))*COS(RADIANS(J125))-COS(RADIANS(V$14))*COS(RADIANS(U$14)))^2+(COS(RADIANS(K125))*SIN(RADIANS(J125))-COS(RADIANS(V$14))*SIN(RADIANS(U$14)))^2+(SIN(RADIANS(K125))-SIN(RADIANS(V$14)))^2))/2)) -> 63.06488469 | N125: =SQRT(G125*G125+125)-W$14 -> -19.13709895 | O125: =ABS(L125)*$T$9+ABS(M125)*$U$9+ABS(N125)*$V$9 -> 105.7019836 | P125: 67_1 | Q125: NSA_1
A126: 133 | B126: PUM | C126: April psi Ursae Majorids | D126: 23 | E126: 153.2 | F126: 58.6 | G126: 8.6 | H126: 1 | I126: 0 | J126: =IF(E126-L126*H126<0,360+E126-L126*H126,IF(E126-L126*H126>=360,E126-L126*H126-360,E126-L126*H126)) -> 161.2 | K126: =F126-L126*I126 -> 58.6 | L126: =IF(D126-T$14>180,360-(D126-T$14),IF(D126-T$14<-180,360+(D126-T$14),D126-T$14)) -> -8 | M126: =DEGREES(ACOS((2-ABS((COS(RADIANS(K126))*COS(RADIANS(J126))-COS(RADIANS(V$14))*COS(RADIANS(U$14)))^2+(COS(RADIANS(K126))*SIN(RADIANS(J126))-COS(RADIANS(V$14))*SIN(RADIANS(U$14)))^2+(SIN(RADIANS(K126))-SIN(RADIANS(V$14)))^2))/2)) -> 71.35734809 | N126: =SQRT(G126*G126+125)-W$14 -> -30.51530489 | O126: =ABS(L126)*$T$9+ABS(M126)*$U$9+ABS(N126)*$V$9 -> 105.872653 | P126: 133_3 | Q126: PUM_3
A127: 183 | B127: PAU | C127: Piscis Austrinids | D127: 123.7 | E127: 347.9 | F127: -23.7 | G127: 44.1 | H127: 1 | I127: 0 | J127: =IF(E127-L127*H127<0,360+E127-L127*H127,IF(E127-L127*H127>=360,E127-L127*H127-360,E127-L127*H127)) -> 255.2 | K127: =F127-L127*I127 -> -23.7 | L127: =IF(D127-T$14>180,360-(D127-T$14),IF(D127-T$14<-180,360+(D127-T$14),D127-T$14)) -> 92.7 | M127: =DEGREES(ACOS((2-ABS((COS(RADIANS(K127))*COS(RADIANS(J127))-COS(RADIANS(V$14))*COS(RADIANS(U$14)))^2+(COS(RADIANS(K127))*SIN(RADIANS(J127))-COS(RADIANS(V$14))*SIN(RADIANS(U$14)))^2+(SIN(RADIANS(K127))-SIN(RADIANS(V$14)))^2))/2)) -> 59.29339297 | N127: =SQRT(G127*G127+125)-W$14 -> 0.8745415436 | O127: =ABS(L127)*$T$9+ABS(M127)*$U$9+ABS(N127)*$V$9 -> 106.5179345 | P127: 183_1 | Q127: PAU_1
A128: 421 | B128: MMI | C128: May Microscopiids | D128: 57.9 | E128: 309.4 | F128: -42.7 | G128: 60.2 | H128: 1 | I128: 0 | J128: =IF(E128-L128*H128<0,360+E128-L128*H128,IF(E128-L128*H128>=360,E128-L128*H128-360,E128-L128*H128)) -> 282.5 | K128: =F128-L128*I128 -> -42.7 | L128: =IF(D128-T$14>180,360-(D128-T$14),IF(D128-T$14<-180,360+(D128-T$14),D128-T$14)) -> 26.9 | M128: =DEGREES(ACOS((2-ABS((COS(RADIANS(K128))*COS(RADIANS(J128))-COS(RADIANS(V$14))*COS(RADIANS(U$14)))^2+(COS(RADIANS(K128))*SIN(RADIANS(J128))-COS(RADIANS(V$14))*SIN(RADIANS(U$14)))^2+(SIN(RADIANS(K128))-SIN(RADIANS(V$14)))^2))/2)) -> 76.85141493 | N128: =SQRT(G128*G128+125)-W$14 -> 16.60878167 | O128: =ABS(L128)*$T$9+ABS(M128)*$U$9+ABS(N128)*$V$9 -> 106.9101966 | P128: 421_1 | Q128: MMI_1
A129: 134 | B129: NGV | C129: North, gamma Virginids | D129: 24.3 | E129: 180.6 | F129: 17.7 | G129: 11.7 | H129: 1 | I129: 0 | J129: =IF(E129-L129*H129<0,360+E129-L129*H129,IF(E129-L129*H129>=360,E129-L129*H129-360,E129-L129*H129)) -> 187.3 | K129: =F129-L129*I129 -> 17.7 | L129: =IF(D129-T$14>180,360-(D129-T$14),IF(D129-T$14<-180,360+(D129-T$14),D129-T$14)) -> -6.7 | M129: =DEGREES(ACOS((2-ABS((COS(RADIANS(K129))*COS(RADIANS(J129))-COS(RADIANS(V$14))*COS(RADIANS(U$14)))^2+(COS(RADIANS(K129))*SIN(RADIANS(J129))-COS(RADIANS(V$14))*SIN(RADIANS(U$14)))^2+(SIN(RADIANS(K129))-SIN(RADIANS(V$14)))^2))/2)) -> 75.71721911 | N129: =SQRT(G129*G129+125)-W$14 -> -28.43760725 | O129: =ABS(L129)*$T$9+ABS(M129)*$U$9+ABS(N129)*$V$9 -> 107.5048264 | P129: 134_1 | Q129: NGV_1
A130: 144 | B130: APS | C130: Dayt, April Piscids | D130: 30.3 | E130: 7.6 | F130: 3.3 | G130: 28.9 | H130: 1 | I130: 0 | J130: =IF(E130-L130*H130<0,360+E130-L130*H130,IF(E130-L130*H130>=360,E130-L130*H130-360,E130-L130*H130)) -> 8.3 | K130: =F130-L130*I130 -> 3.3 | L130: =IF(D130-T$14>180,360-(D130-T$14),IF(D130-T$14<-180,360+(D130-T$14),D130-T$14)) -> -0.7 | M130: =DEGREES(ACOS((2-ABS((COS(RADIANS(K130))*COS(RADIANS(J130))-COS(RADIANS(V$14))*COS(RADIANS(U$14)))^2+(COS(RADIANS(K130))*SIN(RADIANS(J130))-COS(RADIANS(V$14))*SIN(RADIANS(U$14)))^2+(SIN(RADIANS(K130))-SIN(RADIANS(V$14)))^2))/2)) -> 93.74735323 | N130: =SQRT(G130*G130+125)-W$14 -> -13.63336759 | O130: =ABS(L130)*$T$9+ABS(M130)*$U$9+ABS(N130)*$V$9 -> 107.7307208 | P130: 144_1 | Q130: APS_1
A131: 250 | B131: NOO | C131: November Orionids | D131: 245 | E131: 90.6 | F131: 15.7 | G131: 43.7 | H131: 1 | I131: 0 | J131: =IF(E131-L131*H131<0,360+E131-L131*H131,IF(E131-L131*H131>=360,E131-L131*H131-360,E131-L131*H131)) -> 304.6 | K131: =F131-L131*I131 -> 15.7 | L131: =IF(D131-T$14>180,360-(D131-T$14),IF(D131-T$14<-180,360+(D131-T$14),D131-T$14)) -> 146 | M131: =DEGREES(ACOS((2-ABS((COS(RADIANS(K131))*COS(RADIANS(J131))-COS(RADIANS(V$14))*COS(RADIANS(U$14)))^2+(COS(RADIANS(K131))*SIN(RADIANS(J131))-COS(RADIANS(V$14))*SIN(RADIANS(U$14)))^2+(SIN(RADIANS(K131))-SIN(RADIANS(V$14)))^2))/2)) -> 34.65225321 | N131: =SQRT(G131*G131+125)-W$14 -> 0.486915138 | O131: =ABS(L131)*$T$9+ABS(M131)*$U$9+ABS(N131)*$V$9 -> 108.1391683 | P131: 250_1 | Q131: NOO_1
A132: 88 | B132: ODR | C132: omicron Draconids | D132: 115.5 | E132: 285 | F132: 61.3 | G132: 28.6 | H132: 1 | I132: 0 | J132: =IF(E132-L132*H132<0,360+E132-L132*H132,IF(E132-L132*H132>=360,E132-L132*H132-360,E132-L132*H132)) -> 200.5 | K132: =F132-L132*I132 -> 61.3 | L132: =IF(D132-T$14>180,360-(D132-T$14),IF(D132-T$14<-180,360+(D132-T$14),D132-T$14)) -> 84.5 | M132: =DEGREES(ACOS((2-ABS((COS(RADIANS(K132))*COS(RADIANS(J132))-COS(RADIANS(V$14))*COS(RADIANS(U$14)))^2+(COS(RADIANS(K132))*SIN(RADIANS(J132))-COS(RADIANS(V$14))*SIN(RADIANS(U$14)))^2+(SIN(RADIANS(K132))-SIN(RADIANS(V$14)))^2))/2)) -> 52.13212701 | N132: =SQRT(G132*G132+125)-W$14 -> -13.91296927 | O132: =ABS(L132)*$T$9+ABS(M132)*$U$9+ABS(N132)*$V$9 -> 108.2950963 | P132: 88_1 | Q132: ODR_1
A133: 26 | B133: NDA | C133: North, delta Aquariids | D133: 123.4 | E133: 339.6 | F133: -4.7 | G133: 42.3 | H133: 1 | I133: 0.2 | J133: =IF(E133-L133*H133<0,360+E133-L133*H133,IF(E133-L133*H133>=360,E133-L133*H133-360,E133-L133*H133)) -> 247.2 | K133: =F133-L133*I133 -> -23.18 | L133: =IF(D133-T$14>180,360-(D133-T$14),IF(D133-T$14<-180,360+(D133-T$14),D133-T$14)) -> 92.4 | M133: =DEGREES(ACOS((2-ABS((COS(RADIANS(K133))*COS(RADIANS(J133))-COS(RADIANS(V$14))*COS(RADIANS(U$14)))^2+(COS(RADIANS(K133))*SIN(RADIANS(J133))-COS(RADIANS(V$14))*SIN(RADIANS(U$14)))^2+(SIN(RADIANS(K133))-SIN(RADIANS(V$14)))^2))/2)) -> 61.25923573 | N133: =SQRT(G133*G133+125)-W$14 -> -0.8680231119 | O133: =ABS(L133)*$T$9+ABS(M133)*$U$9+ABS(N133)*$V$9 -> 108.3272588 | P133: 26_3 | Q133: NDA_3
A134: 116 | B134: DEQ | C134: Dayt, epsilon Aquariids | D134: 315.8 | E134: 310.2 | F134: -6.8 | G134: 23.1 | H134: 1 | I134: 0 | J134: =IF(E134-L134*H134<0,360+E134-L134*H134,IF(E134-L134*H134>=360,E134-L134*H134-360,E134-L134*H134)) -> 235 | K134: =F134-L134*I134 -> -6.8 | L134: =IF(D134-T$14>180,360-(D134-T$14),IF(D134-T$14<-180,360+(D134-T$14),D134-T$14)) -> 75.2 | M134: =DEGREES(ACOS((2-ABS((COS(RADIANS(K134))*COS(RADIANS(J134))-COS(RADIANS(V$14))*COS(RADIANS(U$14)))^2+(COS(RADIANS(K134))*SIN(RADIANS(J134))-COS(RADIANS(V$14))*SIN(RADIANS(U$14)))^2+(SIN(RADIANS(K134))-SIN(RADIANS(V$14)))^2))/2)) -> 53.17325657 | N134: =SQRT(G134*G134+125)-W$14 -> -18.95722497 | O134: =ABS(L134)*$T$9+ABS(M134)*$U$9+ABS(N134)*$V$9 -> 109.7304815 | P134: 116_1 | Q134: DEQ_1
A135: 413 | B135: MUL | C135: mu Lyrids | D135: 116 | E135: 273.1 | F135: 39.4 | G135: 23 | H135: 0 | I135: -0.5 | J135: =IF(E135-L135*H135<0,360+E135-L135*H135,IF(E135-L135*H135>=360,E135-L135*H135-360,E135-L135*H135)) -> 273.1 | K135: =F135-L135*I135 -> 81.9 | L135: =IF(D135-T$14>180,360-(D135-T$14),IF(D135-T$14<-180,360+(D135-T$14),D135-T$14)) -> 85 | M135: =DEGREES(ACOS((2-ABS((COS(RADIANS(K135))*COS(RADIANS(J135))-COS(RADIANS(V$14))*COS(RADIANS(U$14)))^2+(COS(RADIANS(K135))*SIN(RADIANS(J135))-COS(RADIANS(V$14))*SIN(RADIANS(U$14)))^2+(SIN(RADIANS(K135))-SIN(RADIANS(V$14)))^2))/2)) -> 48.40308483 | N135: =SQRT(G135*G135+125)-W$14 -> -19.04719933 | O135: =ABS(L135)*$T$9+ABS(M135)*$U$9+ABS(N135)*$V$9 -> 109.9502842 | P135: 413_1 | Q135: MUL_1
A136: 167 | B136: NSS | C136: North, sigma Sagittariids | D136: 92.3 | E136: 293.1 | F136: -14 | G136: 23.2 | H136: 1 | I136: 0 | J136: =IF(E136-L136*H136<0,360+E136-L136*H136,IF(E136-L136*H136>=360,E136-L136*H136-360,E136-L136*H136)) -> 231.8 | K136: =F136-L136*I136 -> -14 | L136: =IF(D136-T$14>180,360-(D136-T$14),IF(D136-T$14<-180,360+(D136-T$14),D136-T$14)) -> 61.3 | M136: =DEGREES(ACOS((2-ABS((COS(RADIANS(K136))*COS(RADIANS(J136))-COS(RADIANS(V$14))*COS(RADIANS(U$14)))^2+(COS(RADIANS(K136))*SIN(RADIANS(J136))-COS(RADIANS(V$14))*SIN(RADIANS(U$14)))^2+(SIN(RADIANS(K136))-SIN(RADIANS(V$14)))^2))/2)) -> 60.78391282 | N136: =SQRT(G136*G136+125)-W$14 -> -18.86717666 | O136: =ABS(L136)*$T$9+ABS(M136)*$U$9+ABS(N136)*$V$9 -> 110.3010895 | P136: 167_1 | Q136: NSS_1
A137: 153 | B137: OCE | C137: South, Dayt, omega Cetids | D137: 46.7 | E137: 22.5 | F137: -3.6 | G137: 36.6 | H137: 1 | I137: 0 | J137: =IF(E137-L137*H137<0,360+E137-L137*H137,IF(E137-L137*H137>=360,E137-L137*H137-360,E137-L137*H137)) -> 6.8 | K137: =F137-L137*I137 -> -3.6 | L137: =IF(D137-T$14>180,360-(D137-T$14),IF(D137-T$14<-180,360+(D137-T$14),D137-T$14)) -> 15.7 | M137: =DEGREES(ACOS((2-ABS((COS(RADIANS(K137))*COS(RADIANS(J137))-COS(RADIANS(V$14))*COS(RADIANS(U$14)))^2+(COS(RADIANS(K137))*SIN(RADIANS(J137))-COS(RADIANS(V$14))*SIN(RADIANS(U$14)))^2+(SIN(RADIANS(K137))-SIN(RADIANS(V$14)))^2))/2)) -> 96.32018661 | N137: =SQRT(G137*G137+125)-W$14 -> -6.351052878 | O137: =ABS(L137)*$T$9+ABS(M137)*$U$9+ABS(N137)*$V$9 -> 110.5212395 | P137: 153_1 | Q137: OCE_1
A138: 392 | B138: NID | C138: November i Draconids | D138: 241 | E138: 200.1 | F138: 64.5 | G138: 43 | H138: 0.72 | I138: -0.31 | J138: =IF(E138-L138*H138<0,360+E138-L138*H138,IF(E138-L138*H138>=360,E138-L138*H138-360,E138-L138*H138)) -> 92.1 | K138: =F138-L138*I138 -> 111 | L138: =IF(D138-T$14>180,360-(D138-T$14),IF(D138-T$14<-180,360+(D138-T$14),D138-T$14)) -> 150 | M138: =DEGREES(ACOS((2-ABS((COS(RADIANS(K138))*COS(RADIANS(J138))-COS(RADIANS(V$14))*COS(RADIANS(U$14)))^2+(COS(RADIANS(K138))*SIN(RADIANS(J138))-COS(RADIANS(V$14))*SIN(RADIANS(U$14)))^2+(SIN(RADIANS(K138))-SIN(RADIANS(V$14)))^2))/2)) -> 35.50112269 | N138: =SQRT(G138*G138+125)-W$14 -> -0.1909032516 | O138: =ABS(L138)*$T$9+ABS(M138)*$U$9+ABS(N138)*$V$9 -> 110.6920259 | P138: 392_1 | Q138: NID_1
A139: 375 | B139: AOE | C139: August omicron Eridanids | D139: 134 | E139: 66.9 | F139: -8.3 | G139: 45 | H139: 1.22 | I139: 0.08 | J139: =IF(E139-L139*H139<0,360+E139-L139*H139,IF(E139-L139*H139>=360,E139-L139*H139-360,E139-L139*H139)) -> 301.24 | K139: =F139-L139*I139 -> -16.54 | L139: =IF(D139-T$14>180,360-(D139-T$14),IF(D139-T$14<-180,360+(D139-T$14),D139-T$14)) -> 103 | M139: =DEGREES(ACOS((2-ABS((COS(RADIANS(K139))*COS(RADIANS(J139))-COS(RADIANS(V$14))*COS(RADIANS(U$14)))^2+(COS(RADIANS(K139))*SIN(RADIANS(J139))-COS(RADIANS(V$14))*SIN(RADIANS(U$14)))^2+(SIN(RADIANS(K139))-SIN(RADIANS(V$14)))^2))/2)) -> 57.47594831 | N139: =SQRT(G139*G139+125)-W$14 -> 1.747469443 | O139: =ABS(L139)*$T$9+ABS(M139)*$U$9+ABS(N139)*$V$9 -> 110.7234178 | P139: 375_1 | Q139: AOE_1
A140: 404 | B140: GUM | C140: gamma Ursae Minorids | D140: 299 | E140: 231.8 | F140: 66.8 | G140: 31.8 | H140: 0.7 | I140: -0.57 | J140: =IF(E140-L140*H140<0,360+E140-L140*H140,IF(E140-L140*H140>=360,E140-L140*H140-360,E140-L140*H140)) -> 167.4 | K140: =F140-L140*I140 -> 119.24 | L140: =IF(D140-T$14>180,360-(D140-T$14),IF(D140-T$14<-180,360+(D140-T$14),D140-T$14)) -> 92 | M140: =DEGREES(ACOS((2-ABS((COS(RADIANS(K140))*COS(RADIANS(J140))-COS(RADIANS(V$14))*COS(RADIANS(U$14)))^2+(COS(RADIANS(K140))*SIN(RADIANS(J140))-COS(RADIANS(V$14))*SIN(RADIANS(U$14)))^2+(SIN(RADIANS(K140))-SIN(RADIANS(V$14)))^2))/2)) -> 54.44175335 | N140: =SQRT(G140*G140+125)-W$14 -> -10.91246378 | O140: =ABS(L140)*$T$9+ABS(M140)*$U$9+ABS(N140)*$V$9 -> 111.3542171 | P140: 404_1 | Q140: GUM_1
A141: 104 | B141: GBO | C141: gamma Bootids | D141: 321 | E141: 222.4 | F141: 39.1 | G141: 50.3 | H141: 1.06 | I141: -0.42 | J141: =IF(E141-L141*H141<0,360+E141-L141*H141,IF(E141-L141*H141>=360,E141-L141*H141-360,E141-L141*H141)) -> 148.2 | K141: =F141-L141*I141 -> 68.5 | L141: =IF(D141-T$14>180,360-(D141-T$14),IF(D141-T$14<-180,360+(D141-T$14),D141-T$14)) -> 70 | M141: =DEGREES(ACOS((2-ABS((COS(RADIANS(K141))*COS(RADIANS(J141))-COS(RADIANS(V$14))*COS(RADIANS(U$14)))^2+(COS(RADIANS(K141))*SIN(RADIANS(J141))-COS(RADIANS(V$14))*SIN(RADIANS(U$14)))^2+(SIN(RADIANS(K141))-SIN(RADIANS(V$14)))^2))/2)) -> 69.80026572 | N141: =SQRT(G141*G141+125)-W$14 -> 6.906942404 | O141: =ABS(L141)*$T$9+ABS(M141)*$U$9+ABS(N141)*$V$9 -> 111.7072081 | P141: 104_1 | Q141: GBO_1
A142: 366 | B142: JBP | C142: July beta Pegasids | D142: 100 | E142: 349.1 | F142: 34.4 | G142: 27.8 | H142: 0 | I142: 0 | J142: =IF(E142-L142*H142<0,360+E142-L142*H142,IF(E142-L142*H142>=360,E142-L142*H142-360,E142-L142*H142)) -> 349.1 | K142: =F142-L142*I142 -> 34.4 | L142: =IF(D142-T$14>180,360-(D142-T$14),IF(D142-T$14<-180,360+(D142-T$14),D142-T$14)) -> 69 | M142: =DEGREES(ACOS((2-ABS((COS(RADIANS(K142))*COS(RADIANS(J142))-COS(RADIANS(V$14))*COS(RADIANS(U$14)))^2+(COS(RADIANS(K142))*SIN(RADIANS(J142))-COS(RADIANS(V$14))*SIN(RADIANS(U$14)))^2+(SIN(RADIANS(K142))-SIN(RADIANS(V$14)))^2))/2)) -> 62.56464342 | N142: =SQRT(G142*G142+125)-W$14 -> -14.65664466 | O142: =ABS(L142)*$T$9+ABS(M142)*$U$9+ABS(N142)*$V$9 -> 111.7212881 | P142: 366_1 | Q142: JBP_1
A143: 219 | B143: SAR | C143: September mu Arietids | D143: 179 | E143: 28.5 | F143: 18.6 | G143: 36.3 | H143: 1 | I143: 0 | J143: =IF(E143-L143*H143<0,360+E143-L143*H143,IF(E143-L143*H143>=360,E143-L143*H143-360,E143-L143*H143)) -> 240.5 | K143: =F143-L143*I143 -> 18.6 | L143: =IF(D143-T$14>180,360-(D143-T$14),IF(D143-T$14<-180,360+(D143-T$14),D143-T$14)) -> 148 | M143: =DEGREES(ACOS((2-ABS((COS(RADIANS(K143))*COS(RADIANS(J143))-COS(RADIANS(V$14))*COS(RADIANS(U$14)))^2+(COS(RADIANS(K143))*SIN(RADIANS(J143))-COS(RADIANS(V$14))*SIN(RADIANS(U$14)))^2+(SIN(RADIANS(K143))-SIN(RADIANS(V$14)))^2))/2)) -> 31.48471176 | N143: =SQRT(G143*G143+125)-W$14 -> -6.637863788 | O143: =ABS(L143)*$T$9+ABS(M143)*$U$9+ABS(N143)*$V$9 -> 112.1225755 | P143: 219_1 | Q143: SAR_1
A144: 417 | B144: ETT | C144: eta Taurids | D144: 211 | E144: 55.5 | F144: 23.7 | G144: 47 | H144: 0.9 | I144: 0 | J144: =IF(E144-L144*H144<0,360+E144-L144*H144,IF(E144-L144*H144>=360,E144-L144*H144-360,E144-L144*H144)) -> 253.5 | K144: =F144-L144*I144 -> 23.7 | L144: =IF(D144-T$14>180,360-(D144-T$14),IF(D144-T$14<-180,360+(D144-T$14),D144-T$14)) -> 180 | M144: =DEGREES(ACOS((2-ABS((COS(RADIANS(K144))*COS(RADIANS(J144))-COS(RADIANS(V$14))*COS(RADIANS(U$14)))^2+(COS(RADIANS(K144))*SIN(RADIANS(J144))-COS(RADIANS(V$14))*SIN(RADIANS(U$14)))^2+(SIN(RADIANS(K144))-SIN(RADIANS(V$14)))^2))/2)) -> 18.6259617 | N144: =SQRT(G144*G144+125)-W$14 -> 3.690866282 | O144: =ABS(L144)*$T$9+ABS(M144)*$U$9+ABS(N144)*$V$9 -> 112.316828 | P144: 417_1 | Q144: ETT_1
A145: 193 | B145: ZAR | C145: zeta Arietids | D145: 146 | E145: 49.7 | F145: 14.2 | G145: 70.1 | H145: 1 | I145: 0 | J145: =IF(E145-L145*H145<0,360+E145-L145*H145,IF(E145-L145*H145>=360,E145-L145*H145-360,E145-L145*H145)) -> 294.7 | K145: =F145-L145*I145 -> 14.2 | L145: =IF(D145-T$14>180,360-(D145-T$14),IF(D145-T$14<-180,360+(D145-T$14),D145-T$14)) -> 115 | M145: =DEGREES(ACOS((2-ABS((COS(RADIANS(K145))*COS(RADIANS(J145))-COS(RADIANS(V$14))*COS(RADIANS(U$14)))^2+(COS(RADIANS(K145))*SIN(RADIANS(J145))-COS(RADIANS(V$14))*SIN(RADIANS(U$14)))^2+(SIN(RADIANS(K145))-SIN(RADIANS(V$14)))^2))/2)) -> 28.47994097 | N145: =SQRT(G145*G145+125)-W$14 -> 26.3653615 | O145: =ABS(L145)*$T$9+ABS(M145)*$U$9+ABS(N145)*$V$9 -> 112.3453025 | P145: 193_1 | Q145: ZAR_1
A146: 10 | B146: QUA | C146: Quadrantids | D146: 283.28 | E146: 230 | F146: 49.5 | G146: 41.36 | H146: 0.4 | I146: -0.2 | J146: =IF(E146-L146*H146<0,360+E146-L146*H146,IF(E146-L146*H146>=360,E146-L146*H146-360,E146-L146*H146)) -> 186.912 | K146: =F146-L146*I146 -> 71.044 | L146: =IF(D146-T$14>180,360-(D146-T$14),IF(D146-T$14<-180,360+(D146-T$14),D146-T$14)) -> 107.72 | M146: =DEGREES(ACOS((2-ABS((COS(RADIANS(K146))*COS(RADIANS(J146))-COS(RADIANS(V$14))*COS(RADIANS(U$14)))^2+(COS(RADIANS(K146))*SIN(RADIANS(J146))-COS(RADIANS(V$14))*SIN(RADIANS(U$14)))^2+(SIN(RADIANS(K146))-SIN(RADIANS(V$14)))^2))/2)) -> 56.8329139 | N146: =SQRT(G146*G146+125)-W$14 -> -1.776141476 | O146: =ABS(L146)*$T$9+ABS(M146)*$U$9+ABS(N146)*$V$9 -> 112.4690554 | P146: 10_1 | Q146: QUA_1
A147: 286 | B147: FTA | C147: omega Taurids | D147: 240.2 | E147: 58 | F147: 16.8 | G147: 21.7 | H147: 1 | I147: 0 | J147: =IF(E147-L147*H147<0,360+E147-L147*H147,IF(E147-L147*H147>=360,E147-L147*H147-360,E147-L147*H147)) -> 267.2 | K147: =F147-L147*I147 -> 16.8 | L147: =IF(D147-T$14>180,360-(D147-T$14),IF(D147-T$14<-180,360+(D147-T$14),D147-T$14)) -> 150.8 | M147: =DEGREES(ACOS((2-ABS((COS(RADIANS(K147))*COS(RADIANS(J147))-COS(RADIANS(V$14))*COS(RADIANS(U$14)))^2+(COS(RADIANS(K147))*SIN(RADIANS(J147))-COS(RADIANS(V$14))*SIN(RADIANS(U$14)))^2+(SIN(RADIANS(K147))-SIN(RADIANS(V$14)))^2))/2)) -> 17.16288382 | N147: =SQRT(G147*G147+125)-W$14 -> -20.20976479 | O147: =ABS(L147)*$T$9+ABS(M147)*$U$9+ABS(N147)*$V$9 -> 112.7726486 | P147: 286_1 | Q147: FTA_1
A148: 514 | B148: OMC | C148: omega Capricornids | D148: 66 | E148: 315 | F148: -30 | G148: 64.6 | H148: 1 | I148: 0.3 | J148: =IF(E148-L148*H148<0,360+E148-L148*H148,IF(E148-L148*H148>=360,E148-L148*H148-360,E148-L148*H148)) -> 280 | K148: =F148-L148*I148 -> -40.5 | L148: =IF(D148-T$14>180,360-(D148-T$14),IF(D148-T$14<-180,360+(D148-T$14),D148-T$14)) -> 35 | M148: =DEGREES(ACOS((2-ABS((COS(RADIANS(K148))*COS(RADIANS(J148))-COS(RADIANS(V$14))*COS(RADIANS(U$14)))^2+(COS(RADIANS(K148))*SIN(RADIANS(J148))-COS(RADIANS(V$14))*SIN(RADIANS(U$14)))^2+(SIN(RADIANS(K148))-SIN(RADIANS(V$14)))^2))/2)) -> 74.40504385 | N148: =SQRT(G148*G148+125)-W$14 -> 20.93973084 | O148: =ABS(L148)*$T$9+ABS(M148)*$U$9+ABS(N148)*$V$9 -> 112.8447747 | P148: 514_1 | Q148: OMC_1
A149: 194 | B149: UCE | C149: upsilon Cetids | D149: 146 | E149: 38.6 | F149: -2.8 | G149: 61 | H149: 1 | I149: 0 | J149: =IF(E149-L149*H149<0,360+E149-L149*H149,IF(E149-L149*H149>=360,E149-L149*H149-360,E149-L149*H149)) -> 283.6 | K149: =F149-L149*I149 -> -2.8 | L149: =IF(D149-T$14>180,360-(D149-T$14),IF(D149-T$14<-180,360+(D149-T$14),D149-T$14)) -> 115 | M149: =DEGREES(ACOS((2-ABS((COS(RADIANS(K149))*COS(RADIANS(J149))-COS(RADIANS(V$14))*COS(RADIANS(U$14)))^2+(COS(RADIANS(K149))*SIN(RADIANS(J149))-COS(RADIANS(V$14))*SIN(RADIANS(U$14)))^2+(SIN(RADIANS(K149))-SIN(RADIANS(V$14)))^2))/2)) -> 38.02634067 | N149: =SQRT(G149*G149+125)-W$14 -> 17.3955039 | O149: =ABS(L149)*$T$9+ABS(M149)*$U$9+ABS(N149)*$V$9 -> 112.9218446 | P149: 194_1 | Q149: UCE_1
A150: 206 | B150: AUR | C150: Aurigids | D150: 158.7 | E150: 89.8 | F150: 38.7 | G150: 65.7 | H150: 1.35 | I150: 0.25 | J150: =IF(E150-L150*H150<0,360+E150-L150*H150,IF(E150-L150*H150>=360,E150-L150*H150-360,E150-L150*H150)) -> 277.405 | K150: =F150-L150*I150 -> 6.775 | L150: =IF(D150-T$14>180,360-(D150-T$14),IF(D150-T$14<-180,360+(D150-T$14),D150-T$14)) -> 127.7 | M150: =DEGREES(ACOS((2-ABS((COS(RADIANS(K150))*COS(RADIANS(J150))-COS(RADIANS(V$14))*COS(RADIANS(U$14)))^2+(COS(RADIANS(K150))*SIN(RADIANS(J150))-COS(RADIANS(V$14))*SIN(RADIANS(U$14)))^2+(SIN(RADIANS(K150))-SIN(RADIANS(V$14)))^2))/2)) -> 27.2610462 | N150: =SQRT(G150*G150+125)-W$14 -> 22.02388162 | O150: =ABS(L150)*$T$9+ABS(M150)*$U$9+ABS(N150)*$V$9 -> 113.1349278 | P150: 206_1 | Q150: AUR_1
A151: 427 | B151: FED | C151: February eta Draconids | D151: 315.11 | E151: 239.92 | F151: 62.49 | G151: 35.6 | H151: 1 | I151: 0 | J151: =IF(E151-L151*H151<0,360+E151-L151*H151,IF(E151-L151*H151>=360,E151-L151*H151-360,E151-L151*H151)) -> 164.03 | K151: =F151-L151*I151 -> 62.49 | L151: =IF(D151-T$14>180,360-(D151-T$14),IF(D151-T$14<-180,360+(D151-T$14),D151-T$14)) -> 75.89 | M151: =DEGREES(ACOS((2-ABS((COS(RADIANS(K151))*COS(RADIANS(J151))-COS(RADIANS(V$14))*COS(RADIANS(U$14)))^2+(COS(RADIANS(K151))*SIN(RADIANS(J151))-COS(RADIANS(V$14))*SIN(RADIANS(U$14)))^2+(SIN(RADIANS(K151))-SIN(RADIANS(V$14)))^2))/2)) -> 68.08339815 | N151: =SQRT(G151*G151+125)-W$14 -> -7.306282628 | O151: =ABS(L151)*$T$9+ABS(M151)*$U$9+ABS(N151)*$V$9 -> 113.3346808 | P151: 427_1 | Q151: FED_1
A152: 324 | B152: EPR | C152: epsilon Perseids | D152: 95.5 | E152: 58.2 | F152: 37.9 | G152: 44.8 | H152: 0.78 | I152: 0.15 | J152: =IF(E152-L152*H152<0,360+E152-L152*H152,IF(E152-L152*H152>=360,E152-L152*H152-360,E152-L152*H152)) -> 7.89 | K152: =F152-L152*I152 -> 28.225 | L152: =IF(D152-T$14>180,360-(D152-T$14),IF(D152-T$14<-180,360+(D152-T$14),D152-T$14)) -> 64.5 | M152: =DEGREES(ACOS((2-ABS((COS(RADIANS(K152))*COS(RADIANS(J152))-COS(RADIANS(V$14))*COS(RADIANS(U$14)))^2+(COS(RADIANS(K152))*SIN(RADIANS(J152))-COS(RADIANS(V$14))*SIN(RADIANS(U$14)))^2+(SIN(RADIANS(K152))-SIN(RADIANS(V$14)))^2))/2)) -> 79.59923101 | N152: =SQRT(G152*G152+125)-W$14 -> 1.553395634 | O152: =ABS(L152)*$T$9+ABS(M152)*$U$9+ABS(N152)*$V$9 -> 113.4026266 | P152: 324_1 | Q152: EPR_1
A153: 169 | B153: SCU | C153: Scutids | D153: 94.9 | E153: 281.7 | F153: 0.9 | G153: 18.9 | H153: 1 | I153: 0 | J153: =IF(E153-L153*H153<0,360+E153-L153*H153,IF(E153-L153*H153>=360,E153-L153*H153-360,E153-L153*H153)) -> 217.8 | K153: =F153-L153*I153 -> 0.9 | L153: =IF(D153-T$14>180,360-(D153-T$14),IF(D153-T$14<-180,360+(D153-T$14),D153-T$14)) -> 63.9 | M153: =DEGREES(ACOS((2-ABS((COS(RADIANS(K153))*COS(RADIANS(J153))-COS(RADIANS(V$14))*COS(RADIANS(U$14)))^2+(COS(RADIANS(K153))*SIN(RADIANS(J153))-COS(RADIANS(V$14))*SIN(RADIANS(U$14)))^2+(SIN(RADIANS(K153))-SIN(RADIANS(V$14)))^2))/2)) -> 59.9267752 | N153: =SQRT(G153*G153+125)-W$14 -> -22.66134254 | O153: =ABS(L153)*$T$9+ABS(M153)*$U$9+ABS(N153)*$V$9 -> 114.5381177 | P153: 169_1 | Q153: SCU_1
A154: 148 | B154: MLV | C154: May lambda Virginids | D154: 45 | E154: 217.7 | F154: -31.2 | G154: 25.6 | H154: 1 | I154: 0 | J154: =IF(E154-L154*H154<0,360+E154-L154*H154,IF(E154-L154*H154>=360,E154-L154*H154-360,E154-L154*H154)) -> 203.7 | K154: =F154-L154*I154 -> -31.2 | L154: =IF(D154-T$14>180,360-(D154-T$14),IF(D154-T$14<-180,360+(D154-T$14),D154-T$14)) -> 14 | M154: =DEGREES(ACOS((2-ABS((COS(RADIANS(K154))*COS(RADIANS(J154))-COS(RADIANS(V$14))*COS(RADIANS(U$14)))^2+(COS(RADIANS(K154))*SIN(RADIANS(J154))-COS(RADIANS(V$14))*SIN(RADIANS(U$14)))^2+(SIN(RADIANS(K154))-SIN(RADIANS(V$14)))^2))/2)) -> 91.00653692 | N154: =SQRT(G154*G154+125)-W$14 -> -16.68569866 | O154: =ABS(L154)*$T$9+ABS(M154)*$U$9+ABS(N154)*$V$9 -> 114.6922356 | P154: 148_1 | Q154: MLV_1
A155: 264 | B155: XCE | C155: xi Cetids | D155: 286.3 | E155: 37 | F155: 8 | G155: 7.7 | H155: 1 | I155: 0 | J155: =IF(E155-L155*H155<0,360+E155-L155*H155,IF(E155-L155*H155>=360,E155-L155*H155-360,E155-L155*H155)) -> 292.3 | K155: =F155-L155*I155 -> 8 | L155: =IF(D155-T$14>180,360-(D155-T$14),IF(D155-T$14<-180,360+(D155-T$14),D155-T$14)) -> 104.7 | M155: =DEGREES(ACOS((2-ABS((COS(RADIANS(K155))*COS(RADIANS(J155))-COS(RADIANS(V$14))*COS(RADIANS(U$14)))^2+(COS(RADIANS(K155))*SIN(RADIANS(J155))-COS(RADIANS(V$14))*SIN(RADIANS(U$14)))^2+(SIN(RADIANS(K155))-SIN(RADIANS(V$14)))^2))/2)) -> 31.8668954 | N155: =SQRT(G155*G155+125)-W$14 -> -31.04527774 | O155: =ABS(L155)*$T$9+ABS(M155)*$U$9+ABS(N155)*$V$9 -> 115.2621731 | P155: 264_1 | Q155: XCE_1
A156: 153 | B156: OCE | C156: South, Dayt, omega Cetids | D156: 46.7 | E156: 19 | F156: -7 | G156: 36.5 | H156: 0.8 | I156: 0.38 | J156: =IF(E156-L156*H156<0,360+E156-L156*H156,IF(E156-L156*H156>=360,E156-L156*H156-360,E156-L156*H156)) -> 6.44 | K156: =F156-L156*I156 -> -12.966 | L156: =IF(D156-T$14>180,360-(D156-T$14),IF(D156-T$14<-180,360+(D156-T$14),D156-T$14)) -> 15.7 | M156: =DEGREES(ACOS((2-ABS((COS(RADIANS(K156))*COS(RADIANS(J156))-COS(RADIANS(V$14))*COS(RADIANS(U$14)))^2+(COS(RADIANS(K156))*SIN(RADIANS(J156))-COS(RADIANS(V$14))*SIN(RADIANS(U$14)))^2+(SIN(RADIANS(K156))-SIN(RADIANS(V$14)))^2))/2)) -> 101.093091 | N156: =SQRT(G156*G156+125)-W$14 -> -6.446679041 | O156: =ABS(L156)*$T$9+ABS(M156)*$U$9+ABS(N156)*$V$9 -> 115.38977 | P156: 153_2 | Q156: OCE_2
A157: 26 | B157: NDA | C157: North, delta Aquariids | D157: 140 | E157: 346.4 | F157: 1.4 | G157: 38.3 | H157: 0.74 | I157: 0.22 | J157: =IF(E157-L157*H157<0,360+E157-L157*H157,IF(E157-L157*H157>=360,E157-L157*H157-360,E157-L157*H157)) -> 265.74 | K157: =F157-L157*I157 -> -22.58 | L157: =IF(D157-T$14>180,360-(D157-T$14),IF(D157-T$14<-180,360+(D157-T$14),D157-T$14)) -> 109 | M157: =DEGREES(ACOS((2-ABS((COS(RADIANS(K157))*COS(RADIANS(J157))-COS(RADIANS(V$14))*COS(RADIANS(U$14)))^2+(COS(RADIANS(K157))*SIN(RADIANS(J157))-COS(RADIANS(V$14))*SIN(RADIANS(U$14)))^2+(SIN(RADIANS(K157))-SIN(RADIANS(V$14)))^2))/2)) -> 56.35736204 | N157: =SQRT(G157*G157+125)-W$14 -> -4.722126822 | O157: =ABS(L157)*$T$9+ABS(M157)*$U$9+ABS(N157)*$V$9 -> 115.5794889 | P157: 26_4 | Q157: NDA_4
A158: 69 | B158: SSG | C158: South, mu Sagittariids | D158: 78 | E158: 276.4 | F158: -27.5 | G158: 19.6 | H158: 0.73 | I158: 0.07 | J158: =IF(E158-L158*H158<0,360+E158-L158*H158,IF(E158-L158*H158>=360,E158-L158*H158-360,E158-L158*H158)) -> 242.09 | K158: =F158-L158*I158 -> -30.79 | L158: =IF(D158-T$14>180,360-(D158-T$14),IF(D158-T$14<-180,360+(D158-T$14),D158-T$14)) -> 47 | M158: =DEGREES(ACOS((2-ABS((COS(RADIANS(K158))*COS(RADIANS(J158))-COS(RADIANS(V$14))*COS(RADIANS(U$14)))^2+(COS(RADIANS(K158))*SIN(RADIANS(J158))-COS(RADIANS(V$14))*SIN(RADIANS(U$14)))^2+(SIN(RADIANS(K158))-SIN(RADIANS(V$14)))^2))/2)) -> 70.06924632 | N158: =SQRT(G158*G158+125)-W$14 -> -22.05604903 | O158: =ABS(L158)*$T$9+ABS(M158)*$U$9+ABS(N158)*$V$9 -> 115.6252954 | P158: 69_1 | Q158: SSG_1
A159: 115 | B159: DSC | C159: Dayt, Sagittariids-Capricornids | D159: 312.5 | E159: 316.7 | F159: -20.8 | G159: 28.9 | H159: 1 | I159: 0 | J159: =IF(E159-L159*H159<0,360+E159-L159*H159,IF(E159-L159*H159>=360,E159-L159*H159-360,E159-L159*H159)) -> 238.2 | K159: =F159-L159*I159 -> -20.8 | L159: =IF(D159-T$14>180,360-(D159-T$14),IF(D159-T$14<-180,360+(D159-T$14),D159-T$14)) -> 78.5 | M159: =DEGREES(ACOS((2-ABS((COS(RADIANS(K159))*COS(RADIANS(J159))-COS(RADIANS(V$14))*COS(RADIANS(U$14)))^2+(COS(RADIANS(K159))*SIN(RADIANS(J159))-COS(RADIANS(V$14))*SIN(RADIANS(U$14)))^2+(SIN(RADIANS(K159))-SIN(RADIANS(V$14)))^2))/2)) -> 62.94800639 | N159: =SQRT(G159*G159+125)-W$14 -> -13.63336759 | O159: =ABS(L159)*$T$9+ABS(M159)*$U$9+ABS(N159)*$V$9 -> 115.831374 | P159: 115_2 | Q159: DSC_2
A160: 179 | B160: SCA | C160: sigma Capricornids | D160: 110 | E160: 311.1 | F160: -14.5 | G160: 26.9 | H160: 1 | I160: 0 | J160: =IF(E160-L160*H160<0,360+E160-L160*H160,IF(E160-L160*H160>=360,E160-L160*H160-360,E160-L160*H160)) -> 232.1 | K160: =F160-L160*I160 -> -14.5 | L160: =IF(D160-T$14>180,360-(D160-T$14),IF(D160-T$14<-180,360+(D160-T$14),D160-T$14)) -> 79 | M160: =DEGREES(ACOS((2-ABS((COS(RADIANS(K160))*COS(RADIANS(J160))-COS(RADIANS(V$14))*COS(RADIANS(U$14)))^2+(COS(RADIANS(K160))*SIN(RADIANS(J160))-COS(RADIANS(V$14))*SIN(RADIANS(U$14)))^2+(SIN(RADIANS(K160))-SIN(RADIANS(V$14)))^2))/2)) -> 61.00341322 | N160: =SQRT(G160*G160+125)-W$14 -> -15.48971162 | O160: =ABS(L160)*$T$9+ABS(M160)*$U$9+ABS(N160)*$V$9 -> 115.9931248 | P160: 179_1 | Q160: SCA_1
A161: 168 | B161: SSS | C161: Southern sigma Sagittariids | D161: 87 | E161: 278.6 | F161: -25.3 | G161: 29.3 | H161: 1 | I161: 0 | J161: =IF(E161-L161*H161<0,360+E161-L161*H161,IF(E161-L161*H161>=360,E161-L161*H161-360,E161-L161*H161)) -> 222.6 | K161: =F161-L161*I161 -> -25.3 | L161: =IF(D161-T$14>180,360-(D161-T$14),IF(D161-T$14<-180,360+(D161-T$14),D161-T$14)) -> 56 | M161: =DEGREES(ACOS((2-ABS((COS(RADIANS(K161))*COS(RADIANS(J161))-COS(RADIANS(V$14))*COS(RADIANS(U$14)))^2+(COS(RADIANS(K161))*SIN(RADIANS(J161))-COS(RADIANS(V$14))*SIN(RADIANS(U$14)))^2+(SIN(RADIANS(K161))-SIN(RADIANS(V$14)))^2))/2)) -> 75.00532013 | N161: =SQRT(G161*G161+125)-W$14 -> -13.25997891 | O161: =ABS(L161)*$T$9+ABS(M161)*$U$9+ABS(N161)*$V$9 -> 116.265299 | P161: 168_1 | Q161: SSS_1
A162: 244 | B162: PAR | C162: psi Aurigids | D162: 227 | E162: 94 | F162: 50 | G162: 56.7 | H162: 1 | I162: 0 | J162: =IF(E162-L162*H162<0,360+E162-L162*H162,IF(E162-L162*H162>=360,E162-L162*H162-360,E162-L162*H162)) -> 290 | K162: =F162-L162*I162 -> 50 | L162: =IF(D162-T$14>180,360-(D162-T$14),IF(D162-T$14<-180,360+(D162-T$14),D162-T$14)) -> 164 | M162: =DEGREES(ACOS((2-ABS((COS(RADIANS(K162))*COS(RADIANS(J162))-COS(RADIANS(V$14))*COS(RADIANS(U$14)))^2+(COS(RADIANS(K162))*SIN(RADIANS(J162))-COS(RADIANS(V$14))*SIN(RADIANS(U$14)))^2+(SIN(RADIANS(K162))-SIN(RADIANS(V$14)))^2))/2)) -> 21.34326097 | N162: =SQRT(G162*G162+125)-W$14 -> 13.17115839 | O162: =ABS(L162)*$T$9+ABS(M162)*$U$9+ABS(N162)*$V$9 -> 116.5144194 | P162: 244_1 | Q162: PAR_1
A163: 419 | B163: DAC | C163: Dayt, April Cetids | D163: 29.7 | E163: 13.6 | F163: -2.7 | G163: 28.9 | H163: 1 | I163: 0 | J163: =IF(E163-L163*H163<0,360+E163-L163*H163,IF(E163-L163*H163>=360,E163-L163*H163-360,E163-L163*H163)) -> 14.9 | K163: =F163-L163*I163 -> -2.7 | L163: =IF(D163-T$14>180,360-(D163-T$14),IF(D163-T$14<-180,360+(D163-T$14),D163-T$14)) -> -1.3 | M163: =DEGREES(ACOS((2-ABS((COS(RADIANS(K163))*COS(RADIANS(J163))-COS(RADIANS(V$14))*COS(RADIANS(U$14)))^2+(COS(RADIANS(K163))*SIN(RADIANS(J163))-COS(RADIANS(V$14))*SIN(RADIANS(U$14)))^2+(SIN(RADIANS(K163))-SIN(RADIANS(V$14)))^2))/2)) -> 102.5694026 | N163: =SQRT(G163*G163+125)-W$14 -> -13.63336759 | O163: =ABS(L163)*$T$9+ABS(M163)*$U$9+ABS(N163)*$V$9 -> 116.8527702 | P163: 419_1 | Q163: DAC_1
A164: 3 | B164: SIA | C164: South, iota Aquariids | D164: 131.7 | E164: 339 | F164: -15.6 | G164: 34.8 | H164: 1 | I164: 0 | J164: =IF(E164-L164*H164<0,360+E164-L164*H164,IF(E164-L164*H164>=360,E164-L164*H164-360,E164-L164*H164)) -> 238.3 | K164: =F164-L164*I164 -> -15.6 | L164: =IF(D164-T$14>180,360-(D164-T$14),IF(D164-T$14<-180,360+(D164-T$14),D164-T$14)) -> 100.7 | M164: =DEGREES(ACOS((2-ABS((COS(RADIANS(K164))*COS(RADIANS(J164))-COS(RADIANS(V$14))*COS(RADIANS(U$14)))^2+(COS(RADIANS(K164))*SIN(RADIANS(J164))-COS(RADIANS(V$14))*SIN(RADIANS(U$14)))^2+(SIN(RADIANS(K164))-SIN(RADIANS(V$14)))^2))/2)) -> 58.47526514 | N164: =SQRT(G164*G164+125)-W$14 -> -8.068742098 | O164: =ABS(L164)*$T$9+ABS(M164)*$U$9+ABS(N164)*$V$9 -> 116.8940072 | P164: 3_1 | Q164: SIA_1
A165: 276 | B165: ADR | C165: alpha Draconids | D165: 80.5 | E165: 220 | F165: 66.4 | G165: 11.6 | H165: 1 | I165: 0 | J165: =IF(E165-L165*H165<0,360+E165-L165*H165,IF(E165-L165*H165>=360,E165-L165*H165-360,E165-L165*H165)) -> 170.5 | K165: =F165-L165*I165 -> 66.4 | L165: =IF(D165-T$14>180,360-(D165-T$14),IF(D165-T$14<-180,360+(D165-T$14),D165-T$14)) -> 49.5 | M165: =DEGREES(ACOS((2-ABS((COS(RADIANS(K165))*COS(RADIANS(J165))-COS(RADIANS(V$14))*COS(RADIANS(U$14)))^2+(COS(RADIANS(K165))*SIN(RADIANS(J165))-COS(RADIANS(V$14))*SIN(RADIANS(U$14)))^2+(SIN(RADIANS(K165))-SIN(RADIANS(V$14)))^2))/2)) -> 63.80025159 | N165: =SQRT(G165*G165+125)-W$14 -> -28.50975714 | O165: =ABS(L165)*$T$9+ABS(M165)*$U$9+ABS(N165)*$V$9 -> 117.0600087 | P165: 276_1 | Q165: ADR_1
A166: 156 | B166: SMA | C166: South, Dayt, May Arietids | D166: 55 | E166: 33.7 | F166: 9.2 | G166: 28.9 | H166: 1 | I166: 0 | J166: =IF(E166-L166*H166<0,360+E166-L166*H166,IF(E166-L166*H166>=360,E166-L166*H166-360,E166-L166*H166)) -> 9.7 | K166: =F166-L166*I166 -> 9.2 | L166: =IF(D166-T$14>180,360-(D166-T$14),IF(D166-T$14<-180,360+(D166-T$14),D166-T$14)) -> 24 | M166: =DEGREES(ACOS((2-ABS((COS(RADIANS(K166))*COS(RADIANS(J166))-COS(RADIANS(V$14))*COS(RADIANS(U$14)))^2+(COS(RADIANS(K166))*SIN(RADIANS(J166))-COS(RADIANS(V$14))*SIN(RADIANS(U$14)))^2+(SIN(RADIANS(K166))-SIN(RADIANS(V$14)))^2))/2)) -> 91.5895755 | N166: =SQRT(G166*G166+125)-W$14 -> -13.63336759 | O166: =ABS(L166)*$T$9+ABS(M166)*$U$9+ABS(N166)*$V$9 -> 117.2229431 | P166: 156_1 | Q166: SMA_1
A167: 117 | B167: DCQ | C167: Dayt, c Aquariids | D167: 325 | E167: 346.7 | F167: -23.7 | G167: 14.1 | H167: 1 | I167: 0 | J167: =IF(E167-L167*H167<0,360+E167-L167*H167,IF(E167-L167*H167>=360,E167-L167*H167-360,E167-L167*H167)) -> 280.7 | K167: =F167-L167*I167 -> -23.7 | L167: =IF(D167-T$14>180,360-(D167-T$14),IF(D167-T$14<-180,360+(D167-T$14),D167-T$14)) -> 66 | M167: =DEGREES(ACOS((2-ABS((COS(RADIANS(K167))*COS(RADIANS(J167))-COS(RADIANS(V$14))*COS(RADIANS(U$14)))^2+(COS(RADIANS(K167))*SIN(RADIANS(J167))-COS(RADIANS(V$14))*SIN(RADIANS(U$14)))^2+(SIN(RADIANS(K167))-SIN(RADIANS(V$14)))^2))/2)) -> 57.85268721 | N167: =SQRT(G167*G167+125)-W$14 -> -26.62590159 | O167: =ABS(L167)*$T$9+ABS(M167)*$U$9+ABS(N167)*$V$9 -> 117.4785888 | P167: 117_1 | Q167: DCQ_1
A168: 277 | B168: GCA | C168: gamma Camelopardalids | D168: 109.9 | E168: 88.7 | F168: 79 | G168: 22.7 | H168: 1 | I168: 0 | J168: =IF(E168-L168*H168<0,360+E168-L168*H168,IF(E168-L168*H168>=360,E168-L168*H168-360,E168-L168*H168)) -> 9.8 | K168: =F168-L168*I168 -> 79 | L168: =IF(D168-T$14>180,360-(D168-T$14),IF(D168-T$14<-180,360+(D168-T$14),D168-T$14)) -> 78.9 | M168: =DEGREES(ACOS((2-ABS((COS(RADIANS(K168))*COS(RADIANS(J168))-COS(RADIANS(V$14))*COS(RADIANS(U$14)))^2+(COS(RADIANS(K168))*SIN(RADIANS(J168))-COS(RADIANS(V$14))*SIN(RADIANS(U$14)))^2+(SIN(RADIANS(K168))-SIN(RADIANS(V$14)))^2))/2)) -> 58.72794903 | N168: =SQRT(G168*G168+125)-W$14 -> -19.31667077 | O168: =ABS(L168)*$T$9+ABS(M168)*$U$9+ABS(N168)*$V$9 -> 117.4946198 | P168: 277_1 | Q168: GCA_1
A169: 161 | B169: SSC | C169: South, omega Scorpiids | D169: 70 | E169: 243.7 | F169: -22.1 | G169: 23 | H169: 0.9 | I169: -0.1 | J169: =IF(E169-L169*H169<0,360+E169-L169*H169,IF(E169-L169*H169>=360,E169-L169*H169-360,E169-L169*H169)) -> 208.6 | K169: =F169-L169*I169 -> -18.2 | L169: =IF(D169-T$14>180,360-(D169-T$14),IF(D169-T$14<-180,360+(D169-T$14),D169-T$14)) -> 39 | M169: =DEGREES(ACOS((2-ABS((COS(RADIANS(K169))*COS(RADIANS(J169))-COS(RADIANS(V$14))*COS(RADIANS(U$14)))^2+(COS(RADIANS(K169))*SIN(RADIANS(J169))-COS(RADIANS(V$14))*SIN(RADIANS(U$14)))^2+(SIN(RADIANS(K169))-SIN(RADIANS(V$14)))^2))/2)) -> 79.20779612 | N169: =SQRT(G169*G169+125)-W$14 -> -19.04719933 | O169: =ABS(L169)*$T$9+ABS(M169)*$U$9+ABS(N169)*$V$9 -> 117.7549954 | P169: 161_1 | Q169: SSC_1
A170: 412 | B170: FOP | C170: f Ophiuchids | D170: 98 | E170: 266.4 | F170: 8.5 | G170: 21 | H170: 4 | I170: -0.6 | J170: =IF(E170-L170*H170<0,360+E170-L170*H170,IF(E170-L170*H170>=360,E170-L170*H170-360,E170-L170*H170)) -> 358.4 | K170: =F170-L170*I170 -> 48.7 | L170: =IF(D170-T$14>180,360-(D170-T$14),IF(D170-T$14<-180,360+(D170-T$14),D170-T$14)) -> 67 | M170: =DEGREES(ACOS((2-ABS((COS(RADIANS(K170))*COS(RADIANS(J170))-COS(RADIANS(V$14))*COS(RADIANS(U$14)))^2+(COS(RADIANS(K170))*SIN(RADIANS(J170))-COS(RADIANS(V$14))*SIN(RADIANS(U$14)))^2+(SIN(RADIANS(K170))-SIN(RADIANS(V$14)))^2))/2)) -> 63.55281217 | N170: =SQRT(G170*G170+125)-W$14 -> -20.82986853 | O170: =ABS(L170)*$T$9+ABS(M170)*$U$9+ABS(N170)*$V$9 -> 117.8826807 | P170: 412_1 | Q170: FOP_1
A171: 351 | B171: DTR | C171: Dayt, Triangulids | D171: 46 | E171: 35.9 | F171: 34.1 | G171: 26.2 | H171: 0 | I171: 0 | J171: =IF(E171-L171*H171<0,360+E171-L171*H171,IF(E171-L171*H171>=360,E171-L171*H171-360,E171-L171*H171)) -> 35.9 | K171: =F171-L171*I171 -> 34.1 | L171: =IF(D171-T$14>180,360-(D171-T$14),IF(D171-T$14<-180,360+(D171-T$14),D171-T$14)) -> 15 | M171: =DEGREES(ACOS((2-ABS((COS(RADIANS(K171))*COS(RADIANS(J171))-COS(RADIANS(V$14))*COS(RADIANS(U$14)))^2+(COS(RADIANS(K171))*SIN(RADIANS(J171))-COS(RADIANS(V$14))*SIN(RADIANS(U$14)))^2+(SIN(RADIANS(K171))-SIN(RADIANS(V$14)))^2))/2)) -> 94.57027126 | N171: =SQRT(G171*G171+125)-W$14 -> -16.13483711 | O171: =ABS(L171)*$T$9+ABS(M171)*$U$9+ABS(N171)*$V$9 -> 118.2051084 | P171: 351_1 | Q171: DTR_1
A172: 155 | B172: NMA | C172: North, Dayt, May Arietids | D172: 55 | E172: 37.2 | F172: 18.1 | G172: 25.2 | H172: 1 | I172: 0 | J172: =IF(E172-L172*H172<0,360+E172-L172*H172,IF(E172-L172*H172>=360,E172-L172*H172-360,E172-L172*H172)) -> 13.2 | K172: =F172-L172*I172 -> 18.1 | L172: =IF(D172-T$14>180,360-(D172-T$14),IF(D172-T$14<-180,360+(D172-T$14),D172-T$14)) -> 24 | M172: =DEGREES(ACOS((2-ABS((COS(RADIANS(K172))*COS(RADIANS(J172))-COS(RADIANS(V$14))*COS(RADIANS(U$14)))^2+(COS(RADIANS(K172))*SIN(RADIANS(J172))-COS(RADIANS(V$14))*SIN(RADIANS(U$14)))^2+(SIN(RADIANS(K172))-SIN(RADIANS(V$14)))^2))/2)) -> 89.30698435 | N172: =SQRT(G172*G172+125)-W$14 -> -17.05180006 | O172: =ABS(L172)*$T$9+ABS(M172)*$U$9+ABS(N172)*$V$9 -> 118.3587844 | P172: 155_1 | Q172: NMA_1
A173: 21 | B173: AVB | C173: alpha Virginids | D173: 28 | E173: 179.9 | F173: -7.7 | G173: 17.6 | H173: 1 | I173: 0 | J173: =IF(E173-L173*H173<0,360+E173-L173*H173,IF(E173-L173*H173>=360,E173-L173*H173-360,E173-L173*H173)) -> 182.9 | K173: =F173-L173*I173 -> -7.7 | L173: =IF(D173-T$14>180,360-(D173-T$14),IF(D173-T$14<-180,360+(D173-T$14),D173-T$14)) -> -3 | M173: =DEGREES(ACOS((2-ABS((COS(RADIANS(K173))*COS(RADIANS(J173))-COS(RADIANS(V$14))*COS(RADIANS(U$14)))^2+(COS(RADIANS(K173))*SIN(RADIANS(J173))-COS(RADIANS(V$14))*SIN(RADIANS(U$14)))^2+(SIN(RADIANS(K173))-SIN(RADIANS(V$14)))^2))/2)) -> 93.16455753 | N173: =SQRT(G173*G173+125)-W$14 -> -23.76972377 | O173: =ABS(L173)*$T$9+ABS(M173)*$U$9+ABS(N173)*$V$9 -> 118.4342813 | P173: 21_1 | Q173: AVB_1
A174: 66 | B174: NSC | C174: North, omega Scorpiids | D174: 70 | E174: 248.1 | F174: -15.3 | G174: 19.6 | H174: 1 | I174: 0 | J174: =IF(E174-L174*H174<0,360+E174-L174*H174,IF(E174-L174*H174>=360,E174-L174*H174-360,E174-L174*H174)) -> 209.1 | K174: =F174-L174*I174 -> -15.3 | L174: =IF(D174-T$14>180,360-(D174-T$14),IF(D174-T$14<-180,360+(D174-T$14),D174-T$14)) -> 39 | M174: =DEGREES(ACOS((2-ABS((COS(RADIANS(K174))*COS(RADIANS(J174))-COS(RADIANS(V$14))*COS(RADIANS(U$14)))^2+(COS(RADIANS(K174))*SIN(RADIANS(J174))-COS(RADIANS(V$14))*SIN(RADIANS(U$14)))^2+(SIN(RADIANS(K174))-SIN(RADIANS(V$14)))^2))/2)) -> 76.95258498 | N174: =SQRT(G174*G174+125)-W$14 -> -22.05604903 | O174: =ABS(L174)*$T$9+ABS(M174)*$U$9+ABS(N174)*$V$9 -> 118.508634 | P174: 66_1 | Q174: NSC_1
A175: 371 | B175: APG | C175: alpha Pegasids | D175: 106 | E175: 353.9 | F175: 17.8 | G175: 35.9 | H175: 0 | I175: 0 | J175: =IF(E175-L175*H175<0,360+E175-L175*H175,IF(E175-L175*H175>=360,E175-L175*H175-360,E175-L175*H175)) -> 353.9 | K175: =F175-L175*I175 -> 17.8 | L175: =IF(D175-T$14>180,360-(D175-T$14),IF(D175-T$14<-180,360+(D175-T$14),D175-T$14)) -> 75 | M175: =DEGREES(ACOS((2-ABS((COS(RADIANS(K175))*COS(RADIANS(J175))-COS(RADIANS(V$14))*COS(RADIANS(U$14)))^2+(COS(RADIANS(K175))*SIN(RADIANS(J175))-COS(RADIANS(V$14))*SIN(RADIANS(U$14)))^2+(SIN(RADIANS(K175))-SIN(RADIANS(V$14)))^2))/2)) -> 74.0317176 | N175: =SQRT(G175*G175+125)-W$14 -> -7.019958147 | O175: =ABS(L175)*$T$9+ABS(M175)*$U$9+ABS(N175)*$V$9 -> 118.5516757 | P175: 371_1 | Q175: APG_1
A176: 288 | B176: DSA | C176: South, December delta Arietids | D176: 256.5 | E176: 66.6 | F176: 15.6 | G176: 15.2 | H176: 1 | I176: 0 | J176: =IF(E176-L176*H176<0,360+E176-L176*H176,IF(E176-L176*H176>=360,E176-L176*H176-360,E176-L176*H176)) -> 292.1 | K176: =F176-L176*I176 -> 15.6 | L176: =IF(D176-T$14>180,360-(D176-T$14),IF(D176-T$14<-180,360+(D176-T$14),D176-T$14)) -> 134.5 | M176: =DEGREES(ACOS((2-ABS((COS(RADIANS(K176))*COS(RADIANS(J176))-COS(RADIANS(V$14))*COS(RADIANS(U$14)))^2+(COS(RADIANS(K176))*SIN(RADIANS(J176))-COS(RADIANS(V$14))*SIN(RADIANS(U$14)))^2+(SIN(RADIANS(K176))-SIN(RADIANS(V$14)))^2))/2)) -> 25.74560556 | N176: =SQRT(G176*G176+125)-W$14 -> -25.7516008 | O176: =ABS(L176)*$T$9+ABS(M176)*$U$9+ABS(N176)*$V$9 -> 118.7472064 | P176: 288_1 | Q176: DSA_1
A177: 5 | B177: SDA | C177: South, delta Aquariids | D177: 125.6 | E177: 339.6 | F177: -16.1 | G177: 41.01 | H177: 0.75 | I177: 0.21 | J177: =IF(E177-L177*H177<0,360+E177-L177*H177,IF(E177-L177*H177>=360,E177-L177*H177-360,E177-L177*H177)) -> 268.65 | K177: =F177-L177*I177 -> -35.966 | L177: =IF(D177-T$14>180,360-(D177-T$14),IF(D177-T$14<-180,360+(D177-T$14),D177-T$14)) -> 94.6 | M177: =DEGREES(ACOS((2-ABS((COS(RADIANS(K177))*COS(RADIANS(J177))-COS(RADIANS(V$14))*COS(RADIANS(U$14)))^2+(COS(RADIANS(K177))*SIN(RADIANS(J177))-COS(RADIANS(V$14))*SIN(RADIANS(U$14)))^2+(SIN(RADIANS(K177))-SIN(RADIANS(V$14)))^2))/2)) -> 69.52071143 | N177: =SQRT(G177*G177+125)-W$14 -> -2.113916505 | O177: =ABS(L177)*$T$9+ABS(M177)*$U$9+ABS(N177)*$V$9 -> 118.9346279 | P177: 5_3 | Q177: SDA_3
A178: 210 | B178: BAU | C178: beta Aurigids | D178: 179.3 | E178: 86 | F178: 43 | G178: 66.5 | H178: 1 | I178: 0 | J178: =IF(E178-L178*H178<0,360+E178-L178*H178,IF(E178-L178*H178>=360,E178-L178*H178-360,E178-L178*H178)) -> 297.7 | K178: =F178-L178*I178 -> 43 | L178: =IF(D178-T$14>180,360-(D178-T$14),IF(D178-T$14<-180,360+(D178-T$14),D178-T$14)) -> 148.3 | M178: =DEGREES(ACOS((2-ABS((COS(RADIANS(K178))*COS(RADIANS(J178))-COS(RADIANS(V$14))*COS(RADIANS(U$14)))^2+(COS(RADIANS(K178))*SIN(RADIANS(J178))-COS(RADIANS(V$14))*SIN(RADIANS(U$14)))^2+(SIN(RADIANS(K178))-SIN(RADIANS(V$14)))^2))/2)) -> 22.46754713 | N178: =SQRT(G178*G178+125)-W$14 -> 22.81267734 | O178: =ABS(L178)*$T$9+ABS(M178)*$U$9+ABS(N178)*$V$9 -> 119.4302245 | P178: 210_1 | Q178: BAU_1
A179: 403 | B179: CVN | C179: Canum Venaticids | D179: 293 | E179: 203.3 | F179: 42.8 | G179: 52.6 | H179: 0.33 | I179: -0.3 | J179: =IF(E179-L179*H179<0,360+E179-L179*H179,IF(E179-L179*H179>=360,E179-L179*H179-360,E179-L179*H179)) -> 170.96 | K179: =F179-L179*I179 -> 72.2 | L179: =IF(D179-T$14>180,360-(D179-T$14),IF(D179-T$14<-180,360+(D179-T$14),D179-T$14)) -> 98 | M179: =DEGREES(ACOS((2-ABS((COS(RADIANS(K179))*COS(RADIANS(J179))-COS(RADIANS(V$14))*COS(RADIANS(U$14)))^2+(COS(RADIANS(K179))*SIN(RADIANS(J179))-COS(RADIANS(V$14))*SIN(RADIANS(U$14)))^2+(SIN(RADIANS(K179))-SIN(RADIANS(V$14)))^2))/2)) -> 61.41587631 | N179: =SQRT(G179*G179+125)-W$14 -> 9.154464134 | O179: =ABS(L179)*$T$9+ABS(M179)*$U$9+ABS(N179)*$V$9 -> 119.5703404 | P179: 403_1 | Q179: CVN_1
A180: 158 | B180: CET | C180: pi Cetids | D180: 95 | E180: 24.1 | F180: -11.7 | G180: 66.8 | H180: 1 | I180: 0 | J180: =IF(E180-L180*H180<0,360+E180-L180*H180,IF(E180-L180*H180>=360,E180-L180*H180-360,E180-L180*H180)) -> 320.1 | K180: =F180-L180*I180 -> -11.7 | L180: =IF(D180-T$14>180,360-(D180-T$14),IF(D180-T$14<-180,360+(D180-T$14),D180-T$14)) -> 64 | M180: =DEGREES(ACOS((2-ABS((COS(RADIANS(K180))*COS(RADIANS(J180))-COS(RADIANS(V$14))*COS(RADIANS(U$14)))^2+(COS(RADIANS(K180))*SIN(RADIANS(J180))-COS(RADIANS(V$14))*SIN(RADIANS(U$14)))^2+(SIN(RADIANS(K180))-SIN(RADIANS(V$14)))^2))/2)) -> 64.58680033 | N180: =SQRT(G180*G180+125)-W$14 -> 23.1085435 | O180: =ABS(L180)*$T$9+ABS(M180)*$U$9+ABS(N180)*$V$9 -> 119.6953438 | P180: 158_1 | Q180: CET_1
A181: 323 | B181: XCB | C181: xi Coronae Borealids | D181: 294.5 | E181: 244.8 | F181: 31.1 | G181: 44.25 | H181: 0.69 | I181: -0.11 | J181: =IF(E181-L181*H181<0,360+E181-L181*H181,IF(E181-L181*H181>=360,E181-L181*H181-360,E181-L181*H181)) -> 178.215 | K181: =F181-L181*I181 -> 41.715 | L181: =IF(D181-T$14>180,360-(D181-T$14),IF(D181-T$14<-180,360+(D181-T$14),D181-T$14)) -> 96.5 | M181: =DEGREES(ACOS((2-ABS((COS(RADIANS(K181))*COS(RADIANS(J181))-COS(RADIANS(V$14))*COS(RADIANS(U$14)))^2+(COS(RADIANS(K181))*SIN(RADIANS(J181))-COS(RADIANS(V$14))*SIN(RADIANS(U$14)))^2+(SIN(RADIANS(K181))-SIN(RADIANS(V$14)))^2))/2)) -> 70.69968387 | N181: =SQRT(G181*G181+125)-W$14 -> 1.019956497 | O181: =ABS(L181)*$T$9+ABS(M181)*$U$9+ABS(N181)*$V$9 -> 119.9696404 | P181: 323_1 | Q181: XCB_1
A182: 115 | B182: DSC | C182: Dayt, Sagittariids-Capricornids | D182: 312.5 | E182: 308.7 | F182: -20.8 | G182: 28.9 | H182: 1 | I182: 0 | J182: =IF(E182-L182*H182<0,360+E182-L182*H182,IF(E182-L182*H182>=360,E182-L182*H182-360,E182-L182*H182)) -> 230.2 | K182: =F182-L182*I182 -> -20.8 | L182: =IF(D182-T$14>180,360-(D182-T$14),IF(D182-T$14<-180,360+(D182-T$14),D182-T$14)) -> 78.5 | M182: =DEGREES(ACOS((2-ABS((COS(RADIANS(K182))*COS(RADIANS(J182))-COS(RADIANS(V$14))*COS(RADIANS(U$14)))^2+(COS(RADIANS(K182))*SIN(RADIANS(J182))-COS(RADIANS(V$14))*SIN(RADIANS(U$14)))^2+(SIN(RADIANS(K182))-SIN(RADIANS(V$14)))^2))/2)) -> 67.12367202 | N182: =SQRT(G182*G182+125)-W$14 -> -13.63336759 | O182: =ABS(L182)*$T$9+ABS(M182)*$U$9+ABS(N182)*$V$9 -> 120.0070396 | P182: 115_3 | Q182: DSC_3
A183: 115 | B183: DSC | C183: Dayt, Sagittariids-Capricornids | D183: 312.5 | E183: 315 | F183: -23.3 | G183: 26.8 | H183: 1 | I183: 0 | J183: =IF(E183-L183*H183<0,360+E183-L183*H183,IF(E183-L183*H183>=360,E183-L183*H183-360,E183-L183*H183)) -> 236.5 | K183: =F183-L183*I183 -> -23.3 | L183: =IF(D183-T$14>180,360-(D183-T$14),IF(D183-T$14<-180,360+(D183-T$14),D183-T$14)) -> 78.5 | M183: =DEGREES(ACOS((2-ABS((COS(RADIANS(K183))*COS(RADIANS(J183))-COS(RADIANS(V$14))*COS(RADIANS(U$14)))^2+(COS(RADIANS(K183))*SIN(RADIANS(J183))-COS(RADIANS(V$14))*SIN(RADIANS(U$14)))^2+(SIN(RADIANS(K183))-SIN(RADIANS(V$14)))^2))/2)) -> 65.90267542 | N183: =SQRT(G183*G183+125)-W$14 -> -15.58202803 | O183: =ABS(L183)*$T$9+ABS(M183)*$U$9+ABS(N183)*$V$9 -> 120.7347034 | P183: 115_1 | Q183: DSC_1
A184: 5 | B184: SDA | C184: South, delta Aquariids | D184: 125.6 | E184: 340.1 | F184: -17 | G184: 40.8 | H184: 0.9 | I184: 0.2 | J184: =IF(E184-L184*H184<0,360+E184-L184*H184,IF(E184-L184*H184>=360,E184-L184*H184-360,E184-L184*H184)) -> 254.96 | K184: =F184-L184*I184 -> -35.92 | L184: =IF(D184-T$14>180,360-(D184-T$14),IF(D184-T$14<-180,360+(D184-T$14),D184-T$14)) -> 94.6 | M184: =DEGREES(ACOS((2-ABS((COS(RADIANS(K184))*COS(RADIANS(J184))-COS(RADIANS(V$14))*COS(RADIANS(U$14)))^2+(COS(RADIANS(K184))*SIN(RADIANS(J184))-COS(RADIANS(V$14))*SIN(RADIANS(U$14)))^2+(SIN(RADIANS(K184))-SIN(RADIANS(V$14)))^2))/2)) -> 71.14133561 | N184: =SQRT(G184*G184+125)-W$14 -> -2.316486121 | O184: =ABS(L184)*$T$9+ABS(M184)*$U$9+ABS(N184)*$V$9 -> 120.7578217 | P184: 5_5 | Q184: SDA_5
A185: 115 | B185: DSC | C185: Dayt, Sagittariids-Capricornids | D185: 312.5 | E185: 299.8 | F185: -15.3 | G185: 29.4 | H185: 1 | I185: 0 | J185: =IF(E185-L185*H185<0,360+E185-L185*H185,IF(E185-L185*H185>=360,E185-L185*H185-360,E185-L185*H185)) -> 221.3 | K185: =F185-L185*I185 -> -15.3 | L185: =IF(D185-T$14>180,360-(D185-T$14),IF(D185-T$14<-180,360+(D185-T$14),D185-T$14)) -> 78.5 | M185: =DEGREES(ACOS((2-ABS((COS(RADIANS(K185))*COS(RADIANS(J185))-COS(RADIANS(V$14))*COS(RADIANS(U$14)))^2+(COS(RADIANS(K185))*SIN(RADIANS(J185))-COS(RADIANS(V$14))*SIN(RADIANS(U$14)))^2+(SIN(RADIANS(K185))-SIN(RADIANS(V$14)))^2))/2)) -> 68.39909087 | N185: =SQRT(G185*G185+125)-W$14 -> -13.1665295 | O185: =ABS(L185)*$T$9+ABS(M185)*$U$9+ABS(N185)*$V$9 -> 120.8156204 | P185: 115_5 | Q185: DSC_5
A186: 523 | B186: AGC | C186: August gamma Cepheids | D186: 155 | E186: 358 | F186: 76 | G186: 44 | H186: 0.18 | I186: 0.46 | J186: =IF(E186-L186*H186<0,360+E186-L186*H186,IF(E186-L186*H186>=360,E186-L186*H186-360,E186-L186*H186)) -> 335.68 | K186: =F186-L186*I186 -> 18.96 | L186: =IF(D186-T$14>180,360-(D186-T$14),IF(D186-T$14<-180,360+(D186-T$14),D186-T$14)) -> 124 | M186: =DEGREES(ACOS((2-ABS((COS(RADIANS(K186))*COS(RADIANS(J186))-COS(RADIANS(V$14))*COS(RADIANS(U$14)))^2+(COS(RADIANS(K186))*SIN(RADIANS(J186))-COS(RADIANS(V$14))*SIN(RADIANS(U$14)))^2+(SIN(RADIANS(K186))-SIN(RADIANS(V$14)))^2))/2)) -> 58.39519028 | N186: =SQRT(G186*G186+125)-W$14 -> 0.7776148166 | O186: =ABS(L186)*$T$9+ABS(M186)*$U$9+ABS(N186)*$V$9 -> 121.1728051 | P186: 523_1 | Q186: AGC_1
A187: 393 | B187: RBO | C187: rho Bootids | D187: 242 | E187: 215.7 | F187: 31.8 | G187: 43 | H187: 0 | I187: 0 | J187: =IF(E187-L187*H187<0,360+E187-L187*H187,IF(E187-L187*H187>=360,E187-L187*H187-360,E187-L187*H187)) -> 215.7 | K187: =F187-L187*I187 -> 31.8 | L187: =IF(D187-T$14>180,360-(D187-T$14),IF(D187-T$14<-180,360+(D187-T$14),D187-T$14)) -> 149 | M187: =DEGREES(ACOS((2-ABS((COS(RADIANS(K187))*COS(RADIANS(J187))-COS(RADIANS(V$14))*COS(RADIANS(U$14)))^2+(COS(RADIANS(K187))*SIN(RADIANS(J187))-COS(RADIANS(V$14))*SIN(RADIANS(U$14)))^2+(SIN(RADIANS(K187))-SIN(RADIANS(V$14)))^2))/2)) -> 46.51388265 | N187: =SQRT(G187*G187+125)-W$14 -> -0.1909032516 | O187: =ABS(L187)*$T$9+ABS(M187)*$U$9+ABS(N187)*$V$9 -> 121.2047859 | P187: 393_1 | Q187: RBO_1
A188: 135 | B188: SGV | C188: South, gamma Virginids | D188: 22.7 | E188: 183.2 | F188: -15.5 | G188: 13.9 | H188: 1 | I188: 0 | J188: =IF(E188-L188*H188<0,360+E188-L188*H188,IF(E188-L188*H188>=360,E188-L188*H188-360,E188-L188*H188)) -> 191.5 | K188: =F188-L188*I188 -> -15.5 | L188: =IF(D188-T$14>180,360-(D188-T$14),IF(D188-T$14<-180,360+(D188-T$14),D188-T$14)) -> -8.3 | M188: =DEGREES(ACOS((2-ABS((COS(RADIANS(K188))*COS(RADIANS(J188))-COS(RADIANS(V$14))*COS(RADIANS(U$14)))^2+(COS(RADIANS(K188))*SIN(RADIANS(J188))-COS(RADIANS(V$14))*SIN(RADIANS(U$14)))^2+(SIN(RADIANS(K188))-SIN(RADIANS(V$14)))^2))/2)) -> 90.53536688 | N188: =SQRT(G188*G188+125)-W$14 -> -26.7821814 | O188: =ABS(L188)*$T$9+ABS(M188)*$U$9+ABS(N188)*$V$9 -> 121.4675483 | P188: 135_1 | Q188: SGV_1
A189: 205 | B189: XAU | C189: xi Aurigids | D189: 158 | E189: 93.5 | F189: 62.6 | G189: 56.9 | H189: 1 | I189: 0 | J189: =IF(E189-L189*H189<0,360+E189-L189*H189,IF(E189-L189*H189>=360,E189-L189*H189-360,E189-L189*H189)) -> 326.5 | K189: =F189-L189*I189 -> 62.6 | L189: =IF(D189-T$14>180,360-(D189-T$14),IF(D189-T$14<-180,360+(D189-T$14),D189-T$14)) -> 127 | M189: =DEGREES(ACOS((2-ABS((COS(RADIANS(K189))*COS(RADIANS(J189))-COS(RADIANS(V$14))*COS(RADIANS(U$14)))^2+(COS(RADIANS(K189))*SIN(RADIANS(J189))-COS(RADIANS(V$14))*SIN(RADIANS(U$14)))^2+(SIN(RADIANS(K189))-SIN(RADIANS(V$14)))^2))/2)) -> 44.70983233 | N189: =SQRT(G189*G189+125)-W$14 -> 13.36739297 | O189: =ABS(L189)*$T$9+ABS(M189)*$U$9+ABS(N189)*$V$9 -> 121.5772253 | P189: 205_1 | Q189: XAU_1
A190: 341 | B190: XUM | C190: January Xi Ursae Majorids | D190: 300.6 | E190: 169 | F190: 33 | G190: 40.2 | H190: -0.13 | I190: 0.01 | J190: =IF(E190-L190*H190<0,360+E190-L190*H190,IF(E190-L190*H190>=360,E190-L190*H190-360,E190-L190*H190)) -> 180.752 | K190: =F190-L190*I190 -> 32.096 | L190: =IF(D190-T$14>180,360-(D190-T$14),IF(D190-T$14<-180,360+(D190-T$14),D190-T$14)) -> 90.4 | M190: =DEGREES(ACOS((2-ABS((COS(RADIANS(K190))*COS(RADIANS(J190))-COS(RADIANS(V$14))*COS(RADIANS(U$14)))^2+(COS(RADIANS(K190))*SIN(RADIANS(J190))-COS(RADIANS(V$14))*SIN(RADIANS(U$14)))^2+(SIN(RADIANS(K190))-SIN(RADIANS(V$14)))^2))/2)) -> 73.57196784 | N190: =SQRT(G190*G190+125)-W$14 -> -2.894851622 | O190: =ABS(L190)*$T$9+ABS(M190)*$U$9+ABS(N190)*$V$9 -> 121.6668195 | P190: 341_1 | Q190: XUM_1
A191: 406 | B191: FCB | C191: February Comae Berenicids | D191: 324 | E191: 186.2 | F191: 29.1 | G191: 24.2 | H191: 0 | I191: 0 | J191: =IF(E191-L191*H191<0,360+E191-L191*H191,IF(E191-L191*H191>=360,E191-L191*H191-360,E191-L191*H191)) -> 186.2 | K191: =F191-L191*I191 -> 29.1 | L191: =IF(D191-T$14>180,360-(D191-T$14),IF(D191-T$14<-180,360+(D191-T$14),D191-T$14)) -> 67 | M191: =DEGREES(ACOS((2-ABS((COS(RADIANS(K191))*COS(RADIANS(J191))-COS(RADIANS(V$14))*COS(RADIANS(U$14)))^2+(COS(RADIANS(K191))*SIN(RADIANS(J191))-COS(RADIANS(V$14))*SIN(RADIANS(U$14)))^2+(SIN(RADIANS(K191))-SIN(RADIANS(V$14)))^2))/2)) -> 70.92160677 | N191: =SQRT(G191*G191+125)-W$14 -> -17.96279116 | O191: =ABS(L191)*$T$9+ABS(M191)*$U$9+ABS(N191)*$V$9 -> 122.3843979 | P191: 406_1 | Q191: FCB_1
A192: 258 | B192: DAR | C192: December alpha Aurigids | D192: 262.2 | E192: 84.9 | F192: 35.5 | G192: 19.5 | H192: 1 | I192: 0 | J192: =IF(E192-L192*H192<0,360+E192-L192*H192,IF(E192-L192*H192>=360,E192-L192*H192-360,E192-L192*H192)) -> 316.1 | K192: =F192-L192*I192 -> 35.5 | L192: =IF(D192-T$14>180,360-(D192-T$14),IF(D192-T$14<-180,360+(D192-T$14),D192-T$14)) -> 128.8 | M192: =DEGREES(ACOS((2-ABS((COS(RADIANS(K192))*COS(RADIANS(J192))-COS(RADIANS(V$14))*COS(RADIANS(U$14)))^2+(COS(RADIANS(K192))*SIN(RADIANS(J192))-COS(RADIANS(V$14))*SIN(RADIANS(U$14)))^2+(SIN(RADIANS(K192))-SIN(RADIANS(V$14)))^2))/2)) -> 36.41653902 | N192: =SQRT(G192*G192+125)-W$14 -> -22.14285624 | O192: =ABS(L192)*$T$9+ABS(M192)*$U$9+ABS(N192)*$V$9 -> 122.9593953 | P192: 258_1 | Q192: DAR_1
A193: 46 | B193: BCR | C193: beta Craterids | D193: 13.5 | E193: 176.8 | F193: -26.9 | G193: 22.6 | H193: 1 | I193: 0 | J193: =IF(E193-L193*H193<0,360+E193-L193*H193,IF(E193-L193*H193>=360,E193-L193*H193-360,E193-L193*H193)) -> 194.3 | K193: =F193-L193*I193 -> -26.9 | L193: =IF(D193-T$14>180,360-(D193-T$14),IF(D193-T$14<-180,360+(D193-T$14),D193-T$14)) -> -17.5 | M193: =DEGREES(ACOS((2-ABS((COS(RADIANS(K193))*COS(RADIANS(J193))-COS(RADIANS(V$14))*COS(RADIANS(U$14)))^2+(COS(RADIANS(K193))*SIN(RADIANS(J193))-COS(RADIANS(V$14))*SIN(RADIANS(U$14)))^2+(SIN(RADIANS(K193))-SIN(RADIANS(V$14)))^2))/2)) -> 94.94648299 | N193: =SQRT(G193*G193+125)-W$14 -> -19.40634137 | O193: =ABS(L193)*$T$9+ABS(M193)*$U$9+ABS(N193)*$V$9 -> 123.1028244 | P193: 46_1 | Q193: BCR_1
A194: 374 | B194: ISC | C194: iota Sculptorids | D194: 128 | E194: 5.2 | F194: -28.1 | G194: 36.7 | H194: 0.23 | I194: -0.4 | J194: =IF(E194-L194*H194<0,360+E194-L194*H194,IF(E194-L194*H194>=360,E194-L194*H194-360,E194-L194*H194)) -> 342.89 | K194: =F194-L194*I194 -> 10.7 | L194: =IF(D194-T$14>180,360-(D194-T$14),IF(D194-T$14<-180,360+(D194-T$14),D194-T$14)) -> 97 | M194: =DEGREES(ACOS((2-ABS((COS(RADIANS(K194))*COS(RADIANS(J194))-COS(RADIANS(V$14))*COS(RADIANS(U$14)))^2+(COS(RADIANS(K194))*SIN(RADIANS(J194))-COS(RADIANS(V$14))*SIN(RADIANS(U$14)))^2+(SIN(RADIANS(K194))-SIN(RADIANS(V$14)))^2))/2)) -> 68.57285764 | N194: =SQRT(G194*G194+125)-W$14 -> -6.255404412 | O194: =ABS(L194)*$T$9+ABS(M194)*$U$9+ABS(N194)*$V$9 -> 123.3282621 | P194: 374_1 | Q194: ISC_1
A195: 133 | B195: PUM | C195: April psi Ursae Majorids | D195: 23 | E195: 117 | F195: 52.9 | G195: 8.4 | H195: 1 | I195: 0 | J195: =IF(E195-L195*H195<0,360+E195-L195*H195,IF(E195-L195*H195>=360,E195-L195*H195-360,E195-L195*H195)) -> 125 | K195: =F195-L195*I195 -> 52.9 | L195: =IF(D195-T$14>180,360-(D195-T$14),IF(D195-T$14<-180,360+(D195-T$14),D195-T$14)) -> -8 | M195: =DEGREES(ACOS((2-ABS((COS(RADIANS(K195))*COS(RADIANS(J195))-COS(RADIANS(V$14))*COS(RADIANS(U$14)))^2+(COS(RADIANS(K195))*SIN(RADIANS(J195))-COS(RADIANS(V$14))*SIN(RADIANS(U$14)))^2+(SIN(RADIANS(K195))-SIN(RADIANS(V$14)))^2))/2)) -> 88.83784196 | N195: =SQRT(G195*G195+125)-W$14 -> -30.63634615 | O195: =ABS(L195)*$T$9+ABS(M195)*$U$9+ABS(N195)*$V$9 -> 123.4741881 | P195: 133_2 | Q195: PUM_2
A196: 285 | B196: GTA | C196: gamma Taurids | D196: 232.8 | E196: 60 | F196: 17.5 | G196: 14.1 | H196: 1 | I196: 0 | J196: =IF(E196-L196*H196<0,360+E196-L196*H196,IF(E196-L196*H196>=360,E196-L196*H196-360,E196-L196*H196)) -> 261.8 | K196: =F196-L196*I196 -> 17.5 | L196: =IF(D196-T$14>180,360-(D196-T$14),IF(D196-T$14<-180,360+(D196-T$14),D196-T$14)) -> 158.2 | M196: =DEGREES(ACOS((2-ABS((COS(RADIANS(K196))*COS(RADIANS(J196))-COS(RADIANS(V$14))*COS(RADIANS(U$14)))^2+(COS(RADIANS(K196))*SIN(RADIANS(J196))-COS(RADIANS(V$14))*SIN(RADIANS(U$14)))^2+(SIN(RADIANS(K196))-SIN(RADIANS(V$14)))^2))/2)) -> 18.25775544 | N196: =SQRT(G196*G196+125)-W$14 -> -26.62590159 | O196: =ABS(L196)*$T$9+ABS(M196)*$U$9+ABS(N196)*$V$9 -> 123.983657 | P196: 285_1 | Q196: GTA_1
A197: 115 | B197: DSC | C197: Dayt, Sagittariids-Capricornids | D197: 312.5 | E197: 299.6 | F197: -14.2 | G197: 25.1 | H197: 1 | I197: 0 | J197: =IF(E197-L197*H197<0,360+E197-L197*H197,IF(E197-L197*H197>=360,E197-L197*H197-360,E197-L197*H197)) -> 221.1 | K197: =F197-L197*I197 -> -14.2 | L197: =IF(D197-T$14>180,360-(D197-T$14),IF(D197-T$14<-180,360+(D197-T$14),D197-T$14)) -> 78.5 | M197: =DEGREES(ACOS((2-ABS((COS(RADIANS(K197))*COS(RADIANS(J197))-COS(RADIANS(V$14))*COS(RADIANS(U$14)))^2+(COS(RADIANS(K197))*SIN(RADIANS(J197))-COS(RADIANS(V$14))*SIN(RADIANS(U$14)))^2+(SIN(RADIANS(K197))-SIN(RADIANS(V$14)))^2))/2)) -> 67.73965654 | N197: =SQRT(G197*G197+125)-W$14 -> -17.14317774 | O197: =ABS(L197)*$T$9+ABS(M197)*$U$9+ABS(N197)*$V$9 -> 124.1328343 | P197: 115_4 | Q197: DSC_4
A198: 91 | B198: JZA | C198: January zeta Aurigids | D198: 292 | E198: 70.3 | F198: 60.1 | G198: 12.1 | H198: 1 | I198: 0 | J198: =IF(E198-L198*H198<0,360+E198-L198*H198,IF(E198-L198*H198>=360,E198-L198*H198-360,E198-L198*H198)) -> 331.3 | K198: =F198-L198*I198 -> 60.1 | L198: =IF(D198-T$14>180,360-(D198-T$14),IF(D198-T$14<-180,360+(D198-T$14),D198-T$14)) -> 99 | M198: =DEGREES(ACOS((2-ABS((COS(RADIANS(K198))*COS(RADIANS(J198))-COS(RADIANS(V$14))*COS(RADIANS(U$14)))^2+(COS(RADIANS(K198))*SIN(RADIANS(J198))-COS(RADIANS(V$14))*SIN(RADIANS(U$14)))^2+(SIN(RADIANS(K198))-SIN(RADIANS(V$14)))^2))/2)) -> 46.51257491 | N198: =SQRT(G198*G198+125)-W$14 -> -28.14609724 | O198: =ABS(L198)*$T$9+ABS(M198)*$U$9+ABS(N198)*$V$9 -> 124.1586722 | P198: 91_1 | Q198: JZA_1
A199: 184 | B199: GDR | C199: July Gamma Draconids | D199: 125.3 | E199: 280.1 | F199: 51.1 | G199: 27.4 | H199: 1 | I199: 0 | J199: =IF(E199-L199*H199<0,360+E199-L199*H199,IF(E199-L199*H199>=360,E199-L199*H199-360,E199-L199*H199)) -> 185.8 | K199: =F199-L199*I199 -> 51.1 | L199: =IF(D199-T$14>180,360-(D199-T$14),IF(D199-T$14<-180,360+(D199-T$14),D199-T$14)) -> 94.3 | M199: =DEGREES(ACOS((2-ABS((COS(RADIANS(K199))*COS(RADIANS(J199))-COS(RADIANS(V$14))*COS(RADIANS(U$14)))^2+(COS(RADIANS(K199))*SIN(RADIANS(J199))-COS(RADIANS(V$14))*SIN(RADIANS(U$14)))^2+(SIN(RADIANS(K199))-SIN(RADIANS(V$14)))^2))/2)) -> 62.10243066 | N199: =SQRT(G199*G199+125)-W$14 -> -15.02738056 | O199: =ABS(L199)*$T$9+ABS(M199)*$U$9+ABS(N199)*$V$9 -> 124.2798112 | P199: 184_1 | Q199: GDR_1
A200: 5 | B200: SDA | C200: South, delta Aquariids | D200: 125.6 | E200: 340.4 | F200: -16.3 | G200: 40.2 | H200: 0.73 | I200: 0.26 | J200: =IF(E200-L200*H200<0,360+E200-L200*H200,IF(E200-L200*H200>=360,E200-L200*H200-360,E200-L200*H200)) -> 271.342 | K200: =F200-L200*I200 -> -40.896 | L200: =IF(D200-T$14>180,360-(D200-T$14),IF(D200-T$14<-180,360+(D200-T$14),D200-T$14)) -> 94.6 | M200: =DEGREES(ACOS((2-ABS((COS(RADIANS(K200))*COS(RADIANS(J200))-COS(RADIANS(V$14))*COS(RADIANS(U$14)))^2+(COS(RADIANS(K200))*SIN(RADIANS(J200))-COS(RADIANS(V$14))*SIN(RADIANS(U$14)))^2+(SIN(RADIANS(K200))-SIN(RADIANS(V$14)))^2))/2)) -> 74.39638016 | N200: =SQRT(G200*G200+125)-W$14 -> -2.894851622 | O200: =ABS(L200)*$T$9+ABS(M200)*$U$9+ABS(N200)*$V$9 -> 124.5912318 | P200: 5_2 | Q200: SDA_2
... 320 more rows

Sheet Search IMO Network
A1: SL | B1: Alpha | C1: Delta | D1: Vinf | E1: Rank | F1: dSL | G1: dPos | H1: dVgeo | I1: MATCH | L1: Input | M1: MDC # | N1: IMO | O1: Entry Num | P1: # Entries
A2: 32 | B2: 272.5 | C2: 33 | D2: 47 | E2: 1 | F2: =IF(A2-M$14>180,360-(A2-M$14),IF(A2-M$14<-180,360+(A2-M$14),A2-M$14)) -> -0.4 | G2: =DEGREES(ACOS((2-ABS((COS(RADIANS(C2))*COS(RADIANS(B2))-COS(RADIANS(O$14))*COS(RADIANS(N$14)))^2+(COS(RADIANS(C2))*SIN(RADIANS(B2))-COS(RADIANS(O$14))*SIN(RADIANS(N$14)))^2+(SIN(RADIANS(C2))-SIN(RADIANS(O$14)))^2))/2)) -> 0.5150167248 | H2: =SQRT(D2*D2-125)-P$14 -> -0.9491511579 | I2: =ABS(F2)*$M$9+ABS(G2)*$N$9+ABS(H2)*$O$9 -> 1.864167883 | J2: =CONCATENATE(A2,"_",E2) -> 32_1 | L2: MDC List | M2: 6 | N2: Lyr | O2: 1 | P2: =IF(ISBLANK(M2),COUNTIF('Search MDC List'!B2:B520,'Search IMO Network'!N2),COUNTIF('Search MDC List'!A2:A520,'Search IMO Network'!M2)) -> 3
A3: 33 | B3: 272.5 | C3: 33 | D3: 47 | E3: 1 | F3: =IF(A3-M$14>180,360-(A3-M$14),IF(A3-M$14<-180,360+(A3-M$14),A3-M$14)) -> 0.6 | G3: =DEGREES(ACOS((2-ABS((COS(RADIANS(C3))*COS(RADIANS(B3))-COS(RADIANS(O$14))*COS(RADIANS(N$14)))^2+(COS(RADIANS(C3))*SIN(RADIANS(B3))-COS(RADIANS(O$14))*SIN(RADIANS(N$14)))^2+(SIN(RADIANS(C3))-SIN(RADIANS(O$14)))^2))/2)) -> 0.5150167248 | H3: =SQRT(D3*D3-125)-P$14 -> -0.9491511579 | I3: =ABS(F3)*$M$9+ABS(G3)*$N$9+ABS(H3)*$O$9 -> 2.064167883 | J3: =CONCATENATE(A3,"_",E3) -> 33_1 | L3: or | M3: CMOR #
A4: 31 | B4: 271.6 | C4: 33.5 | D4: 46 | E4: 1 | F4: =IF(A4-M$14>180,360-(A4-M$14),IF(A4-M$14<-180,360+(A4-M$14),A4-M$14)) -> -1.4 | G4: =DEGREES(ACOS((2-ABS((COS(RADIANS(C4))*COS(RADIANS(B4))-COS(RADIANS(O$14))*COS(RADIANS(N$14)))^2+(COS(RADIANS(C4))*SIN(RADIANS(B4))-COS(RADIANS(O$14))*SIN(RADIANS(N$14)))^2+(SIN(RADIANS(C4))-SIN(RADIANS(O$14)))^2))/2)) -> 0.3892492191 | H4: =SQRT(D4*D4-125)-P$14 -> -1.979376965 | I4: =ABS(F4)*$M$9+ABS(G4)*$N$9+ABS(H4)*$O$9 -> 3.768626184 | J4: =CONCATENATE(A4,"_",E4) -> 31_1 | L4: CMOR List | M4: 56
A5: 34 | B5: 273.6 | C5: 33 | D5: 47 | E5: 1 | F5: =IF(A5-M$14>180,360-(A5-M$14),IF(A5-M$14<-180,360+(A5-M$14),A5-M$14)) -> 1.6 | G5: =DEGREES(ACOS((2-ABS((COS(RADIANS(C5))*COS(RADIANS(B5))-COS(RADIANS(O$14))*COS(RADIANS(N$14)))^2+(COS(RADIANS(C5))*SIN(RADIANS(B5))-COS(RADIANS(O$14))*SIN(RADIANS(N$14)))^2+(SIN(RADIANS(C5))-SIN(RADIANS(O$14)))^2))/2)) -> 1.372752321 | H5: =SQRT(D5*D5-125)-P$14 -> -0.9491511579 | I5: =ABS(F5)*$M$9+ABS(G5)*$N$9+ABS(H5)*$O$9 -> 3.921903479 | J5: =CONCATENATE(A5,"_",E5) -> 34_1 | L5: or | M5: SL | N5: Alpha | O5: Delta | P5: Vgeo
A6: 35 | B6: 274.5 | C6: 32.5 | D6: 48 | E6: 1 | F6: =IF(A6-M$14>180,360-(A6-M$14),IF(A6-M$14<-180,360+(A6-M$14),A6-M$14)) -> 2.6 | G6: =DEGREES(ACOS((2-ABS((COS(RADIANS(C6))*COS(RADIANS(B6))-COS(RADIANS(O$14))*COS(RADIANS(N$14)))^2+(COS(RADIANS(C6))*SIN(RADIANS(B6))-COS(RADIANS(O$14))*SIN(RADIANS(N$14)))^2+(SIN(RADIANS(C6))-SIN(RADIANS(O$14)))^2))/2)) -> 2.246250599 | H6: =SQRT(D6*D6-125)-P$14 -> 0.07976006794 | I6: =ABS(F6)*$M$9+ABS(G6)*$N$9+ABS(H6)*$O$9 -> 4.926010667 | J6: =CONCATENATE(A6,"_",E6) -> 35_1 | L6: Radiant Pos | M6: 182 | N6: 76.2 | O6: -23.4 | P6: 53.1
A7: 30 | B7: 270.8 | C7: 34 | D7: 46 | E7: 1 | F7: =IF(A7-M$14>180,360-(A7-M$14),IF(A7-M$14<-180,360+(A7-M$14),A7-M$14)) -> -2.4 | G7: =DEGREES(ACOS((2-ABS((COS(RADIANS(C7))*COS(RADIANS(B7))-COS(RADIANS(O$14))*COS(RADIANS(N$14)))^2+(COS(RADIANS(C7))*SIN(RADIANS(B7))-COS(RADIANS(O$14))*SIN(RADIANS(N$14)))^2+(SIN(RADIANS(C7))-SIN(RADIANS(O$14)))^2))/2)) -> 1.219759091 | H7: =SQRT(D7*D7-125)-P$14 -> -1.979376965 | I7: =ABS(F7)*$M$9+ABS(G7)*$N$9+ABS(H7)*$O$9 -> 5.599136056 | J7: =CONCATENATE(A7,"_",E7) -> 30_1
A8: 28 | B8: 271.8 | C8: 34.5 | D8: 47 | E8: 1 | F8: =IF(A8-M$14>180,360-(A8-M$14),IF(A8-M$14<-180,360+(A8-M$14),A8-M$14)) -> -4.4 | G8: =DEGREES(ACOS((2-ABS((COS(RADIANS(C8))*COS(RADIANS(B8))-COS(RADIANS(O$14))*COS(RADIANS(N$14)))^2+(COS(RADIANS(C8))*SIN(RADIANS(B8))-COS(RADIANS(O$14))*SIN(RADIANS(N$14)))^2+(SIN(RADIANS(C8))-SIN(RADIANS(O$14)))^2))/2)) -> 1.211426612 | H8: =SQRT(D8*D8-125)-P$14 -> -0.9491511579 | I8: =ABS(F8)*$M$9+ABS(G8)*$N$9+ABS(H8)*$O$9 -> 6.560577769 | J8: =CONCATENATE(A8,"_",E8) -> 28_1 | M8: sSL | N8: dPos | O8: dVgeo
A9: 29 | B9: 270.6 | C9: 34.5 | D9: 45 | E9: 1 | F9: =IF(A9-M$14>180,360-(A9-M$14),IF(A9-M$14<-180,360+(A9-M$14),A9-M$14)) -> -3.4 | G9: =DEGREES(ACOS((2-ABS((COS(RADIANS(C9))*COS(RADIANS(B9))-COS(RADIANS(O$14))*COS(RADIANS(N$14)))^2+(COS(RADIANS(C9))*SIN(RADIANS(B9))-COS(RADIANS(O$14))*SIN(RADIANS(N$14)))^2+(SIN(RADIANS(C9))-SIN(RADIANS(O$14)))^2))/2)) -> 1.670373266 | H9: =SQRT(D9*D9-125)-P$14 -> -3.011010565 | I9: =ABS(F9)*$M$9+ABS(G9)*$N$9+ABS(H9)*$O$9 -> 8.08138383 | J9: =CONCATENATE(A9,"_",E9) -> 29_1 | L9: Weights | M9: 1 | N9: 1 | O9: 1
A10: 33 | B10: 279.9 | C10: 39 | D10: 47 | E10: 6 | F10: =IF(A10-M$14>180,360-(A10-M$14),IF(A10-M$14<-180,360+(A10-M$14),A10-M$14)) -> 0.6 | G10: =DEGREES(ACOS((2-ABS((COS(RADIANS(C10))*COS(RADIANS(B10))-COS(RADIANS(O$14))*COS(RADIANS(N$14)))^2+(COS(RADIANS(C10))*SIN(RADIANS(B10))-COS(RADIANS(O$14))*SIN(RADIANS(N$14)))^2+(SIN(RADIANS(C10))-SIN(RADIANS(O$14)))^2))/2)) -> 8.548247482 | H10: =SQRT(D10*D10-125)-P$14 -> -0.9491511579 | I10: =ABS(F10)*$M$9+ABS(G10)*$N$9+ABS(H10)*$O$9 -> 10.09739864 | J10: =CONCATENATE(A10,"_",E10) -> 33_6
A11: 31 | B11: 284.4 | C11: 29.5 | D11: 48 | E11: 47 | F11: =IF(A11-M$14>180,360-(A11-M$14),IF(A11-M$14<-180,360+(A11-M$14),A11-M$14)) -> -1.4 | G11: =DEGREES(ACOS((2-ABS((COS(RADIANS(C11))*COS(RADIANS(B11))-COS(RADIANS(O$14))*COS(RADIANS(N$14)))^2+(COS(RADIANS(C11))*SIN(RADIANS(B11))-COS(RADIANS(O$14))*SIN(RADIANS(N$14)))^2+(SIN(RADIANS(C11))-SIN(RADIANS(O$14)))^2))/2)) -> 11.23635181 | H11: =SQRT(D11*D11-125)-P$14 -> 0.07976006794 | I11: =ABS(F11)*$M$9+ABS(G11)*$N$9+ABS(H11)*$O$9 -> 12.71611188 | J11: =CONCATENATE(A11,"_",E11) -> 31_47 | L11: Color MATCH | M11: 0 | N11: 20 | O11: 100
A12: 26 | B12: 269 | C12: 38.5 | D12: 47 | E12: 4 | F12: =IF(A12-M$14>180,360-(A12-M$14),IF(A12-M$14<-180,360+(A12-M$14),A12-M$14)) -> -6.4 | G12: =DEGREES(ACOS((2-ABS((COS(RADIANS(C12))*COS(RADIANS(B12))-COS(RADIANS(O$14))*COS(RADIANS(N$14)))^2+(COS(RADIANS(C12))*SIN(RADIANS(B12))-COS(RADIANS(O$14))*SIN(RADIANS(N$14)))^2+(SIN(RADIANS(C12))-SIN(RADIANS(O$14)))^2))/2)) -> 5.738868546 | H12: =SQRT(D12*D12-125)-P$14 -> -0.9491511579 | I12: =ABS(F12)*$M$9+ABS(G12)*$N$9+ABS(H12)*$O$9 -> 13.0880197 | J12: =CONCATENATE(A12,"_",E12) -> 26_4
A13: 35 | B13: 267.6 | C13: 26.5 | D13: 45 | E13: 50 | F13: =IF(A13-M$14>180,360-(A13-M$14),IF(A13-M$14<-180,360+(A13-M$14),A13-M$14)) -> 2.6 | G13: =DEGREES(ACOS((2-ABS((COS(RADIANS(C13))*COS(RADIANS(B13))-COS(RADIANS(O$14))*COS(RADIANS(N$14)))^2+(COS(RADIANS(C13))*SIN(RADIANS(B13))-COS(RADIANS(O$14))*SIN(RADIANS(N$14)))^2+(SIN(RADIANS(C13))-SIN(RADIANS(O$14)))^2))/2)) -> 7.794447385 | H13: =SQRT(D13*D13-125)-P$14 -> -3.011010565 | I13: =ABS(F13)*$M$9+ABS(G13)*$N$9+ABS(H13)*$O$9 -> 13.40545795 | J13: =CONCATENATE(A13,"_",E13) -> 35_50 | M13: SL | N13: Alpha | O13: Delta | P13: Vgeo | Q13: MDC # | R13: IMO | S13: CMOR #
A14: 29 | B14: 265.5 | C14: 27.5 | D14: 50 | E14: 37 | F14: =IF(A14-M$14>180,360-(A14-M$14),IF(A14-M$14<-180,360+(A14-M$14),A14-M$14)) -> -3.4 | G14: =DEGREES(ACOS((2-ABS((COS(RADIANS(C14))*COS(RADIANS(B14))-COS(RADIANS(O$14))*COS(RADIANS(N$14)))^2+(COS(RADIANS(C14))*SIN(RADIANS(B14))-COS(RADIANS(O$14))*SIN(RADIANS(N$14)))^2+(SIN(RADIANS(C14))-SIN(RADIANS(O$14)))^2))/2)) -> 8.062741436 | H14: =SQRT(D14*D14-125)-P$14 -> 2.133971724 | I14: =ABS(F14)*$M$9+ABS(G14)*$N$9+ABS(H14)*$O$9 -> 13.59671316 | J14: =CONCATENATE(A14,"_",E14) -> 29_37 | L14: Search Params | M14: =IF(ISBLANK(M2),IF(ISBLANK(N2),IF(ISBLANK(M4),M6,INDIRECT(CONCATENATE("'Search CMOR List'!",ADDRESS(MATCH(M4,'Search CMOR List'!A:A,0),2)))),INDIRECT(CONCATENATE("'Search MDC List'!",ADDRESS(MATCH(CONCATENATE(N2,"_",O2),'Search MDC List'!Q:Q,0),4)))),INDIRECT(CONCATENATE("'Search MDC List'!",ADDRESS(MATCH(CONCATENATE(M2,"_",O2),'Search MDC List'!P:P,0),4)))) -> 32.4 | N14: =IF(ISBLANK(M2),IF(ISBLANK(N2),IF(ISBLANK(M4),N6,INDIRECT(CONCATENATE("'Search CMOR List'!",ADDRESS(MATCH(M4,'Search CMOR List'!A:A,0),3)))),INDIRECT(CONCATENATE("'Search MDC List'!",ADDRESS(MATCH(CONCATENATE(N2,"_",O2),'Search MDC List'!Q:Q,0),5)))),INDIRECT(CONCATENATE("'Search MDC List'!",ADDRESS(MATCH(CONCATENATE(M2,"_",O2),'Search MDC List'!P:P,0),5)))) -> 272 | O14: =IF(ISBLANK(M2),IF(ISBLANK(N2),IF(ISBLANK(M4),O6,INDIRECT(CONCATENATE("'Search CMOR List'!",ADDRESS(MATCH(M4,'Search CMOR List'!A:A,0),4)))),INDIRECT(CONCATENATE("'Search MDC List'!",ADDRESS(MATCH(CONCATENATE(N2,"_",O2),'Search MDC List'!Q:Q,0),6)))),INDIRECT(CONCATENATE("'Search MDC List'!",ADDRESS(MATCH(CONCATENATE(M2,"_",O2),'Search MDC List'!P:P,0),6)))) -> 33.3 | P14: =IF(ISBLANK(M2),IF(ISBLANK(N2),IF(ISBLANK(M4),P6,INDIRECT(CONCATENATE("'Search CMOR List'!",ADDRESS(MATCH(M4,'Search CMOR List'!A:A,0),5)))),INDIRECT(CONCATENATE("'Search MDC List'!",ADDRESS(MATCH(CONCATENATE(N2,"_",O2),'Search MDC List'!Q:Q,0),7)))),INDIRECT(CONCATENATE("'Search MDC List'!",ADDRESS(MATCH(CONCATENATE(M2,"_",O2),'Search MDC List'!P:P,0),7)))) -> 46.6 | Q14: =IF(ISBLANK(M2),IF(ISBLANK(N2),"???",INDIRECT(CONCATENATE("'Search MDC List'!",ADDRESS(MATCH(N2,'Search MDC List'!B:B,0),1)))),INDIRECT(CONCATENATE("'Search MDC List'!",ADDRESS(MATCH(M2,'Search MDC List'!A:A,0),1)))) -> 6 | R14: =IF(ISBLANK(M2),IF(ISBLANK(N2),"???",INDIRECT(CONCATENATE("'Search MDC List'!",ADDRESS(MATCH(N2,'Search MDC List'!B:B,0),2)))),INDIRECT(CONCATENATE("'Search MDC List'!",ADDRESS(MATCH(M2,'Search MDC List'!A:A,0),2)))) -> LYR | S14: =IF(ISBLANK(M2),IF(ISBLANK(N2),IF(ISBLANK(M4),"???",M4),"???"),"???") -> ???
A15: 36 | B15: 281.7 | C15: 37 | D15: 50 | E15: 7 | F15: =IF(A15-M$14>180,360-(A15-M$14),IF(A15-M$14<-180,360+(A15-M$14),A15-M$14)) -> 3.6 | G15: =DEGREES(ACOS((2-ABS((COS(RADIANS(C15))*COS(RADIANS(B15))-COS(RADIANS(O$14))*COS(RADIANS(N$14)))^2+(COS(RADIANS(C15))*SIN(RADIANS(B15))-COS(RADIANS(O$14))*SIN(RADIANS(N$14)))^2+(SIN(RADIANS(C15))-SIN(RADIANS(O$14)))^2))/2)) -> 8.745819934 | H15: =SQRT(D15*D15-125)-P$14 -> 2.133971724 | I15: =ABS(F15)*$M$9+ABS(G15)*$N$9+ABS(H15)*$O$9 -> 14.47979166 | J15: =CONCATENATE(A15,"_",E15) -> 36_7
A16: 23 | B16: 273.3 | C16: 31.5 | D16: 51 | E16: 28 | F16: =IF(A16-M$14>180,360-(A16-M$14),IF(A16-M$14<-180,360+(A16-M$14),A16-M$14)) -> -9.4 | G16: =DEGREES(ACOS((2-ABS((COS(RADIANS(C16))*COS(RADIANS(B16))-COS(RADIANS(O$14))*COS(RADIANS(N$14)))^2+(COS(RADIANS(C16))*SIN(RADIANS(B16))-COS(RADIANS(O$14))*SIN(RADIANS(N$14)))^2+(SIN(RADIANS(C16))-SIN(RADIANS(O$14)))^2))/2)) -> 2.108210103 | H16: =SQRT(D16*D16-125)-P$14 -> 3.159421218 | I16: =ABS(F16)*$M$9+ABS(G16)*$N$9+ABS(H16)*$O$9 -> 14.66763132 | J16: =CONCATENATE(A16,"_",E16) -> 23_28 | M16: Enter MDC # AND Entry Num OR IMO 3-Letter-Code AND Entry Num OR CMOR List # OR SL/Alpha/Delta/Vgeo Sort = Ctrl-o
A17: 25 | B17: 272.4 | C17: 34.5 | D17: 42 | E17: 17 | F17: =IF(A17-M$14>180,360-(A17-M$14),IF(A17-M$14<-180,360+(A17-M$14),A17-M$14)) -> -7.4 | G17: =DEGREES(ACOS((2-ABS((COS(RADIANS(C17))*COS(RADIANS(B17))-COS(RADIANS(O$14))*COS(RADIANS(N$14)))^2+(COS(RADIANS(C17))*SIN(RADIANS(B17))-COS(RADIANS(O$14))*SIN(RADIANS(N$14)))^2+(SIN(RADIANS(C17))-SIN(RADIANS(O$14)))^2))/2)) -> 1.245077361 | H17: =SQRT(D17*D17-125)-P$14 -> -6.11543504 | I17: =ABS(F17)*$M$9+ABS(G17)*$N$9+ABS(H17)*$O$9 -> 14.7605124 | J17: =CONCATENATE(A17,"_",E17) -> 25_17
A18: 32 | B18: 274.1 | C18: 44.5 | D18: 51 | E18: 20 | F18: =IF(A18-M$14>180,360-(A18-M$14),IF(A18-M$14<-180,360+(A18-M$14),A18-M$14)) -> -0.4 | G18: =DEGREES(ACOS((2-ABS((COS(RADIANS(C18))*COS(RADIANS(B18))-COS(RADIANS(O$14))*COS(RADIANS(N$14)))^2+(COS(RADIANS(C18))*SIN(RADIANS(B18))-COS(RADIANS(O$14))*SIN(RADIANS(N$14)))^2+(SIN(RADIANS(C18))-SIN(RADIANS(O$14)))^2))/2)) -> 11.31749429 | H18: =SQRT(D18*D18-125)-P$14 -> 3.159421218 | I18: =ABS(F18)*$M$9+ABS(G18)*$N$9+ABS(H18)*$O$9 -> 14.87691551 | J18: =CONCATENATE(A18,"_",E18) -> 32_20
A19: 36 | B19: 269.2 | C19: 37 | D19: 55 | E19: 48 | F19: =IF(A19-M$14>180,360-(A19-M$14),IF(A19-M$14<-180,360+(A19-M$14),A19-M$14)) -> 3.6 | G19: =DEGREES(ACOS((2-ABS((COS(RADIANS(C19))*COS(RADIANS(B19))-COS(RADIANS(O$14))*COS(RADIANS(N$14)))^2+(COS(RADIANS(C19))*SIN(RADIANS(B19))-COS(RADIANS(O$14))*SIN(RADIANS(N$14)))^2+(SIN(RADIANS(C19))-SIN(RADIANS(O$14)))^2))/2)) -> 4.350463859 | H19: =SQRT(D19*D19-125)-P$14 -> 7.251648071 | I19: =ABS(F19)*$M$9+ABS(G19)*$N$9+ABS(H19)*$O$9 -> 15.20211193 | J19: =CONCATENATE(A19,"_",E19) -> 36_48
A20: 45 | B20: 271.4 | C20: 34 | D20: 50 | E20: 12 | F20: =IF(A20-M$14>180,360-(A20-M$14),IF(A20-M$14<-180,360+(A20-M$14),A20-M$14)) -> 12.6 | G20: =DEGREES(ACOS((2-ABS((COS(RADIANS(C20))*COS(RADIANS(B20))-COS(RADIANS(O$14))*COS(RADIANS(N$14)))^2+(COS(RADIANS(C20))*SIN(RADIANS(B20))-COS(RADIANS(O$14))*SIN(RADIANS(N$14)))^2+(SIN(RADIANS(C20))-SIN(RADIANS(O$14)))^2))/2)) -> 0.8599157865 | H20: =SQRT(D20*D20-125)-P$14 -> 2.133971724 | I20: =ABS(F20)*$M$9+ABS(G20)*$N$9+ABS(H20)*$O$9 -> 15.59388751 | J20: =CONCATENATE(A20,"_",E20) -> 45_12
A21: 30 | B21: 277.1 | C21: 46 | D21: 47 | E21: 49 | F21: =IF(A21-M$14>180,360-(A21-M$14),IF(A21-M$14<-180,360+(A21-M$14),A21-M$14)) -> -2.4 | G21: =DEGREES(ACOS((2-ABS((COS(RADIANS(C21))*COS(RADIANS(B21))-COS(RADIANS(O$14))*COS(RADIANS(N$14)))^2+(COS(RADIANS(C21))*SIN(RADIANS(B21))-COS(RADIANS(O$14))*SIN(RADIANS(N$14)))^2+(SIN(RADIANS(C21))-SIN(RADIANS(O$14)))^2))/2)) -> 13.28576845 | H21: =SQRT(D21*D21-125)-P$14 -> -0.9491511579 | I21: =ABS(F21)*$M$9+ABS(G21)*$N$9+ABS(H21)*$O$9 -> 16.6349196 | J21: =CONCATENATE(A21,"_",E21) -> 30_49
A22: 34 | B22: 285.3 | C22: 34 | D22: 52 | E22: 28 | F22: =IF(A22-M$14>180,360-(A22-M$14),IF(A22-M$14<-180,360+(A22-M$14),A22-M$14)) -> 1.6 | G22: =DEGREES(ACOS((2-ABS((COS(RADIANS(C22))*COS(RADIANS(B22))-COS(RADIANS(O$14))*COS(RADIANS(N$14)))^2+(COS(RADIANS(C22))*SIN(RADIANS(B22))-COS(RADIANS(O$14))*SIN(RADIANS(N$14)))^2+(SIN(RADIANS(C22))-SIN(RADIANS(O$14)))^2))/2)) -> 11.08572804 | H22: =SQRT(D22*D22-125)-P$14 -> 4.183855702 | I22: =ABS(F22)*$M$9+ABS(G22)*$N$9+ABS(H22)*$O$9 -> 16.86958374 | J22: =CONCATENATE(A22,"_",E22) -> 34_28
A23: 37 | B23: 282.3 | C23: 37.5 | D23: 51 | E23: 9 | F23: =IF(A23-M$14>180,360-(A23-M$14),IF(A23-M$14<-180,360+(A23-M$14),A23-M$14)) -> 4.6 | G23: =DEGREES(ACOS((2-ABS((COS(RADIANS(C23))*COS(RADIANS(B23))-COS(RADIANS(O$14))*COS(RADIANS(N$14)))^2+(COS(RADIANS(C23))*SIN(RADIANS(B23))-COS(RADIANS(O$14))*SIN(RADIANS(N$14)))^2+(SIN(RADIANS(C23))-SIN(RADIANS(O$14)))^2))/2)) -> 9.380110753 | H23: =SQRT(D23*D23-125)-P$14 -> 3.159421218 | I23: =ABS(F23)*$M$9+ABS(G23)*$N$9+ABS(H23)*$O$9 -> 17.13953197 | J23: =CONCATENATE(A23,"_",E23) -> 37_9
A24: 18 | B24: 271.6 | C24: 35 | D24: 49 | E24: 9 | F24: =IF(A24-M$14>180,360-(A24-M$14),IF(A24-M$14<-180,360+(A24-M$14),A24-M$14)) -> -14.4 | G24: =DEGREES(ACOS((2-ABS((COS(RADIANS(C24))*COS(RADIANS(B24))-COS(RADIANS(O$14))*COS(RADIANS(N$14)))^2+(COS(RADIANS(C24))*SIN(RADIANS(B24))-COS(RADIANS(O$14))*SIN(RADIANS(N$14)))^2+(SIN(RADIANS(C24))-SIN(RADIANS(O$14)))^2))/2)) -> 1.73192392 | H24: =SQRT(D24*D24-125)-P$14 -> 1.107441768 | I24: =ABS(F24)*$M$9+ABS(G24)*$N$9+ABS(H24)*$O$9 -> 17.23936569 | J24: =CONCATENATE(A24,"_",E24) -> 18_9
A25: 35 | B25: 280.8 | C25: 44 | D25: 46 | E25: 8 | F25: =IF(A25-M$14>180,360-(A25-M$14),IF(A25-M$14<-180,360+(A25-M$14),A25-M$14)) -> 2.6 | G25: =DEGREES(ACOS((2-ABS((COS(RADIANS(C25))*COS(RADIANS(B25))-COS(RADIANS(O$14))*COS(RADIANS(N$14)))^2+(COS(RADIANS(C25))*SIN(RADIANS(B25))-COS(RADIANS(O$14))*SIN(RADIANS(N$14)))^2+(SIN(RADIANS(C25))-SIN(RADIANS(O$14)))^2))/2)) -> 12.69978935 | H25: =SQRT(D25*D25-125)-P$14 -> -1.979376965 | I25: =ABS(F25)*$M$9+ABS(G25)*$N$9+ABS(H25)*$O$9 -> 17.27916632 | J25: =CONCATENATE(A25,"_",E25) -> 35_8
A26: 17 | B26: 271.4 | C26: 34 | D26: 49 | E26: 14 | F26: =IF(A26-M$14>180,360-(A26-M$14),IF(A26-M$14<-180,360+(A26-M$14),A26-M$14)) -> -15.4 | G26: =DEGREES(ACOS((2-ABS((COS(RADIANS(C26))*COS(RADIANS(B26))-COS(RADIANS(O$14))*COS(RADIANS(N$14)))^2+(COS(RADIANS(C26))*SIN(RADIANS(B26))-COS(RADIANS(O$14))*SIN(RADIANS(N$14)))^2+(SIN(RADIANS(C26))-SIN(RADIANS(O$14)))^2))/2)) -> 0.8599157865 | H26: =SQRT(D26*D26-125)-P$14 -> 1.107441768 | I26: =ABS(F26)*$M$9+ABS(G26)*$N$9+ABS(H26)*$O$9 -> 17.36735755 | J26: =CONCATENATE(A26,"_",E26) -> 17_14
A27: 30 | B27: 286.1 | C27: 43.5 | D27: 48 | E27: 8 | F27: =IF(A27-M$14>180,360-(A27-M$14),IF(A27-M$14<-180,360+(A27-M$14),A27-M$14)) -> -2.4 | G27: =DEGREES(ACOS((2-ABS((COS(RADIANS(C27))*COS(RADIANS(B27))-COS(RADIANS(O$14))*COS(RADIANS(N$14)))^2+(COS(RADIANS(C27))*SIN(RADIANS(B27))-COS(RADIANS(O$14))*SIN(RADIANS(N$14)))^2+(SIN(RADIANS(C27))-SIN(RADIANS(O$14)))^2))/2)) -> 14.99911652 | H27: =SQRT(D27*D27-125)-P$14 -> 0.07976006794 | I27: =ABS(F27)*$M$9+ABS(G27)*$N$9+ABS(H27)*$O$9 -> 17.47887658 | J27: =CONCATENATE(A27,"_",E27) -> 30_8
A28: 32 | B28: 261 | C28: 40.5 | D28: 42 | E28: 5 | F28: =IF(A28-M$14>180,360-(A28-M$14),IF(A28-M$14<-180,360+(A28-M$14),A28-M$14)) -> -0.4 | G28: =DEGREES(ACOS((2-ABS((COS(RADIANS(C28))*COS(RADIANS(B28))-COS(RADIANS(O$14))*COS(RADIANS(N$14)))^2+(COS(RADIANS(C28))*SIN(RADIANS(B28))-COS(RADIANS(O$14))*SIN(RADIANS(N$14)))^2+(SIN(RADIANS(C28))-SIN(RADIANS(O$14)))^2))/2)) -> 11.35159691 | H28: =SQRT(D28*D28-125)-P$14 -> -6.11543504 | I28: =ABS(F28)*$M$9+ABS(G28)*$N$9+ABS(H28)*$O$9 -> 17.86703195 | J28: =CONCATENATE(A28,"_",E28) -> 32_5
A29: 29 | B29: 280.9 | C29: 41 | D29: 44 | E29: 18 | F29: =IF(A29-M$14>180,360-(A29-M$14),IF(A29-M$14<-180,360+(A29-M$14),A29-M$14)) -> -3.4 | G29: =DEGREES(ACOS((2-ABS((COS(RADIANS(C29))*COS(RADIANS(B29))-COS(RADIANS(O$14))*COS(RADIANS(N$14)))^2+(COS(RADIANS(C29))*SIN(RADIANS(B29))-COS(RADIANS(O$14))*SIN(RADIANS(N$14)))^2+(SIN(RADIANS(C29))-SIN(RADIANS(O$14)))^2))/2)) -> 10.45795186 | H29: =SQRT(D29*D29-125)-P$14 -> -4.044154338 | I29: =ABS(F29)*$M$9+ABS(G29)*$N$9+ABS(H29)*$O$9 -> 17.9021062 | J29: =CONCATENATE(A29,"_",E29) -> 29_18
A30: 30 | B30: 261.1 | C30: 42.5 | D30: 45 | E30: 6 | F30: =IF(A30-M$14>180,360-(A30-M$14),IF(A30-M$14<-180,360+(A30-M$14),A30-M$14)) -> -2.4 | G30: =DEGREES(ACOS((2-ABS((COS(RADIANS(C30))*COS(RADIANS(B30))-COS(RADIANS(O$14))*COS(RADIANS(N$14)))^2+(COS(RADIANS(C30))*SIN(RADIANS(B30))-COS(RADIANS(O$14))*SIN(RADIANS(N$14)))^2+(SIN(RADIANS(C30))-SIN(RADIANS(O$14)))^2))/2)) -> 12.57316347 | H30: =SQRT(D30*D30-125)-P$14 -> -3.011010565 | I30: =ABS(F30)*$M$9+ABS(G30)*$N$9+ABS(H30)*$O$9 -> 17.98417404 | J30: =CONCATENATE(A30,"_",E30) -> 30_6
A31: 24 | B31: 284.1 | C31: 34 | D31: 48 | E31: 7 | F31: =IF(A31-M$14>180,360-(A31-M$14),IF(A31-M$14<-180,360+(A31-M$14),A31-M$14)) -> -8.4 | G31: =DEGREES(ACOS((2-ABS((COS(RADIANS(C31))*COS(RADIANS(B31))-COS(RADIANS(O$14))*COS(RADIANS(N$14)))^2+(COS(RADIANS(C31))*SIN(RADIANS(B31))-COS(RADIANS(O$14))*SIN(RADIANS(N$14)))^2+(SIN(RADIANS(C31))-SIN(RADIANS(O$14)))^2))/2)) -> 10.09089827 | H31: =SQRT(D31*D31-125)-P$14 -> 0.07976006794 | I31: =ABS(F31)*$M$9+ABS(G31)*$N$9+ABS(H31)*$O$9 -> 18.57065833 | J31: =CONCATENATE(A31,"_",E31) -> 24_7
A32: 22 | B32: 271.2 | C32: 34.5 | D32: 55 | E32: 35 | F32: =IF(A32-M$14>180,360-(A32-M$14),IF(A32-M$14<-180,360+(A32-M$14),A32-M$14)) -> -10.4 | G32: =DEGREES(ACOS((2-ABS((COS(RADIANS(C32))*COS(RADIANS(B32))-COS(RADIANS(O$14))*COS(RADIANS(N$14)))^2+(COS(RADIANS(C32))*SIN(RADIANS(B32))-COS(RADIANS(O$14))*SIN(RADIANS(N$14)))^2+(SIN(RADIANS(C32))-SIN(RADIANS(O$14)))^2))/2)) -> 1.371447729 | H32: =SQRT(D32*D32-125)-P$14 -> 7.251648071 | I32: =ABS(F32)*$M$9+ABS(G32)*$N$9+ABS(H32)*$O$9 -> 19.0230958 | J32: =CONCATENATE(A32,"_",E32) -> 22_35
A33: 27 | B33: 270.6 | C33: 29.5 | D33: 38 | E33: 13 | F33: =IF(A33-M$14>180,360-(A33-M$14),IF(A33-M$14<-180,360+(A33-M$14),A33-M$14)) -> -5.4 | G33: =DEGREES(ACOS((2-ABS((COS(RADIANS(C33))*COS(RADIANS(B33))-COS(RADIANS(O$14))*COS(RADIANS(N$14)))^2+(COS(RADIANS(C33))*SIN(RADIANS(B33))-COS(RADIANS(O$14))*SIN(RADIANS(N$14)))^2+(SIN(RADIANS(C33))-SIN(RADIANS(O$14)))^2))/2)) -> 3.983318707 | H33: =SQRT(D33*D33-125)-P$14 -> -10.28196041 | I33: =ABS(F33)*$M$9+ABS(G33)*$N$9+ABS(H33)*$O$9 -> 19.66527911 | J33: =CONCATENATE(A33,"_",E33) -> 27_13
A34: 38 | B34: 273.4 | C34: 27.5 | D34: 40 | E34: 44 | F34: =IF(A34-M$14>180,360-(A34-M$14),IF(A34-M$14<-180,360+(A34-M$14),A34-M$14)) -> 5.6 | G34: =DEGREES(ACOS((2-ABS((COS(RADIANS(C34))*COS(RADIANS(B34))-COS(RADIANS(O$14))*COS(RADIANS(N$14)))^2+(COS(RADIANS(C34))*SIN(RADIANS(B34))-COS(RADIANS(O$14))*SIN(RADIANS(N$14)))^2+(SIN(RADIANS(C34))-SIN(RADIANS(O$14)))^2))/2)) -> 5.924149866 | H34: =SQRT(D34*D34-125)-P$14 -> -8.194271261 | I34: =ABS(F34)*$M$9+ABS(G34)*$N$9+ABS(H34)*$O$9 -> 19.71842113 | J34: =CONCATENATE(A34,"_",E34) -> 38_44
A35: 20 | B35: 270 | C35: 32 | D35: 53 | E35: 20 | F35: =IF(A35-M$14>180,360-(A35-M$14),IF(A35-M$14<-180,360+(A35-M$14),A35-M$14)) -> -12.4 | G35: =DEGREES(ACOS((2-ABS((COS(RADIANS(C35))*COS(RADIANS(B35))-COS(RADIANS(O$14))*COS(RADIANS(N$14)))^2+(COS(RADIANS(C35))*SIN(RADIANS(B35))-COS(RADIANS(O$14))*SIN(RADIANS(N$14)))^2+(SIN(RADIANS(C35))-SIN(RADIANS(O$14)))^2))/2)) -> 2.12729378 | H35: =SQRT(D35*D35-125)-P$14 -> 5.207335388 | I35: =ABS(F35)*$M$9+ABS(G35)*$N$9+ABS(H35)*$O$9 -> 19.73462917 | J35: =CONCATENATE(A35,"_",E35) -> 20_20
A36: 44 | B36: 267.8 | C36: 34 | D36: 43 | E36: 11 | F36: =IF(A36-M$14>180,360-(A36-M$14),IF(A36-M$14<-180,360+(A36-M$14),A36-M$14)) -> 11.6 | G36: =DEGREES(ACOS((2-ABS((COS(RADIANS(C36))*COS(RADIANS(B36))-COS(RADIANS(O$14))*COS(RADIANS(N$14)))^2+(COS(RADIANS(C36))*SIN(RADIANS(B36))-COS(RADIANS(O$14))*SIN(RADIANS(N$14)))^2+(SIN(RADIANS(C36))-SIN(RADIANS(O$14)))^2))/2)) -> 3.565340926 | H36: =SQRT(D36*D36-125)-P$14 -> -5.078921016 | I36: =ABS(F36)*$M$9+ABS(G36)*$N$9+ABS(H36)*$O$9 -> 20.24426194 | J36: =CONCATENATE(A36,"_",E36) -> 44_11
A37: 16 | B37: 274.2 | C37: 33 | D37: 46 | E37: 29 | F37: =IF(A37-M$14>180,360-(A37-M$14),IF(A37-M$14<-180,360+(A37-M$14),A37-M$14)) -> -16.4 | G37: =DEGREES(ACOS((2-ABS((COS(RADIANS(C37))*COS(RADIANS(B37))-COS(RADIANS(O$14))*COS(RADIANS(N$14)))^2+(COS(RADIANS(C37))*SIN(RADIANS(B37))-COS(RADIANS(O$14))*SIN(RADIANS(N$14)))^2+(SIN(RADIANS(C37))-SIN(RADIANS(O$14)))^2))/2)) -> 1.866164862 | H37: =SQRT(D37*D37-125)-P$14 -> -1.979376965 | I37: =ABS(F37)*$M$9+ABS(G37)*$N$9+ABS(H37)*$O$9 -> 20.24554183 | J37: =CONCATENATE(A37,"_",E37) -> 16_29
A38: 43 | B38: 266.2 | C38: 36.5 | D38: 44 | E38: 12 | F38: =IF(A38-M$14>180,360-(A38-M$14),IF(A38-M$14<-180,360+(A38-M$14),A38-M$14)) -> 10.6 | G38: =DEGREES(ACOS((2-ABS((COS(RADIANS(C38))*COS(RADIANS(B38))-COS(RADIANS(O$14))*COS(RADIANS(N$14)))^2+(COS(RADIANS(C38))*SIN(RADIANS(B38))-COS(RADIANS(O$14))*SIN(RADIANS(N$14)))^2+(SIN(RADIANS(C38))-SIN(RADIANS(O$14)))^2))/2)) -> 5.731240111 | H38: =SQRT(D38*D38-125)-P$14 -> -4.044154338 | I38: =ABS(F38)*$M$9+ABS(G38)*$N$9+ABS(H38)*$O$9 -> 20.37539445 | J38: =CONCATENATE(A38,"_",E38) -> 43_12
A39: 27 | B39: 264.3 | C39: 40 | D39: 42 | E39: 2 | F39: =IF(A39-M$14>180,360-(A39-M$14),IF(A39-M$14<-180,360+(A39-M$14),A39-M$14)) -> -5.4 | G39: =DEGREES(ACOS((2-ABS((COS(RADIANS(C39))*COS(RADIANS(B39))-COS(RADIANS(O$14))*COS(RADIANS(N$14)))^2+(COS(RADIANS(C39))*SIN(RADIANS(B39))-COS(RADIANS(O$14))*SIN(RADIANS(N$14)))^2+(SIN(RADIANS(C39))-SIN(RADIANS(O$14)))^2))/2)) -> 9.105904579 | H39: =SQRT(D39*D39-125)-P$14 -> -6.11543504 | I39: =ABS(F39)*$M$9+ABS(G39)*$N$9+ABS(H39)*$O$9 -> 20.62133962 | J39: =CONCATENATE(A39,"_",E39) -> 27_2
A40: 42 | B40: 264.4 | C40: 36.5 | D40: 44 | E40: 17 | F40: =IF(A40-M$14>180,360-(A40-M$14),IF(A40-M$14<-180,360+(A40-M$14),A40-M$14)) -> 9.6 | G40: =DEGREES(ACOS((2-ABS((COS(RADIANS(C40))*COS(RADIANS(B40))-COS(RADIANS(O$14))*COS(RADIANS(N$14)))^2+(COS(RADIANS(C40))*SIN(RADIANS(B40))-COS(RADIANS(O$14))*SIN(RADIANS(N$14)))^2+(SIN(RADIANS(C40))-SIN(RADIANS(O$14)))^2))/2)) -> 7.003477186 | H40: =SQRT(D40*D40-125)-P$14 -> -4.044154338 | I40: =ABS(F40)*$M$9+ABS(G40)*$N$9+ABS(H40)*$O$9 -> 20.64763152 | J40: =CONCATENATE(A40,"_",E40) -> 42_17
A41: 43 | B41: 278.2 | C41: 33.5 | D41: 43 | E41: 35 | F41: =IF(A41-M$14>180,360-(A41-M$14),IF(A41-M$14<-180,360+(A41-M$14),A41-M$14)) -> 10.6 | G41: =DEGREES(ACOS((2-ABS((COS(RADIANS(C41))*COS(RADIANS(B41))-COS(RADIANS(O$14))*COS(RADIANS(N$14)))^2+(COS(RADIANS(C41))*SIN(RADIANS(B41))-COS(RADIANS(O$14))*SIN(RADIANS(N$14)))^2+(SIN(RADIANS(C41))-SIN(RADIANS(O$14)))^2))/2)) -> 5.179147922 | H41: =SQRT(D41*D41-125)-P$14 -> -5.078921016 | I41: =ABS(F41)*$M$9+ABS(G41)*$N$9+ABS(H41)*$O$9 -> 20.85806894 | J41: =CONCATENATE(A41,"_",E41) -> 43_35
A42: 35 | B42: 261.3 | C42: 38.5 | D42: 40 | E42: 10 | F42: =IF(A42-M$14>180,360-(A42-M$14),IF(A42-M$14<-180,360+(A42-M$14),A42-M$14)) -> 2.6 | G42: =DEGREES(ACOS((2-ABS((COS(RADIANS(C42))*COS(RADIANS(B42))-COS(RADIANS(O$14))*COS(RADIANS(N$14)))^2+(COS(RADIANS(C42))*SIN(RADIANS(B42))-COS(RADIANS(O$14))*SIN(RADIANS(N$14)))^2+(SIN(RADIANS(C42))-SIN(RADIANS(O$14)))^2))/2)) -> 10.09735946 | H42: =SQRT(D42*D42-125)-P$14 -> -8.194271261 | I42: =ABS(F42)*$M$9+ABS(G42)*$N$9+ABS(H42)*$O$9 -> 20.89163072 | J42: =CONCATENATE(A42,"_",E42) -> 35_10
A43: 32 | B43: 291.6 | C43: 42.5 | D43: 45 | E43: 9 | F43: =IF(A43-M$14>180,360-(A43-M$14),IF(A43-M$14<-180,360+(A43-M$14),A43-M$14)) -> -0.4 | G43: =DEGREES(ACOS((2-ABS((COS(RADIANS(C43))*COS(RADIANS(B43))-COS(RADIANS(O$14))*COS(RADIANS(N$14)))^2+(COS(RADIANS(C43))*SIN(RADIANS(B43))-COS(RADIANS(O$14))*SIN(RADIANS(N$14)))^2+(SIN(RADIANS(C43))-SIN(RADIANS(O$14)))^2))/2)) -> 17.93047254 | H43: =SQRT(D43*D43-125)-P$14 -> -3.011010565 | I43: =ABS(F43)*$M$9+ABS(G43)*$N$9+ABS(H43)*$O$9 -> 21.34148311 | J43: =CONCATENATE(A43,"_",E43) -> 32_9
A44: 31 | B44: 255.5 | C44: 32.5 | D44: 42 | E44: 35 | F44: =IF(A44-M$14>180,360-(A44-M$14),IF(A44-M$14<-180,360+(A44-M$14),A44-M$14)) -> -1.4 | G44: =DEGREES(ACOS((2-ABS((COS(RADIANS(C44))*COS(RADIANS(B44))-COS(RADIANS(O$14))*COS(RADIANS(N$14)))^2+(COS(RADIANS(C44))*SIN(RADIANS(B44))-COS(RADIANS(O$14))*SIN(RADIANS(N$14)))^2+(SIN(RADIANS(C44))-SIN(RADIANS(O$14)))^2))/2)) -> 13.86237413 | H44: =SQRT(D44*D44-125)-P$14 -> -6.11543504 | I44: =ABS(F44)*$M$9+ABS(G44)*$N$9+ABS(H44)*$O$9 -> 21.37780917 | J44: =CONCATENATE(A44,"_",E44) -> 31_35
A45: 26 | B45: 264.6 | C45: 30.5 | D45: 40 | E45: 39 | F45: =IF(A45-M$14>180,360-(A45-M$14),IF(A45-M$14<-180,360+(A45-M$14),A45-M$14)) -> -6.4 | G45: =DEGREES(ACOS((2-ABS((COS(RADIANS(C45))*COS(RADIANS(B45))-COS(RADIANS(O$14))*COS(RADIANS(N$14)))^2+(COS(RADIANS(C45))*SIN(RADIANS(B45))-COS(RADIANS(O$14))*SIN(RADIANS(N$14)))^2+(SIN(RADIANS(C45))-SIN(RADIANS(O$14)))^2))/2)) -> 6.875761968 | H45: =SQRT(D45*D45-125)-P$14 -> -8.194271261 | I45: =ABS(F45)*$M$9+ABS(G45)*$N$9+ABS(H45)*$O$9 -> 21.47003323 | J45: =CONCATENATE(A45,"_",E45) -> 26_39
A46: 34 | B46: 260.9 | C46: 37.5 | D46: 38 | E46: 6 | F46: =IF(A46-M$14>180,360-(A46-M$14),IF(A46-M$14<-180,360+(A46-M$14),A46-M$14)) -> 1.6 | G46: =DEGREES(ACOS((2-ABS((COS(RADIANS(C46))*COS(RADIANS(B46))-COS(RADIANS(O$14))*COS(RADIANS(N$14)))^2+(COS(RADIANS(C46))*SIN(RADIANS(B46))-COS(RADIANS(O$14))*SIN(RADIANS(N$14)))^2+(SIN(RADIANS(C46))-SIN(RADIANS(O$14)))^2))/2)) -> 9.966266584 | H46: =SQRT(D46*D46-125)-P$14 -> -10.28196041 | I46: =ABS(F46)*$M$9+ABS(G46)*$N$9+ABS(H46)*$O$9 -> 21.84822699 | J46: =CONCATENATE(A46,"_",E46) -> 34_6
A47: 36 | B47: 263.1 | C47: 39 | D47: 39 | E47: 4 | F47: =IF(A47-M$14>180,360-(A47-M$14),IF(A47-M$14<-180,360+(A47-M$14),A47-M$14)) -> 3.6 | G47: =DEGREES(ACOS((2-ABS((COS(RADIANS(C47))*COS(RADIANS(B47))-COS(RADIANS(O$14))*COS(RADIANS(N$14)))^2+(COS(RADIANS(C47))*SIN(RADIANS(B47))-COS(RADIANS(O$14))*SIN(RADIANS(N$14)))^2+(SIN(RADIANS(C47))-SIN(RADIANS(O$14)))^2))/2)) -> 9.164560242 | H47: =SQRT(D47*D47-125)-P$14 -> -9.236916615 | I47: =ABS(F47)*$M$9+ABS(G47)*$N$9+ABS(H47)*$O$9 -> 22.00147686 | J47: =CONCATENATE(A47,"_",E47) -> 36_4
A48: 31 | B48: 259 | C48: 42 | D48: 41 | E48: 17 | F48: =IF(A48-M$14>180,360-(A48-M$14),IF(A48-M$14<-180,360+(A48-M$14),A48-M$14)) -> -1.4 | G48: =DEGREES(ACOS((2-ABS((COS(RADIANS(C48))*COS(RADIANS(B48))-COS(RADIANS(O$14))*COS(RADIANS(N$14)))^2+(COS(RADIANS(C48))*SIN(RADIANS(B48))-COS(RADIANS(O$14))*SIN(RADIANS(N$14)))^2+(SIN(RADIANS(C48))-SIN(RADIANS(O$14)))^2))/2)) -> 13.44970435 | H48: =SQRT(D48*D48-125)-P$14 -> -7.153834153 | I48: =ABS(F48)*$M$9+ABS(G48)*$N$9+ABS(H48)*$O$9 -> 22.0035385 | J48: =CONCATENATE(A48,"_",E48) -> 31_17
A49: 41 | B49: 275.4 | C49: 45.5 | D49: 47 | E49: 32 | F49: =IF(A49-M$14>180,360-(A49-M$14),IF(A49-M$14<-180,360+(A49-M$14),A49-M$14)) -> 8.6 | G49: =DEGREES(ACOS((2-ABS((COS(RADIANS(C49))*COS(RADIANS(B49))-COS(RADIANS(O$14))*COS(RADIANS(N$14)))^2+(COS(RADIANS(C49))*SIN(RADIANS(B49))-COS(RADIANS(O$14))*SIN(RADIANS(N$14)))^2+(SIN(RADIANS(C49))-SIN(RADIANS(O$14)))^2))/2)) -> 12.47648858 | H49: =SQRT(D49*D49-125)-P$14 -> -0.9491511579 | I49: =ABS(F49)*$M$9+ABS(G49)*$N$9+ABS(H49)*$O$9 -> 22.02563974 | J49: =CONCATENATE(A49,"_",E49) -> 41_32
A50: 19 | B50: 268.6 | C50: 37 | D50: 44 | E50: 8 | F50: =IF(A50-M$14>180,360-(A50-M$14),IF(A50-M$14<-180,360+(A50-M$14),A50-M$14)) -> -13.4 | G50: =DEGREES(ACOS((2-ABS((COS(RADIANS(C50))*COS(RADIANS(B50))-COS(RADIANS(O$14))*COS(RADIANS(N$14)))^2+(COS(RADIANS(C50))*SIN(RADIANS(B50))-COS(RADIANS(O$14))*SIN(RADIANS(N$14)))^2+(SIN(RADIANS(C50))-SIN(RADIANS(O$14)))^2))/2)) -> 4.627199643 | H50: =SQRT(D50*D50-125)-P$14 -> -4.044154338 | I50: =ABS(F50)*$M$9+ABS(G50)*$N$9+ABS(H50)*$O$9 -> 22.07135398 | J50: =CONCATENATE(A50,"_",E50) -> 19_8
A51: 40 | B51: 264.5 | C51: 31.5 | D51: 40 | E51: 24 | F51: =IF(A51-M$14>180,360-(A51-M$14),IF(A51-M$14<-180,360+(A51-M$14),A51-M$14)) -> 7.6 | G51: =DEGREES(ACOS((2-ABS((COS(RADIANS(C51))*COS(RADIANS(B51))-COS(RADIANS(O$14))*COS(RADIANS(N$14)))^2+(COS(RADIANS(C51))*SIN(RADIANS(B51))-COS(RADIANS(O$14))*SIN(RADIANS(N$14)))^2+(SIN(RADIANS(C51))-SIN(RADIANS(O$14)))^2))/2)) -> 6.581512028 | H51: =SQRT(D51*D51-125)-P$14 -> -8.194271261 | I51: =ABS(F51)*$M$9+ABS(G51)*$N$9+ABS(H51)*$O$9 -> 22.37578329 | J51: =CONCATENATE(A51,"_",E51) -> 40_24
A52: 28 | B52: 264 | C52: 43.5 | D52: 42 | E52: 4 | F52: =IF(A52-M$14>180,360-(A52-M$14),IF(A52-M$14<-180,360+(A52-M$14),A52-M$14)) -> -4.4 | G52: =DEGREES(ACOS((2-ABS((COS(RADIANS(C52))*COS(RADIANS(B52))-COS(RADIANS(O$14))*COS(RADIANS(N$14)))^2+(COS(RADIANS(C52))*SIN(RADIANS(B52))-COS(RADIANS(O$14))*SIN(RADIANS(N$14)))^2+(SIN(RADIANS(C52))-SIN(RADIANS(O$14)))^2))/2)) -> 11.95920193 | H52: =SQRT(D52*D52-125)-P$14 -> -6.11543504 | I52: =ABS(F52)*$M$9+ABS(G52)*$N$9+ABS(H52)*$O$9 -> 22.47463697 | J52: =CONCATENATE(A52,"_",E52) -> 28_4
A53: 23 | B53: 288 | C53: 35.5 | D53: 48 | E53: 6 | F53: =IF(A53-M$14>180,360-(A53-M$14),IF(A53-M$14<-180,360+(A53-M$14),A53-M$14)) -> -9.4 | G53: =DEGREES(ACOS((2-ABS((COS(RADIANS(C53))*COS(RADIANS(B53))-COS(RADIANS(O$14))*COS(RADIANS(N$14)))^2+(COS(RADIANS(C53))*SIN(RADIANS(B53))-COS(RADIANS(O$14))*SIN(RADIANS(N$14)))^2+(SIN(RADIANS(C53))-SIN(RADIANS(O$14)))^2))/2)) -> 13.36836655 | H53: =SQRT(D53*D53-125)-P$14 -> 0.07976006794 | I53: =ABS(F53)*$M$9+ABS(G53)*$N$9+ABS(H53)*$O$9 -> 22.84812662 | J53: =CONCATENATE(A53,"_",E53) -> 23_6
A54: 26 | B54: 291.7 | C54: 37 | D54: 48 | E54: 5 | F54: =IF(A54-M$14>180,360-(A54-M$14),IF(A54-M$14<-180,360+(A54-M$14),A54-M$14)) -> -6.4 | G54: =DEGREES(ACOS((2-ABS((COS(RADIANS(C54))*COS(RADIANS(B54))-COS(RADIANS(O$14))*COS(RADIANS(N$14)))^2+(COS(RADIANS(C54))*SIN(RADIANS(B54))-COS(RADIANS(O$14))*SIN(RADIANS(N$14)))^2+(SIN(RADIANS(C54))-SIN(RADIANS(O$14)))^2))/2)) -> 16.49452126 | H54: =SQRT(D54*D54-125)-P$14 -> 0.07976006794 | I54: =ABS(F54)*$M$9+ABS(G54)*$N$9+ABS(H54)*$O$9 -> 22.97428132 | J54: =CONCATENATE(A54,"_",E54) -> 26_5
A55: 29 | B55: 262.7 | C55: 44 | D55: 41 | E55: 11 | F55: =IF(A55-M$14>180,360-(A55-M$14),IF(A55-M$14<-180,360+(A55-M$14),A55-M$14)) -> -3.4 | G55: =DEGREES(ACOS((2-ABS((COS(RADIANS(C55))*COS(RADIANS(B55))-COS(RADIANS(O$14))*COS(RADIANS(N$14)))^2+(COS(RADIANS(C55))*SIN(RADIANS(B55))-COS(RADIANS(O$14))*SIN(RADIANS(N$14)))^2+(SIN(RADIANS(C55))-SIN(RADIANS(O$14)))^2))/2)) -> 12.91311532 | H55: =SQRT(D55*D55-125)-P$14 -> -7.153834153 | I55: =ABS(F55)*$M$9+ABS(G55)*$N$9+ABS(H55)*$O$9 -> 23.46694947 | J55: =CONCATENATE(A55,"_",E55) -> 29_11
A56: 38 | B56: 267.1 | C56: 38.5 | D56: 37 | E56: 8 | F56: =IF(A56-M$14>180,360-(A56-M$14),IF(A56-M$14<-180,360+(A56-M$14),A56-M$14)) -> 5.6 | G56: =DEGREES(ACOS((2-ABS((COS(RADIANS(C56))*COS(RADIANS(B56))-COS(RADIANS(O$14))*COS(RADIANS(N$14)))^2+(COS(RADIANS(C56))*SIN(RADIANS(B56))-COS(RADIANS(O$14))*SIN(RADIANS(N$14)))^2+(SIN(RADIANS(C56))-SIN(RADIANS(O$14)))^2))/2)) -> 6.539376817 | H56: =SQRT(D56*D56-125)-P$14 -> -11.32961582 | I56: =ABS(F56)*$M$9+ABS(G56)*$N$9+ABS(H56)*$O$9 -> 23.46899264 | J56: =CONCATENATE(A56,"_",E56) -> 38_8
A57: 40 | B57: 275 | C57: 46 | D57: 45 | E57: 37 | F57: =IF(A57-M$14>180,360-(A57-M$14),IF(A57-M$14<-180,360+(A57-M$14),A57-M$14)) -> 7.6 | G57: =DEGREES(ACOS((2-ABS((COS(RADIANS(C57))*COS(RADIANS(B57))-COS(RADIANS(O$14))*COS(RADIANS(N$14)))^2+(COS(RADIANS(C57))*SIN(RADIANS(B57))-COS(RADIANS(O$14))*SIN(RADIANS(N$14)))^2+(SIN(RADIANS(C57))-SIN(RADIANS(O$14)))^2))/2)) -> 12.90573298 | H57: =SQRT(D57*D57-125)-P$14 -> -3.011010565 | I57: =ABS(F57)*$M$9+ABS(G57)*$N$9+ABS(H57)*$O$9 -> 23.51674355 | J57: =CONCATENATE(A57,"_",E57) -> 40_37
A58: 37 | B58: 262.7 | C58: 44 | D58: 42 | E58: 5 | F58: =IF(A58-M$14>180,360-(A58-M$14),IF(A58-M$14<-180,360+(A58-M$14),A58-M$14)) -> 4.6 | G58: =DEGREES(ACOS((2-ABS((COS(RADIANS(C58))*COS(RADIANS(B58))-COS(RADIANS(O$14))*COS(RADIANS(N$14)))^2+(COS(RADIANS(C58))*SIN(RADIANS(B58))-COS(RADIANS(O$14))*SIN(RADIANS(N$14)))^2+(SIN(RADIANS(C58))-SIN(RADIANS(O$14)))^2))/2)) -> 12.91311532 | H58: =SQRT(D58*D58-125)-P$14 -> -6.11543504 | I58: =ABS(F58)*$M$9+ABS(G58)*$N$9+ABS(H58)*$O$9 -> 23.62855036 | J58: =CONCATENATE(A58,"_",E58) -> 37_5
A59: 33 | B59: 260.1 | C59: 38 | D59: 36 | E59: 8 | F59: =IF(A59-M$14>180,360-(A59-M$14),IF(A59-M$14<-180,360+(A59-M$14),A59-M$14)) -> 0.6 | G59: =DEGREES(ACOS((2-ABS((COS(RADIANS(C59))*COS(RADIANS(B59))-COS(RADIANS(O$14))*COS(RADIANS(N$14)))^2+(COS(RADIANS(C59))*SIN(RADIANS(B59))-COS(RADIANS(O$14))*SIN(RADIANS(N$14)))^2+(SIN(RADIANS(C59))-SIN(RADIANS(O$14)))^2))/2)) -> 10.74002284 | H59: =SQRT(D59*D59-125)-P$14 -> -12.38012274 | I59: =ABS(F59)*$M$9+ABS(G59)*$N$9+ABS(H59)*$O$9 -> 23.72014557 | J59: =CONCATENATE(A59,"_",E59) -> 33_8
A60: 31 | B60: 286.7 | C60: 20.5 | D60: 52 | E60: 39 | F60: =IF(A60-M$14>180,360-(A60-M$14),IF(A60-M$14<-180,360+(A60-M$14),A60-M$14)) -> -1.4 | G60: =DEGREES(ACOS((2-ABS((COS(RADIANS(C60))*COS(RADIANS(B60))-COS(RADIANS(O$14))*COS(RADIANS(N$14)))^2+(COS(RADIANS(C60))*SIN(RADIANS(B60))-COS(RADIANS(O$14))*SIN(RADIANS(N$14)))^2+(SIN(RADIANS(C60))-SIN(RADIANS(O$14)))^2))/2)) -> 18.28201102 | H60: =SQRT(D60*D60-125)-P$14 -> 4.183855702 | I60: =ABS(F60)*$M$9+ABS(G60)*$N$9+ABS(H60)*$O$9 -> 23.86586673 | J60: =CONCATENATE(A60,"_",E60) -> 31_39
A61: 13 | B61: 276 | C61: 33 | D61: 49 | E61: 7 | F61: =IF(A61-M$14>180,360-(A61-M$14),IF(A61-M$14<-180,360+(A61-M$14),A61-M$14)) -> -19.4 | G61: =DEGREES(ACOS((2-ABS((COS(RADIANS(C61))*COS(RADIANS(B61))-COS(RADIANS(O$14))*COS(RADIANS(N$14)))^2+(COS(RADIANS(C61))*SIN(RADIANS(B61))-COS(RADIANS(O$14))*SIN(RADIANS(N$14)))^2+(SIN(RADIANS(C61))-SIN(RADIANS(O$14)))^2))/2)) -> 3.362166154 | H61: =SQRT(D61*D61-125)-P$14 -> 1.107441768 | I61: =ABS(F61)*$M$9+ABS(G61)*$N$9+ABS(H61)*$O$9 -> 23.86960792 | J61: =CONCATENATE(A61,"_",E61) -> 13_7
A62: 46 | B62: 267.9 | C62: 28 | D62: 44 | E62: 29 | F62: =IF(A62-M$14>180,360-(A62-M$14),IF(A62-M$14<-180,360+(A62-M$14),A62-M$14)) -> 13.6 | G62: =DEGREES(ACOS((2-ABS((COS(RADIANS(C62))*COS(RADIANS(B62))-COS(RADIANS(O$14))*COS(RADIANS(N$14)))^2+(COS(RADIANS(C62))*SIN(RADIANS(B62))-COS(RADIANS(O$14))*SIN(RADIANS(N$14)))^2+(SIN(RADIANS(C62))-SIN(RADIANS(O$14)))^2))/2)) -> 6.364878008 | H62: =SQRT(D62*D62-125)-P$14 -> -4.044154338 | I62: =ABS(F62)*$M$9+ABS(G62)*$N$9+ABS(H62)*$O$9 -> 24.00903235 | J62: =CONCATENATE(A62,"_",E62) -> 46_29
A63: 39 | B63: 266.5 | C63: 35.5 | D63: 36 | E63: 40 | F63: =IF(A63-M$14>180,360-(A63-M$14),IF(A63-M$14<-180,360+(A63-M$14),A63-M$14)) -> 6.6 | G63: =DEGREES(ACOS((2-ABS((COS(RADIANS(C63))*COS(RADIANS(B63))-COS(RADIANS(O$14))*COS(RADIANS(N$14)))^2+(COS(RADIANS(C63))*SIN(RADIANS(B63))-COS(RADIANS(O$14))*SIN(RADIANS(N$14)))^2+(SIN(RADIANS(C63))-SIN(RADIANS(O$14)))^2))/2)) -> 5.042165299 | H63: =SQRT(D63*D63-125)-P$14 -> -12.38012274 | I63: =ABS(F63)*$M$9+ABS(G63)*$N$9+ABS(H63)*$O$9 -> 24.02228803 | J63: =CONCATENATE(A63,"_",E63) -> 39_40
A64: 40 | B64: 272.3 | C64: 37.5 | D64: 60 | E64: 47 | F64: =IF(A64-M$14>180,360-(A64-M$14),IF(A64-M$14<-180,360+(A64-M$14),A64-M$14)) -> 7.6 | G64: =DEGREES(ACOS((2-ABS((COS(RADIANS(C64))*COS(RADIANS(B64))-COS(RADIANS(O$14))*COS(RADIANS(N$14)))^2+(COS(RADIANS(C64))*SIN(RADIANS(B64))-COS(RADIANS(O$14))*SIN(RADIANS(N$14)))^2+(SIN(RADIANS(C64))-SIN(RADIANS(O$14)))^2))/2)) -> 4.207104893 | H64: =SQRT(D64*D64-125)-P$14 -> 12.34913061 | I64: =ABS(F64)*$M$9+ABS(G64)*$N$9+ABS(H64)*$O$9 -> 24.15623551 | J64: =CONCATENATE(A64,"_",E64) -> 40_47
A65: 25 | B65: 267.4 | C65: 43.5 | D65: 42 | E65: 7 | F65: =IF(A65-M$14>180,360-(A65-M$14),IF(A65-M$14<-180,360+(A65-M$14),A65-M$14)) -> -7.4 | G65: =DEGREES(ACOS((2-ABS((COS(RADIANS(C65))*COS(RADIANS(B65))-COS(RADIANS(O$14))*COS(RADIANS(N$14)))^2+(COS(RADIANS(C65))*SIN(RADIANS(B65))-COS(RADIANS(O$14))*SIN(RADIANS(N$14)))^2+(SIN(RADIANS(C65))-SIN(RADIANS(O$14)))^2))/2)) -> 10.81360524 | H65: =SQRT(D65*D65-125)-P$14 -> -6.11543504 | I65: =ABS(F65)*$M$9+ABS(G65)*$N$9+ABS(H65)*$O$9 -> 24.32904028 | J65: =CONCATENATE(A65,"_",E65) -> 25_7
A66: 31 | B66: 272.1 | C66: 46 | D66: 38 | E66: 5 | F66: =IF(A66-M$14>180,360-(A66-M$14),IF(A66-M$14<-180,360+(A66-M$14),A66-M$14)) -> -1.4 | G66: =DEGREES(ACOS((2-ABS((COS(RADIANS(C66))*COS(RADIANS(B66))-COS(RADIANS(O$14))*COS(RADIANS(N$14)))^2+(COS(RADIANS(C66))*SIN(RADIANS(B66))-COS(RADIANS(O$14))*SIN(RADIANS(N$14)))^2+(SIN(RADIANS(C66))-SIN(RADIANS(O$14)))^2))/2)) -> 12.70023046 | H66: =SQRT(D66*D66-125)-P$14 -> -10.28196041 | I66: =ABS(F66)*$M$9+ABS(G66)*$N$9+ABS(H66)*$O$9 -> 24.38219087 | J66: =CONCATENATE(A66,"_",E66) -> 31_5
A67: 31 | B67: 298.5 | C67: 34 | D67: 49 | E67: 30 | F67: =IF(A67-M$14>180,360-(A67-M$14),IF(A67-M$14<-180,360+(A67-M$14),A67-M$14)) -> -1.4 | G67: =DEGREES(ACOS((2-ABS((COS(RADIANS(C67))*COS(RADIANS(B67))-COS(RADIANS(O$14))*COS(RADIANS(N$14)))^2+(COS(RADIANS(C67))*SIN(RADIANS(B67))-COS(RADIANS(O$14))*SIN(RADIANS(N$14)))^2+(SIN(RADIANS(C67))-SIN(RADIANS(O$14)))^2))/2)) -> 22.00919286 | H67: =SQRT(D67*D67-125)-P$14 -> 1.107441768 | I67: =ABS(F67)*$M$9+ABS(G67)*$N$9+ABS(H67)*$O$9 -> 24.51663462 | J67: =CONCATENATE(A67,"_",E67) -> 31_30
A68: 32 | B68: 257.8 | C68: 33.5 | D68: 36 | E68: 48 | F68: =IF(A68-M$14>180,360-(A68-M$14),IF(A68-M$14<-180,360+(A68-M$14),A68-M$14)) -> -0.4 | G68: =DEGREES(ACOS((2-ABS((COS(RADIANS(C68))*COS(RADIANS(B68))-COS(RADIANS(O$14))*COS(RADIANS(N$14)))^2+(COS(RADIANS(C68))*SIN(RADIANS(B68))-COS(RADIANS(O$14))*SIN(RADIANS(N$14)))^2+(SIN(RADIANS(C68))-SIN(RADIANS(O$14)))^2))/2)) -> 11.84728279 | H68: =SQRT(D68*D68-125)-P$14 -> -12.38012274 | I68: =ABS(F68)*$M$9+ABS(G68)*$N$9+ABS(H68)*$O$9 -> 24.62740552 | J68: =CONCATENATE(A68,"_",E68) -> 32_48
A69: 21 | B69: 284.2 | C69: 25.5 | D69: 48 | E69: 10 | F69: =IF(A69-M$14>180,360-(A69-M$14),IF(A69-M$14<-180,360+(A69-M$14),A69-M$14)) -> -11.4 | G69: =DEGREES(ACOS((2-ABS((COS(RADIANS(C69))*COS(RADIANS(B69))-COS(RADIANS(O$14))*COS(RADIANS(N$14)))^2+(COS(RADIANS(C69))*SIN(RADIANS(B69))-COS(RADIANS(O$14))*SIN(RADIANS(N$14)))^2+(SIN(RADIANS(C69))-SIN(RADIANS(O$14)))^2))/2)) -> 13.1668961 | H69: =SQRT(D69*D69-125)-P$14 -> 0.07976006794 | I69: =ABS(F69)*$M$9+ABS(G69)*$N$9+ABS(H69)*$O$9 -> 24.64665617 | J69: =CONCATENATE(A69,"_",E69) -> 21_10
A70: 21 | B70: 259.8 | C70: 25.5 | D70: 48 | E70: 48 | F70: =IF(A70-M$14>180,360-(A70-M$14),IF(A70-M$14<-180,360+(A70-M$14),A70-M$14)) -> -11.4 | G70: =DEGREES(ACOS((2-ABS((COS(RADIANS(C70))*COS(RADIANS(B70))-COS(RADIANS(O$14))*COS(RADIANS(N$14)))^2+(COS(RADIANS(C70))*SIN(RADIANS(B70))-COS(RADIANS(O$14))*SIN(RADIANS(N$14)))^2+(SIN(RADIANS(C70))-SIN(RADIANS(O$14)))^2))/2)) -> 13.1668961 | H70: =SQRT(D70*D70-125)-P$14 -> 0.07976006794 | I70: =ABS(F70)*$M$9+ABS(G70)*$N$9+ABS(H70)*$O$9 -> 24.64665617 | J70: =CONCATENATE(A70,"_",E70) -> 21_48
A71: 36 | B71: 295.7 | C71: 43.5 | D71: 48 | E71: 42 | F71: =IF(A71-M$14>180,360-(A71-M$14),IF(A71-M$14<-180,360+(A71-M$14),A71-M$14)) -> 3.6 | G71: =DEGREES(ACOS((2-ABS((COS(RADIANS(C71))*COS(RADIANS(B71))-COS(RADIANS(O$14))*COS(RADIANS(N$14)))^2+(COS(RADIANS(C71))*SIN(RADIANS(B71))-COS(RADIANS(O$14))*SIN(RADIANS(N$14)))^2+(SIN(RADIANS(C71))-SIN(RADIANS(O$14)))^2))/2)) -> 21.0823966 | H71: =SQRT(D71*D71-125)-P$14 -> 0.07976006794 | I71: =ABS(F71)*$M$9+ABS(G71)*$N$9+ABS(H71)*$O$9 -> 24.76215666 | J71: =CONCATENATE(A71,"_",E71) -> 36_42
A72: 22 | B72: 283.1 | C72: 25.5 | D72: 50 | E72: 18 | F72: =IF(A72-M$14>180,360-(A72-M$14),IF(A72-M$14<-180,360+(A72-M$14),A72-M$14)) -> -10.4 | G72: =DEGREES(ACOS((2-ABS((COS(RADIANS(C72))*COS(RADIANS(B72))-COS(RADIANS(O$14))*COS(RADIANS(N$14)))^2+(COS(RADIANS(C72))*SIN(RADIANS(B72))-COS(RADIANS(O$14))*SIN(RADIANS(N$14)))^2+(SIN(RADIANS(C72))-SIN(RADIANS(O$14)))^2))/2)) -> 12.409873 | H72: =SQRT(D72*D72-125)-P$14 -> 2.133971724 | I72: =ABS(F72)*$M$9+ABS(G72)*$N$9+ABS(H72)*$O$9 -> 24.94384472 | J72: =CONCATENATE(A72,"_",E72) -> 22_18
A73: 20 | B73: 283.9 | C73: 34.5 | D73: 45 | E73: 6 | F73: =IF(A73-M$14>180,360-(A73-M$14),IF(A73-M$14<-180,360+(A73-M$14),A73-M$14)) -> -12.4 | G73: =DEGREES(ACOS((2-ABS((COS(RADIANS(C73))*COS(RADIANS(B73))-COS(RADIANS(O$14))*COS(RADIANS(N$14)))^2+(COS(RADIANS(C73))*SIN(RADIANS(B73))-COS(RADIANS(O$14))*SIN(RADIANS(N$14)))^2+(SIN(RADIANS(C73))-SIN(RADIANS(O$14)))^2))/2)) -> 9.943854645 | H73: =SQRT(D73*D73-125)-P$14 -> -3.011010565 | I73: =ABS(F73)*$M$9+ABS(G73)*$N$9+ABS(H73)*$O$9 -> 25.35486521 | J73: =CONCATENATE(A73,"_",E73) -> 20_6
A74: 54 | B74: 275.2 | C74: 33.5 | D74: 49 | E74: 24 | F74: =IF(A74-M$14>180,360-(A74-M$14),IF(A74-M$14<-180,360+(A74-M$14),A74-M$14)) -> 21.6 | G74: =DEGREES(ACOS((2-ABS((COS(RADIANS(C74))*COS(RADIANS(B74))-COS(RADIANS(O$14))*COS(RADIANS(N$14)))^2+(COS(RADIANS(C74))*SIN(RADIANS(B74))-COS(RADIANS(O$14))*SIN(RADIANS(N$14)))^2+(SIN(RADIANS(C74))-SIN(RADIANS(O$14)))^2))/2)) -> 2.678881034 | H74: =SQRT(D74*D74-125)-P$14 -> 1.107441768 | I74: =ABS(F74)*$M$9+ABS(G74)*$N$9+ABS(H74)*$O$9 -> 25.3863228 | J74: =CONCATENATE(A74,"_",E74) -> 54_24
A75: 42 | B75: 289.9 | C75: 36 | D75: 49 | E75: 19 | F75: =IF(A75-M$14>180,360-(A75-M$14),IF(A75-M$14<-180,360+(A75-M$14),A75-M$14)) -> 9.6 | G75: =DEGREES(ACOS((2-ABS((COS(RADIANS(C75))*COS(RADIANS(B75))-COS(RADIANS(O$14))*COS(RADIANS(N$14)))^2+(COS(RADIANS(C75))*SIN(RADIANS(B75))-COS(RADIANS(O$14))*SIN(RADIANS(N$14)))^2+(SIN(RADIANS(C75))-SIN(RADIANS(O$14)))^2))/2)) -> 14.94832439 | H75: =SQRT(D75*D75-125)-P$14 -> 1.107441768 | I75: =ABS(F75)*$M$9+ABS(G75)*$N$9+ABS(H75)*$O$9 -> 25.65576616 | J75: =CONCATENATE(A75,"_",E75) -> 42_19
A76: 35 | B76: 284.7 | C76: 31 | D76: 60 | E76: 44 | F76: =IF(A76-M$14>180,360-(A76-M$14),IF(A76-M$14<-180,360+(A76-M$14),A76-M$14)) -> 2.6 | G76: =DEGREES(ACOS((2-ABS((COS(RADIANS(C76))*COS(RADIANS(B76))-COS(RADIANS(O$14))*COS(RADIANS(N$14)))^2+(COS(RADIANS(C76))*SIN(RADIANS(B76))-COS(RADIANS(O$14))*SIN(RADIANS(N$14)))^2+(SIN(RADIANS(C76))-SIN(RADIANS(O$14)))^2))/2)) -> 10.98813126 | H76: =SQRT(D76*D76-125)-P$14 -> 12.34913061 | I76: =ABS(F76)*$M$9+ABS(G76)*$N$9+ABS(H76)*$O$9 -> 25.93726187 | J76: =CONCATENATE(A76,"_",E76) -> 35_44
A77: 14 | B77: 270.4 | C77: 33.5 | D77: 54 | E77: 7 | F77: =IF(A77-M$14>180,360-(A77-M$14),IF(A77-M$14<-180,360+(A77-M$14),A77-M$14)) -> -18.4 | G77: =DEGREES(ACOS((2-ABS((COS(RADIANS(C77))*COS(RADIANS(B77))-COS(RADIANS(O$14))*COS(RADIANS(N$14)))^2+(COS(RADIANS(C77))*SIN(RADIANS(B77))-COS(RADIANS(O$14))*SIN(RADIANS(N$14)))^2+(SIN(RADIANS(C77))-SIN(RADIANS(O$14)))^2))/2)) -> 1.350631827 | H77: =SQRT(D77*D77-125)-P$14 -> 6.229915767 | I77: =ABS(F77)*$M$9+ABS(G77)*$N$9+ABS(H77)*$O$9 -> 25.98054759 | J77: =CONCATENATE(A77,"_",E77) -> 14_7
A78: 44 | B78: 283.3 | C78: 42 | D78: 46 | E78: 7 | F78: =IF(A78-M$14>180,360-(A78-M$14),IF(A78-M$14<-180,360+(A78-M$14),A78-M$14)) -> 11.6 | G78: =DEGREES(ACOS((2-ABS((COS(RADIANS(C78))*COS(RADIANS(B78))-COS(RADIANS(O$14))*COS(RADIANS(N$14)))^2+(COS(RADIANS(C78))*SIN(RADIANS(B78))-COS(RADIANS(O$14))*SIN(RADIANS(N$14)))^2+(SIN(RADIANS(C78))-SIN(RADIANS(O$14)))^2))/2)) -> 12.45833318 | H78: =SQRT(D78*D78-125)-P$14 -> -1.979376965 | I78: =ABS(F78)*$M$9+ABS(G78)*$N$9+ABS(H78)*$O$9 -> 26.03771015 | J78: =CONCATENATE(A78,"_",E78) -> 44_7
A79: 30 | B79: 247.6 | C79: 25.5 | D79: 49 | E79: 27 | F79: =IF(A79-M$14>180,360-(A79-M$14),IF(A79-M$14<-180,360+(A79-M$14),A79-M$14)) -> -2.4 | G79: =DEGREES(ACOS((2-ABS((COS(RADIANS(C79))*COS(RADIANS(B79))-COS(RADIANS(O$14))*COS(RADIANS(N$14)))^2+(COS(RADIANS(C79))*SIN(RADIANS(B79))-COS(RADIANS(O$14))*SIN(RADIANS(N$14)))^2+(SIN(RADIANS(C79))-SIN(RADIANS(O$14)))^2))/2)) -> 22.57635699 | H79: =SQRT(D79*D79-125)-P$14 -> 1.107441768 | I79: =ABS(F79)*$M$9+ABS(G79)*$N$9+ABS(H79)*$O$9 -> 26.08379876 | J79: =CONCATENATE(A79,"_",E79) -> 30_27
A80: 42 | B80: 269.2 | C80: 42.5 | D80: 55 | E80: 27 | F80: =IF(A80-M$14>180,360-(A80-M$14),IF(A80-M$14<-180,360+(A80-M$14),A80-M$14)) -> 9.6 | G80: =DEGREES(ACOS((2-ABS((COS(RADIANS(C80))*COS(RADIANS(B80))-COS(RADIANS(O$14))*COS(RADIANS(N$14)))^2+(COS(RADIANS(C80))*SIN(RADIANS(B80))-COS(RADIANS(O$14))*SIN(RADIANS(N$14)))^2+(SIN(RADIANS(C80))-SIN(RADIANS(O$14)))^2))/2)) -> 9.460001846 | H80: =SQRT(D80*D80-125)-P$14 -> 7.251648071 | I80: =ABS(F80)*$M$9+ABS(G80)*$N$9+ABS(H80)*$O$9 -> 26.31164992 | J80: =CONCATENATE(A80,"_",E80) -> 42_27
A81: 48 | B81: 278.5 | C81: 31.5 | D81: 43 | E81: 16 | F81: =IF(A81-M$14>180,360-(A81-M$14),IF(A81-M$14<-180,360+(A81-M$14),A81-M$14)) -> 15.6 | G81: =DEGREES(ACOS((2-ABS((COS(RADIANS(C81))*COS(RADIANS(B81))-COS(RADIANS(O$14))*COS(RADIANS(N$14)))^2+(COS(RADIANS(C81))*SIN(RADIANS(B81))-COS(RADIANS(O$14))*SIN(RADIANS(N$14)))^2+(SIN(RADIANS(C81))-SIN(RADIANS(O$14)))^2))/2)) -> 5.774498587 | H81: =SQRT(D81*D81-125)-P$14 -> -5.078921016 | I81: =ABS(F81)*$M$9+ABS(G81)*$N$9+ABS(H81)*$O$9 -> 26.4534196 | J81: =CONCATENATE(A81,"_",E81) -> 48_16
A82: 31 | B82: 294.4 | C82: 48 | D82: 45 | E82: 10 | F82: =IF(A82-M$14>180,360-(A82-M$14),IF(A82-M$14<-180,360+(A82-M$14),A82-M$14)) -> -1.4 | G82: =DEGREES(ACOS((2-ABS((COS(RADIANS(C82))*COS(RADIANS(B82))-COS(RADIANS(O$14))*COS(RADIANS(N$14)))^2+(COS(RADIANS(C82))*SIN(RADIANS(B82))-COS(RADIANS(O$14))*SIN(RADIANS(N$14)))^2+(SIN(RADIANS(C82))-SIN(RADIANS(O$14)))^2))/2)) -> 22.32123145 | H82: =SQRT(D82*D82-125)-P$14 -> -3.011010565 | I82: =ABS(F82)*$M$9+ABS(G82)*$N$9+ABS(H82)*$O$9 -> 26.73224201 | J82: =CONCATENATE(A82,"_",E82) -> 31_10
A83: 35 | B83: 256.4 | C83: 16 | D83: 46 | E83: 25 | F83: =IF(A83-M$14>180,360-(A83-M$14),IF(A83-M$14<-180,360+(A83-M$14),A83-M$14)) -> 2.6 | G83: =DEGREES(ACOS((2-ABS((COS(RADIANS(C83))*COS(RADIANS(B83))-COS(RADIANS(O$14))*COS(RADIANS(N$14)))^2+(COS(RADIANS(C83))*SIN(RADIANS(B83))-COS(RADIANS(O$14))*SIN(RADIANS(N$14)))^2+(SIN(RADIANS(C83))-SIN(RADIANS(O$14)))^2))/2)) -> 22.30682444 | H83: =SQRT(D83*D83-125)-P$14 -> -1.979376965 | I83: =ABS(F83)*$M$9+ABS(G83)*$N$9+ABS(H83)*$O$9 -> 26.8862014 | J83: =CONCATENATE(A83,"_",E83) -> 35_25
A84: 41 | B84: 272.2 | C84: 30.5 | D84: 33 | E84: 18 | F84: =IF(A84-M$14>180,360-(A84-M$14),IF(A84-M$14<-180,360+(A84-M$14),A84-M$14)) -> 8.6 | G84: =DEGREES(ACOS((2-ABS((COS(RADIANS(C84))*COS(RADIANS(B84))-COS(RADIANS(O$14))*COS(RADIANS(N$14)))^2+(COS(RADIANS(C84))*SIN(RADIANS(B84))-COS(RADIANS(O$14))*SIN(RADIANS(N$14)))^2+(SIN(RADIANS(C84))-SIN(RADIANS(O$14)))^2))/2)) -> 2.805141298 | H84: =SQRT(D84*D84-125)-P$14 -> -15.55165061 | I84: =ABS(F84)*$M$9+ABS(G84)*$N$9+ABS(H84)*$O$9 -> 26.95679191 | J84: =CONCATENATE(A84,"_",E84) -> 41_18
A85: 31 | B85: 251.1 | C85: 17.5 | D85: 49 | E85: 26 | F85: =IF(A85-M$14>180,360-(A85-M$14),IF(A85-M$14<-180,360+(A85-M$14),A85-M$14)) -> -1.4 | G85: =DEGREES(ACOS((2-ABS((COS(RADIANS(C85))*COS(RADIANS(B85))-COS(RADIANS(O$14))*COS(RADIANS(N$14)))^2+(COS(RADIANS(C85))*SIN(RADIANS(B85))-COS(RADIANS(O$14))*SIN(RADIANS(N$14)))^2+(SIN(RADIANS(C85))-SIN(RADIANS(O$14)))^2))/2)) -> 24.5262997 | H85: =SQRT(D85*D85-125)-P$14 -> 1.107441768 | I85: =ABS(F85)*$M$9+ABS(G85)*$N$9+ABS(H85)*$O$9 -> 27.03374146 | J85: =CONCATENATE(A85,"_",E85) -> 31_26
A86: 32 | B86: 249.1 | C86: 31 | D86: 41 | E86: 19 | F86: =IF(A86-M$14>180,360-(A86-M$14),IF(A86-M$14<-180,360+(A86-M$14),A86-M$14)) -> -0.4 | G86: =DEGREES(ACOS((2-ABS((COS(RADIANS(C86))*COS(RADIANS(B86))-COS(RADIANS(O$14))*COS(RADIANS(N$14)))^2+(COS(RADIANS(C86))*SIN(RADIANS(B86))-COS(RADIANS(O$14))*SIN(RADIANS(N$14)))^2+(SIN(RADIANS(C86))-SIN(RADIANS(O$14)))^2))/2)) -> 19.48488612 | H86: =SQRT(D86*D86-125)-P$14 -> -7.153834153 | I86: =ABS(F86)*$M$9+ABS(G86)*$N$9+ABS(H86)*$O$9 -> 27.03872028 | J86: =CONCATENATE(A86,"_",E86) -> 32_19
A87: 43 | B87: 289.6 | C87: 39.5 | D87: 49 | E87: 20 | F87: =IF(A87-M$14>180,360-(A87-M$14),IF(A87-M$14<-180,360+(A87-M$14),A87-M$14)) -> 10.6 | G87: =DEGREES(ACOS((2-ABS((COS(RADIANS(C87))*COS(RADIANS(B87))-COS(RADIANS(O$14))*COS(RADIANS(N$14)))^2+(COS(RADIANS(C87))*SIN(RADIANS(B87))-COS(RADIANS(O$14))*SIN(RADIANS(N$14)))^2+(SIN(RADIANS(C87))-SIN(RADIANS(O$14)))^2))/2)) -> 15.42870415 | H87: =SQRT(D87*D87-125)-P$14 -> 1.107441768 | I87: =ABS(F87)*$M$9+ABS(G87)*$N$9+ABS(H87)*$O$9 -> 27.13614592 | J87: =CONCATENATE(A87,"_",E87) -> 43_20
A88: 21 | B88: 269.6 | C88: 38.5 | D88: 58 | E88: 3 | F88: =IF(A88-M$14>180,360-(A88-M$14),IF(A88-M$14<-180,360+(A88-M$14),A88-M$14)) -> -11.4 | G88: =DEGREES(ACOS((2-ABS((COS(RADIANS(C88))*COS(RADIANS(B88))-COS(RADIANS(O$14))*COS(RADIANS(N$14)))^2+(COS(RADIANS(C88))*SIN(RADIANS(B88))-COS(RADIANS(O$14))*SIN(RADIANS(N$14)))^2+(SIN(RADIANS(C88))-SIN(RADIANS(O$14)))^2))/2)) -> 5.550915129 | H88: =SQRT(D88*D88-125)-P$14 -> 10.3122131 | I88: =ABS(F88)*$M$9+ABS(G88)*$N$9+ABS(H88)*$O$9 -> 27.26312823 | J88: =CONCATENATE(A88,"_",E88) -> 21_3
A89: 23 | B89: 254.8 | C89: 27.5 | D89: 50 | E89: 10 | F89: =IF(A89-M$14>180,360-(A89-M$14),IF(A89-M$14<-180,360+(A89-M$14),A89-M$14)) -> -9.4 | G89: =DEGREES(ACOS((2-ABS((COS(RADIANS(C89))*COS(RADIANS(B89))-COS(RADIANS(O$14))*COS(RADIANS(N$14)))^2+(COS(RADIANS(C89))*SIN(RADIANS(B89))-COS(RADIANS(O$14))*SIN(RADIANS(N$14)))^2+(SIN(RADIANS(C89))-SIN(RADIANS(O$14)))^2))/2)) -> 15.90332281 | H89: =SQRT(D89*D89-125)-P$14 -> 2.133971724 | I89: =ABS(F89)*$M$9+ABS(G89)*$N$9+ABS(H89)*$O$9 -> 27.43729454 | J89: =CONCATENATE(A89,"_",E89) -> 23_10
A90: 38 | B90: 284.3 | C90: 46 | D90: 42 | E90: 6 | F90: =IF(A90-M$14>180,360-(A90-M$14),IF(A90-M$14<-180,360+(A90-M$14),A90-M$14)) -> 5.6 | G90: =DEGREES(ACOS((2-ABS((COS(RADIANS(C90))*COS(RADIANS(B90))-COS(RADIANS(O$14))*COS(RADIANS(N$14)))^2+(COS(RADIANS(C90))*SIN(RADIANS(B90))-COS(RADIANS(O$14))*SIN(RADIANS(N$14)))^2+(SIN(RADIANS(C90))-SIN(RADIANS(O$14)))^2))/2)) -> 15.80227298 | H90: =SQRT(D90*D90-125)-P$14 -> -6.11543504 | I90: =ABS(F90)*$M$9+ABS(G90)*$N$9+ABS(H90)*$O$9 -> 27.51770802 | J90: =CONCATENATE(A90,"_",E90) -> 38_6
A91: 39 | B91: 294.6 | C91: 32.5 | D91: 46 | E91: 13 | F91: =IF(A91-M$14>180,360-(A91-M$14),IF(A91-M$14<-180,360+(A91-M$14),A91-M$14)) -> 6.6 | G91: =DEGREES(ACOS((2-ABS((COS(RADIANS(C91))*COS(RADIANS(B91))-COS(RADIANS(O$14))*COS(RADIANS(N$14)))^2+(COS(RADIANS(C91))*SIN(RADIANS(B91))-COS(RADIANS(O$14))*SIN(RADIANS(N$14)))^2+(SIN(RADIANS(C91))-SIN(RADIANS(O$14)))^2))/2)) -> 18.95527513 | H91: =SQRT(D91*D91-125)-P$14 -> -1.979376965 | I91: =ABS(F91)*$M$9+ABS(G91)*$N$9+ABS(H91)*$O$9 -> 27.5346521 | J91: =CONCATENATE(A91,"_",E91) -> 39_13
A92: 15 | B92: 274.2 | C92: 31 | D92: 55 | E92: 15 | F92: =IF(A92-M$14>180,360-(A92-M$14),IF(A92-M$14<-180,360+(A92-M$14),A92-M$14)) -> -17.4 | G92: =DEGREES(ACOS((2-ABS((COS(RADIANS(C92))*COS(RADIANS(B92))-COS(RADIANS(O$14))*COS(RADIANS(N$14)))^2+(COS(RADIANS(C92))*SIN(RADIANS(B92))-COS(RADIANS(O$14))*SIN(RADIANS(N$14)))^2+(SIN(RADIANS(C92))-SIN(RADIANS(O$14)))^2))/2)) -> 2.95944524 | H92: =SQRT(D92*D92-125)-P$14 -> 7.251648071 | I92: =ABS(F92)*$M$9+ABS(G92)*$N$9+ABS(H92)*$O$9 -> 27.61109331 | J92: =CONCATENATE(A92,"_",E92) -> 15_15
A93: 35 | B93: 296.6 | C93: 40.5 | D93: 52 | E93: 37 | F93: =IF(A93-M$14>180,360-(A93-M$14),IF(A93-M$14<-180,360+(A93-M$14),A93-M$14)) -> 2.6 | G93: =DEGREES(ACOS((2-ABS((COS(RADIANS(C93))*COS(RADIANS(B93))-COS(RADIANS(O$14))*COS(RADIANS(N$14)))^2+(COS(RADIANS(C93))*SIN(RADIANS(B93))-COS(RADIANS(O$14))*SIN(RADIANS(N$14)))^2+(SIN(RADIANS(C93))-SIN(RADIANS(O$14)))^2))/2)) -> 20.86383721 | H93: =SQRT(D93*D93-125)-P$14 -> 4.183855702 | I93: =ABS(F93)*$M$9+ABS(G93)*$N$9+ABS(H93)*$O$9 -> 27.64769292 | J93: =CONCATENATE(A93,"_",E93) -> 35_37
A94: 39 | B94: 261.8 | C94: 48.5 | D94: 44 | E94: 7 | F94: =IF(A94-M$14>180,360-(A94-M$14),IF(A94-M$14<-180,360+(A94-M$14),A94-M$14)) -> 6.6 | G94: =DEGREES(ACOS((2-ABS((COS(RADIANS(C94))*COS(RADIANS(B94))-COS(RADIANS(O$14))*COS(RADIANS(N$14)))^2+(COS(RADIANS(C94))*SIN(RADIANS(B94))-COS(RADIANS(O$14))*SIN(RADIANS(N$14)))^2+(SIN(RADIANS(C94))-SIN(RADIANS(O$14)))^2))/2)) -> 17.00805106 | H94: =SQRT(D94*D94-125)-P$14 -> -4.044154338 | I94: =ABS(F94)*$M$9+ABS(G94)*$N$9+ABS(H94)*$O$9 -> 27.6522054 | J94: =CONCATENATE(A94,"_",E94) -> 39_7
A95: 25 | B95: 289 | C95: 33.5 | D95: 42 | E95: 34 | F95: =IF(A95-M$14>180,360-(A95-M$14),IF(A95-M$14<-180,360+(A95-M$14),A95-M$14)) -> -7.4 | G95: =DEGREES(ACOS((2-ABS((COS(RADIANS(C95))*COS(RADIANS(B95))-COS(RADIANS(O$14))*COS(RADIANS(N$14)))^2+(COS(RADIANS(C95))*SIN(RADIANS(B95))-COS(RADIANS(O$14))*SIN(RADIANS(N$14)))^2+(SIN(RADIANS(C95))-SIN(RADIANS(O$14)))^2))/2)) -> 14.17794033 | H95: =SQRT(D95*D95-125)-P$14 -> -6.11543504 | I95: =ABS(F95)*$M$9+ABS(G95)*$N$9+ABS(H95)*$O$9 -> 27.69337537 | J95: =CONCATENATE(A95,"_",E95) -> 25_34
A96: 25 | B96: 293.3 | C96: 40.5 | D96: 46 | E96: 5 | F96: =IF(A96-M$14>180,360-(A96-M$14),IF(A96-M$14<-180,360+(A96-M$14),A96-M$14)) -> -7.4 | G96: =DEGREES(ACOS((2-ABS((COS(RADIANS(C96))*COS(RADIANS(B96))-COS(RADIANS(O$14))*COS(RADIANS(N$14)))^2+(COS(RADIANS(C96))*SIN(RADIANS(B96))-COS(RADIANS(O$14))*SIN(RADIANS(N$14)))^2+(SIN(RADIANS(C96))-SIN(RADIANS(O$14)))^2))/2)) -> 18.43176611 | H96: =SQRT(D96*D96-125)-P$14 -> -1.979376965 | I96: =ABS(F96)*$M$9+ABS(G96)*$N$9+ABS(H96)*$O$9 -> 27.81114308 | J96: =CONCATENATE(A96,"_",E96) -> 25_5
A97: 57 | B97: 274.4 | C97: 34 | D97: 49 | E97: 8 | F97: =IF(A97-M$14>180,360-(A97-M$14),IF(A97-M$14<-180,360+(A97-M$14),A97-M$14)) -> 24.6 | G97: =DEGREES(ACOS((2-ABS((COS(RADIANS(C97))*COS(RADIANS(B97))-COS(RADIANS(O$14))*COS(RADIANS(N$14)))^2+(COS(RADIANS(C97))*SIN(RADIANS(B97))-COS(RADIANS(O$14))*SIN(RADIANS(N$14)))^2+(SIN(RADIANS(C97))-SIN(RADIANS(O$14)))^2))/2)) -> 2.116864318 | H97: =SQRT(D97*D97-125)-P$14 -> 1.107441768 | I97: =ABS(F97)*$M$9+ABS(G97)*$N$9+ABS(H97)*$O$9 -> 27.82430609 | J97: =CONCATENATE(A97,"_",E97) -> 57_8
A98: 27 | B98: 283.4 | C98: 18 | D98: 44 | E98: 23 | F98: =IF(A98-M$14>180,360-(A98-M$14),IF(A98-M$14<-180,360+(A98-M$14),A98-M$14)) -> -5.4 | G98: =DEGREES(ACOS((2-ABS((COS(RADIANS(C98))*COS(RADIANS(B98))-COS(RADIANS(O$14))*COS(RADIANS(N$14)))^2+(COS(RADIANS(C98))*SIN(RADIANS(B98))-COS(RADIANS(O$14))*SIN(RADIANS(N$14)))^2+(SIN(RADIANS(C98))-SIN(RADIANS(O$14)))^2))/2)) -> 18.40018827 | H98: =SQRT(D98*D98-125)-P$14 -> -4.044154338 | I98: =ABS(F98)*$M$9+ABS(G98)*$N$9+ABS(H98)*$O$9 -> 27.84434261 | J98: =CONCATENATE(A98,"_",E98) -> 27_23
A99: 37 | B99: 276.9 | C99: 25 | D99: 34 | E99: 34 | F99: =IF(A99-M$14>180,360-(A99-M$14),IF(A99-M$14<-180,360+(A99-M$14),A99-M$14)) -> 4.6 | G99: =DEGREES(ACOS((2-ABS((COS(RADIANS(C99))*COS(RADIANS(B99))-COS(RADIANS(O$14))*COS(RADIANS(N$14)))^2+(COS(RADIANS(C99))*SIN(RADIANS(B99))-COS(RADIANS(O$14))*SIN(RADIANS(N$14)))^2+(SIN(RADIANS(C99))-SIN(RADIANS(O$14)))^2))/2)) -> 9.334808732 | H99: =SQRT(D99*D99-125)-P$14 -> -14.49081128 | I99: =ABS(F99)*$M$9+ABS(G99)*$N$9+ABS(H99)*$O$9 -> 28.42562002 | J99: =CONCATENATE(A99,"_",E99) -> 37_34
A100: 40 | B100: 294.6 | C100: 32.5 | D100: 46 | E100: 7 | F100: =IF(A100-M$14>180,360-(A100-M$14),IF(A100-M$14<-180,360+(A100-M$14),A100-M$14)) -> 7.6 | G100: =DEGREES(ACOS((2-ABS((COS(RADIANS(C100))*COS(RADIANS(B100))-COS(RADIANS(O$14))*COS(RADIANS(N$14)))^2+(COS(RADIANS(C100))*SIN(RADIANS(B100))-COS(RADIANS(O$14))*SIN(RADIANS(N$14)))^2+(SIN(RADIANS(C100))-SIN(RADIANS(O$14)))^2))/2)) -> 18.95527513 | H100: =SQRT(D100*D100-125)-P$14 -> -1.979376965 | I100: =ABS(F100)*$M$9+ABS(G100)*$N$9+ABS(H100)*$O$9 -> 28.5346521 | J100: =CONCATENATE(A100,"_",E100) -> 40_7
A101: 33 | B101: 297.9 | C101: 40.5 | D101: 42 | E101: 9 | F101: =IF(A101-M$14>180,360-(A101-M$14),IF(A101-M$14<-180,360+(A101-M$14),A101-M$14)) -> 0.6 | G101: =DEGREES(ACOS((2-ABS((COS(RADIANS(C101))*COS(RADIANS(B101))-COS(RADIANS(O$14))*COS(RADIANS(N$14)))^2+(COS(RADIANS(C101))*SIN(RADIANS(B101))-COS(RADIANS(O$14))*SIN(RADIANS(N$14)))^2+(SIN(RADIANS(C101))-SIN(RADIANS(O$14)))^2))/2)) -> 21.83198692 | H101: =SQRT(D101*D101-125)-P$14 -> -6.11543504 | I101: =ABS(F101)*$M$9+ABS(G101)*$N$9+ABS(H101)*$O$9 -> 28.54742196 | J101: =CONCATENATE(A101,"_",E101) -> 33_9
A102: 48 | B102: 264.2 | C102: 26 | D102: 45 | E102: 8 | F102: =IF(A102-M$14>180,360-(A102-M$14),IF(A102-M$14<-180,360+(A102-M$14),A102-M$14)) -> 15.6 | G102: =DEGREES(ACOS((2-ABS((COS(RADIANS(C102))*COS(RADIANS(B102))-COS(RADIANS(O$14))*COS(RADIANS(N$14)))^2+(COS(RADIANS(C102))*SIN(RADIANS(B102))-COS(RADIANS(O$14))*SIN(RADIANS(N$14)))^2+(SIN(RADIANS(C102))-SIN(RADIANS(O$14)))^2))/2)) -> 9.954928643 | H102: =SQRT(D102*D102-125)-P$14 -> -3.011010565 | I102: =ABS(F102)*$M$9+ABS(G102)*$N$9+ABS(H102)*$O$9 -> 28.56593921 | J102: =CONCATENATE(A102,"_",E102) -> 48_8
A103: 22 | B103: 265.8 | C103: 42 | D103: 40 | E103: 3 | F103: =IF(A103-M$14>180,360-(A103-M$14),IF(A103-M$14<-180,360+(A103-M$14),A103-M$14)) -> -10.4 | G103: =DEGREES(ACOS((2-ABS((COS(RADIANS(C103))*COS(RADIANS(B103))-COS(RADIANS(O$14))*COS(RADIANS(N$14)))^2+(COS(RADIANS(C103))*SIN(RADIANS(B103))-COS(RADIANS(O$14))*SIN(RADIANS(N$14)))^2+(SIN(RADIANS(C103))-SIN(RADIANS(O$14)))^2))/2)) -> 9.98244908 | H103: =SQRT(D103*D103-125)-P$14 -> -8.194271261 | I103: =ABS(F103)*$M$9+ABS(G103)*$N$9+ABS(H103)*$O$9 -> 28.57672034 | J103: =CONCATENATE(A103,"_",E103) -> 22_3
A104: 33 | B104: 245.6 | C104: 33 | D104: 42 | E104: 21 | F104: =IF(A104-M$14>180,360-(A104-M$14),IF(A104-M$14<-180,360+(A104-M$14),A104-M$14)) -> 0.6 | G104: =DEGREES(ACOS((2-ABS((COS(RADIANS(C104))*COS(RADIANS(B104))-COS(RADIANS(O$14))*COS(RADIANS(N$14)))^2+(COS(RADIANS(C104))*SIN(RADIANS(B104))-COS(RADIANS(O$14))*SIN(RADIANS(N$14)))^2+(SIN(RADIANS(C104))-SIN(RADIANS(O$14)))^2))/2)) -> 22.04586693 | H104: =SQRT(D104*D104-125)-P$14 -> -6.11543504 | I104: =ABS(F104)*$M$9+ABS(G104)*$N$9+ABS(H104)*$O$9 -> 28.76130197 | J104: =CONCATENATE(A104,"_",E104) -> 33_21
A105: 34 | B105: 298.5 | C105: 40.5 | D105: 43 | E105: 11 | F105: =IF(A105-M$14>180,360-(A105-M$14),IF(A105-M$14<-180,360+(A105-M$14),A105-M$14)) -> 1.6 | G105: =DEGREES(ACOS((2-ABS((COS(RADIANS(C105))*COS(RADIANS(B105))-COS(RADIANS(O$14))*COS(RADIANS(N$14)))^2+(COS(RADIANS(C105))*SIN(RADIANS(B105))-COS(RADIANS(O$14))*SIN(RADIANS(N$14)))^2+(SIN(RADIANS(C105))-SIN(RADIANS(O$14)))^2))/2)) -> 22.28033057 | H105: =SQRT(D105*D105-125)-P$14 -> -5.078921016 | I105: =ABS(F105)*$M$9+ABS(G105)*$N$9+ABS(H105)*$O$9 -> 28.95925159 | J105: =CONCATENATE(A105,"_",E105) -> 34_11
A106: 11 | B106: 271.2 | C106: 34.5 | D106: 54 | E106: 4 | F106: =IF(A106-M$14>180,360-(A106-M$14),IF(A106-M$14<-180,360+(A106-M$14),A106-M$14)) -> -21.4 | G106: =DEGREES(ACOS((2-ABS((COS(RADIANS(C106))*COS(RADIANS(B106))-COS(RADIANS(O$14))*COS(RADIANS(N$14)))^2+(COS(RADIANS(C106))*SIN(RADIANS(B106))-COS(RADIANS(O$14))*SIN(RADIANS(N$14)))^2+(SIN(RADIANS(C106))-SIN(RADIANS(O$14)))^2))/2)) -> 1.371447729 | H106: =SQRT(D106*D106-125)-P$14 -> 6.229915767 | I106: =ABS(F106)*$M$9+ABS(G106)*$N$9+ABS(H106)*$O$9 -> 29.0013635 | J106: =CONCATENATE(A106,"_",E106) -> 11_4
A107: 50 | B107: 285.6 | C107: 33 | D107: 48 | E107: 28 | F107: =IF(A107-M$14>180,360-(A107-M$14),IF(A107-M$14<-180,360+(A107-M$14),A107-M$14)) -> 17.6 | G107: =DEGREES(ACOS((2-ABS((COS(RADIANS(C107))*COS(RADIANS(B107))-COS(RADIANS(O$14))*COS(RADIANS(N$14)))^2+(COS(RADIANS(C107))*SIN(RADIANS(B107))-COS(RADIANS(O$14))*SIN(RADIANS(N$14)))^2+(SIN(RADIANS(C107))-SIN(RADIANS(O$14)))^2))/2)) -> 11.38239024 | H107: =SQRT(D107*D107-125)-P$14 -> 0.07976006794 | I107: =ABS(F107)*$M$9+ABS(G107)*$N$9+ABS(H107)*$O$9 -> 29.06215031 | J107: =CONCATENATE(A107,"_",E107) -> 50_28
A108: 38 | B108: 291.1 | C108: 31 | D108: 41 | E108: 25 | F108: =IF(A108-M$14>180,360-(A108-M$14),IF(A108-M$14<-180,360+(A108-M$14),A108-M$14)) -> 5.6 | G108: =DEGREES(ACOS((2-ABS((COS(RADIANS(C108))*COS(RADIANS(B108))-COS(RADIANS(O$14))*COS(RADIANS(N$14)))^2+(COS(RADIANS(C108))*SIN(RADIANS(B108))-COS(RADIANS(O$14))*SIN(RADIANS(N$14)))^2+(SIN(RADIANS(C108))-SIN(RADIANS(O$14)))^2))/2)) -> 16.31040152 | H108: =SQRT(D108*D108-125)-P$14 -> -7.153834153 | I108: =ABS(F108)*$M$9+ABS(G108)*$N$9+ABS(H108)*$O$9 -> 29.06423567 | J108: =CONCATENATE(A108,"_",E108) -> 38_25
A109: 10 | B109: 268.6 | C109: 37 | D109: 50 | E109: 25 | F109: =IF(A109-M$14>180,360-(A109-M$14),IF(A109-M$14<-180,360+(A109-M$14),A109-M$14)) -> -22.4 | G109: =DEGREES(ACOS((2-ABS((COS(RADIANS(C109))*COS(RADIANS(B109))-COS(RADIANS(O$14))*COS(RADIANS(N$14)))^2+(COS(RADIANS(C109))*SIN(RADIANS(B109))-COS(RADIANS(O$14))*SIN(RADIANS(N$14)))^2+(SIN(RADIANS(C109))-SIN(RADIANS(O$14)))^2))/2)) -> 4.627199643 | H109: =SQRT(D109*D109-125)-P$14 -> 2.133971724 | I109: =ABS(F109)*$M$9+ABS(G109)*$N$9+ABS(H109)*$O$9 -> 29.16117137 | J109: =CONCATENATE(A109,"_",E109) -> 10_25
A110: 27 | B110: 297.9 | C110: 40.5 | D110: 46 | E110: 4 | F110: =IF(A110-M$14>180,360-(A110-M$14),IF(A110-M$14<-180,360+(A110-M$14),A110-M$14)) -> -5.4 | G110: =DEGREES(ACOS((2-ABS((COS(RADIANS(C110))*COS(RADIANS(B110))-COS(RADIANS(O$14))*COS(RADIANS(N$14)))^2+(COS(RADIANS(C110))*SIN(RADIANS(B110))-COS(RADIANS(O$14))*SIN(RADIANS(N$14)))^2+(SIN(RADIANS(C110))-SIN(RADIANS(O$14)))^2))/2)) -> 21.83198692 | H110: =SQRT(D110*D110-125)-P$14 -> -1.979376965 | I110: =ABS(F110)*$M$9+ABS(G110)*$N$9+ABS(H110)*$O$9 -> 29.21136388 | J110: =CONCATENATE(A110,"_",E110) -> 27_4
A111: 27 | B111: 282.8 | C111: 42.5 | D111: 37 | E111: 24 | F111: =IF(A111-M$14>180,360-(A111-M$14),IF(A111-M$14<-180,360+(A111-M$14),A111-M$14)) -> -5.4 | G111: =DEGREES(ACOS((2-ABS((COS(RADIANS(C111))*COS(RADIANS(B111))-COS(RADIANS(O$14))*COS(RADIANS(N$14)))^2+(COS(RADIANS(C111))*SIN(RADIANS(B111))-COS(RADIANS(O$14))*SIN(RADIANS(N$14)))^2+(SIN(RADIANS(C111))-SIN(RADIANS(O$14)))^2))/2)) -> 12.51976571 | H111: =SQRT(D111*D111-125)-P$14 -> -11.32961582 | I111: =ABS(F111)*$M$9+ABS(G111)*$N$9+ABS(H111)*$O$9 -> 29.24938154 | J111: =CONCATENATE(A111,"_",E111) -> 27_24
A112: 21 | B112: 287.4 | C112: 43.5 | D112: 50 | E112: 21 | F112: =IF(A112-M$14>180,360-(A112-M$14),IF(A112-M$14<-180,360+(A112-M$14),A112-M$14)) -> -11.4 | G112: =DEGREES(ACOS((2-ABS((COS(RADIANS(C112))*COS(RADIANS(B112))-COS(RADIANS(O$14))*COS(RADIANS(N$14)))^2+(COS(RADIANS(C112))*SIN(RADIANS(B112))-COS(RADIANS(O$14))*SIN(RADIANS(N$14)))^2+(SIN(RADIANS(C112))-SIN(RADIANS(O$14)))^2))/2)) -> 15.75582985 | H112: =SQRT(D112*D112-125)-P$14 -> 2.133971724 | I112: =ABS(F112)*$M$9+ABS(G112)*$N$9+ABS(H112)*$O$9 -> 29.28980157 | J112: =CONCATENATE(A112,"_",E112) -> 21_21
A113: 15 | B113: 284.2 | C113: 37.5 | D113: 49 | E113: 24 | F113: =IF(A113-M$14>180,360-(A113-M$14),IF(A113-M$14<-180,360+(A113-M$14),A113-M$14)) -> -17.4 | G113: =DEGREES(ACOS((2-ABS((COS(RADIANS(C113))*COS(RADIANS(B113))-COS(RADIANS(O$14))*COS(RADIANS(N$14)))^2+(COS(RADIANS(C113))*SIN(RADIANS(B113))-COS(RADIANS(O$14))*SIN(RADIANS(N$14)))^2+(SIN(RADIANS(C113))-SIN(RADIANS(O$14)))^2))/2)) -> 10.78411308 | H113: =SQRT(D113*D113-125)-P$14 -> 1.107441768 | I113: =ABS(F113)*$M$9+ABS(G113)*$N$9+ABS(H113)*$O$9 -> 29.29155485 | J113: =CONCATENATE(A113,"_",E113) -> 15_24
A114: 38 | B114: 272.2 | C114: 54 | D114: 45 | E114: 43 | F114: =IF(A114-M$14>180,360-(A114-M$14),IF(A114-M$14<-180,360+(A114-M$14),A114-M$14)) -> 5.6 | G114: =DEGREES(ACOS((2-ABS((COS(RADIANS(C114))*COS(RADIANS(B114))-COS(RADIANS(O$14))*COS(RADIANS(N$14)))^2+(COS(RADIANS(C114))*SIN(RADIANS(B114))-COS(RADIANS(O$14))*SIN(RADIANS(N$14)))^2+(SIN(RADIANS(C114))-SIN(RADIANS(O$14)))^2))/2)) -> 20.70048514 | H114: =SQRT(D114*D114-125)-P$14 -> -3.011010565 | I114: =ABS(F114)*$M$9+ABS(G114)*$N$9+ABS(H114)*$O$9 -> 29.31149571 | J114: =CONCATENATE(A114,"_",E114) -> 38_43
A115: 34 | B115: 269.8 | C115: 20 | D115: 62 | E115: 27 | F115: =IF(A115-M$14>180,360-(A115-M$14),IF(A115-M$14<-180,360+(A115-M$14),A115-M$14)) -> 1.6 | G115: =DEGREES(ACOS((2-ABS((COS(RADIANS(C115))*COS(RADIANS(B115))-COS(RADIANS(O$14))*COS(RADIANS(N$14)))^2+(COS(RADIANS(C115))*SIN(RADIANS(B115))-COS(RADIANS(O$14))*SIN(RADIANS(N$14)))^2+(SIN(RADIANS(C115))-SIN(RADIANS(O$14)))^2))/2)) -> 13.44342232 | H115: =SQRT(D115*D115-125)-P$14 -> 14.38360435 | I115: =ABS(F115)*$M$9+ABS(G115)*$N$9+ABS(H115)*$O$9 -> 29.42702667 | J115: =CONCATENATE(A115,"_",E115) -> 34_27
A116: 9 | B116: 276.1 | C116: 37 | D116: 49 | E116: 3 | F116: =IF(A116-M$14>180,360-(A116-M$14),IF(A116-M$14<-180,360+(A116-M$14),A116-M$14)) -> -23.4 | G116: =DEGREES(ACOS((2-ABS((COS(RADIANS(C116))*COS(RADIANS(B116))-COS(RADIANS(O$14))*COS(RADIANS(N$14)))^2+(COS(RADIANS(C116))*SIN(RADIANS(B116))-COS(RADIANS(O$14))*SIN(RADIANS(N$14)))^2+(SIN(RADIANS(C116))-SIN(RADIANS(O$14)))^2))/2)) -> 4.991690954 | H116: =SQRT(D116*D116-125)-P$14 -> 1.107441768 | I116: =ABS(F116)*$M$9+ABS(G116)*$N$9+ABS(H116)*$O$9 -> 29.49913272 | J116: =CONCATENATE(A116,"_",E116) -> 9_3
A117: 36 | B117: 282.5 | C117: 48 | D117: 39 | E117: 16 | F117: =IF(A117-M$14>180,360-(A117-M$14),IF(A117-M$14<-180,360+(A117-M$14),A117-M$14)) -> 3.6 | G117: =DEGREES(ACOS((2-ABS((COS(RADIANS(C117))*COS(RADIANS(B117))-COS(RADIANS(O$14))*COS(RADIANS(N$14)))^2+(COS(RADIANS(C117))*SIN(RADIANS(B117))-COS(RADIANS(O$14))*SIN(RADIANS(N$14)))^2+(SIN(RADIANS(C117))-SIN(RADIANS(O$14)))^2))/2)) -> 16.68397667 | H117: =SQRT(D117*D117-125)-P$14 -> -9.236916615 | I117: =ABS(F117)*$M$9+ABS(G117)*$N$9+ABS(H117)*$O$9 -> 29.52089328 | J117: =CONCATENATE(A117,"_",E117) -> 36_16
A118: 46 | B118: 263.7 | C118: 42 | D118: 43 | E118: 20 | F118: =IF(A118-M$14>180,360-(A118-M$14),IF(A118-M$14<-180,360+(A118-M$14),A118-M$14)) -> 13.6 | G118: =DEGREES(ACOS((2-ABS((COS(RADIANS(C118))*COS(RADIANS(B118))-COS(RADIANS(O$14))*COS(RADIANS(N$14)))^2+(COS(RADIANS(C118))*SIN(RADIANS(B118))-COS(RADIANS(O$14))*SIN(RADIANS(N$14)))^2+(SIN(RADIANS(C118))-SIN(RADIANS(O$14)))^2))/2)) -> 10.89109724 | H118: =SQRT(D118*D118-125)-P$14 -> -5.078921016 | I118: =ABS(F118)*$M$9+ABS(G118)*$N$9+ABS(H118)*$O$9 -> 29.57001826 | J118: =CONCATENATE(A118,"_",E118) -> 46_20
A119: 33 | B119: 295.2 | C119: 25 | D119: 41 | E119: 23 | F119: =IF(A119-M$14>180,360-(A119-M$14),IF(A119-M$14<-180,360+(A119-M$14),A119-M$14)) -> 0.6 | G119: =DEGREES(ACOS((2-ABS((COS(RADIANS(C119))*COS(RADIANS(B119))-COS(RADIANS(O$14))*COS(RADIANS(N$14)))^2+(COS(RADIANS(C119))*SIN(RADIANS(B119))-COS(RADIANS(O$14))*SIN(RADIANS(N$14)))^2+(SIN(RADIANS(C119))-SIN(RADIANS(O$14)))^2))/2)) -> 21.83313377 | H119: =SQRT(D119*D119-125)-P$14 -> -7.153834153 | I119: =ABS(F119)*$M$9+ABS(G119)*$N$9+ABS(H119)*$O$9 -> 29.58696793 | J119: =CONCATENATE(A119,"_",E119) -> 33_23
A120: 41 | B120: 286.2 | C120: 28.5 | D120: 40 | E120: 26 | F120: =IF(A120-M$14>180,360-(A120-M$14),IF(A120-M$14<-180,360+(A120-M$14),A120-M$14)) -> 8.6 | G120: =DEGREES(ACOS((2-ABS((COS(RADIANS(C120))*COS(RADIANS(B120))-COS(RADIANS(O$14))*COS(RADIANS(N$14)))^2+(COS(RADIANS(C120))*SIN(RADIANS(B120))-COS(RADIANS(O$14))*SIN(RADIANS(N$14)))^2+(SIN(RADIANS(C120))-SIN(RADIANS(O$14)))^2))/2)) -> 13.08132197 | H120: =SQRT(D120*D120-125)-P$14 -> -8.194271261 | I120: =ABS(F120)*$M$9+ABS(G120)*$N$9+ABS(H120)*$O$9 -> 29.87559323 | J120: =CONCATENATE(A120,"_",E120) -> 41_26
A121: 47 | B121: 271 | C121: 35 | D121: 35 | E121: 11 | F121: =IF(A121-M$14>180,360-(A121-M$14),IF(A121-M$14<-180,360+(A121-M$14),A121-M$14)) -> 14.6 | G121: =DEGREES(ACOS((2-ABS((COS(RADIANS(C121))*COS(RADIANS(B121))-COS(RADIANS(O$14))*COS(RADIANS(N$14)))^2+(COS(RADIANS(C121))*SIN(RADIANS(B121))-COS(RADIANS(O$14))*SIN(RADIANS(N$14)))^2+(SIN(RADIANS(C121))-SIN(RADIANS(O$14)))^2))/2)) -> 1.890700477 | H121: =SQRT(D121*D121-125)-P$14 -> -13.4337521 | I121: =ABS(F121)*$M$9+ABS(G121)*$N$9+ABS(H121)*$O$9 -> 29.92445257 | J121: =CONCATENATE(A121,"_",E121) -> 47_11
A122: 28 | B122: 302.2 | C122: 43 | D122: 48 | E122: 5 | F122: =IF(A122-M$14>180,360-(A122-M$14),IF(A122-M$14<-180,360+(A122-M$14),A122-M$14)) -> -4.4 | G122: =DEGREES(ACOS((2-ABS((COS(RADIANS(C122))*COS(RADIANS(B122))-COS(RADIANS(O$14))*COS(RADIANS(N$14)))^2+(COS(RADIANS(C122))*SIN(RADIANS(B122))-COS(RADIANS(O$14))*SIN(RADIANS(N$14)))^2+(SIN(RADIANS(C122))-SIN(RADIANS(O$14)))^2))/2)) -> 25.47958558 | H122: =SQRT(D122*D122-125)-P$14 -> 0.07976006794 | I122: =ABS(F122)*$M$9+ABS(G122)*$N$9+ABS(H122)*$O$9 -> 29.95934565 | J122: =CONCATENATE(A122,"_",E122) -> 28_5
A123: 50 | B123: 275.8 | C123: 24.5 | D123: 45 | E123: 12 | F123: =IF(A123-M$14>180,360-(A123-M$14),IF(A123-M$14<-180,360+(A123-M$14),A123-M$14)) -> 17.6 | G123: =DEGREES(ACOS((2-ABS((COS(RADIANS(C123))*COS(RADIANS(B123))-COS(RADIANS(O$14))*COS(RADIANS(N$14)))^2+(COS(RADIANS(C123))*SIN(RADIANS(B123))-COS(RADIANS(O$14))*SIN(RADIANS(N$14)))^2+(SIN(RADIANS(C123))-SIN(RADIANS(O$14)))^2))/2)) -> 9.405568668 | H123: =SQRT(D123*D123-125)-P$14 -> -3.011010565 | I123: =ABS(F123)*$M$9+ABS(G123)*$N$9+ABS(H123)*$O$9 -> 30.01657923 | J123: =CONCATENATE(A123,"_",E123) -> 50_12
A124: 17 | B124: 257.2 | C124: 28.5 | D124: 49 | E124: 27 | F124: =IF(A124-M$14>180,360-(A124-M$14),IF(A124-M$14<-180,360+(A124-M$14),A124-M$14)) -> -15.4 | G124: =DEGREES(ACOS((2-ABS((COS(RADIANS(C124))*COS(RADIANS(B124))-COS(RADIANS(O$14))*COS(RADIANS(N$14)))^2+(COS(RADIANS(C124))*SIN(RADIANS(B124))-COS(RADIANS(O$14))*SIN(RADIANS(N$14)))^2+(SIN(RADIANS(C124))-SIN(RADIANS(O$14)))^2))/2)) -> 13.56024665 | H124: =SQRT(D124*D124-125)-P$14 -> 1.107441768 | I124: =ABS(F124)*$M$9+ABS(G124)*$N$9+ABS(H124)*$O$9 -> 30.06768842 | J124: =CONCATENATE(A124,"_",E124) -> 17_27
A125: 30 | B125: 287.6 | C125: 26 | D125: 60 | E125: 24 | F125: =IF(A125-M$14>180,360-(A125-M$14),IF(A125-M$14<-180,360+(A125-M$14),A125-M$14)) -> -2.4 | G125: =DEGREES(ACOS((2-ABS((COS(RADIANS(C125))*COS(RADIANS(B125))-COS(RADIANS(O$14))*COS(RADIANS(N$14)))^2+(COS(RADIANS(C125))*SIN(RADIANS(B125))-COS(RADIANS(O$14))*SIN(RADIANS(N$14)))^2+(SIN(RADIANS(C125))-SIN(RADIANS(O$14)))^2))/2)) -> 15.37277586 | H125: =SQRT(D125*D125-125)-P$14 -> 12.34913061 | I125: =ABS(F125)*$M$9+ABS(G125)*$N$9+ABS(H125)*$O$9 -> 30.12190647 | J125: =CONCATENATE(A125,"_",E125) -> 30_24
A126: 19 | B126: 287.5 | C126: 38.5 | D126: 51 | E126: 18 | F126: =IF(A126-M$14>180,360-(A126-M$14),IF(A126-M$14<-180,360+(A126-M$14),A126-M$14)) -> -13.4 | G126: =DEGREES(ACOS((2-ABS((COS(RADIANS(C126))*COS(RADIANS(B126))-COS(RADIANS(O$14))*COS(RADIANS(N$14)))^2+(COS(RADIANS(C126))*SIN(RADIANS(B126))-COS(RADIANS(O$14))*SIN(RADIANS(N$14)))^2+(SIN(RADIANS(C126))-SIN(RADIANS(O$14)))^2))/2)) -> 13.56737728 | H126: =SQRT(D126*D126-125)-P$14 -> 3.159421218 | I126: =ABS(F126)*$M$9+ABS(G126)*$N$9+ABS(H126)*$O$9 -> 30.1267985 | J126: =CONCATENATE(A126,"_",E126) -> 19_18
A127: 23 | B127: 289.2 | C127: 45 | D127: 51 | E127: 40 | F127: =IF(A127-M$14>180,360-(A127-M$14),IF(A127-M$14<-180,360+(A127-M$14),A127-M$14)) -> -9.4 | G127: =DEGREES(ACOS((2-ABS((COS(RADIANS(C127))*COS(RADIANS(B127))-COS(RADIANS(O$14))*COS(RADIANS(N$14)))^2+(COS(RADIANS(C127))*SIN(RADIANS(B127))-COS(RADIANS(O$14))*SIN(RADIANS(N$14)))^2+(SIN(RADIANS(C127))-SIN(RADIANS(O$14)))^2))/2)) -> 17.67536861 | H127: =SQRT(D127*D127-125)-P$14 -> 3.159421218 | I127: =ABS(F127)*$M$9+ABS(G127)*$N$9+ABS(H127)*$O$9 -> 30.23478983 | J127: =CONCATENATE(A127,"_",E127) -> 23_40
A128: 17 | B128: 287.5 | C128: 35 | D128: 46 | E128: 35 | F128: =IF(A128-M$14>180,360-(A128-M$14),IF(A128-M$14<-180,360+(A128-M$14),A128-M$14)) -> -15.4 | G128: =DEGREES(ACOS((2-ABS((COS(RADIANS(C128))*COS(RADIANS(B128))-COS(RADIANS(O$14))*COS(RADIANS(N$14)))^2+(COS(RADIANS(C128))*SIN(RADIANS(B128))-COS(RADIANS(O$14))*SIN(RADIANS(N$14)))^2+(SIN(RADIANS(C128))-SIN(RADIANS(O$14)))^2))/2)) -> 12.92611694 | H128: =SQRT(D128*D128-125)-P$14 -> -1.979376965 | I128: =ABS(F128)*$M$9+ABS(G128)*$N$9+ABS(H128)*$O$9 -> 30.30549391 | J128: =CONCATENATE(A128,"_",E128) -> 17_35
A129: 16 | B129: 258.2 | C129: 38 | D129: 46 | E129: 12 | F129: =IF(A129-M$14>180,360-(A129-M$14),IF(A129-M$14<-180,360+(A129-M$14),A129-M$14)) -> -16.4 | G129: =DEGREES(ACOS((2-ABS((COS(RADIANS(C129))*COS(RADIANS(B129))-COS(RADIANS(O$14))*COS(RADIANS(N$14)))^2+(COS(RADIANS(C129))*SIN(RADIANS(B129))-COS(RADIANS(O$14))*SIN(RADIANS(N$14)))^2+(SIN(RADIANS(C129))-SIN(RADIANS(O$14)))^2))/2)) -> 12.14298583 | H129: =SQRT(D129*D129-125)-P$14 -> -1.979376965 | I129: =ABS(F129)*$M$9+ABS(G129)*$N$9+ABS(H129)*$O$9 -> 30.52236279 | J129: =CONCATENATE(A129,"_",E129) -> 16_12
A130: 39 | B130: 284.3 | C130: 46 | D130: 40 | E130: 10 | F130: =IF(A130-M$14>180,360-(A130-M$14),IF(A130-M$14<-180,360+(A130-M$14),A130-M$14)) -> 6.6 | G130: =DEGREES(ACOS((2-ABS((COS(RADIANS(C130))*COS(RADIANS(B130))-COS(RADIANS(O$14))*COS(RADIANS(N$14)))^2+(COS(RADIANS(C130))*SIN(RADIANS(B130))-COS(RADIANS(O$14))*SIN(RADIANS(N$14)))^2+(SIN(RADIANS(C130))-SIN(RADIANS(O$14)))^2))/2)) -> 15.80227298 | H130: =SQRT(D130*D130-125)-P$14 -> -8.194271261 | I130: =ABS(F130)*$M$9+ABS(G130)*$N$9+ABS(H130)*$O$9 -> 30.59654424 | J130: =CONCATENATE(A130,"_",E130) -> 39_10
A131: 37 | B131: 284.9 | C131: 13.5 | D131: 51 | E131: 41 | F131: =IF(A131-M$14>180,360-(A131-M$14),IF(A131-M$14<-180,360+(A131-M$14),A131-M$14)) -> 4.6 | G131: =DEGREES(ACOS((2-ABS((COS(RADIANS(C131))*COS(RADIANS(B131))-COS(RADIANS(O$14))*COS(RADIANS(N$14)))^2+(COS(RADIANS(C131))*SIN(RADIANS(B131))-COS(RADIANS(O$14))*SIN(RADIANS(N$14)))^2+(SIN(RADIANS(C131))-SIN(RADIANS(O$14)))^2))/2)) -> 23.01993652 | H131: =SQRT(D131*D131-125)-P$14 -> 3.159421218 | I131: =ABS(F131)*$M$9+ABS(G131)*$N$9+ABS(H131)*$O$9 -> 30.77935774 | J131: =CONCATENATE(A131,"_",E131) -> 37_41
A132: 34 | B132: 245.6 | C132: 33 | D132: 41 | E132: 39 | F132: =IF(A132-M$14>180,360-(A132-M$14),IF(A132-M$14<-180,360+(A132-M$14),A132-M$14)) -> 1.6 | G132: =DEGREES(ACOS((2-ABS((COS(RADIANS(C132))*COS(RADIANS(B132))-COS(RADIANS(O$14))*COS(RADIANS(N$14)))^2+(COS(RADIANS(C132))*SIN(RADIANS(B132))-COS(RADIANS(O$14))*SIN(RADIANS(N$14)))^2+(SIN(RADIANS(C132))-SIN(RADIANS(O$14)))^2))/2)) -> 22.04586693 | H132: =SQRT(D132*D132-125)-P$14 -> -7.153834153 | I132: =ABS(F132)*$M$9+ABS(G132)*$N$9+ABS(H132)*$O$9 -> 30.79970108 | J132: =CONCATENATE(A132,"_",E132) -> 34_39
A133: 40 | B133: 265.4 | C133: 14 | D133: 45 | E133: 46 | F133: =IF(A133-M$14>180,360-(A133-M$14),IF(A133-M$14<-180,360+(A133-M$14),A133-M$14)) -> 7.6 | G133: =DEGREES(ACOS((2-ABS((COS(RADIANS(C133))*COS(RADIANS(B133))-COS(RADIANS(O$14))*COS(RADIANS(N$14)))^2+(COS(RADIANS(C133))*SIN(RADIANS(B133))-COS(RADIANS(O$14))*SIN(RADIANS(N$14)))^2+(SIN(RADIANS(C133))-SIN(RADIANS(O$14)))^2))/2)) -> 20.21105274 | H133: =SQRT(D133*D133-125)-P$14 -> -3.011010565 | I133: =ABS(F133)*$M$9+ABS(G133)*$N$9+ABS(H133)*$O$9 -> 30.8220633 | J133: =CONCATENATE(A133,"_",E133) -> 40_46
A134: 28 | B134: 286.3 | C134: 23 | D134: 38 | E134: 30 | F134: =IF(A134-M$14>180,360-(A134-M$14),IF(A134-M$14<-180,360+(A134-M$14),A134-M$14)) -> -4.4 | G134: =DEGREES(ACOS((2-ABS((COS(RADIANS(C134))*COS(RADIANS(B134))-COS(RADIANS(O$14))*COS(RADIANS(N$14)))^2+(COS(RADIANS(C134))*SIN(RADIANS(B134))-COS(RADIANS(O$14))*SIN(RADIANS(N$14)))^2+(SIN(RADIANS(C134))-SIN(RADIANS(O$14)))^2))/2)) -> 16.25061834 | H134: =SQRT(D134*D134-125)-P$14 -> -10.28196041 | I134: =ABS(F134)*$M$9+ABS(G134)*$N$9+ABS(H134)*$O$9 -> 30.93257874 | J134: =CONCATENATE(A134,"_",E134) -> 28_30
A135: 31 | B135: 284.3 | C135: 45 | D135: 34 | E135: 38 | F135: =IF(A135-M$14>180,360-(A135-M$14),IF(A135-M$14<-180,360+(A135-M$14),A135-M$14)) -> -1.4 | G135: =DEGREES(ACOS((2-ABS((COS(RADIANS(C135))*COS(RADIANS(B135))-COS(RADIANS(O$14))*COS(RADIANS(N$14)))^2+(COS(RADIANS(C135))*SIN(RADIANS(B135))-COS(RADIANS(O$14))*SIN(RADIANS(N$14)))^2+(SIN(RADIANS(C135))-SIN(RADIANS(O$14)))^2))/2)) -> 15.05947802 | H135: =SQRT(D135*D135-125)-P$14 -> -14.49081128 | I135: =ABS(F135)*$M$9+ABS(G135)*$N$9+ABS(H135)*$O$9 -> 30.9502893 | J135: =CONCATENATE(A135,"_",E135) -> 31_38
A136: 27 | B136: 254.3 | C136: 43 | D136: 39 | E136: 19 | F136: =IF(A136-M$14>180,360-(A136-M$14),IF(A136-M$14<-180,360+(A136-M$14),A136-M$14)) -> -5.4 | G136: =DEGREES(ACOS((2-ABS((COS(RADIANS(C136))*COS(RADIANS(B136))-COS(RADIANS(O$14))*COS(RADIANS(N$14)))^2+(COS(RADIANS(C136))*SIN(RADIANS(B136))-COS(RADIANS(O$14))*SIN(RADIANS(N$14)))^2+(SIN(RADIANS(C136))-SIN(RADIANS(O$14)))^2))/2)) -> 16.90921558 | H136: =SQRT(D136*D136-125)-P$14 -> -9.236916615 | I136: =ABS(F136)*$M$9+ABS(G136)*$N$9+ABS(H136)*$O$9 -> 31.54613219 | J136: =CONCATENATE(A136,"_",E136) -> 27_19
A137: 33 | B137: 274.2 | C137: 32 | D137: 21 | E137: 38 | F137: =IF(A137-M$14>180,360-(A137-M$14),IF(A137-M$14<-180,360+(A137-M$14),A137-M$14)) -> 0.6 | G137: =DEGREES(ACOS((2-ABS((COS(RADIANS(C137))*COS(RADIANS(B137))-COS(RADIANS(O$14))*COS(RADIANS(N$14)))^2+(COS(RADIANS(C137))*SIN(RADIANS(B137))-COS(RADIANS(O$14))*SIN(RADIANS(N$14)))^2+(SIN(RADIANS(C137))-SIN(RADIANS(O$14)))^2))/2)) -> 2.262915614 | H137: =SQRT(D137*D137-125)-P$14 -> -28.82361117 | I137: =ABS(F137)*$M$9+ABS(G137)*$N$9+ABS(H137)*$O$9 -> 31.68652678 | J137: =CONCATENATE(A137,"_",E137) -> 33_38
A138: 19 | B138: 255.8 | C138: 30 | D138: 52 | E138: 28 | F138: =IF(A138-M$14>180,360-(A138-M$14),IF(A138-M$14<-180,360+(A138-M$14),A138-M$14)) -> -13.4 | G138: =DEGREES(ACOS((2-ABS((COS(RADIANS(C138))*COS(RADIANS(B138))-COS(RADIANS(O$14))*COS(RADIANS(N$14)))^2+(COS(RADIANS(C138))*SIN(RADIANS(B138))-COS(RADIANS(O$14))*SIN(RADIANS(N$14)))^2+(SIN(RADIANS(C138))-SIN(RADIANS(O$14)))^2))/2)) -> 14.16355763 | H138: =SQRT(D138*D138-125)-P$14 -> 4.183855702 | I138: =ABS(F138)*$M$9+ABS(G138)*$N$9+ABS(H138)*$O$9 -> 31.74741333 | J138: =CONCATENATE(A138,"_",E138) -> 19_28
A139: 33 | B139: 261.7 | C139: 21.5 | D139: 64 | E139: 45 | F139: =IF(A139-M$14>180,360-(A139-M$14),IF(A139-M$14<-180,360+(A139-M$14),A139-M$14)) -> 0.6 | G139: =DEGREES(ACOS((2-ABS((COS(RADIANS(C139))*COS(RADIANS(B139))-COS(RADIANS(O$14))*COS(RADIANS(N$14)))^2+(COS(RADIANS(C139))*SIN(RADIANS(B139))-COS(RADIANS(O$14))*SIN(RADIANS(N$14)))^2+(SIN(RADIANS(C139))-SIN(RADIANS(O$14)))^2))/2)) -> 14.90901919 | H139: =SQRT(D139*D139-125)-P$14 -> 16.41587102 | I139: =ABS(F139)*$M$9+ABS(G139)*$N$9+ABS(H139)*$O$9 -> 31.92489021 | J139: =CONCATENATE(A139,"_",E139) -> 33_45
A140: 24 | B140: 293 | C140: 35.5 | D140: 42 | E140: 17 | F140: =IF(A140-M$14>180,360-(A140-M$14),IF(A140-M$14<-180,360+(A140-M$14),A140-M$14)) -> -8.4 | G140: =DEGREES(ACOS((2-ABS((COS(RADIANS(C140))*COS(RADIANS(B140))-COS(RADIANS(O$14))*COS(RADIANS(N$14)))^2+(COS(RADIANS(C140))*SIN(RADIANS(B140))-COS(RADIANS(O$14))*SIN(RADIANS(N$14)))^2+(SIN(RADIANS(C140))-SIN(RADIANS(O$14)))^2))/2)) -> 17.43296212 | H140: =SQRT(D140*D140-125)-P$14 -> -6.11543504 | I140: =ABS(F140)*$M$9+ABS(G140)*$N$9+ABS(H140)*$O$9 -> 31.94839716 | J140: =CONCATENATE(A140,"_",E140) -> 24_17
A141: 22 | B141: 246.4 | C141: 32 | D141: 48 | E141: 27 | F141: =IF(A141-M$14>180,360-(A141-M$14),IF(A141-M$14<-180,360+(A141-M$14),A141-M$14)) -> -10.4 | G141: =DEGREES(ACOS((2-ABS((COS(RADIANS(C141))*COS(RADIANS(B141))-COS(RADIANS(O$14))*COS(RADIANS(N$14)))^2+(COS(RADIANS(C141))*SIN(RADIANS(B141))-COS(RADIANS(O$14))*SIN(RADIANS(N$14)))^2+(SIN(RADIANS(C141))-SIN(RADIANS(O$14)))^2))/2)) -> 21.54006966 | H141: =SQRT(D141*D141-125)-P$14 -> 0.07976006794 | I141: =ABS(F141)*$M$9+ABS(G141)*$N$9+ABS(H141)*$O$9 -> 32.01982973 | J141: =CONCATENATE(A141,"_",E141) -> 22_27
A142: 7 | B142: 277.3 | C142: 34.5 | D142: 50 | E142: 10 | F142: =IF(A142-M$14>180,360-(A142-M$14),IF(A142-M$14<-180,360+(A142-M$14),A142-M$14)) -> -25.4 | G142: =DEGREES(ACOS((2-ABS((COS(RADIANS(C142))*COS(RADIANS(B142))-COS(RADIANS(O$14))*COS(RADIANS(N$14)))^2+(COS(RADIANS(C142))*SIN(RADIANS(B142))-COS(RADIANS(O$14))*SIN(RADIANS(N$14)))^2+(SIN(RADIANS(C142))-SIN(RADIANS(O$14)))^2))/2)) -> 4.559146113 | H142: =SQRT(D142*D142-125)-P$14 -> 2.133971724 | I142: =ABS(F142)*$M$9+ABS(G142)*$N$9+ABS(H142)*$O$9 -> 32.09311784 | J142: =CONCATENATE(A142,"_",E142) -> 7_10
A143: 33 | B143: 257 | C143: 51.5 | D143: 38 | E143: 20 | F143: =IF(A143-M$14>180,360-(A143-M$14),IF(A143-M$14<-180,360+(A143-M$14),A143-M$14)) -> 0.6 | G143: =DEGREES(ACOS((2-ABS((COS(RADIANS(C143))*COS(RADIANS(B143))-COS(RADIANS(O$14))*COS(RADIANS(N$14)))^2+(COS(RADIANS(C143))*SIN(RADIANS(B143))-COS(RADIANS(O$14))*SIN(RADIANS(N$14)))^2+(SIN(RADIANS(C143))-SIN(RADIANS(O$14)))^2))/2)) -> 21.21276995 | H143: =SQRT(D143*D143-125)-P$14 -> -10.28196041 | I143: =ABS(F143)*$M$9+ABS(G143)*$N$9+ABS(H143)*$O$9 -> 32.09473035 | J143: =CONCATENATE(A143,"_",E143) -> 33_20
A144: 49 | B144: 275.8 | C144: 33.5 | D144: 36 | E144: 39 | F144: =IF(A144-M$14>180,360-(A144-M$14),IF(A144-M$14<-180,360+(A144-M$14),A144-M$14)) -> 16.6 | G144: =DEGREES(ACOS((2-ABS((COS(RADIANS(C144))*COS(RADIANS(B144))-COS(RADIANS(O$14))*COS(RADIANS(N$14)))^2+(COS(RADIANS(C144))*SIN(RADIANS(B144))-COS(RADIANS(O$14))*SIN(RADIANS(N$14)))^2+(SIN(RADIANS(C144))-SIN(RADIANS(O$14)))^2))/2)) -> 3.178540362 | H144: =SQRT(D144*D144-125)-P$14 -> -12.38012274 | I144: =ABS(F144)*$M$9+ABS(G144)*$N$9+ABS(H144)*$O$9 -> 32.1586631 | J144: =CONCATENATE(A144,"_",E144) -> 49_39
A145: 20 | B145: 267.4 | C145: 43.5 | D145: 39 | E145: 7 | F145: =IF(A145-M$14>180,360-(A145-M$14),IF(A145-M$14<-180,360+(A145-M$14),A145-M$14)) -> -12.4 | G145: =DEGREES(ACOS((2-ABS((COS(RADIANS(C145))*COS(RADIANS(B145))-COS(RADIANS(O$14))*COS(RADIANS(N$14)))^2+(COS(RADIANS(C145))*SIN(RADIANS(B145))-COS(RADIANS(O$14))*SIN(RADIANS(N$14)))^2+(SIN(RADIANS(C145))-SIN(RADIANS(O$14)))^2))/2)) -> 10.81360524 | H145: =SQRT(D145*D145-125)-P$14 -> -9.236916615 | I145: =ABS(F145)*$M$9+ABS(G145)*$N$9+ABS(H145)*$O$9 -> 32.45052185 | J145: =CONCATENATE(A145,"_",E145) -> 20_7
A146: 42 | B146: 253.2 | C146: 45.5 | D146: 52 | E146: 47 | F146: =IF(A146-M$14>180,360-(A146-M$14),IF(A146-M$14<-180,360+(A146-M$14),A146-M$14)) -> 9.6 | G146: =DEGREES(ACOS((2-ABS((COS(RADIANS(C146))*COS(RADIANS(B146))-COS(RADIANS(O$14))*COS(RADIANS(N$14)))^2+(COS(RADIANS(C146))*SIN(RADIANS(B146))-COS(RADIANS(O$14))*SIN(RADIANS(N$14)))^2+(SIN(RADIANS(C146))-SIN(RADIANS(O$14)))^2))/2)) -> 18.8864935 | H146: =SQRT(D146*D146-125)-P$14 -> 4.183855702 | I146: =ABS(F146)*$M$9+ABS(G146)*$N$9+ABS(H146)*$O$9 -> 32.6703492 | J146: =CONCATENATE(A146,"_",E146) -> 42_47
A147: 6 | B147: 276.4 | C147: 35.5 | D147: 50 | E147: 4 | F147: =IF(A147-M$14>180,360-(A147-M$14),IF(A147-M$14<-180,360+(A147-M$14),A147-M$14)) -> -26.4 | G147: =DEGREES(ACOS((2-ABS((COS(RADIANS(C147))*COS(RADIANS(B147))-COS(RADIANS(O$14))*COS(RADIANS(N$14)))^2+(COS(RADIANS(C147))*SIN(RADIANS(B147))-COS(RADIANS(O$14))*SIN(RADIANS(N$14)))^2+(SIN(RADIANS(C147))-SIN(RADIANS(O$14)))^2))/2)) -> 4.244356245 | H147: =SQRT(D147*D147-125)-P$14 -> 2.133971724 | I147: =ABS(F147)*$M$9+ABS(G147)*$N$9+ABS(H147)*$O$9 -> 32.77832797 | J147: =CONCATENATE(A147,"_",E147) -> 6_4
A148: 30 | B148: 300.9 | C148: 46 | D148: 43 | E148: 11 | F148: =IF(A148-M$14>180,360-(A148-M$14),IF(A148-M$14<-180,360+(A148-M$14),A148-M$14)) -> -2.4 | G148: =DEGREES(ACOS((2-ABS((COS(RADIANS(C148))*COS(RADIANS(B148))-COS(RADIANS(O$14))*COS(RADIANS(N$14)))^2+(COS(RADIANS(C148))*SIN(RADIANS(B148))-COS(RADIANS(O$14))*SIN(RADIANS(N$14)))^2+(SIN(RADIANS(C148))-SIN(RADIANS(O$14)))^2))/2)) -> 25.41417104 | H148: =SQRT(D148*D148-125)-P$14 -> -5.078921016 | I148: =ABS(F148)*$M$9+ABS(G148)*$N$9+ABS(H148)*$O$9 -> 32.89309206 | J148: =CONCATENATE(A148,"_",E148) -> 30_11
A149: 24 | B149: 262.5 | C149: 45.5 | D149: 38 | E149: 5 | F149: =IF(A149-M$14>180,360-(A149-M$14),IF(A149-M$14<-180,360+(A149-M$14),A149-M$14)) -> -8.4 | G149: =DEGREES(ACOS((2-ABS((COS(RADIANS(C149))*COS(RADIANS(B149))-COS(RADIANS(O$14))*COS(RADIANS(N$14)))^2+(COS(RADIANS(C149))*SIN(RADIANS(B149))-COS(RADIANS(O$14))*SIN(RADIANS(N$14)))^2+(SIN(RADIANS(C149))-SIN(RADIANS(O$14)))^2))/2)) -> 14.21486939 | H149: =SQRT(D149*D149-125)-P$14 -> -10.28196041 | I149: =ABS(F149)*$M$9+ABS(G149)*$N$9+ABS(H149)*$O$9 -> 32.8968298 | J149: =CONCATENATE(A149,"_",E149) -> 24_5
A150: 32 | B150: 270 | C150: 5 | D150: 52 | E150: 41 | F150: =IF(A150-M$14>180,360-(A150-M$14),IF(A150-M$14<-180,360+(A150-M$14),A150-M$14)) -> -0.4 | G150: =DEGREES(ACOS((2-ABS((COS(RADIANS(C150))*COS(RADIANS(B150))-COS(RADIANS(O$14))*COS(RADIANS(N$14)))^2+(COS(RADIANS(C150))*SIN(RADIANS(B150))-COS(RADIANS(O$14))*SIN(RADIANS(N$14)))^2+(SIN(RADIANS(C150))-SIN(RADIANS(O$14)))^2))/2)) -> 28.36123839 | H150: =SQRT(D150*D150-125)-P$14 -> 4.183855702 | I150: =ABS(F150)*$M$9+ABS(G150)*$N$9+ABS(H150)*$O$9 -> 32.9450941 | J150: =CONCATENATE(A150,"_",E150) -> 32_41
A151: 36 | B151: 296.8 | C151: 30 | D151: 56 | E151: 13 | F151: =IF(A151-M$14>180,360-(A151-M$14),IF(A151-M$14<-180,360+(A151-M$14),A151-M$14)) -> 3.6 | G151: =DEGREES(ACOS((2-ABS((COS(RADIANS(C151))*COS(RADIANS(B151))-COS(RADIANS(O$14))*COS(RADIANS(N$14)))^2+(COS(RADIANS(C151))*SIN(RADIANS(B151))-COS(RADIANS(O$14))*SIN(RADIANS(N$14)))^2+(SIN(RADIANS(C151))-SIN(RADIANS(O$14)))^2))/2)) -> 21.31622083 | H151: =SQRT(D151*D151-125)-P$14 -> 8.272579673 | I151: =ABS(F151)*$M$9+ABS(G151)*$N$9+ABS(H151)*$O$9 -> 33.18880051 | J151: =CONCATENATE(A151,"_",E151) -> 36_13
A152: 45 | B152: 288.8 | C152: 43.5 | D152: 44 | E152: 7 | F152: =IF(A152-M$14>180,360-(A152-M$14),IF(A152-M$14<-180,360+(A152-M$14),A152-M$14)) -> 12.6 | G152: =DEGREES(ACOS((2-ABS((COS(RADIANS(C152))*COS(RADIANS(B152))-COS(RADIANS(O$14))*COS(RADIANS(N$14)))^2+(COS(RADIANS(C152))*SIN(RADIANS(B152))-COS(RADIANS(O$14))*SIN(RADIANS(N$14)))^2+(SIN(RADIANS(C152))-SIN(RADIANS(O$14)))^2))/2)) -> 16.60060425 | H152: =SQRT(D152*D152-125)-P$14 -> -4.044154338 | I152: =ABS(F152)*$M$9+ABS(G152)*$N$9+ABS(H152)*$O$9 -> 33.24475859 | J152: =CONCATENATE(A152,"_",E152) -> 45_7
A153: 8 | B153: 270.6 | C153: 32 | D153: 41 | E153: 42 | F153: =IF(A153-M$14>180,360-(A153-M$14),IF(A153-M$14<-180,360+(A153-M$14),A153-M$14)) -> -24.4 | G153: =DEGREES(ACOS((2-ABS((COS(RADIANS(C153))*COS(RADIANS(B153))-COS(RADIANS(O$14))*COS(RADIANS(N$14)))^2+(COS(RADIANS(C153))*SIN(RADIANS(B153))-COS(RADIANS(O$14))*SIN(RADIANS(N$14)))^2+(SIN(RADIANS(C153))-SIN(RADIANS(O$14)))^2))/2)) -> 1.754809554 | H153: =SQRT(D153*D153-125)-P$14 -> -7.153834153 | I153: =ABS(F153)*$M$9+ABS(G153)*$N$9+ABS(H153)*$O$9 -> 33.30864371 | J153: =CONCATENATE(A153,"_",E153) -> 8_42
A154: 28 | B154: 300.9 | C154: 35.5 | D154: 43 | E154: 39 | F154: =IF(A154-M$14>180,360-(A154-M$14),IF(A154-M$14<-180,360+(A154-M$14),A154-M$14)) -> -4.4 | G154: =DEGREES(ACOS((2-ABS((COS(RADIANS(C154))*COS(RADIANS(B154))-COS(RADIANS(O$14))*COS(RADIANS(N$14)))^2+(COS(RADIANS(C154))*SIN(RADIANS(B154))-COS(RADIANS(O$14))*SIN(RADIANS(N$14)))^2+(SIN(RADIANS(C154))-SIN(RADIANS(O$14)))^2))/2)) -> 23.86184721 | H154: =SQRT(D154*D154-125)-P$14 -> -5.078921016 | I154: =ABS(F154)*$M$9+ABS(G154)*$N$9+ABS(H154)*$O$9 -> 33.34076822 | J154: =CONCATENATE(A154,"_",E154) -> 28_39
A155: 23 | B155: 263.9 | C155: 45.5 | D155: 38 | E155: 5 | F155: =IF(A155-M$14>180,360-(A155-M$14),IF(A155-M$14<-180,360+(A155-M$14),A155-M$14)) -> -9.4 | G155: =DEGREES(ACOS((2-ABS((COS(RADIANS(C155))*COS(RADIANS(B155))-COS(RADIANS(O$14))*COS(RADIANS(N$14)))^2+(COS(RADIANS(C155))*SIN(RADIANS(B155))-COS(RADIANS(O$14))*SIN(RADIANS(N$14)))^2+(SIN(RADIANS(C155))-SIN(RADIANS(O$14)))^2))/2)) -> 13.69458422 | H155: =SQRT(D155*D155-125)-P$14 -> -10.28196041 | I155: =ABS(F155)*$M$9+ABS(G155)*$N$9+ABS(H155)*$O$9 -> 33.37654463 | J155: =CONCATENATE(A155,"_",E155) -> 23_5
A156: 11 | B156: 284.3 | C156: 38 | D156: 47 | E156: 33 | F156: =IF(A156-M$14>180,360-(A156-M$14),IF(A156-M$14<-180,360+(A156-M$14),A156-M$14)) -> -21.4 | G156: =DEGREES(ACOS((2-ABS((COS(RADIANS(C156))*COS(RADIANS(B156))-COS(RADIANS(O$14))*COS(RADIANS(N$14)))^2+(COS(RADIANS(C156))*SIN(RADIANS(B156))-COS(RADIANS(O$14))*SIN(RADIANS(N$14)))^2+(SIN(RADIANS(C156))-SIN(RADIANS(O$14)))^2))/2)) -> 11.03243072 | H156: =SQRT(D156*D156-125)-P$14 -> -0.9491511579 | I156: =ABS(F156)*$M$9+ABS(G156)*$N$9+ABS(H156)*$O$9 -> 33.38158188 | J156: =CONCATENATE(A156,"_",E156) -> 11_33
A157: 16 | B157: 288.8 | C157: 34.5 | D157: 45 | E157: 15 | F157: =IF(A157-M$14>180,360-(A157-M$14),IF(A157-M$14<-180,360+(A157-M$14),A157-M$14)) -> -16.4 | G157: =DEGREES(ACOS((2-ABS((COS(RADIANS(C157))*COS(RADIANS(B157))-COS(RADIANS(O$14))*COS(RADIANS(N$14)))^2+(COS(RADIANS(C157))*SIN(RADIANS(B157))-COS(RADIANS(O$14))*SIN(RADIANS(N$14)))^2+(SIN(RADIANS(C157))-SIN(RADIANS(O$14)))^2))/2)) -> 13.97957751 | H157: =SQRT(D157*D157-125)-P$14 -> -3.011010565 | I157: =ABS(F157)*$M$9+ABS(G157)*$N$9+ABS(H157)*$O$9 -> 33.39058808 | J157: =CONCATENATE(A157,"_",E157) -> 16_15
A158: 22 | B158: 287.4 | C158: 43.5 | D158: 55 | E158: 7 | F158: =IF(A158-M$14>180,360-(A158-M$14),IF(A158-M$14<-180,360+(A158-M$14),A158-M$14)) -> -10.4 | G158: =DEGREES(ACOS((2-ABS((COS(RADIANS(C158))*COS(RADIANS(B158))-COS(RADIANS(O$14))*COS(RADIANS(N$14)))^2+(COS(RADIANS(C158))*SIN(RADIANS(B158))-COS(RADIANS(O$14))*SIN(RADIANS(N$14)))^2+(SIN(RADIANS(C158))-SIN(RADIANS(O$14)))^2))/2)) -> 15.75582985 | H158: =SQRT(D158*D158-125)-P$14 -> 7.251648071 | I158: =ABS(F158)*$M$9+ABS(G158)*$N$9+ABS(H158)*$O$9 -> 33.40747792 | J158: =CONCATENATE(A158,"_",E158) -> 22_7
A159: 36 | B159: 250.6 | C159: 21 | D159: 55 | E159: 20 | F159: =IF(A159-M$14>180,360-(A159-M$14),IF(A159-M$14<-180,360+(A159-M$14),A159-M$14)) -> 3.6 | G159: =DEGREES(ACOS((2-ABS((COS(RADIANS(C159))*COS(RADIANS(B159))-COS(RADIANS(O$14))*COS(RADIANS(N$14)))^2+(COS(RADIANS(C159))*SIN(RADIANS(B159))-COS(RADIANS(O$14))*SIN(RADIANS(N$14)))^2+(SIN(RADIANS(C159))-SIN(RADIANS(O$14)))^2))/2)) -> 22.59423448 | H159: =SQRT(D159*D159-125)-P$14 -> 7.251648071 | I159: =ABS(F159)*$M$9+ABS(G159)*$N$9+ABS(H159)*$O$9 -> 33.44588255 | J159: =CONCATENATE(A159,"_",E159) -> 36_20
A160: 48 | B160: 275.1 | C160: 49 | D160: 46 | E160: 12 | F160: =IF(A160-M$14>180,360-(A160-M$14),IF(A160-M$14<-180,360+(A160-M$14),A160-M$14)) -> 15.6 | G160: =DEGREES(ACOS((2-ABS((COS(RADIANS(C160))*COS(RADIANS(B160))-COS(RADIANS(O$14))*COS(RADIANS(N$14)))^2+(COS(RADIANS(C160))*SIN(RADIANS(B160))-COS(RADIANS(O$14))*SIN(RADIANS(N$14)))^2+(SIN(RADIANS(C160))-SIN(RADIANS(O$14)))^2))/2)) -> 15.86901032 | H160: =SQRT(D160*D160-125)-P$14 -> -1.979376965 | I160: =ABS(F160)*$M$9+ABS(G160)*$N$9+ABS(H160)*$O$9 -> 33.44838728 | J160: =CONCATENATE(A160,"_",E160) -> 48_12
A161: 42 | B161: 257.6 | C161: 27 | D161: 38 | E161: 18 | F161: =IF(A161-M$14>180,360-(A161-M$14),IF(A161-M$14<-180,360+(A161-M$14),A161-M$14)) -> 9.6 | G161: =DEGREES(ACOS((2-ABS((COS(RADIANS(C161))*COS(RADIANS(B161))-COS(RADIANS(O$14))*COS(RADIANS(N$14)))^2+(COS(RADIANS(C161))*SIN(RADIANS(B161))-COS(RADIANS(O$14))*SIN(RADIANS(N$14)))^2+(SIN(RADIANS(C161))-SIN(RADIANS(O$14)))^2))/2)) -> 13.93619578 | H161: =SQRT(D161*D161-125)-P$14 -> -10.28196041 | I161: =ABS(F161)*$M$9+ABS(G161)*$N$9+ABS(H161)*$O$9 -> 33.81815619 | J161: =CONCATENATE(A161,"_",E161) -> 42_18
A162: 56 | B162: 268.7 | C162: 29 | D162: 43 | E162: 14 | F162: =IF(A162-M$14>180,360-(A162-M$14),IF(A162-M$14<-180,360+(A162-M$14),A162-M$14)) -> 23.6 | G162: =DEGREES(ACOS((2-ABS((COS(RADIANS(C162))*COS(RADIANS(B162))-COS(RADIANS(O$14))*COS(RADIANS(N$14)))^2+(COS(RADIANS(C162))*SIN(RADIANS(B162))-COS(RADIANS(O$14))*SIN(RADIANS(N$14)))^2+(SIN(RADIANS(C162))-SIN(RADIANS(O$14)))^2))/2)) -> 5.143697636 | H162: =SQRT(D162*D162-125)-P$14 -> -5.078921016 | I162: =ABS(F162)*$M$9+ABS(G162)*$N$9+ABS(H162)*$O$9 -> 33.82261865 | J162: =CONCATENATE(A162,"_",E162) -> 56_14
A163: 26 | B163: 305.2 | C163: 35.5 | D163: 48 | E163: 7 | F163: =IF(A163-M$14>180,360-(A163-M$14),IF(A163-M$14<-180,360+(A163-M$14),A163-M$14)) -> -6.4 | G163: =DEGREES(ACOS((2-ABS((COS(RADIANS(C163))*COS(RADIANS(B163))-COS(RADIANS(O$14))*COS(RADIANS(N$14)))^2+(COS(RADIANS(C163))*SIN(RADIANS(B163))-COS(RADIANS(O$14))*SIN(RADIANS(N$14)))^2+(SIN(RADIANS(C163))-SIN(RADIANS(O$14)))^2))/2)) -> 27.35329624 | H163: =SQRT(D163*D163-125)-P$14 -> 0.07976006794 | I163: =ABS(F163)*$M$9+ABS(G163)*$N$9+ABS(H163)*$O$9 -> 33.83305631 | J163: =CONCATENATE(A163,"_",E163) -> 26_7
A164: 26 | B164: 257.8 | C164: 43.5 | D164: 36 | E164: 10 | F164: =IF(A164-M$14>180,360-(A164-M$14),IF(A164-M$14<-180,360+(A164-M$14),A164-M$14)) -> -6.4 | G164: =DEGREES(ACOS((2-ABS((COS(RADIANS(C164))*COS(RADIANS(B164))-COS(RADIANS(O$14))*COS(RADIANS(N$14)))^2+(COS(RADIANS(C164))*SIN(RADIANS(B164))-COS(RADIANS(O$14))*SIN(RADIANS(N$14)))^2+(SIN(RADIANS(C164))-SIN(RADIANS(O$14)))^2))/2)) -> 15.05627747 | H164: =SQRT(D164*D164-125)-P$14 -> -12.38012274 | I164: =ABS(F164)*$M$9+ABS(G164)*$N$9+ABS(H164)*$O$9 -> 33.83640021 | J164: =CONCATENATE(A164,"_",E164) -> 26_10
A165: 46 | B165: 275.9 | C165: 16.5 | D165: 51 | E165: 33 | F165: =IF(A165-M$14>180,360-(A165-M$14),IF(A165-M$14<-180,360+(A165-M$14),A165-M$14)) -> 13.6 | G165: =DEGREES(ACOS((2-ABS((COS(RADIANS(C165))*COS(RADIANS(B165))-COS(RADIANS(O$14))*COS(RADIANS(N$14)))^2+(COS(RADIANS(C165))*SIN(RADIANS(B165))-COS(RADIANS(O$14))*SIN(RADIANS(N$14)))^2+(SIN(RADIANS(C165))-SIN(RADIANS(O$14)))^2))/2)) -> 17.16405191 | H165: =SQRT(D165*D165-125)-P$14 -> 3.159421218 | I165: =ABS(F165)*$M$9+ABS(G165)*$N$9+ABS(H165)*$O$9 -> 33.92347313 | J165: =CONCATENATE(A165,"_",E165) -> 46_33
A166: 19 | B166: 252.2 | C166: 22.5 | D166: 48 | E166: 4 | F166: =IF(A166-M$14>180,360-(A166-M$14),IF(A166-M$14<-180,360+(A166-M$14),A166-M$14)) -> -13.4 | G166: =DEGREES(ACOS((2-ABS((COS(RADIANS(C166))*COS(RADIANS(B166))-COS(RADIANS(O$14))*COS(RADIANS(N$14)))^2+(COS(RADIANS(C166))*SIN(RADIANS(B166))-COS(RADIANS(O$14))*SIN(RADIANS(N$14)))^2+(SIN(RADIANS(C166))-SIN(RADIANS(O$14)))^2))/2)) -> 20.50587925 | H166: =SQRT(D166*D166-125)-P$14 -> 0.07976006794 | I166: =ABS(F166)*$M$9+ABS(G166)*$N$9+ABS(H166)*$O$9 -> 33.98563932 | J166: =CONCATENATE(A166,"_",E166) -> 19_4
A167: 53 | B167: 282.2 | C167: 44 | D167: 48 | E167: 9 | F167: =IF(A167-M$14>180,360-(A167-M$14),IF(A167-M$14<-180,360+(A167-M$14),A167-M$14)) -> 20.6 | G167: =DEGREES(ACOS((2-ABS((COS(RADIANS(C167))*COS(RADIANS(B167))-COS(RADIANS(O$14))*COS(RADIANS(N$14)))^2+(COS(RADIANS(C167))*SIN(RADIANS(B167))-COS(RADIANS(O$14))*SIN(RADIANS(N$14)))^2+(SIN(RADIANS(C167))-SIN(RADIANS(O$14)))^2))/2)) -> 13.31696094 | H167: =SQRT(D167*D167-125)-P$14 -> 0.07976006794 | I167: =ABS(F167)*$M$9+ABS(G167)*$N$9+ABS(H167)*$O$9 -> 33.99672101 | J167: =CONCATENATE(A167,"_",E167) -> 53_9
A168: 34 | B168: 283.5 | C168: 51.5 | D168: 36 | E168: 22 | F168: =IF(A168-M$14>180,360-(A168-M$14),IF(A168-M$14<-180,360+(A168-M$14),A168-M$14)) -> 1.6 | G168: =DEGREES(ACOS((2-ABS((COS(RADIANS(C168))*COS(RADIANS(B168))-COS(RADIANS(O$14))*COS(RADIANS(N$14)))^2+(COS(RADIANS(C168))*SIN(RADIANS(B168))-COS(RADIANS(O$14))*SIN(RADIANS(N$14)))^2+(SIN(RADIANS(C168))-SIN(RADIANS(O$14)))^2))/2)) -> 20.02775527 | H168: =SQRT(D168*D168-125)-P$14 -> -12.38012274 | I168: =ABS(F168)*$M$9+ABS(G168)*$N$9+ABS(H168)*$O$9 -> 34.00787801 | J168: =CONCATENATE(A168,"_",E168) -> 34_22
A169: 56 | B169: 277.9 | C169: 39 | D169: 45 | E169: 20 | F169: =IF(A169-M$14>180,360-(A169-M$14),IF(A169-M$14<-180,360+(A169-M$14),A169-M$14)) -> 23.6 | G169: =DEGREES(ACOS((2-ABS((COS(RADIANS(C169))*COS(RADIANS(B169))-COS(RADIANS(O$14))*COS(RADIANS(N$14)))^2+(COS(RADIANS(C169))*SIN(RADIANS(B169))-COS(RADIANS(O$14))*SIN(RADIANS(N$14)))^2+(SIN(RADIANS(C169))-SIN(RADIANS(O$14)))^2))/2)) -> 7.42502455 | H169: =SQRT(D169*D169-125)-P$14 -> -3.011010565 | I169: =ABS(F169)*$M$9+ABS(G169)*$N$9+ABS(H169)*$O$9 -> 34.03603511 | J169: =CONCATENATE(A169,"_",E169) -> 56_20
A170: 22 | B170: 247.6 | C170: 46 | D170: 49 | E170: 16 | F170: =IF(A170-M$14>180,360-(A170-M$14),IF(A170-M$14<-180,360+(A170-M$14),A170-M$14)) -> -10.4 | G170: =DEGREES(ACOS((2-ABS((COS(RADIANS(C170))*COS(RADIANS(B170))-COS(RADIANS(O$14))*COS(RADIANS(N$14)))^2+(COS(RADIANS(C170))*SIN(RADIANS(B170))-COS(RADIANS(O$14))*SIN(RADIANS(N$14)))^2+(SIN(RADIANS(C170))-SIN(RADIANS(O$14)))^2))/2)) -> 22.5302404 | H170: =SQRT(D170*D170-125)-P$14 -> 1.107441768 | I170: =ABS(F170)*$M$9+ABS(G170)*$N$9+ABS(H170)*$O$9 -> 34.03768216 | J170: =CONCATENATE(A170,"_",E170) -> 22_16
A171: 39 | B171: 266.6 | C171: 23.5 | D171: 32 | E171: 24 | F171: =IF(A171-M$14>180,360-(A171-M$14),IF(A171-M$14<-180,360+(A171-M$14),A171-M$14)) -> 6.6 | G171: =DEGREES(ACOS((2-ABS((COS(RADIANS(C171))*COS(RADIANS(B171))-COS(RADIANS(O$14))*COS(RADIANS(N$14)))^2+(COS(RADIANS(C171))*SIN(RADIANS(B171))-COS(RADIANS(O$14))*SIN(RADIANS(N$14)))^2+(SIN(RADIANS(C171))-SIN(RADIANS(O$14)))^2))/2)) -> 10.88559943 | H171: =SQRT(D171*D171-125)-P$14 -> -16.6166713 | I171: =ABS(F171)*$M$9+ABS(G171)*$N$9+ABS(H171)*$O$9 -> 34.10227073 | J171: =CONCATENATE(A171,"_",E171) -> 39_24
A172: 12 | B172: 284.6 | C172: 32.5 | D172: 51 | E172: 23 | F172: =IF(A172-M$14>180,360-(A172-M$14),IF(A172-M$14<-180,360+(A172-M$14),A172-M$14)) -> -20.4 | G172: =DEGREES(ACOS((2-ABS((COS(RADIANS(C172))*COS(RADIANS(B172))-COS(RADIANS(O$14))*COS(RADIANS(N$14)))^2+(COS(RADIANS(C172))*SIN(RADIANS(B172))-COS(RADIANS(O$14))*SIN(RADIANS(N$14)))^2+(SIN(RADIANS(C172))-SIN(RADIANS(O$14)))^2))/2)) -> 10.60292975 | H172: =SQRT(D172*D172-125)-P$14 -> 3.159421218 | I172: =ABS(F172)*$M$9+ABS(G172)*$N$9+ABS(H172)*$O$9 -> 34.16235097 | J172: =CONCATENATE(A172,"_",E172) -> 12_23
A173: 38 | B173: 257.3 | C173: 20.5 | D173: 38 | E173: 15 | F173: =IF(A173-M$14>180,360-(A173-M$14),IF(A173-M$14<-180,360+(A173-M$14),A173-M$14)) -> 5.6 | G173: =DEGREES(ACOS((2-ABS((COS(RADIANS(C173))*COS(RADIANS(B173))-COS(RADIANS(O$14))*COS(RADIANS(N$14)))^2+(COS(RADIANS(C173))*SIN(RADIANS(B173))-COS(RADIANS(O$14))*SIN(RADIANS(N$14)))^2+(SIN(RADIANS(C173))-SIN(RADIANS(O$14)))^2))/2)) -> 18.28201102 | H173: =SQRT(D173*D173-125)-P$14 -> -10.28196041 | I173: =ABS(F173)*$M$9+ABS(G173)*$N$9+ABS(H173)*$O$9 -> 34.16397143 | J173: =CONCATENATE(A173,"_",E173) -> 38_15
A174: 39 | B174: 265.8 | C174: 12.5 | D174: 42 | E174: 35 | F174: =IF(A174-M$14>180,360-(A174-M$14),IF(A174-M$14<-180,360+(A174-M$14),A174-M$14)) -> 6.6 | G174: =DEGREES(ACOS((2-ABS((COS(RADIANS(C174))*COS(RADIANS(B174))-COS(RADIANS(O$14))*COS(RADIANS(N$14)))^2+(COS(RADIANS(C174))*SIN(RADIANS(B174))-COS(RADIANS(O$14))*SIN(RADIANS(N$14)))^2+(SIN(RADIANS(C174))-SIN(RADIANS(O$14)))^2))/2)) -> 21.55693894 | H174: =SQRT(D174*D174-125)-P$14 -> -6.11543504 | I174: =ABS(F174)*$M$9+ABS(G174)*$N$9+ABS(H174)*$O$9 -> 34.27237398 | J174: =CONCATENATE(A174,"_",E174) -> 39_35
A175: 17 | B175: 283.1 | C175: 18.5 | D175: 49 | E175: 36 | F175: =IF(A175-M$14>180,360-(A175-M$14),IF(A175-M$14<-180,360+(A175-M$14),A175-M$14)) -> -15.4 | G175: =DEGREES(ACOS((2-ABS((COS(RADIANS(C175))*COS(RADIANS(B175))-COS(RADIANS(O$14))*COS(RADIANS(N$14)))^2+(COS(RADIANS(C175))*SIN(RADIANS(B175))-COS(RADIANS(O$14))*SIN(RADIANS(N$14)))^2+(SIN(RADIANS(C175))-SIN(RADIANS(O$14)))^2))/2)) -> 17.82504877 | H175: =SQRT(D175*D175-125)-P$14 -> 1.107441768 | I175: =ABS(F175)*$M$9+ABS(G175)*$N$9+ABS(H175)*$O$9 -> 34.33249054 | J175: =CONCATENATE(A175,"_",E175) -> 17_36
A176: 20 | B176: 256 | C176: 22.5 | D176: 52 | E176: 12 | F176: =IF(A176-M$14>180,360-(A176-M$14),IF(A176-M$14<-180,360+(A176-M$14),A176-M$14)) -> -12.4 | G176: =DEGREES(ACOS((2-ABS((COS(RADIANS(C176))*COS(RADIANS(B176))-COS(RADIANS(O$14))*COS(RADIANS(N$14)))^2+(COS(RADIANS(C176))*SIN(RADIANS(B176))-COS(RADIANS(O$14))*SIN(RADIANS(N$14)))^2+(SIN(RADIANS(C176))-SIN(RADIANS(O$14)))^2))/2)) -> 17.75407752 | H176: =SQRT(D176*D176-125)-P$14 -> 4.183855702 | I176: =ABS(F176)*$M$9+ABS(G176)*$N$9+ABS(H176)*$O$9 -> 34.33793322 | J176: =CONCATENATE(A176,"_",E176) -> 20_12
A177: 17 | B177: 291.3 | C177: 40.5 | D177: 46 | E177: 2 | F177: =IF(A177-M$14>180,360-(A177-M$14),IF(A177-M$14<-180,360+(A177-M$14),A177-M$14)) -> -15.4 | G177: =DEGREES(ACOS((2-ABS((COS(RADIANS(C177))*COS(RADIANS(B177))-COS(RADIANS(O$14))*COS(RADIANS(N$14)))^2+(COS(RADIANS(C177))*SIN(RADIANS(B177))-COS(RADIANS(O$14))*SIN(RADIANS(N$14)))^2+(SIN(RADIANS(C177))-SIN(RADIANS(O$14)))^2))/2)) -> 16.981868 | H177: =SQRT(D177*D177-125)-P$14 -> -1.979376965 | I177: =ABS(F177)*$M$9+ABS(G177)*$N$9+ABS(H177)*$O$9 -> 34.36124497 | J177: =CONCATENATE(A177,"_",E177) -> 17_2
A178: 14 | B178: 288.6 | C178: 37.5 | D178: 46 | E178: 2 | F178: =IF(A178-M$14>180,360-(A178-M$14),IF(A178-M$14<-180,360+(A178-M$14),A178-M$14)) -> -18.4 | G178: =DEGREES(ACOS((2-ABS((COS(RADIANS(C178))*COS(RADIANS(B178))-COS(RADIANS(O$14))*COS(RADIANS(N$14)))^2+(COS(RADIANS(C178))*SIN(RADIANS(B178))-COS(RADIANS(O$14))*SIN(RADIANS(N$14)))^2+(SIN(RADIANS(C178))-SIN(RADIANS(O$14)))^2))/2)) -> 14.14542476 | H178: =SQRT(D178*D178-125)-P$14 -> -1.979376965 | I178: =ABS(F178)*$M$9+ABS(G178)*$N$9+ABS(H178)*$O$9 -> 34.52480172 | J178: =CONCATENATE(A178,"_",E178) -> 14_2
A179: 32 | B179: 270.6 | C179: 34.5 | D179: 18 | E179: 46 | F179: =IF(A179-M$14>180,360-(A179-M$14),IF(A179-M$14<-180,360+(A179-M$14),A179-M$14)) -> -0.4 | G179: =DEGREES(ACOS((2-ABS((COS(RADIANS(C179))*COS(RADIANS(B179))-COS(RADIANS(O$14))*COS(RADIANS(N$14)))^2+(COS(RADIANS(C179))*SIN(RADIANS(B179))-COS(RADIANS(O$14))*SIN(RADIANS(N$14)))^2+(SIN(RADIANS(C179))-SIN(RADIANS(O$14)))^2))/2)) -> 1.670373266 | H179: =SQRT(D179*D179-125)-P$14 -> -32.49326402 | I179: =ABS(F179)*$M$9+ABS(G179)*$N$9+ABS(H179)*$O$9 -> 34.56363729 | J179: =CONCATENATE(A179,"_",E179) -> 32_46
A180: 21 | B180: 246.9 | C180: 31.5 | D180: 46 | E180: 12 | F180: =IF(A180-M$14>180,360-(A180-M$14),IF(A180-M$14<-180,360+(A180-M$14),A180-M$14)) -> -11.4 | G180: =DEGREES(ACOS((2-ABS((COS(RADIANS(C180))*COS(RADIANS(B180))-COS(RADIANS(O$14))*COS(RADIANS(N$14)))^2+(COS(RADIANS(C180))*SIN(RADIANS(B180))-COS(RADIANS(O$14))*SIN(RADIANS(N$14)))^2+(SIN(RADIANS(C180))-SIN(RADIANS(O$14)))^2))/2)) -> 21.21789148 | H180: =SQRT(D180*D180-125)-P$14 -> -1.979376965 | I180: =ABS(F180)*$M$9+ABS(G180)*$N$9+ABS(H180)*$O$9 -> 34.59726844 | J180: =CONCATENATE(A180,"_",E180) -> 21_12
A181: 51 | B181: 285.3 | C181: 34 | D181: 43 | E181: 10 | F181: =IF(A181-M$14>180,360-(A181-M$14),IF(A181-M$14<-180,360+(A181-M$14),A181-M$14)) -> 18.6 | G181: =DEGREES(ACOS((2-ABS((COS(RADIANS(C181))*COS(RADIANS(B181))-COS(RADIANS(O$14))*COS(RADIANS(N$14)))^2+(COS(RADIANS(C181))*SIN(RADIANS(B181))-COS(RADIANS(O$14))*SIN(RADIANS(N$14)))^2+(SIN(RADIANS(C181))-SIN(RADIANS(O$14)))^2))/2)) -> 11.08572804 | H181: =SQRT(D181*D181-125)-P$14 -> -5.078921016 | I181: =ABS(F181)*$M$9+ABS(G181)*$N$9+ABS(H181)*$O$9 -> 34.76464906 | J181: =CONCATENATE(A181,"_",E181) -> 51_10
A182: 10 | B182: 281.4 | C182: 40.5 | D182: 46 | E182: 3 | F182: =IF(A182-M$14>180,360-(A182-M$14),IF(A182-M$14<-180,360+(A182-M$14),A182-M$14)) -> -22.4 | G182: =DEGREES(ACOS((2-ABS((COS(RADIANS(C182))*COS(RADIANS(B182))-COS(RADIANS(O$14))*COS(RADIANS(N$14)))^2+(COS(RADIANS(C182))*SIN(RADIANS(B182))-COS(RADIANS(O$14))*SIN(RADIANS(N$14)))^2+(SIN(RADIANS(C182))-SIN(RADIANS(O$14)))^2))/2)) -> 10.39710216 | H182: =SQRT(D182*D182-125)-P$14 -> -1.979376965 | I182: =ABS(F182)*$M$9+ABS(G182)*$N$9+ABS(H182)*$O$9 -> 34.77647913 | J182: =CONCATENATE(A182,"_",E182) -> 10_3
A183: 49 | B183: 274.8 | C183: 43 | D183: 56 | E183: 48 | F183: =IF(A183-M$14>180,360-(A183-M$14),IF(A183-M$14<-180,360+(A183-M$14),A183-M$14)) -> 16.6 | G183: =DEGREES(ACOS((2-ABS((COS(RADIANS(C183))*COS(RADIANS(B183))-COS(RADIANS(O$14))*COS(RADIANS(N$14)))^2+(COS(RADIANS(C183))*SIN(RADIANS(B183))-COS(RADIANS(O$14))*SIN(RADIANS(N$14)))^2+(SIN(RADIANS(C183))-SIN(RADIANS(O$14)))^2))/2)) -> 9.945097483 | H183: =SQRT(D183*D183-125)-P$14 -> 8.272579673 | I183: =ABS(F183)*$M$9+ABS(G183)*$N$9+ABS(H183)*$O$9 -> 34.81767716 | J183: =CONCATENATE(A183,"_",E183) -> 49_48
A184: 32 | B184: 310.4 | C184: 43 | D184: 45 | E184: 2 | F184: =IF(A184-M$14>180,360-(A184-M$14),IF(A184-M$14<-180,360+(A184-M$14),A184-M$14)) -> -0.4 | G184: =DEGREES(ACOS((2-ABS((COS(RADIANS(C184))*COS(RADIANS(B184))-COS(RADIANS(O$14))*COS(RADIANS(N$14)))^2+(COS(RADIANS(C184))*SIN(RADIANS(B184))-COS(RADIANS(O$14))*SIN(RADIANS(N$14)))^2+(SIN(RADIANS(C184))-SIN(RADIANS(O$14)))^2))/2)) -> 31.4076095 | H184: =SQRT(D184*D184-125)-P$14 -> -3.011010565 | I184: =ABS(F184)*$M$9+ABS(G184)*$N$9+ABS(H184)*$O$9 -> 34.81862006 | J184: =CONCATENATE(A184,"_",E184) -> 32_2
A185: 45 | B185: 284.7 | C185: 31 | D185: 37 | E185: 46 | F185: =IF(A185-M$14>180,360-(A185-M$14),IF(A185-M$14<-180,360+(A185-M$14),A185-M$14)) -> 12.6 | G185: =DEGREES(ACOS((2-ABS((COS(RADIANS(C185))*COS(RADIANS(B185))-COS(RADIANS(O$14))*COS(RADIANS(N$14)))^2+(COS(RADIANS(C185))*SIN(RADIANS(B185))-COS(RADIANS(O$14))*SIN(RADIANS(N$14)))^2+(SIN(RADIANS(C185))-SIN(RADIANS(O$14)))^2))/2)) -> 10.98813126 | H185: =SQRT(D185*D185-125)-P$14 -> -11.32961582 | I185: =ABS(F185)*$M$9+ABS(G185)*$N$9+ABS(H185)*$O$9 -> 34.91774708 | J185: =CONCATENATE(A185,"_",E185) -> 45_46
A186: 29 | B186: 252.4 | C186: 16.5 | D186: 41 | E186: 19 | F186: =IF(A186-M$14>180,360-(A186-M$14),IF(A186-M$14<-180,360+(A186-M$14),A186-M$14)) -> -3.4 | G186: =DEGREES(ACOS((2-ABS((COS(RADIANS(C186))*COS(RADIANS(B186))-COS(RADIANS(O$14))*COS(RADIANS(N$14)))^2+(COS(RADIANS(C186))*SIN(RADIANS(B186))-COS(RADIANS(O$14))*SIN(RADIANS(N$14)))^2+(SIN(RADIANS(C186))-SIN(RADIANS(O$14)))^2))/2)) -> 24.37205995 | H186: =SQRT(D186*D186-125)-P$14 -> -7.153834153 | I186: =ABS(F186)*$M$9+ABS(G186)*$N$9+ABS(H186)*$O$9 -> 34.92589411 | J186: =CONCATENATE(A186,"_",E186) -> 29_19
A187: 29 | B187: 301.1 | C187: 41.5 | D187: 41 | E187: 4 | F187: =IF(A187-M$14>180,360-(A187-M$14),IF(A187-M$14<-180,360+(A187-M$14),A187-M$14)) -> -3.4 | G187: =DEGREES(ACOS((2-ABS((COS(RADIANS(C187))*COS(RADIANS(B187))-COS(RADIANS(O$14))*COS(RADIANS(N$14)))^2+(COS(RADIANS(C187))*SIN(RADIANS(B187))-COS(RADIANS(O$14))*SIN(RADIANS(N$14)))^2+(SIN(RADIANS(C187))-SIN(RADIANS(O$14)))^2))/2)) -> 24.38943412 | H187: =SQRT(D187*D187-125)-P$14 -> -7.153834153 | I187: =ABS(F187)*$M$9+ABS(G187)*$N$9+ABS(H187)*$O$9 -> 34.94326827 | J187: =CONCATENATE(A187,"_",E187) -> 29_4
A188: 37 | B188: 257.8 | C188: 20.5 | D188: 36 | E188: 19 | F188: =IF(A188-M$14>180,360-(A188-M$14),IF(A188-M$14<-180,360+(A188-M$14),A188-M$14)) -> 4.6 | G188: =DEGREES(ACOS((2-ABS((COS(RADIANS(C188))*COS(RADIANS(B188))-COS(RADIANS(O$14))*COS(RADIANS(N$14)))^2+(COS(RADIANS(C188))*SIN(RADIANS(B188))-COS(RADIANS(O$14))*SIN(RADIANS(N$14)))^2+(SIN(RADIANS(C188))-SIN(RADIANS(O$14)))^2))/2)) -> 17.96802781 | H188: =SQRT(D188*D188-125)-P$14 -> -12.38012274 | I188: =ABS(F188)*$M$9+ABS(G188)*$N$9+ABS(H188)*$O$9 -> 34.94815054 | J188: =CONCATENATE(A188,"_",E188) -> 37_19
A189: 33 | B189: 245.5 | C189: 18 | D189: 54 | E189: 41 | F189: =IF(A189-M$14>180,360-(A189-M$14),IF(A189-M$14<-180,360+(A189-M$14),A189-M$14)) -> 0.6 | G189: =DEGREES(ACOS((2-ABS((COS(RADIANS(C189))*COS(RADIANS(B189))-COS(RADIANS(O$14))*COS(RADIANS(N$14)))^2+(COS(RADIANS(C189))*SIN(RADIANS(B189))-COS(RADIANS(O$14))*SIN(RADIANS(N$14)))^2+(SIN(RADIANS(C189))-SIN(RADIANS(O$14)))^2))/2)) -> 28.23183696 | H189: =SQRT(D189*D189-125)-P$14 -> 6.229915767 | I189: =ABS(F189)*$M$9+ABS(G189)*$N$9+ABS(H189)*$O$9 -> 35.06175273 | J189: =CONCATENATE(A189,"_",E189) -> 33_41
A190: 31 | B190: 309.7 | C190: 43 | D190: 45 | E190: 3 | F190: =IF(A190-M$14>180,360-(A190-M$14),IF(A190-M$14<-180,360+(A190-M$14),A190-M$14)) -> -1.4 | G190: =DEGREES(ACOS((2-ABS((COS(RADIANS(C190))*COS(RADIANS(B190))-COS(RADIANS(O$14))*COS(RADIANS(N$14)))^2+(COS(RADIANS(C190))*SIN(RADIANS(B190))-COS(RADIANS(O$14))*SIN(RADIANS(N$14)))^2+(SIN(RADIANS(C190))-SIN(RADIANS(O$14)))^2))/2)) -> 30.89781274 | H190: =SQRT(D190*D190-125)-P$14 -> -3.011010565 | I190: =ABS(F190)*$M$9+ABS(G190)*$N$9+ABS(H190)*$O$9 -> 35.3088233 | J190: =CONCATENATE(A190,"_",E190) -> 31_3
A191: 26 | B191: 291.1 | C191: 23 | D191: 39 | E191: 28 | F191: =IF(A191-M$14>180,360-(A191-M$14),IF(A191-M$14<-180,360+(A191-M$14),A191-M$14)) -> -6.4 | G191: =DEGREES(ACOS((2-ABS((COS(RADIANS(C191))*COS(RADIANS(B191))-COS(RADIANS(O$14))*COS(RADIANS(N$14)))^2+(COS(RADIANS(C191))*SIN(RADIANS(B191))-COS(RADIANS(O$14))*SIN(RADIANS(N$14)))^2+(SIN(RADIANS(C191))-SIN(RADIANS(O$14)))^2))/2)) -> 19.68977761 | H191: =SQRT(D191*D191-125)-P$14 -> -9.236916615 | I191: =ABS(F191)*$M$9+ABS(G191)*$N$9+ABS(H191)*$O$9 -> 35.32669423 | J191: =CONCATENATE(A191,"_",E191) -> 26_28
A192: 0 | B192: 271 | C192: 33.5 | D192: 50 | E192: 10 | F192: =IF(A192-M$14>180,360-(A192-M$14),IF(A192-M$14<-180,360+(A192-M$14),A192-M$14)) -> -32.4 | G192: =DEGREES(ACOS((2-ABS((COS(RADIANS(C192))*COS(RADIANS(B192))-COS(RADIANS(O$14))*COS(RADIANS(N$14)))^2+(COS(RADIANS(C192))*SIN(RADIANS(B192))-COS(RADIANS(O$14))*SIN(RADIANS(N$14)))^2+(SIN(RADIANS(C192))-SIN(RADIANS(O$14)))^2))/2)) -> 0.8584660521 | H192: =SQRT(D192*D192-125)-P$14 -> 2.133971724 | I192: =ABS(F192)*$M$9+ABS(G192)*$N$9+ABS(H192)*$O$9 -> 35.39243778 | J192: =CONCATENATE(A192,"_",E192) -> 0_10
A193: 25 | B193: 247.2 | C193: 21.5 | D193: 51 | E193: 44 | F193: =IF(A193-M$14>180,360-(A193-M$14),IF(A193-M$14<-180,360+(A193-M$14),A193-M$14)) -> -7.4 | G193: =DEGREES(ACOS((2-ABS((COS(RADIANS(C193))*COS(RADIANS(B193))-COS(RADIANS(O$14))*COS(RADIANS(N$14)))^2+(COS(RADIANS(C193))*SIN(RADIANS(B193))-COS(RADIANS(O$14))*SIN(RADIANS(N$14)))^2+(SIN(RADIANS(C193))-SIN(RADIANS(O$14)))^2))/2)) -> 24.88549719 | H193: =SQRT(D193*D193-125)-P$14 -> 3.159421218 | I193: =ABS(F193)*$M$9+ABS(G193)*$N$9+ABS(H193)*$O$9 -> 35.44491841 | J193: =CONCATENATE(A193,"_",E193) -> 25_44
A194: 23 | B194: 247.2 | C194: 19.5 | D194: 48 | E194: 19 | F194: =IF(A194-M$14>180,360-(A194-M$14),IF(A194-M$14<-180,360+(A194-M$14),A194-M$14)) -> -9.4 | G194: =DEGREES(ACOS((2-ABS((COS(RADIANS(C194))*COS(RADIANS(B194))-COS(RADIANS(O$14))*COS(RADIANS(N$14)))^2+(COS(RADIANS(C194))*SIN(RADIANS(B194))-COS(RADIANS(O$14))*SIN(RADIANS(N$14)))^2+(SIN(RADIANS(C194))-SIN(RADIANS(O$14)))^2))/2)) -> 26.04163922 | H194: =SQRT(D194*D194-125)-P$14 -> 0.07976006794 | I194: =ABS(F194)*$M$9+ABS(G194)*$N$9+ABS(H194)*$O$9 -> 35.52139929 | J194: =CONCATENATE(A194,"_",E194) -> 23_19
A195: 13 | B195: 288.6 | C195: 37.5 | D195: 46 | E195: 1 | F195: =IF(A195-M$14>180,360-(A195-M$14),IF(A195-M$14<-180,360+(A195-M$14),A195-M$14)) -> -19.4 | G195: =DEGREES(ACOS((2-ABS((COS(RADIANS(C195))*COS(RADIANS(B195))-COS(RADIANS(O$14))*COS(RADIANS(N$14)))^2+(COS(RADIANS(C195))*SIN(RADIANS(B195))-COS(RADIANS(O$14))*SIN(RADIANS(N$14)))^2+(SIN(RADIANS(C195))-SIN(RADIANS(O$14)))^2))/2)) -> 14.14542476 | H195: =SQRT(D195*D195-125)-P$14 -> -1.979376965 | I195: =ABS(F195)*$M$9+ABS(G195)*$N$9+ABS(H195)*$O$9 -> 35.52480172 | J195: =CONCATENATE(A195,"_",E195) -> 13_1
A196: 55 | B196: 266.3 | C196: 28.5 | D196: 42 | E196: 43 | F196: =IF(A196-M$14>180,360-(A196-M$14),IF(A196-M$14<-180,360+(A196-M$14),A196-M$14)) -> 22.6 | G196: =DEGREES(ACOS((2-ABS((COS(RADIANS(C196))*COS(RADIANS(B196))-COS(RADIANS(O$14))*COS(RADIANS(N$14)))^2+(COS(RADIANS(C196))*SIN(RADIANS(B196))-COS(RADIANS(O$14))*SIN(RADIANS(N$14)))^2+(SIN(RADIANS(C196))-SIN(RADIANS(O$14)))^2))/2)) -> 6.850353331 | H196: =SQRT(D196*D196-125)-P$14 -> -6.11543504 | I196: =ABS(F196)*$M$9+ABS(G196)*$N$9+ABS(H196)*$O$9 -> 35.56578837 | J196: =CONCATENATE(A196,"_",E196) -> 55_43
A197: 38 | B197: 269.5 | C197: 10.5 | D197: 55 | E197: 40 | F197: =IF(A197-M$14>180,360-(A197-M$14),IF(A197-M$14<-180,360+(A197-M$14),A197-M$14)) -> 5.6 | G197: =DEGREES(ACOS((2-ABS((COS(RADIANS(C197))*COS(RADIANS(B197))-COS(RADIANS(O$14))*COS(RADIANS(N$14)))^2+(COS(RADIANS(C197))*SIN(RADIANS(B197))-COS(RADIANS(O$14))*SIN(RADIANS(N$14)))^2+(SIN(RADIANS(C197))-SIN(RADIANS(O$14)))^2))/2)) -> 22.91537268 | H197: =SQRT(D197*D197-125)-P$14 -> 7.251648071 | I197: =ABS(F197)*$M$9+ABS(G197)*$N$9+ABS(H197)*$O$9 -> 35.76702075 | J197: =CONCATENATE(A197,"_",E197) -> 38_40
A198: 22 | B198: 255.8 | C198: 17.5 | D198: 44 | E198: 29 | F198: =IF(A198-M$14>180,360-(A198-M$14),IF(A198-M$14<-180,360+(A198-M$14),A198-M$14)) -> -10.4 | G198: =DEGREES(ACOS((2-ABS((COS(RADIANS(C198))*COS(RADIANS(B198))-COS(RADIANS(O$14))*COS(RADIANS(N$14)))^2+(COS(RADIANS(C198))*SIN(RADIANS(B198))-COS(RADIANS(O$14))*SIN(RADIANS(N$14)))^2+(SIN(RADIANS(C198))-SIN(RADIANS(O$14)))^2))/2)) -> 21.47660323 | H198: =SQRT(D198*D198-125)-P$14 -> -4.044154338 | I198: =ABS(F198)*$M$9+ABS(G198)*$N$9+ABS(H198)*$O$9 -> 35.92075757 | J198: =CONCATENATE(A198,"_",E198) -> 22_29
A199: 28 | B199: 252.4 | C199: 16.5 | D199: 41 | E199: 16 | F199: =IF(A199-M$14>180,360-(A199-M$14),IF(A199-M$14<-180,360+(A199-M$14),A199-M$14)) -> -4.4 | G199: =DEGREES(ACOS((2-ABS((COS(RADIANS(C199))*COS(RADIANS(B199))-COS(RADIANS(O$14))*COS(RADIANS(N$14)))^2+(COS(RADIANS(C199))*SIN(RADIANS(B199))-COS(RADIANS(O$14))*SIN(RADIANS(N$14)))^2+(SIN(RADIANS(C199))-SIN(RADIANS(O$14)))^2))/2)) -> 24.37205995 | H199: =SQRT(D199*D199-125)-P$14 -> -7.153834153 | I199: =ABS(F199)*$M$9+ABS(G199)*$N$9+ABS(H199)*$O$9 -> 35.92589411 | J199: =CONCATENATE(A199,"_",E199) -> 28_16
A200: 46 | B200: 292 | C200: 45 | D200: 45 | E200: 3 | F200: =IF(A200-M$14>180,360-(A200-M$14),IF(A200-M$14<-180,360+(A200-M$14),A200-M$14)) -> 13.6 | G200: =DEGREES(ACOS((2-ABS((COS(RADIANS(C200))*COS(RADIANS(B200))-COS(RADIANS(O$14))*COS(RADIANS(N$14)))^2+(COS(RADIANS(C200))*SIN(RADIANS(B200))-COS(RADIANS(O$14))*SIN(RADIANS(N$14)))^2+(SIN(RADIANS(C200))-SIN(RADIANS(O$14)))^2))/2)) -> 19.33812005 | H200: =SQRT(D200*D200-125)-P$14 -> -3.011010565 | I200: =ABS(F200)*$M$9+ABS(G200)*$N$9+ABS(H200)*$O$9 -> 35.94913061 | J200: =CONCATENATE(A200,"_",E200) -> 46_3
... 4300 more rows

Sheet Search CMOR List
A1: CMOR # | B1: SL | C1: Alpha | D1: Delta | E1: Vgeo | F1: dAlpha | G1: dDelta | H1: Alpha@SL | I1: Delta@SL | J1: Sigma | K1: dSL | L1: dPos | M1: dVgeo | N1: MATCH | P1: Input | Q1: MDC # | R1: IMO | S1: Entry Num | T1: # Entries
A2: 10 | B2: 32.5 | C2: 271.1 | D2: 34.1 | E2: 47.3 | F2: 0 | G2: 0 | H2: =IF(C2-K2*F2<0,360+C2-K2*F2,IF(C2-K2*F2>=360,C2-K2*F2-360,C2-K2*F2)) -> 271.1 | I2: =IF(D2-K2*G2<0,360+D2-K2*G2,IF(D2-K2*G2>=360,D2-K2*G2-360,D2-K2*G2)) -> 34.1 | J2: 15.4 | K2: =IF(B2-Q$14>180,360-(B2-Q$14),IF(B2-Q$14<-180,360+(B2-Q$14),B2-Q$14)) -> 0.1 | L2: =DEGREES(ACOS((2-ABS((COS(RADIANS(I2))*COS(RADIANS(H2))-COS(RADIANS(S$14))*COS(RADIANS(R$14)))^2+(COS(RADIANS(I2))*SIN(RADIANS(H2))-COS(RADIANS(S$14))*SIN(RADIANS(R$14)))^2+(SIN(RADIANS(I2))-SIN(RADIANS(S$14)))^2))/2)) -> 1.095725693 | M2: =E2-T$14 -> 0.7 | N2: =ABS(K2)*$Q$9+ABS(L2)*$R$9+ABS(M2)*$S$9 -> 1.845725693 | P2: MDC List | Q2: 6 | R2: Lyr | S2: 1 | T2: =IF(ISBLANK(Q2),COUNTIF('Search MDC List'!B2:B520,R2),COUNTIF('Search MDC List'!A2:A520,Q2)) -> 3
A3: 8 | B3: 37.5 | C3: 278.7 | D3: 29.9 | E3: 33.6 | F3: 0.55 | G3: -0.02 | H3: =IF(C3-K3*F3<0,360+C3-K3*F3,IF(C3-K3*F3>=360,C3-K3*F3-360,C3-K3*F3)) -> 275.895 | I3: =IF(D3-K3*G3<0,360+D3-K3*G3,IF(D3-K3*G3>=360,D3-K3*G3-360,D3-K3*G3)) -> 30.002 | J3: 11 | K3: =IF(B3-Q$14>180,360-(B3-Q$14),IF(B3-Q$14<-180,360+(B3-Q$14),B3-Q$14)) -> 5.1 | L3: =DEGREES(ACOS((2-ABS((COS(RADIANS(I3))*COS(RADIANS(H3))-COS(RADIANS(S$14))*COS(RADIANS(R$14)))^2+(COS(RADIANS(I3))*SIN(RADIANS(H3))-COS(RADIANS(S$14))*SIN(RADIANS(R$14)))^2+(SIN(RADIANS(I3))-SIN(RADIANS(S$14)))^2))/2)) -> 4.675759991 | M3: =E3-T$14 -> -13 | N3: =ABS(K3)*$Q$9+ABS(L3)*$R$9+ABS(M3)*$S$9 -> 20.22575999 | P3: or | Q3: SL | R3: Rank
A4: 5 | B4: 24.5 | C4: 274.6 | D4: 31.2 | E4: 32 | F4: 0 | G4: 0 | H4: =IF(C4-K4*F4<0,360+C4-K4*F4,IF(C4-K4*F4>=360,C4-K4*F4-360,C4-K4*F4)) -> 274.6 | I4: =IF(D4-K4*G4<0,360+D4-K4*G4,IF(D4-K4*G4>=360,D4-K4*G4-360,D4-K4*G4)) -> 31.2 | J4: 7.5 | K4: =IF(B4-Q$14>180,360-(B4-Q$14),IF(B4-Q$14<-180,360+(B4-Q$14),B4-Q$14)) -> -7.9 | L4: =DEGREES(ACOS((2-ABS((COS(RADIANS(I4))*COS(RADIANS(H4))-COS(RADIANS(S$14))*COS(RADIANS(R$14)))^2+(COS(RADIANS(I4))*SIN(RADIANS(H4))-COS(RADIANS(S$14))*SIN(RADIANS(R$14)))^2+(SIN(RADIANS(I4))-SIN(RADIANS(S$14)))^2))/2)) -> 3.04034593 | M4: =E4-T$14 -> -14.6 | N4: =ABS(K4)*$Q$9+ABS(L4)*$R$9+ABS(M4)*$S$9 -> 21.59034593 | P4: IMO Network | Q4: 32 | R4: 1
A5: 14 | B5: 39.5 | C5: 280.3 | D5: 29.1 | E5: 33.6 | F5: 0.86 | G5: 0.23 | H5: =IF(C5-K5*F5<0,360+C5-K5*F5,IF(C5-K5*F5>=360,C5-K5*F5-360,C5-K5*F5)) -> 274.194 | I5: =IF(D5-K5*G5<0,360+D5-K5*G5,IF(D5-K5*G5>=360,D5-K5*G5-360,D5-K5*G5)) -> 27.467 | J5: 7.3 | K5: =IF(B5-Q$14>180,360-(B5-Q$14),IF(B5-Q$14<-180,360+(B5-Q$14),B5-Q$14)) -> 7.1 | L5: =DEGREES(ACOS((2-ABS((COS(RADIANS(I5))*COS(RADIANS(H5))-COS(RADIANS(S$14))*COS(RADIANS(R$14)))^2+(COS(RADIANS(I5))*SIN(RADIANS(H5))-COS(RADIANS(S$14))*SIN(RADIANS(R$14)))^2+(SIN(RADIANS(I5))-SIN(RADIANS(S$14)))^2))/2)) -> 6.131859933 | M5: =E5-T$14 -> -13 | N5: =ABS(K5)*$Q$9+ABS(L5)*$R$9+ABS(M5)*$S$9 -> 22.68185993 | P5: or | Q5: SL | R5: Alpha | S5: Delta | T5: Vgeo
A6: 17 | B6: 47.5 | C6: 283.9 | D6: 27.5 | E6: 32 | F6: 0 | G6: 0 | H6: =IF(C6-K6*F6<0,360+C6-K6*F6,IF(C6-K6*F6>=360,C6-K6*F6-360,C6-K6*F6)) -> 283.9 | I6: =IF(D6-K6*G6<0,360+D6-K6*G6,IF(D6-K6*G6>=360,D6-K6*G6-360,D6-K6*G6)) -> 27.5 | J6: 7.5 | K6: =IF(B6-Q$14>180,360-(B6-Q$14),IF(B6-Q$14<-180,360+(B6-Q$14),B6-Q$14)) -> 15.1 | L6: =DEGREES(ACOS((2-ABS((COS(RADIANS(I6))*COS(RADIANS(H6))-COS(RADIANS(S$14))*COS(RADIANS(R$14)))^2+(COS(RADIANS(I6))*SIN(RADIANS(H6))-COS(RADIANS(S$14))*SIN(RADIANS(R$14)))^2+(SIN(RADIANS(I6))-SIN(RADIANS(S$14)))^2))/2)) -> 11.7774179 | M6: =E6-T$14 -> -14.6 | N6: =ABS(K6)*$Q$9+ABS(L6)*$R$9+ABS(M6)*$S$9 -> 33.9274179 | P6: Radiant Pos | Q6: 182 | R6: 76.2 | S6: -23.4 | T6: 53.1
A7: 3 | B7: 18.5 | C7: 296.3 | D7: 40.4 | E7: 42.9 | F7: 1.22 | G7: 0.25 | H7: =IF(C7-K7*F7<0,360+C7-K7*F7,IF(C7-K7*F7>=360,C7-K7*F7-360,C7-K7*F7)) -> 313.258 | I7: =IF(D7-K7*G7<0,360+D7-K7*G7,IF(D7-K7*G7>=360,D7-K7*G7-360,D7-K7*G7)) -> 43.875 | J7: 6.9 | K7: =IF(B7-Q$14>180,360-(B7-Q$14),IF(B7-Q$14<-180,360+(B7-Q$14),B7-Q$14)) -> -13.9 | L7: =DEGREES(ACOS((2-ABS((COS(RADIANS(I7))*COS(RADIANS(H7))-COS(RADIANS(S$14))*COS(RADIANS(R$14)))^2+(COS(RADIANS(I7))*SIN(RADIANS(H7))-COS(RADIANS(S$14))*SIN(RADIANS(R$14)))^2+(SIN(RADIANS(I7))-SIN(RADIANS(S$14)))^2))/2)) -> 33.54575044 | M7: =E7-T$14 -> -3.7 | N7: =ABS(K7)*$Q$9+ABS(L7)*$R$9+ABS(M7)*$S$9 -> 44.19575044
A8: 1 | B8: 8.5 | C8: 295.1 | D8: 42.2 | E8: 40.8 | F8: 0.41 | G8: 0.13 | H8: =IF(C8-K8*F8<0,360+C8-K8*F8,IF(C8-K8*F8>=360,C8-K8*F8-360,C8-K8*F8)) -> 304.899 | I8: =IF(D8-K8*G8<0,360+D8-K8*G8,IF(D8-K8*G8>=360,D8-K8*G8-360,D8-K8*G8)) -> 45.307 | J8: 9.1 | K8: =IF(B8-Q$14>180,360-(B8-Q$14),IF(B8-Q$14<-180,360+(B8-Q$14),B8-Q$14)) -> -23.9 | L8: =DEGREES(ACOS((2-ABS((COS(RADIANS(I8))*COS(RADIANS(H8))-COS(RADIANS(S$14))*COS(RADIANS(R$14)))^2+(COS(RADIANS(I8))*SIN(RADIANS(H8))-COS(RADIANS(S$14))*SIN(RADIANS(R$14)))^2+(SIN(RADIANS(I8))-SIN(RADIANS(S$14)))^2))/2)) -> 27.88948033 | M8: =E8-T$14 -> -5.8 | N8: =ABS(K8)*$Q$9+ABS(L8)*$R$9+ABS(M8)*$S$9 -> 45.63948033 | Q8: sSL | R8: dPos | S8: dVgeo
A9: 15 | B9: 40.5 | C9: 326.9 | D9: 48.2 | E9: 40.8 | F9: 1.12 | G9: 0.24 | H9: =IF(C9-K9*F9<0,360+C9-K9*F9,IF(C9-K9*F9>=360,C9-K9*F9-360,C9-K9*F9)) -> 317.828 | I9: =IF(D9-K9*G9<0,360+D9-K9*G9,IF(D9-K9*G9>=360,D9-K9*G9-360,D9-K9*G9)) -> 46.256 | J9: 6.6 | K9: =IF(B9-Q$14>180,360-(B9-Q$14),IF(B9-Q$14<-180,360+(B9-Q$14),B9-Q$14)) -> 8.1 | L9: =DEGREES(ACOS((2-ABS((COS(RADIANS(I9))*COS(RADIANS(H9))-COS(RADIANS(S$14))*COS(RADIANS(R$14)))^2+(COS(RADIANS(I9))*SIN(RADIANS(H9))-COS(RADIANS(S$14))*SIN(RADIANS(R$14)))^2+(SIN(RADIANS(I9))-SIN(RADIANS(S$14)))^2))/2)) -> 36.9339108 | M9: =E9-T$14 -> -5.8 | N9: =ABS(K9)*$Q$9+ABS(L9)*$R$9+ABS(M9)*$S$9 -> 46.7839108 | P9: Weights | Q9: 0.5 | R9: 1 | S9: 1
A10: 21 | B10: 57.5 | C10: 294.4 | D10: 24.2 | E10: 30.5 | F10: 0 | G10: 0 | H10: =IF(C10-K10*F10<0,360+C10-K10*F10,IF(C10-K10*F10>=360,C10-K10*F10-360,C10-K10*F10)) -> 294.4 | I10: =IF(D10-K10*G10<0,360+D10-K10*G10,IF(D10-K10*G10>=360,D10-K10*G10-360,D10-K10*G10)) -> 24.2 | J10: 7.3 | K10: =IF(B10-Q$14>180,360-(B10-Q$14),IF(B10-Q$14<-180,360+(B10-Q$14),B10-Q$14)) -> 25.1 | L10: =DEGREES(ACOS((2-ABS((COS(RADIANS(I10))*COS(RADIANS(H10))-COS(RADIANS(S$14))*COS(RADIANS(R$14)))^2+(COS(RADIANS(I10))*SIN(RADIANS(H10))-COS(RADIANS(S$14))*SIN(RADIANS(R$14)))^2+(SIN(RADIANS(I10))-SIN(RADIANS(S$14)))^2))/2)) -> 21.58217452 | M10: =E10-T$14 -> -16.1 | N10: =ABS(K10)*$Q$9+ABS(L10)*$R$9+ABS(M10)*$S$9 -> 50.23217452
A11: 47 | B11: 117.5 | C11: 14.4 | D11: 66.8 | E11: 42.9 | F11: 1.25 | G11: 0.45 | H11: =IF(C11-K11*F11<0,360+C11-K11*F11,IF(C11-K11*F11>=360,C11-K11*F11-360,C11-K11*F11)) -> 268.025 | I11: =IF(D11-K11*G11<0,360+D11-K11*G11,IF(D11-K11*G11>=360,D11-K11*G11-360,D11-K11*G11)) -> 28.505 | J11: 24.6 | K11: =IF(B11-Q$14>180,360-(B11-Q$14),IF(B11-Q$14<-180,360+(B11-Q$14),B11-Q$14)) -> 85.1 | L11: =DEGREES(ACOS((2-ABS((COS(RADIANS(I11))*COS(RADIANS(H11))-COS(RADIANS(S$14))*COS(RADIANS(R$14)))^2+(COS(RADIANS(I11))*SIN(RADIANS(H11))-COS(RADIANS(S$14))*SIN(RADIANS(R$14)))^2+(SIN(RADIANS(I11))-SIN(RADIANS(S$14)))^2))/2)) -> 5.883001322 | M11: =E11-T$14 -> -3.7 | N11: =ABS(K11)*$Q$9+ABS(L11)*$R$9+ABS(M11)*$S$9 -> 52.13300132 | P11: Color MATCH | Q11: 0 | R11: 20 | S11: 100
A12: 23 | B12: 65.5 | C12: 293 | D12: 18.3 | E12: 32 | F12: 0 | G12: 0 | H12: =IF(C12-K12*F12<0,360+C12-K12*F12,IF(C12-K12*F12>=360,C12-K12*F12-360,C12-K12*F12)) -> 293 | I12: =IF(D12-K12*G12<0,360+D12-K12*G12,IF(D12-K12*G12>=360,D12-K12*G12-360,D12-K12*G12)) -> 18.3 | J12: 7.9 | K12: =IF(B12-Q$14>180,360-(B12-Q$14),IF(B12-Q$14<-180,360+(B12-Q$14),B12-Q$14)) -> 33.1 | L12: =DEGREES(ACOS((2-ABS((COS(RADIANS(I12))*COS(RADIANS(H12))-COS(RADIANS(S$14))*COS(RADIANS(R$14)))^2+(COS(RADIANS(I12))*SIN(RADIANS(H12))-COS(RADIANS(S$14))*SIN(RADIANS(R$14)))^2+(SIN(RADIANS(I12))-SIN(RADIANS(S$14)))^2))/2)) -> 24.04588243 | M12: =E12-T$14 -> -14.6 | N12: =ABS(K12)*$Q$9+ABS(L12)*$R$9+ABS(M12)*$S$9 -> 55.19588243
A13: 45 | B13: 109.5 | C13: 348.5 | D13: 52 | E13: 37 | F13: 1.07 | G13: 0.4 | H13: =IF(C13-K13*F13<0,360+C13-K13*F13,IF(C13-K13*F13>=360,C13-K13*F13-360,C13-K13*F13)) -> 266.003 | I13: =IF(D13-K13*G13<0,360+D13-K13*G13,IF(D13-K13*G13>=360,D13-K13*G13-360,D13-K13*G13)) -> 21.16 | J13: 11.5 | K13: =IF(B13-Q$14>180,360-(B13-Q$14),IF(B13-Q$14<-180,360+(B13-Q$14),B13-Q$14)) -> 77.1 | L13: =DEGREES(ACOS((2-ABS((COS(RADIANS(I13))*COS(RADIANS(H13))-COS(RADIANS(S$14))*COS(RADIANS(R$14)))^2+(COS(RADIANS(I13))*SIN(RADIANS(H13))-COS(RADIANS(S$14))*SIN(RADIANS(R$14)))^2+(SIN(RADIANS(I13))-SIN(RADIANS(S$14)))^2))/2)) -> 13.2520663 | M13: =E13-T$14 -> -9.6 | N13: =ABS(K13)*$Q$9+ABS(L13)*$R$9+ABS(M13)*$S$9 -> 61.4020663 | Q13: SL | R13: Alpha | S13: Delta | T13: Vgeo | U13: MDC # | V13: IMO
A14: 42 | B14: 105.5 | C14: 9.3 | D14: 64.3 | E14: 40.8 | F14: 1.01 | G14: 0.43 | H14: =IF(C14-K14*F14<0,360+C14-K14*F14,IF(C14-K14*F14>=360,C14-K14*F14-360,C14-K14*F14)) -> 295.469 | I14: =IF(D14-K14*G14<0,360+D14-K14*G14,IF(D14-K14*G14>=360,D14-K14*G14-360,D14-K14*G14)) -> 32.867 | J14: 7.6 | K14: =IF(B14-Q$14>180,360-(B14-Q$14),IF(B14-Q$14<-180,360+(B14-Q$14),B14-Q$14)) -> 73.1 | L14: =DEGREES(ACOS((2-ABS((COS(RADIANS(I14))*COS(RADIANS(H14))-COS(RADIANS(S$14))*COS(RADIANS(R$14)))^2+(COS(RADIANS(I14))*SIN(RADIANS(H14))-COS(RADIANS(S$14))*SIN(RADIANS(R$14)))^2+(SIN(RADIANS(I14))-SIN(RADIANS(S$14)))^2))/2)) -> 19.6273585 | M14: =E14-T$14 -> -5.8 | N14: =ABS(K14)*$Q$9+ABS(L14)*$R$9+ABS(M14)*$S$9 -> 61.9773585 | P14: Search Params | Q14: =IF(ISBLANK(Q2),IF(ISBLANK(R2),IF(OR(ISBLANK(Q4),ISBLANK(R4)),Q6,INDIRECT(CONCATENATE("'Search IMO Network'!",ADDRESS(MATCH(CONCATENATE(Q4,"_",R4),'Search IMO Network'!J:J,0),1)))),INDIRECT(CONCATENATE("'Search MDC List'!",ADDRESS(MATCH(CONCATENATE(R2,"_",S2),'Search MDC List'!Q:Q,0),4)))),INDIRECT(CONCATENATE("'Search MDC List'!",ADDRESS(MATCH(CONCATENATE(Q2,"_",S2),'Search MDC List'!P:P,0),4)))) -> 32.4 | R14: =IF(ISBLANK(Q2),IF(ISBLANK(R2),IF(OR(ISBLANK(Q4),ISBLANK(R4)),R6,INDIRECT(CONCATENATE("'Search IMO Network'!",ADDRESS(MATCH(CONCATENATE(Q4,"_",R4),'Search IMO Network'!J:J,0),2)))),INDIRECT(CONCATENATE("'Search MDC List'!",ADDRESS(MATCH(CONCATENATE(R2,"_",S2),'Search MDC List'!Q:Q,0),5)))),INDIRECT(CONCATENATE("'Search MDC List'!",ADDRESS(MATCH(CONCATENATE(Q2,"_",S2),'Search MDC List'!P:P,0),5)))) -> 272 | S14: =IF(ISBLANK(Q2),IF(ISBLANK(R2),IF(OR(ISBLANK(Q4),ISBLANK(R4)),S6,INDIRECT(CONCATENATE("'Search IMO Network'!",ADDRESS(MATCH(CONCATENATE(Q4,"_",R4),'Search IMO Network'!J:J,0),3)))),INDIRECT(CONCATENATE("'Search MDC List'!",ADDRESS(MATCH(CONCATENATE(R2,"_",S2),'Search MDC List'!Q:Q,0),6)))),INDIRECT(CONCATENATE("'Search MDC List'!",ADDRESS(MATCH(CONCATENATE(Q2,"_",S2),'Search MDC List'!P:P,0),6)))) -> 33.3 | T14: =IF(ISBLANK(Q2),IF(ISBLANK(R2),IF(OR(ISBLANK(Q4),ISBLANK(R4)),T6,INDIRECT(CONCATENATE("'Search IMO Network'!",ADDRESS(MATCH(CONCATENATE(Q4,"_",R4),'Search IMO Network'!J:J,0),4)))),INDIRECT(CONCATENATE("'Search MDC List'!",ADDRESS(MATCH(CONCATENATE(R2,"_",S2),'Search MDC List'!Q:Q,0),7)))),INDIRECT(CONCATENATE("'Search MDC List'!",ADDRESS(MATCH(CONCATENATE(Q2,"_",S2),'Search MDC List'!P:P,0),7)))) -> 46.6 | U14: =IF(ISBLANK(Q2),IF(ISBLANK(R2),"???",INDIRECT(CONCATENATE("'Search MDC List'!",ADDRESS(MATCH(R2,'Search MDC List'!B:B,0),1)))),INDIRECT(CONCATENATE("'Search MDC List'!",ADDRESS(MATCH(Q2,'Search MDC List'!A:A,0),1)))) -> 6 | V14: =IF(ISBLANK(Q2),IF(ISBLANK(R2),"???",INDIRECT(CONCATENATE("'Search MDC List'!",ADDRESS(MATCH(R2,'Search MDC List'!B:B,0),2)))),INDIRECT(CONCATENATE("'Search MDC List'!",ADDRESS(MATCH(Q2,'Search MDC List'!A:A,0),2)))) -> LYR
A15: 26 | B15: 69.5 | C15: 5.7 | D15: 52.2 | E15: 45 | F15: 0.95 | G15: 0.51 | H15: =IF(C15-K15*F15<0,360+C15-K15*F15,IF(C15-K15*F15>=360,C15-K15*F15-360,C15-K15*F15)) -> 330.455 | I15: =IF(D15-K15*G15<0,360+D15-K15*G15,IF(D15-K15*G15>=360,D15-K15*G15-360,D15-K15*G15)) -> 33.279 | J15: 8.2 | K15: =IF(B15-Q$14>180,360-(B15-Q$14),IF(B15-Q$14<-180,360+(B15-Q$14),B15-Q$14)) -> 37.1 | L15: =DEGREES(ACOS((2-ABS((COS(RADIANS(I15))*COS(RADIANS(H15))-COS(RADIANS(S$14))*COS(RADIANS(R$14)))^2+(COS(RADIANS(I15))*SIN(RADIANS(H15))-COS(RADIANS(S$14))*SIN(RADIANS(R$14)))^2+(SIN(RADIANS(I15))-SIN(RADIANS(S$14)))^2))/2)) -> 48.17809772 | M15: =E15-T$14 -> -1.6 | N15: =ABS(K15)*$Q$9+ABS(L15)*$R$9+ABS(M15)*$S$9 -> 68.32809772
A16: 57 | B16: 121.5 | C16: 16.4 | D16: 68.1 | E16: 42.9 | F16: 0.94 | G16: 0.5 | H16: =IF(C16-K16*F16<0,360+C16-K16*F16,IF(C16-K16*F16>=360,C16-K16*F16-360,C16-K16*F16)) -> 292.646 | I16: =IF(D16-K16*G16<0,360+D16-K16*G16,IF(D16-K16*G16>=360,D16-K16*G16-360,D16-K16*G16)) -> 23.55 | J16: 25.6 | K16: =IF(B16-Q$14>180,360-(B16-Q$14),IF(B16-Q$14<-180,360+(B16-Q$14),B16-Q$14)) -> 89.1 | L16: =DEGREES(ACOS((2-ABS((COS(RADIANS(I16))*COS(RADIANS(H16))-COS(RADIANS(S$14))*COS(RADIANS(R$14)))^2+(COS(RADIANS(I16))*SIN(RADIANS(H16))-COS(RADIANS(S$14))*SIN(RADIANS(R$14)))^2+(SIN(RADIANS(I16))-SIN(RADIANS(S$14)))^2))/2)) -> 20.55288082 | M16: =E16-T$14 -> -3.7 | N16: =ABS(K16)*$Q$9+ABS(L16)*$R$9+ABS(M16)*$S$9 -> 68.80288082 | Q16: Enter MDC # AND Entry Num OR IMO 3-Letter-Code AND Entry Num OR IMONET SL AND Rank OR SL/Alpha/Delta/Vgeo Sort = Ctrl-r
A17: 123 | B17: 296.5 | C17: 243.5 | D17: 32 | E17: 42.9 | F17: 0 | G17: 0 | H17: =IF(C17-K17*F17<0,360+C17-K17*F17,IF(C17-K17*F17>=360,C17-K17*F17-360,C17-K17*F17)) -> 243.5 | I17: =IF(D17-K17*G17<0,360+D17-K17*G17,IF(D17-K17*G17>=360,D17-K17*G17-360,D17-K17*G17)) -> 32 | J17: 10.1 | K17: =IF(B17-Q$14>180,360-(B17-Q$14),IF(B17-Q$14<-180,360+(B17-Q$14),B17-Q$14)) -> 95.9 | L17: =DEGREES(ACOS((2-ABS((COS(RADIANS(I17))*COS(RADIANS(H17))-COS(RADIANS(S$14))*COS(RADIANS(R$14)))^2+(COS(RADIANS(I17))*SIN(RADIANS(H17))-COS(RADIANS(S$14))*SIN(RADIANS(R$14)))^2+(SIN(RADIANS(I17))-SIN(RADIANS(S$14)))^2))/2)) -> 23.95740366 | M17: =E17-T$14 -> -3.7 | N17: =ABS(K17)*$Q$9+ABS(L17)*$R$9+ABS(M17)*$S$9 -> 75.60740366
A18: 33 | B18: 83.5 | C18: 296.6 | D18: -2.9 | E18: 35.3 | F18: 0 | G18: 0 | H18: =IF(C18-K18*F18<0,360+C18-K18*F18,IF(C18-K18*F18>=360,C18-K18*F18-360,C18-K18*F18)) -> 296.6 | I18: =IF(D18-K18*G18<0,360+D18-K18*G18,IF(D18-K18*G18>=360,D18-K18*G18-360,D18-K18*G18)) -> 357.1 | J18: 10 | K18: =IF(B18-Q$14>180,360-(B18-Q$14),IF(B18-Q$14<-180,360+(B18-Q$14),B18-Q$14)) -> 51.1 | L18: =DEGREES(ACOS((2-ABS((COS(RADIANS(I18))*COS(RADIANS(H18))-COS(RADIANS(S$14))*COS(RADIANS(R$14)))^2+(COS(RADIANS(I18))*SIN(RADIANS(H18))-COS(RADIANS(S$14))*SIN(RADIANS(R$14)))^2+(SIN(RADIANS(I18))-SIN(RADIANS(S$14)))^2))/2)) -> 43.01321899 | M18: =E18-T$14 -> -11.3 | N18: =ABS(K18)*$Q$9+ABS(L18)*$R$9+ABS(M18)*$S$9 -> 79.86321899
A19: 132 | B19: 299.5 | C19: 235.5 | D19: 34.3 | E19: 38.9 | F19: 0 | G19: 0 | H19: =IF(C19-K19*F19<0,360+C19-K19*F19,IF(C19-K19*F19>=360,C19-K19*F19-360,C19-K19*F19)) -> 235.5 | I19: =IF(D19-K19*G19<0,360+D19-K19*G19,IF(D19-K19*G19>=360,D19-K19*G19-360,D19-K19*G19)) -> 34.3 | J19: 14 | K19: =IF(B19-Q$14>180,360-(B19-Q$14),IF(B19-Q$14<-180,360+(B19-Q$14),B19-Q$14)) -> 92.9 | L19: =DEGREES(ACOS((2-ABS((COS(RADIANS(I19))*COS(RADIANS(H19))-COS(RADIANS(S$14))*COS(RADIANS(R$14)))^2+(COS(RADIANS(I19))*SIN(RADIANS(H19))-COS(RADIANS(S$14))*SIN(RADIANS(R$14)))^2+(SIN(RADIANS(I19))-SIN(RADIANS(S$14)))^2))/2)) -> 30.18358355 | M19: =E19-T$14 -> -7.7 | N19: =ABS(K19)*$Q$9+ABS(L19)*$R$9+ABS(M19)*$S$9 -> 84.33358355
A20: 41 | B20: 106.5 | C20: 322.3 | D20: 11.6 | E20: 32 | F20: 1.01 | G20: 0.03 | H20: =IF(C20-K20*F20<0,360+C20-K20*F20,IF(C20-K20*F20>=360,C20-K20*F20-360,C20-K20*F20)) -> 247.459 | I20: =IF(D20-K20*G20<0,360+D20-K20*G20,IF(D20-K20*G20>=360,D20-K20*G20-360,D20-K20*G20)) -> 9.377 | J20: 13.2 | K20: =IF(B20-Q$14>180,360-(B20-Q$14),IF(B20-Q$14<-180,360+(B20-Q$14),B20-Q$14)) -> 74.1 | L20: =DEGREES(ACOS((2-ABS((COS(RADIANS(I20))*COS(RADIANS(H20))-COS(RADIANS(S$14))*COS(RADIANS(R$14)))^2+(COS(RADIANS(I20))*SIN(RADIANS(H20))-COS(RADIANS(S$14))*SIN(RADIANS(R$14)))^2+(SIN(RADIANS(I20))-SIN(RADIANS(S$14)))^2))/2)) -> 32.90242263 | M20: =E20-T$14 -> -14.6 | N20: =ABS(K20)*$Q$9+ABS(L20)*$R$9+ABS(M20)*$S$9 -> 84.55242263
A21: 37 | B21: 91.5 | C21: 301.9 | D21: -5.9 | E21: 38.9 | F21: 0 | G21: 0 | H21: =IF(C21-K21*F21<0,360+C21-K21*F21,IF(C21-K21*F21>=360,C21-K21*F21-360,C21-K21*F21)) -> 301.9 | I21: =IF(D21-K21*G21<0,360+D21-K21*G21,IF(D21-K21*G21>=360,D21-K21*G21-360,D21-K21*G21)) -> 354.1 | J21: 10.6 | K21: =IF(B21-Q$14>180,360-(B21-Q$14),IF(B21-Q$14<-180,360+(B21-Q$14),B21-Q$14)) -> 59.1 | L21: =DEGREES(ACOS((2-ABS((COS(RADIANS(I21))*COS(RADIANS(H21))-COS(RADIANS(S$14))*COS(RADIANS(R$14)))^2+(COS(RADIANS(I21))*SIN(RADIANS(H21))-COS(RADIANS(S$14))*SIN(RADIANS(R$14)))^2+(SIN(RADIANS(I21))-SIN(RADIANS(S$14)))^2))/2)) -> 48.37249519 | M21: =E21-T$14 -> -7.7 | N21: =ABS(K21)*$Q$9+ABS(L21)*$R$9+ABS(M21)*$S$9 -> 85.62249519
A22: 28 | B22: 77.5 | C22: 290 | D22: -5.5 | E22: 38.9 | F22: 0.99 | G22: 0.24 | H22: =IF(C22-K22*F22<0,360+C22-K22*F22,IF(C22-K22*F22>=360,C22-K22*F22-360,C22-K22*F22)) -> 245.351 | I22: =IF(D22-K22*G22<0,360+D22-K22*G22,IF(D22-K22*G22>=360,D22-K22*G22-360,D22-K22*G22)) -> 343.676 | J22: 9.4 | K22: =IF(B22-Q$14>180,360-(B22-Q$14),IF(B22-Q$14<-180,360+(B22-Q$14),B22-Q$14)) -> 45.1 | L22: =DEGREES(ACOS((2-ABS((COS(RADIANS(I22))*COS(RADIANS(H22))-COS(RADIANS(S$14))*COS(RADIANS(R$14)))^2+(COS(RADIANS(I22))*SIN(RADIANS(H22))-COS(RADIANS(S$14))*SIN(RADIANS(R$14)))^2+(SIN(RADIANS(I22))-SIN(RADIANS(S$14)))^2))/2)) -> 55.76468388 | M22: =E22-T$14 -> -7.7 | N22: =ABS(K22)*$Q$9+ABS(L22)*$R$9+ABS(M22)*$S$9 -> 86.01468388
A23: 34 | B23: 92.5 | C23: 302.5 | D23: -4.7 | E23: 38.9 | F23: 0.79 | G23: 0.13 | H23: =IF(C23-K23*F23<0,360+C23-K23*F23,IF(C23-K23*F23>=360,C23-K23*F23-360,C23-K23*F23)) -> 255.021 | I23: =IF(D23-K23*G23<0,360+D23-K23*G23,IF(D23-K23*G23>=360,D23-K23*G23-360,D23-K23*G23)) -> 347.487 | J23: 16.4 | K23: =IF(B23-Q$14>180,360-(B23-Q$14),IF(B23-Q$14<-180,360+(B23-Q$14),B23-Q$14)) -> 60.1 | L23: =DEGREES(ACOS((2-ABS((COS(RADIANS(I23))*COS(RADIANS(H23))-COS(RADIANS(S$14))*COS(RADIANS(R$14)))^2+(COS(RADIANS(I23))*SIN(RADIANS(H23))-COS(RADIANS(S$14))*SIN(RADIANS(R$14)))^2+(SIN(RADIANS(I23))-SIN(RADIANS(S$14)))^2))/2)) -> 48.59048048 | M23: =E23-T$14 -> -7.7 | N23: =ABS(K23)*$Q$9+ABS(L23)*$R$9+ABS(M23)*$S$9 -> 86.34048048
A24: 61 | B24: 139.5 | C24: 45.8 | D24: 58.7 | E24: 54.7 | F24: 1.49 | G24: 0.34 | H24: =IF(C24-K24*F24<0,360+C24-K24*F24,IF(C24-K24*F24>=360,C24-K24*F24-360,C24-K24*F24)) -> 246.221 | I24: =IF(D24-K24*G24<0,360+D24-K24*G24,IF(D24-K24*G24>=360,D24-K24*G24-360,D24-K24*G24)) -> 22.286 | J24: 21.3 | K24: =IF(B24-Q$14>180,360-(B24-Q$14),IF(B24-Q$14<-180,360+(B24-Q$14),B24-Q$14)) -> 107.1 | L24: =DEGREES(ACOS((2-ABS((COS(RADIANS(I24))*COS(RADIANS(H24))-COS(RADIANS(S$14))*COS(RADIANS(R$14)))^2+(COS(RADIANS(I24))*SIN(RADIANS(H24))-COS(RADIANS(S$14))*SIN(RADIANS(R$14)))^2+(SIN(RADIANS(I24))-SIN(RADIANS(S$14)))^2))/2)) -> 25.22879891 | M24: =E24-T$14 -> 8.1 | N24: =ABS(K24)*$Q$9+ABS(L24)*$R$9+ABS(M24)*$S$9 -> 86.87879891
A25: 128 | B25: 297.5 | C25: 235.7 | D25: 31.6 | E25: 37 | F25: 0 | G25: 0 | H25: =IF(C25-K25*F25<0,360+C25-K25*F25,IF(C25-K25*F25>=360,C25-K25*F25-360,C25-K25*F25)) -> 235.7 | I25: =IF(D25-K25*G25<0,360+D25-K25*G25,IF(D25-K25*G25>=360,D25-K25*G25-360,D25-K25*G25)) -> 31.6 | J25: 10.8 | K25: =IF(B25-Q$14>180,360-(B25-Q$14),IF(B25-Q$14<-180,360+(B25-Q$14),B25-Q$14)) -> 94.9 | L25: =DEGREES(ACOS((2-ABS((COS(RADIANS(I25))*COS(RADIANS(H25))-COS(RADIANS(S$14))*COS(RADIANS(R$14)))^2+(COS(RADIANS(I25))*SIN(RADIANS(H25))-COS(RADIANS(S$14))*SIN(RADIANS(R$14)))^2+(SIN(RADIANS(I25))-SIN(RADIANS(S$14)))^2))/2)) -> 30.52539118 | M25: =E25-T$14 -> -9.6 | N25: =ABS(K25)*$Q$9+ABS(L25)*$R$9+ABS(M25)*$S$9 -> 87.57539118
A26: 127 | B26: 297.5 | C26: 236.1 | D26: 30.4 | E26: 35.3 | F26: 0 | G26: 0 | H26: =IF(C26-K26*F26<0,360+C26-K26*F26,IF(C26-K26*F26>=360,C26-K26*F26-360,C26-K26*F26)) -> 236.1 | I26: =IF(D26-K26*G26<0,360+D26-K26*G26,IF(D26-K26*G26>=360,D26-K26*G26-360,D26-K26*G26)) -> 30.4 | J26: 10.9 | K26: =IF(B26-Q$14>180,360-(B26-Q$14),IF(B26-Q$14<-180,360+(B26-Q$14),B26-Q$14)) -> 94.9 | L26: =DEGREES(ACOS((2-ABS((COS(RADIANS(I26))*COS(RADIANS(H26))-COS(RADIANS(S$14))*COS(RADIANS(R$14)))^2+(COS(RADIANS(I26))*SIN(RADIANS(H26))-COS(RADIANS(S$14))*SIN(RADIANS(R$14)))^2+(SIN(RADIANS(I26))-SIN(RADIANS(S$14)))^2))/2)) -> 30.48304954 | M26: =E26-T$14 -> -11.3 | N26: =ABS(K26)*$Q$9+ABS(L26)*$R$9+ABS(M26)*$S$9 -> 89.23304954
A27: 12 | B27: 44.5 | C27: 336.7 | D27: -0.6 | E27: 66.5 | F27: 0.7 | G27: 0.32 | H27: =IF(C27-K27*F27<0,360+C27-K27*F27,IF(C27-K27*F27>=360,C27-K27*F27-360,C27-K27*F27)) -> 328.23 | I27: =IF(D27-K27*G27<0,360+D27-K27*G27,IF(D27-K27*G27>=360,D27-K27*G27-360,D27-K27*G27)) -> 355.528 | J27: 48.6 | K27: =IF(B27-Q$14>180,360-(B27-Q$14),IF(B27-Q$14<-180,360+(B27-Q$14),B27-Q$14)) -> 12.1 | L27: =DEGREES(ACOS((2-ABS((COS(RADIANS(I27))*COS(RADIANS(H27))-COS(RADIANS(S$14))*COS(RADIANS(R$14)))^2+(COS(RADIANS(I27))*SIN(RADIANS(H27))-COS(RADIANS(S$14))*SIN(RADIANS(R$14)))^2+(SIN(RADIANS(I27))-SIN(RADIANS(S$14)))^2))/2)) -> 65.14208427 | M27: =E27-T$14 -> 19.9 | N27: =ABS(K27)*$Q$9+ABS(L27)*$R$9+ABS(M27)*$S$9 -> 91.09208427
A28: 122 | B28: 292.5 | C28: 234 | D28: 33.2 | E28: 37 | F28: 0 | G28: 0 | H28: =IF(C28-K28*F28<0,360+C28-K28*F28,IF(C28-K28*F28>=360,C28-K28*F28-360,C28-K28*F28)) -> 234 | I28: =IF(D28-K28*G28<0,360+D28-K28*G28,IF(D28-K28*G28>=360,D28-K28*G28-360,D28-K28*G28)) -> 33.2 | J28: 10.2 | K28: =IF(B28-Q$14>180,360-(B28-Q$14),IF(B28-Q$14<-180,360+(B28-Q$14),B28-Q$14)) -> 99.9 | L28: =DEGREES(ACOS((2-ABS((COS(RADIANS(I28))*COS(RADIANS(H28))-COS(RADIANS(S$14))*COS(RADIANS(R$14)))^2+(COS(RADIANS(I28))*SIN(RADIANS(H28))-COS(RADIANS(S$14))*SIN(RADIANS(R$14)))^2+(SIN(RADIANS(I28))-SIN(RADIANS(S$14)))^2))/2)) -> 31.5987071 | M28: =E28-T$14 -> -9.6 | N28: =ABS(K28)*$Q$9+ABS(L28)*$R$9+ABS(M28)*$S$9 -> 91.1487071
A29: 120 | B29: 291.5 | C29: 235 | D29: 30.2 | E29: 37 | F29: 0 | G29: 0 | H29: =IF(C29-K29*F29<0,360+C29-K29*F29,IF(C29-K29*F29>=360,C29-K29*F29-360,C29-K29*F29)) -> 235 | I29: =IF(D29-K29*G29<0,360+D29-K29*G29,IF(D29-K29*G29>=360,D29-K29*G29-360,D29-K29*G29)) -> 30.2 | J29: 11.6 | K29: =IF(B29-Q$14>180,360-(B29-Q$14),IF(B29-Q$14<-180,360+(B29-Q$14),B29-Q$14)) -> 100.9 | L29: =DEGREES(ACOS((2-ABS((COS(RADIANS(I29))*COS(RADIANS(H29))-COS(RADIANS(S$14))*COS(RADIANS(R$14)))^2+(COS(RADIANS(I29))*SIN(RADIANS(H29))-COS(RADIANS(S$14))*SIN(RADIANS(R$14)))^2+(SIN(RADIANS(I29))-SIN(RADIANS(S$14)))^2))/2)) -> 31.45200366 | M29: =E29-T$14 -> -9.6 | N29: =ABS(K29)*$Q$9+ABS(L29)*$R$9+ABS(M29)*$S$9 -> 91.50200366
A30: 121 | B30: 295.5 | C30: 231.3 | D30: 34.7 | E30: 37 | F30: 0 | G30: 0 | H30: =IF(C30-K30*F30<0,360+C30-K30*F30,IF(C30-K30*F30>=360,C30-K30*F30-360,C30-K30*F30)) -> 231.3 | I30: =IF(D30-K30*G30<0,360+D30-K30*G30,IF(D30-K30*G30>=360,D30-K30*G30-360,D30-K30*G30)) -> 34.7 | J30: 12.8 | K30: =IF(B30-Q$14>180,360-(B30-Q$14),IF(B30-Q$14<-180,360+(B30-Q$14),B30-Q$14)) -> 96.9 | L30: =DEGREES(ACOS((2-ABS((COS(RADIANS(I30))*COS(RADIANS(H30))-COS(RADIANS(S$14))*COS(RADIANS(R$14)))^2+(COS(RADIANS(I30))*SIN(RADIANS(H30))-COS(RADIANS(S$14))*SIN(RADIANS(R$14)))^2+(SIN(RADIANS(I30))-SIN(RADIANS(S$14)))^2))/2)) -> 33.53976904 | M30: =E30-T$14 -> -9.6 | N30: =ABS(K30)*$Q$9+ABS(L30)*$R$9+ABS(M30)*$S$9 -> 91.58976904
A31: 7 | B31: 41.5 | C31: 3.2 | D31: 17.2 | E31: 35.3 | F31: 0.93 | G31: 0.33 | H31: =IF(C31-K31*F31<0,360+C31-K31*F31,IF(C31-K31*F31>=360,C31-K31*F31-360,C31-K31*F31)) -> 354.737 | I31: =IF(D31-K31*G31<0,360+D31-K31*G31,IF(D31-K31*G31>=360,D31-K31*G31-360,D31-K31*G31)) -> 14.197 | J31: 14.1 | K31: =IF(B31-Q$14>180,360-(B31-Q$14),IF(B31-Q$14<-180,360+(B31-Q$14),B31-Q$14)) -> 9.1 | L31: =DEGREES(ACOS((2-ABS((COS(RADIANS(I31))*COS(RADIANS(H31))-COS(RADIANS(S$14))*COS(RADIANS(R$14)))^2+(COS(RADIANS(I31))*SIN(RADIANS(H31))-COS(RADIANS(S$14))*SIN(RADIANS(R$14)))^2+(SIN(RADIANS(I31))-SIN(RADIANS(S$14)))^2))/2)) -> 76.28512345 | M31: =E31-T$14 -> -11.3 | N31: =ABS(K31)*$Q$9+ABS(L31)*$R$9+ABS(M31)*$S$9 -> 92.13512345
A32: 126 | B32: 296.5 | C32: 225.9 | D32: 39.5 | E32: 38.9 | F32: 0 | G32: 0 | H32: =IF(C32-K32*F32<0,360+C32-K32*F32,IF(C32-K32*F32>=360,C32-K32*F32-360,C32-K32*F32)) -> 225.9 | I32: =IF(D32-K32*G32<0,360+D32-K32*G32,IF(D32-K32*G32>=360,D32-K32*G32-360,D32-K32*G32)) -> 39.5 | J32: 13.1 | K32: =IF(B32-Q$14>180,360-(B32-Q$14),IF(B32-Q$14<-180,360+(B32-Q$14),B32-Q$14)) -> 95.9 | L32: =DEGREES(ACOS((2-ABS((COS(RADIANS(I32))*COS(RADIANS(H32))-COS(RADIANS(S$14))*COS(RADIANS(R$14)))^2+(COS(RADIANS(I32))*SIN(RADIANS(H32))-COS(RADIANS(S$14))*SIN(RADIANS(R$14)))^2+(SIN(RADIANS(I32))-SIN(RADIANS(S$14)))^2))/2)) -> 37.21072263 | M32: =E32-T$14 -> -7.7 | N32: =ABS(K32)*$Q$9+ABS(L32)*$R$9+ABS(M32)*$S$9 -> 92.86072263
A33: 2 | B33: 18.5 | C33: 341.9 | D33: 8 | E33: 35.3 | F33: 0.63 | G33: 0.18 | H33: =IF(C33-K33*F33<0,360+C33-K33*F33,IF(C33-K33*F33>=360,C33-K33*F33-360,C33-K33*F33)) -> 350.657 | I33: =IF(D33-K33*G33<0,360+D33-K33*G33,IF(D33-K33*G33>=360,D33-K33*G33-360,D33-K33*G33)) -> 10.502 | J33: 7.1 | K33: =IF(B33-Q$14>180,360-(B33-Q$14),IF(B33-Q$14<-180,360+(B33-Q$14),B33-Q$14)) -> -13.9 | L33: =DEGREES(ACOS((2-ABS((COS(RADIANS(I33))*COS(RADIANS(H33))-COS(RADIANS(S$14))*COS(RADIANS(R$14)))^2+(COS(RADIANS(I33))*SIN(RADIANS(H33))-COS(RADIANS(S$14))*SIN(RADIANS(R$14)))^2+(SIN(RADIANS(I33))-SIN(RADIANS(S$14)))^2))/2)) -> 74.82875386 | M33: =E33-T$14 -> -11.3 | N33: =ABS(K33)*$Q$9+ABS(L33)*$R$9+ABS(M33)*$S$9 -> 93.07875386
A34: 125 | B34: 295.5 | C34: 223.3 | D34: 41.7 | E34: 38.9 | F34: 0 | G34: 0 | H34: =IF(C34-K34*F34<0,360+C34-K34*F34,IF(C34-K34*F34>=360,C34-K34*F34-360,C34-K34*F34)) -> 223.3 | I34: =IF(D34-K34*G34<0,360+D34-K34*G34,IF(D34-K34*G34>=360,D34-K34*G34-360,D34-K34*G34)) -> 41.7 | J34: 11.3 | K34: =IF(B34-Q$14>180,360-(B34-Q$14),IF(B34-Q$14<-180,360+(B34-Q$14),B34-Q$14)) -> 96.9 | L34: =DEGREES(ACOS((2-ABS((COS(RADIANS(I34))*COS(RADIANS(H34))-COS(RADIANS(S$14))*COS(RADIANS(R$14)))^2+(COS(RADIANS(I34))*SIN(RADIANS(H34))-COS(RADIANS(S$14))*SIN(RADIANS(R$14)))^2+(SIN(RADIANS(I34))-SIN(RADIANS(S$14)))^2))/2)) -> 39.004381 | M34: =E34-T$14 -> -7.7 | N34: =ABS(K34)*$Q$9+ABS(L34)*$R$9+ABS(M34)*$S$9 -> 95.154381
A35: 124 | B35: 294.5 | C35: 219.8 | D35: 41.5 | E35: 38.9 | F35: 0 | G35: 0 | H35: =IF(C35-K35*F35<0,360+C35-K35*F35,IF(C35-K35*F35>=360,C35-K35*F35-360,C35-K35*F35)) -> 219.8 | I35: =IF(D35-K35*G35<0,360+D35-K35*G35,IF(D35-K35*G35>=360,D35-K35*G35-360,D35-K35*G35)) -> 41.5 | J35: 15.5 | K35: =IF(B35-Q$14>180,360-(B35-Q$14),IF(B35-Q$14<-180,360+(B35-Q$14),B35-Q$14)) -> 97.9 | L35: =DEGREES(ACOS((2-ABS((COS(RADIANS(I35))*COS(RADIANS(H35))-COS(RADIANS(S$14))*COS(RADIANS(R$14)))^2+(COS(RADIANS(I35))*SIN(RADIANS(H35))-COS(RADIANS(S$14))*SIN(RADIANS(R$14)))^2+(SIN(RADIANS(I35))-SIN(RADIANS(S$14)))^2))/2)) -> 41.62893187 | M35: =E35-T$14 -> -7.7 | N35: =ABS(K35)*$Q$9+ABS(L35)*$R$9+ABS(M35)*$S$9 -> 98.27893187
A36: 18 | B36: 51.5 | C36: 14.1 | D36: 20.7 | E36: 37 | F36: 0.72 | G36: 0.2 | H36: =IF(C36-K36*F36<0,360+C36-K36*F36,IF(C36-K36*F36>=360,C36-K36*F36-360,C36-K36*F36)) -> 0.348 | I36: =IF(D36-K36*G36<0,360+D36-K36*G36,IF(D36-K36*G36>=360,D36-K36*G36-360,D36-K36*G36)) -> 16.88 | J36: 10.4 | K36: =IF(B36-Q$14>180,360-(B36-Q$14),IF(B36-Q$14<-180,360+(B36-Q$14),B36-Q$14)) -> 19.1 | L36: =DEGREES(ACOS((2-ABS((COS(RADIANS(I36))*COS(RADIANS(H36))-COS(RADIANS(S$14))*COS(RADIANS(R$14)))^2+(COS(RADIANS(I36))*SIN(RADIANS(H36))-COS(RADIANS(S$14))*SIN(RADIANS(R$14)))^2+(SIN(RADIANS(I36))-SIN(RADIANS(S$14)))^2))/2)) -> 79.48598855 | M36: =E36-T$14 -> -9.6 | N36: =ABS(K36)*$Q$9+ABS(L36)*$R$9+ABS(M36)*$S$9 -> 98.63598855
A37: 72 | B37: 172.5 | C37: 198.6 | D37: 57 | E37: 32 | F37: 0.9 | G37: -0.62 | H37: =IF(C37-K37*F37<0,360+C37-K37*F37,IF(C37-K37*F37>=360,C37-K37*F37-360,C37-K37*F37)) -> 72.51 | I37: =IF(D37-K37*G37<0,360+D37-K37*G37,IF(D37-K37*G37>=360,D37-K37*G37-360,D37-K37*G37)) -> 143.862 | J37: 17.7 | K37: =IF(B37-Q$14>180,360-(B37-Q$14),IF(B37-Q$14<-180,360+(B37-Q$14),B37-Q$14)) -> 140.1 | L37: =DEGREES(ACOS((2-ABS((COS(RADIANS(I37))*COS(RADIANS(H37))-COS(RADIANS(S$14))*COS(RADIANS(R$14)))^2+(COS(RADIANS(I37))*SIN(RADIANS(H37))-COS(RADIANS(S$14))*SIN(RADIANS(R$14)))^2+(SIN(RADIANS(I37))-SIN(RADIANS(S$14)))^2))/2)) -> 16.24054768 | M37: =E37-T$14 -> -14.6 | N37: =ABS(K37)*$Q$9+ABS(L37)*$R$9+ABS(M37)*$S$9 -> 100.8905477
A38: 113 | B38: 279.5 | C38: 243.8 | D38: 1.6 | E38: 42.9 | F38: 0 | G38: 0 | H38: =IF(C38-K38*F38<0,360+C38-K38*F38,IF(C38-K38*F38>=360,C38-K38*F38-360,C38-K38*F38)) -> 243.8 | I38: =IF(D38-K38*G38<0,360+D38-K38*G38,IF(D38-K38*G38>=360,D38-K38*G38-360,D38-K38*G38)) -> 1.6 | J38: 11.7 | K38: =IF(B38-Q$14>180,360-(B38-Q$14),IF(B38-Q$14<-180,360+(B38-Q$14),B38-Q$14)) -> 112.9 | L38: =DEGREES(ACOS((2-ABS((COS(RADIANS(I38))*COS(RADIANS(H38))-COS(RADIANS(S$14))*COS(RADIANS(R$14)))^2+(COS(RADIANS(I38))*SIN(RADIANS(H38))-COS(RADIANS(S$14))*SIN(RADIANS(R$14)))^2+(SIN(RADIANS(I38))-SIN(RADIANS(S$14)))^2))/2)) -> 41.26715655 | M38: =E38-T$14 -> -3.7 | N38: =ABS(K38)*$Q$9+ABS(L38)*$R$9+ABS(M38)*$S$9 -> 101.4171566
A39: 44 | B39: 105.5 | C39: 324.7 | D39: 15.2 | E39: 32 | F39: 0 | G39: 0 | H39: =IF(C39-K39*F39<0,360+C39-K39*F39,IF(C39-K39*F39>=360,C39-K39*F39-360,C39-K39*F39)) -> 324.7 | I39: =IF(D39-K39*G39<0,360+D39-K39*G39,IF(D39-K39*G39>=360,D39-K39*G39-360,D39-K39*G39)) -> 15.2 | J39: 10.6 | K39: =IF(B39-Q$14>180,360-(B39-Q$14),IF(B39-Q$14<-180,360+(B39-Q$14),B39-Q$14)) -> 73.1 | L39: =DEGREES(ACOS((2-ABS((COS(RADIANS(I39))*COS(RADIANS(H39))-COS(RADIANS(S$14))*COS(RADIANS(R$14)))^2+(COS(RADIANS(I39))*SIN(RADIANS(H39))-COS(RADIANS(S$14))*SIN(RADIANS(R$14)))^2+(SIN(RADIANS(I39))-SIN(RADIANS(S$14)))^2))/2)) -> 50.74901607 | M39: =E39-T$14 -> -14.6 | N39: =ABS(K39)*$Q$9+ABS(L39)*$R$9+ABS(M39)*$S$9 -> 101.8990161
A40: 111 | B40: 277.5 | C40: 244.8 | D40: -2.6 | E40: 45 | F40: 0 | G40: 0 | H40: =IF(C40-K40*F40<0,360+C40-K40*F40,IF(C40-K40*F40>=360,C40-K40*F40-360,C40-K40*F40)) -> 244.8 | I40: =IF(D40-K40*G40<0,360+D40-K40*G40,IF(D40-K40*G40>=360,D40-K40*G40-360,D40-K40*G40)) -> 357.4 | J40: 14.7 | K40: =IF(B40-Q$14>180,360-(B40-Q$14),IF(B40-Q$14<-180,360+(B40-Q$14),B40-Q$14)) -> 114.9 | L40: =DEGREES(ACOS((2-ABS((COS(RADIANS(I40))*COS(RADIANS(H40))-COS(RADIANS(S$14))*COS(RADIANS(R$14)))^2+(COS(RADIANS(I40))*SIN(RADIANS(H40))-COS(RADIANS(S$14))*SIN(RADIANS(R$14)))^2+(SIN(RADIANS(I40))-SIN(RADIANS(S$14)))^2))/2)) -> 44.13424935 | M40: =E40-T$14 -> -1.6 | N40: =ABS(K40)*$Q$9+ABS(L40)*$R$9+ABS(M40)*$S$9 -> 103.1842493
A41: 119 | B41: 293.5 | C41: 217.5 | D41: 44.9 | E41: 38.9 | F41: 1.3 | G41: -0.56 | H41: =IF(C41-K41*F41<0,360+C41-K41*F41,IF(C41-K41*F41>=360,C41-K41*F41-360,C41-K41*F41)) -> 88.93 | I41: =IF(D41-K41*G41<0,360+D41-K41*G41,IF(D41-K41*G41>=360,D41-K41*G41-360,D41-K41*G41)) -> 100.284 | J41: 12 | K41: =IF(B41-Q$14>180,360-(B41-Q$14),IF(B41-Q$14<-180,360+(B41-Q$14),B41-Q$14)) -> 98.9 | L41: =DEGREES(ACOS((2-ABS((COS(RADIANS(I41))*COS(RADIANS(H41))-COS(RADIANS(S$14))*COS(RADIANS(R$14)))^2+(COS(RADIANS(I41))*SIN(RADIANS(H41))-COS(RADIANS(S$14))*SIN(RADIANS(R$14)))^2+(SIN(RADIANS(I41))-SIN(RADIANS(S$14)))^2))/2)) -> 46.43293609 | M41: =E41-T$14 -> -7.7 | N41: =ABS(K41)*$Q$9+ABS(L41)*$R$9+ABS(M41)*$S$9 -> 103.5829361
A42: 19 | B42: 50.5 | C42: 11.2 | D42: 20.6 | E42: 37 | F42: 0 | G42: 0 | H42: =IF(C42-K42*F42<0,360+C42-K42*F42,IF(C42-K42*F42>=360,C42-K42*F42-360,C42-K42*F42)) -> 11.2 | I42: =IF(D42-K42*G42<0,360+D42-K42*G42,IF(D42-K42*G42>=360,D42-K42*G42-360,D42-K42*G42)) -> 20.6 | J42: 10 | K42: =IF(B42-Q$14>180,360-(B42-Q$14),IF(B42-Q$14<-180,360+(B42-Q$14),B42-Q$14)) -> 18.1 | L42: =DEGREES(ACOS((2-ABS((COS(RADIANS(I42))*COS(RADIANS(H42))-COS(RADIANS(S$14))*COS(RADIANS(R$14)))^2+(COS(RADIANS(I42))*SIN(RADIANS(H42))-COS(RADIANS(S$14))*SIN(RADIANS(R$14)))^2+(SIN(RADIANS(I42))-SIN(RADIANS(S$14)))^2))/2)) -> 86.09607846 | M42: =E42-T$14 -> -9.6 | N42: =ABS(K42)*$Q$9+ABS(L42)*$R$9+ABS(M42)*$S$9 -> 104.7460785
A43: 117 | B43: 287.5 | C43: 210.3 | D43: 49.6 | E43: 40.8 | F43: 0 | G43: 0 | H43: =IF(C43-K43*F43<0,360+C43-K43*F43,IF(C43-K43*F43>=360,C43-K43*F43-360,C43-K43*F43)) -> 210.3 | I43: =IF(D43-K43*G43<0,360+D43-K43*G43,IF(D43-K43*G43>=360,D43-K43*G43-360,D43-K43*G43)) -> 49.6 | J43: 8.3 | K43: =IF(B43-Q$14>180,360-(B43-Q$14),IF(B43-Q$14<-180,360+(B43-Q$14),B43-Q$14)) -> 104.9 | L43: =DEGREES(ACOS((2-ABS((COS(RADIANS(I43))*COS(RADIANS(H43))-COS(RADIANS(S$14))*COS(RADIANS(R$14)))^2+(COS(RADIANS(I43))*SIN(RADIANS(H43))-COS(RADIANS(S$14))*SIN(RADIANS(R$14)))^2+(SIN(RADIANS(I43))-SIN(RADIANS(S$14)))^2))/2)) -> 47.55228752 | M43: =E43-T$14 -> -5.8 | N43: =ABS(K43)*$Q$9+ABS(L43)*$R$9+ABS(M43)*$S$9 -> 105.8022875
A44: 109 | B44: 276.5 | C44: 242.4 | D44: 1.4 | E44: 40.8 | F44: 0 | G44: 0 | H44: =IF(C44-K44*F44<0,360+C44-K44*F44,IF(C44-K44*F44>=360,C44-K44*F44-360,C44-K44*F44)) -> 242.4 | I44: =IF(D44-K44*G44<0,360+D44-K44*G44,IF(D44-K44*G44>=360,D44-K44*G44-360,D44-K44*G44)) -> 1.4 | J44: 13.5 | K44: =IF(B44-Q$14>180,360-(B44-Q$14),IF(B44-Q$14<-180,360+(B44-Q$14),B44-Q$14)) -> 115.9 | L44: =DEGREES(ACOS((2-ABS((COS(RADIANS(I44))*COS(RADIANS(H44))-COS(RADIANS(S$14))*COS(RADIANS(R$14)))^2+(COS(RADIANS(I44))*SIN(RADIANS(H44))-COS(RADIANS(S$14))*SIN(RADIANS(R$14)))^2+(SIN(RADIANS(I44))-SIN(RADIANS(S$14)))^2))/2)) -> 42.27478979 | M44: =E44-T$14 -> -5.8 | N44: =ABS(K44)*$Q$9+ABS(L44)*$R$9+ABS(M44)*$S$9 -> 106.0247898
A45: 46 | B45: 107.5 | C45: 326.2 | D45: 13.6 | E45: 30.5 | F45: 0 | G45: 0 | H45: =IF(C45-K45*F45<0,360+C45-K45*F45,IF(C45-K45*F45>=360,C45-K45*F45-360,C45-K45*F45)) -> 326.2 | I45: =IF(D45-K45*G45<0,360+D45-K45*G45,IF(D45-K45*G45>=360,D45-K45*G45-360,D45-K45*G45)) -> 13.6 | J45: 13.5 | K45: =IF(B45-Q$14>180,360-(B45-Q$14),IF(B45-Q$14<-180,360+(B45-Q$14),B45-Q$14)) -> 75.1 | L45: =DEGREES(ACOS((2-ABS((COS(RADIANS(I45))*COS(RADIANS(H45))-COS(RADIANS(S$14))*COS(RADIANS(R$14)))^2+(COS(RADIANS(I45))*SIN(RADIANS(H45))-COS(RADIANS(S$14))*SIN(RADIANS(R$14)))^2+(SIN(RADIANS(I45))-SIN(RADIANS(S$14)))^2))/2)) -> 52.82138945 | M45: =E45-T$14 -> -16.1 | N45: =ABS(K45)*$Q$9+ABS(L45)*$R$9+ABS(M45)*$S$9 -> 106.4713895
A46: 32 | B46: 83.5 | C46: 296.2 | D46: -5 | E46: 37 | F46: 0.78 | G46: 0.62 | H46: =IF(C46-K46*F46<0,360+C46-K46*F46,IF(C46-K46*F46>=360,C46-K46*F46-360,C46-K46*F46)) -> 256.342 | I46: =IF(D46-K46*G46<0,360+D46-K46*G46,IF(D46-K46*G46>=360,D46-K46*G46-360,D46-K46*G46)) -> 323.318 | J46: 9.9 | K46: =IF(B46-Q$14>180,360-(B46-Q$14),IF(B46-Q$14<-180,360+(B46-Q$14),B46-Q$14)) -> 51.1 | L46: =DEGREES(ACOS((2-ABS((COS(RADIANS(I46))*COS(RADIANS(H46))-COS(RADIANS(S$14))*COS(RADIANS(R$14)))^2+(COS(RADIANS(I46))*SIN(RADIANS(H46))-COS(RADIANS(S$14))*SIN(RADIANS(R$14)))^2+(SIN(RADIANS(I46))-SIN(RADIANS(S$14)))^2))/2)) -> 71.49176873 | M46: =E46-T$14 -> -9.6 | N46: =ABS(K46)*$Q$9+ABS(L46)*$R$9+ABS(M46)*$S$9 -> 106.6417687
A47: 39 | B47: 96.5 | C47: 56.6 | D47: 38.4 | E47: 42.9 | F47: 0.94 | G47: 0.17 | H47: =IF(C47-K47*F47<0,360+C47-K47*F47,IF(C47-K47*F47>=360,C47-K47*F47-360,C47-K47*F47)) -> 356.346 | I47: =IF(D47-K47*G47<0,360+D47-K47*G47,IF(D47-K47*G47>=360,D47-K47*G47-360,D47-K47*G47)) -> 27.503 | J47: 7.2 | K47: =IF(B47-Q$14>180,360-(B47-Q$14),IF(B47-Q$14<-180,360+(B47-Q$14),B47-Q$14)) -> 64.1 | L47: =DEGREES(ACOS((2-ABS((COS(RADIANS(I47))*COS(RADIANS(H47))-COS(RADIANS(S$14))*COS(RADIANS(R$14)))^2+(COS(RADIANS(I47))*SIN(RADIANS(H47))-COS(RADIANS(S$14))*SIN(RADIANS(R$14)))^2+(SIN(RADIANS(I47))-SIN(RADIANS(S$14)))^2))/2)) -> 70.93901057 | M47: =E47-T$14 -> -3.7 | N47: =ABS(K47)*$Q$9+ABS(L47)*$R$9+ABS(M47)*$S$9 -> 106.6890106
A48: 51 | B48: 111.5 | C48: 7.1 | D48: 64.1 | E48: 40.8 | F48: 0 | G48: 0 | H48: =IF(C48-K48*F48<0,360+C48-K48*F48,IF(C48-K48*F48>=360,C48-K48*F48-360,C48-K48*F48)) -> 7.1 | I48: =IF(D48-K48*G48<0,360+D48-K48*G48,IF(D48-K48*G48>=360,D48-K48*G48-360,D48-K48*G48)) -> 64.1 | J48: 15.9 | K48: =IF(B48-Q$14>180,360-(B48-Q$14),IF(B48-Q$14<-180,360+(B48-Q$14),B48-Q$14)) -> 79.1 | L48: =DEGREES(ACOS((2-ABS((COS(RADIANS(I48))*COS(RADIANS(H48))-COS(RADIANS(S$14))*COS(RADIANS(R$14)))^2+(COS(RADIANS(I48))*SIN(RADIANS(H48))-COS(RADIANS(S$14))*SIN(RADIANS(R$14)))^2+(SIN(RADIANS(I48))-SIN(RADIANS(S$14)))^2))/2)) -> 62.52096448 | M48: =E48-T$14 -> -5.8 | N48: =ABS(K48)*$Q$9+ABS(L48)*$R$9+ABS(M48)*$S$9 -> 107.8709645
A49: 55 | B49: 115.5 | C49: 6.1 | D49: 64.4 | E49: 40.8 | F49: 0 | G49: 0 | H49: =IF(C49-K49*F49<0,360+C49-K49*F49,IF(C49-K49*F49>=360,C49-K49*F49-360,C49-K49*F49)) -> 6.1 | I49: =IF(D49-K49*G49<0,360+D49-K49*G49,IF(D49-K49*G49>=360,D49-K49*G49-360,D49-K49*G49)) -> 64.4 | J49: 15.9 | K49: =IF(B49-Q$14>180,360-(B49-Q$14),IF(B49-Q$14<-180,360+(B49-Q$14),B49-Q$14)) -> 83.1 | L49: =DEGREES(ACOS((2-ABS((COS(RADIANS(I49))*COS(RADIANS(H49))-COS(RADIANS(S$14))*COS(RADIANS(R$14)))^2+(COS(RADIANS(I49))*SIN(RADIANS(H49))-COS(RADIANS(S$14))*SIN(RADIANS(R$14)))^2+(SIN(RADIANS(I49))-SIN(RADIANS(S$14)))^2))/2)) -> 62.01074205 | M49: =E49-T$14 -> -5.8 | N49: =ABS(K49)*$Q$9+ABS(L49)*$R$9+ABS(M49)*$S$9 -> 109.3607421
A50: 49 | B50: 108.5 | C50: 329 | D50: 16.3 | E50: 29 | F50: 0 | G50: 0 | H50: =IF(C50-K50*F50<0,360+C50-K50*F50,IF(C50-K50*F50>=360,C50-K50*F50-360,C50-K50*F50)) -> 329 | I50: =IF(D50-K50*G50<0,360+D50-K50*G50,IF(D50-K50*G50>=360,D50-K50*G50-360,D50-K50*G50)) -> 16.3 | J50: 10.2 | K50: =IF(B50-Q$14>180,360-(B50-Q$14),IF(B50-Q$14<-180,360+(B50-Q$14),B50-Q$14)) -> 76.1 | L50: =DEGREES(ACOS((2-ABS((COS(RADIANS(I50))*COS(RADIANS(H50))-COS(RADIANS(S$14))*COS(RADIANS(R$14)))^2+(COS(RADIANS(I50))*SIN(RADIANS(H50))-COS(RADIANS(S$14))*SIN(RADIANS(R$14)))^2+(SIN(RADIANS(I50))-SIN(RADIANS(S$14)))^2))/2)) -> 53.77138748 | M50: =E50-T$14 -> -17.6 | N50: =ABS(K50)*$Q$9+ABS(L50)*$R$9+ABS(M50)*$S$9 -> 109.4213875
A51: 108 | B51: 271.5 | C51: 237.8 | D51: 3.4 | E51: 40.8 | F51: 0 | G51: 0 | H51: =IF(C51-K51*F51<0,360+C51-K51*F51,IF(C51-K51*F51>=360,C51-K51*F51-360,C51-K51*F51)) -> 237.8 | I51: =IF(D51-K51*G51<0,360+D51-K51*G51,IF(D51-K51*G51>=360,D51-K51*G51-360,D51-K51*G51)) -> 3.4 | J51: 12.8 | K51: =IF(B51-Q$14>180,360-(B51-Q$14),IF(B51-Q$14<-180,360+(B51-Q$14),B51-Q$14)) -> 120.9 | L51: =DEGREES(ACOS((2-ABS((COS(RADIANS(I51))*COS(RADIANS(H51))-COS(RADIANS(S$14))*COS(RADIANS(R$14)))^2+(COS(RADIANS(I51))*SIN(RADIANS(H51))-COS(RADIANS(S$14))*SIN(RADIANS(R$14)))^2+(SIN(RADIANS(I51))-SIN(RADIANS(S$14)))^2))/2)) -> 43.72846565 | M51: =E51-T$14 -> -5.8 | N51: =ABS(K51)*$Q$9+ABS(L51)*$R$9+ABS(M51)*$S$9 -> 109.9784657
